Workbook

Sheet LDC Info
Z3: 1 | AA3: Alectra Utilities Corporation-Brampton Rate Zone
Z4: 2 | AA4: Alectra Utilities Corporation-Enersource Rate Zone
Z5: 3 | AA5: Alectra Utilities Corporation-Horizon Utilities Rate Zone
Z6: 4 | AA6: Alectra Utilities Corporation-PowerStream Rate Zone
Z7: 5 | AA7: Alectra Utilities Corporation-Guelph Rate Zone
Z8: 6 | AA8: Algoma Power Inc.
Z9: 7 | AA9: Atikokan Hydro Inc.
Z10: 8 | AA10: Bluewater Power Distribution Corporation
Z11: 9 | AA11: Brantford Power Inc.
Z12: 10 | AA12: Burlington Hydro Inc.
Z13: 11 | AA13: Canadian Niagara Power Inc.
D14: Utility Name | E14: Hydro 2000 Inc. | Z14: 12 | AA14: Centre Wellington Hydro Ltd.
Z15: 13 | AA15: Chapleau Public Utilities Corporation
D16: Assigned EB Number | E16: EB-2019-0041 | Z16: 14 | AA16: Cooperative Hydro Embrun Inc.
Z17: 15 | AA17: E.L.K. Energy Inc.
D18: Name of Contact and Title | E18: Lise Wilkinson, General Manager | Z18: 16 | AA18: Elexicon Energy Inc.-Whitby Rate Zone
Z19: 17 | AA19: Elexicon Energy Inc.-Veridian Rate Zone
D20: Phone Number | E20: 613-479-4093 | Z20: 18 | AA20: Energy+ Inc.-For Former Brant County Power Service Area
Z21: 19 | AA21: Energy+ Inc.-For Former Cambridge and North Dumfries Hydro Service Area
D22: Email Address | E22: lisewilkinson@hydro2000.ca | Z22: 20 | AA22: Entegrus Powerlines Inc.-For Entegrus-Main Rate Zone
Z23: 21 | AA23: Entegrus Powerlines Inc.-For Former St. Thomas Energy Rate Zone
D24: Test Year | E24: 2020 | Z24: 22 | AA24: ENWIN Utilities Ltd.
Z25: 23 | AA25: EPCOR Electricity Distribution Ontario Inc.
D26: Bridge Year | E26: =IF(ISBLANK(E24), "", E24-1) -> 2019 | Z26: 24 | AA26: ERTH Power Corporation - ERTH Power Main Rate Zone
Z27: 25 | AA27: ERTH POWER CORPORATION – GODERICH RATE ZONE
D28: Last Rebasing Year | E28: 2012 | Z28: 26 | AA28: Espanola Regional Hydro Distribution Corporation
Z29: 27 | AA29: Essex Powerlines Corporation
A30: Identify the accounting standard used for the test year | Z30: 28 | AA30: Festival Hydro Inc.
E31: MIFRS | Z31: 29 | AA31: Fort Frances Power Corporation
Z32: 30 | AA32: Greater Sudbury Hydro Inc.
A33: ="Did "& E14 &" update its depreciation and capitalization policies?" -> Did Hydro 2000 Inc. update its depreciation and capitalization policies? | Z33: 31 | AA33: Grimsby Power Incorporated
E34: Yes | Z34: 32 | AA34: Halton Hills Hydro Inc.
Z35: 33 | AA35: Hearst Power Distribution Co. Ltd.
A36: If "yes" to cell E34, were the changes in policies reflected in a prior rebasing application? | Z36: 34 | AA36: Hydro 2000 Inc.
E37: No | Z37: 35 | AA37: Hydro Hawkesbury Inc.
Z38: 36 | AA38: Hydro One Networks Inc.
A39: ="When did "&E14&" update its actual depreciation and capitalization policies?" -> When did Hydro 2000 Inc. update its actual depreciation and capitalization policies? | Z39: 37 | AA39: Hydro One Networks Inc.-Former Haldimand County Hydro Inc. Service Area
E40: 2001-01-01 | F40: 2013 | Z40: 38 | AA40: Hydro One Networks Inc.-Former Norfolk Power Distribution Inc. Service Area
Z41: 39 | AA41: Hydro One Networks Inc.-Former Woodstock Hydro Services Inc. Service Area
A42: Identify the year the applicant adopted IFRS for financial reporting purposes | Z42: 40 | AA42: Hydro One Remote Communites Inc.
E43: 2015 | Z43: 41 | AA43: Hydro Ottawa Limited
Z44: 42 | AA44: InnPower Corporation
Z45: 43 | AA45: Kingston Hydro Corporation
A46: ="Is " & E14 & " applying for cost recovery for the test and/or future year(s) for Green Energy initiatives?" -> Is Hydro 2000 Inc. applying for cost recovery for the test and/or future year(s) for Green Energy initiatives? | Z46: 44 | AA46: Kitchener-Wilmot Hydro Inc.
E47: No | Z47: 45 | AA47: Lakefront Utilities Inc.
Z48: 46 | AA48: Lakeland Power Distribution Ltd.
A49: ="Is " & E14 & " an embedded distributor?" -> Is Hydro 2000 Inc. an embedded distributor? | E49: Yes | Z49: 47 | AA49: Lakeland Power Distribution Ltd.-Parry Sound Service Area
Z50: 48 | AA50: London Hydro Inc.
Z51: 49 | AA51: Milton Hydro Distribution Inc.
B52: Notes | Z52: 50 | AA52: Newmarket-Tay Power Distribution Ltd.-For Former Midland Power Utility Rate Zone
Z53: 51 | AA53: Newmarket-Tay Power Distribution Ltd.-For Newmarket-Tay Power Main Rate Zone
C54: Pale green cells represent input cells. | Z54: 52 | AA54: Niagara Peninsula Energy Inc.
Z55: 53 | AA55: Niagara-on-the-Lake Hydro Inc.
C56: Pale blue cells represent drop-down lists. The applicant should select the appropriate item from the drop-down list. | Z56: 54 | AA56: North Bay Hydro Distribution Limited
Z57: 55 | AA57: Northern Ontario Wires Inc.
C58: White cells contain fixed values, automatically generated values or formulae. | N58: =IF(LEN($G58)>1, (SUMPRODUCT(--($C$81:$C$1003=$C58),--($A$81:$A$1003=$D58), --($B$81:$B$1003=$B58&"_TOTAL"), $L$1:$L$889)), "") ->  | O58: =IF(LEN($G58)>1, (SUMPRODUCT(--($C$81:$C$1003=$C58),--($A$81:$A$1003=$D58), --($B$81:$B$1003=$B58&"_TOTAL"), $M$1:$M$889)), "") ->  | Z58: 56 | AA58: Oakville Hydro Electricity Distribution Inc.
Z59: 57 | AA59: Orangeville Hydro Limited
Z60: 58 | AA60: Orillia Power Distribution Corporation
Z61: 59 | AA61: Oshawa PUC Networks Inc.
Z62: 60 | AA62: Ottawa River Power Corporation
Z63: 61 | AA63: Peterborough Distribution Incorporated
Z64: 62 | AA64: PUC Distribution Inc.
Z65: 63 | AA65: Renfrew Hydro Inc.
Z66: 64 | AA66: Rideau St. Lawrence Distribution Inc.
Z67: 65 | AA67: Sioux Lookout Hydro Inc.
Z68: 66 | AA68: Synergy North Corporation-Kenora Rate Zone
Z69: 67 | AA69: Synergy North Corporation-Thunder Bay Rate Zone
Z70: 68 | AA70: Tillsonburg Hydro Inc.
Z71: 69 | AA71: Toronto Hydro-Electric System Limited
Z72: 70 | AA72: Wasaga Distribution Inc.
Z73: 71 | AA73: Waterloo North Hydro Inc.
Z74: 72 | AA74: Welland Hydro-Electric System Corp.
Z75: 73 | AA75: Wellington North Power Inc.
Z76: 74 | AA76: Westario Power Inc.
Z77: 75

Sheet Index
A15: 1 | B15: LDC Information Sheet | E15: 20 | F15: App.2-G: Service Reliability Indicators
A16: 2 | B16: Index | E16: 21 | F16: App.2-H: Other Operating Revenue (TO BE UPDATED AT THE DRAFT RATE ORDER STAGE)
A17: 3 | B17: Cost of Service Application Flowchart | E17: 22 | F17: App.2-I: Load Forecast CDM Adjustment Workform
A18: 4 | B18: List of Key References | E18: 23 | F18: App.2-IA: Load Forecast Data Instructions
A19: 5 | B19: App.2-A: List of Requested Approvals | E19: 24 | F19: App.2-IB: Actual and Forecast Load and Customer Data
A20: 6 | B20: App.2-AA: Capital Projects Table | E20: 25 | F20: App.2-JA: OM&A Summary Analysis (TO BE UPDATED AT THE DRAFT RATE ORDER STAGE)
A21: 7 | B21: App.2-AB: Capital Expenditures (TO BE UPDATED AT THE DRAFT RATE ORDER STAGE) | E21: 26 | F21: App.2-JB: Recoverable OM&A Cost Driver Table
A22: 8 | B22: App. 2-AC: Customer Engagement Worksheet | E22: 27 | F22: App.2-JC: OM&A Programs Table
A23: 9 | B23: App.2-B: General Accounting Instructions | E23: 28 | F23: App.2-K: Employee Costs (TO BE UPDATED AT THE DRAFT RATE ORDER STAGE)
A24: 10 | B24: App.2-BA: Fixed Asset Continuity Schedule | E24: 29 | F24: App.2-L: Recoverable OM&A Cost per Customer and per FTE
A25: 11 | B25: Appendix 2-BB: Service Life Comparison | E25: 30 | F25: App.2-M: Regulatory Costs Schedule (TO BE UPDATED AT THE DRAFT RATE ORDER STAGE)
A26: 12 | B26: App.2-C_DepExp: Depreciation and Amortization Expense | E26: 31 | F26: App.2-N: Shared Services and Corporate Cost Allocation
A27: 13 | B27: App.2-D: Overhead Expenses | E27: 32 | F27: App.2-OA: Capital Structure and Cost of Capital
A28: 14 | B28: App.2-EA: Account 1575 PP&E Deferral Account (2015 IFRS Adopters) - CONTACT OEB STAFF IF TAB REQUIRED | E28: 33 | F28: App.2-OB: Debt Instruments
A29: 15 | B29: App.2-EB: Account 1576 - Accounting Changes Under CGAAP (2012 Changes) - CONTACT OEB STAFF IF TAB REQUIRED | E29: 34 | F29: App.2-Q: Cost of Serving Embedded Distributor(s)
A30: 16 | B30: App.2-EC: Account 1576 - Accounting Changes Under CGAAP (2013 Changes) - CONTACT OEB STAFF IF TAB REQUIRED | E30: 35 | F30: App.2-R: Loss Factors
A31: 17 | B31: App.2-FA: Renewable Generation Connection Investment Summary (TO BE UPDATED AT THE DRAFT RATE ORDER STAGE) | E31: 36 | F31: App.2-S: Stranded Meter Treatment
A32: 18 | B32: App.2-FB: Calculation of Renewable Generation Connection Direct Benefits/Provincial Amount: Renewable Enabling Improvement Investments (TO BE UPDATED AT THE DRAFT RATE ORDER STAGE) | E32: 37 | F32: App.2-Y: Transition to MIFRS Summary Impact - CONTACT OEB STAFF IF TAB REQUIRED
A33: 19 | B33: App.2-FC: Calculation of Renewable Generation Connection Direct Benefits/Provincial Amount: Renewable Expansion Investments (TO BE UPDATED AT THE DRAFT RATE ORDER STAGE) | E33: 38 | F33: App.2-YA: One-Time Incremental IFRS Transition Costs - CONTACT OEB STAFF IF TAB REQUIRED
E34: 39 | F34: App.2-Z: Commodity Expense
A42: Note: | B42: Appendices for the Tariff of Rates and Charges at Current and Proposed Rates, and for the Bill Impacts are now in a separate spreadsheet model. These appendices were formerly 2-Z and 2-W.

Sheet COS Flowchart
B4: Cost of Service Rate Application Schematic
B6: The Cost of Service Rate Application Schematic is a flowchart that is included as a guide for the components of an application. The schematic demonstrates how demand and costs interrelate to derive the revenue requirement and how the revenue requirement is allocated between classes and through fixed/variable splits to derive rates that will be compensatory for the annual revenue requirement, based on the the forecasted demand. There is no form to be filled out; therefore, this Schedule is not required to be filed.

Sheet List of Key References
B2: List of Key References
A4: A list of key references for understanding the Filing Requirements has been embedded in the document below. To access the list of references and associated hyperlinks double-click the icon below.

Sheet App.2-A_Requested_Approvals
G1: File Number: | H1: =EBNUMBER -> EB-2019-0041
G2: Exhibit:
G3: Tab:
G4: Schedule:
G5: Page:
G7: Date:
B9: Appendix 2-A
B10: List of Requested Approvals
B12: The distributor must fill out the following sheet with the complete list of specific approvals requested and relevant section(s) of the legislation must be provided. All approvals, including accounting orders (deferral and variance accounts) new rate classes, revised specific service charges or retail service charges which the applicant is seeking, must be separately identified, as well being clearly documented in the appropriate sections of the application.
B14: Additional requests may be added by copying and pasting blank input rows, as needed.
B16: If additional requests arise, or requested approvals are removed, during the processing of the application, the distributor should update this list.
B18: =CONCATENATE('LDC Info'!E14," is seeking the following approvals in this application:") -> Hydro 2000 Inc. is seeking the following approvals in this application:
B20: 1 | F20: Approval to charge distribution rates effective May 1, 2020 to recover a base revenue requirement of $581,156 which includes a revenue deficiency of $35,002 using the Service Revenue Requirement as detailed in Exhibit 6. The schedule of proposed rates is set out in Exhibit 8.
B22: 2 | F22: Approval of the Distribution System Plan as outlined in Exhibit 2 Section 2.5.2.
B24: 3 | F24: Approval to adjust the Retail Transmission Rates – Network and Connection as detailed in Exhibit 8.
B26: 4 | F26: Approval of the proposed loss factors as detailed in Exhibit 8.
B28: 5 | F28: Approval to continue to charge Wholesale Market and Rural Rate Protection Charges approved in the Board Decision and Order in the matter of Hydro 2000 Distribution Rates
B30: 6 | F30: Approval of the rate riders for a one-year disposition of the Group 1 and Group 2 and Other Deferral and Variance Accounts as detailed in Exhibit 9.
B32: 7 | F32: Approval to dispose of balances in the LRAM variance account as presented in Exhibit 9.
B34: 8 | F34: Such other approvals that Hydro 2000 may request and that the OEB accepts.

Sheet App.2-AA_Capital Projects
J1: File Number: | K1: =EBNUMBER -> EB-2019-0041
J2: Exhibit:
J3: Tab:
J4: Schedule:
J5: Page:
J7: Date:
A9: Appendix 2-AA
A10: Capital Projects Table
A13: Projects | B13: 2012 | C13: 2013 | D13: 2014 | E13: =F13-1 -> 2015 | F13: =G13-1 -> 2016 | G13: =H13-1 -> 2017 | H13: =BridgeYear - 1 -> 2018 | I13: =BridgeYear & " Bridge Year" -> 2019 Bridge Year | J13: =TestYear & " Test Year" -> 2020 Test Year
A14: Reporting Basis | B14: CGAAP | C14: CGAAP | D14: CGAAP | E14: MIFRS | F14: MIFRS | G14: MIFRS | H14: MIFRS | I14: MIFRS | J14: MIFRS
A16: System Access
A17: Replace Bell Pole | B17: 4850
A18: New O/H and U/G services | B18: 1463.85 | C18: 947.5 | G18: 330 | H18: 1320 | I18: 7893 | J18: 37290
A23: Sub-Total | B23: =SUM(B17:B22) -> 6313.85 | C23: =SUM(C17:C22) -> 947.5 | D23: 0 | E23: 0 | F23: 0 | G23: 330 | H23: 1320 | I23: 7893 | J23: 37290
A25: System Renewal
A26: Overhead Conductors and devices | B26: 6685.75 | C26: 8904.7 | D26: 1374.25 | E26: 1699.86 | F26: 1709.5 | G26: 6009.9 | I26: 10500 | J26: 14500
A27: Underground Conductors and devices | B27: 800.5 | C27: 7206.62 | D27: 3808.55 | F27: 1784.51 | G27: 3280 | I27: 3300 | J27: 7300
A28: Line Transformers | B28: 10999.32 | C28: 1293 | D28: 8241.77 | E28: 9365.75 | F28: 18339.13 | G28: 8616.62 | H28: 10703.9 | I28: 74947.9 | J28: 42900
A29: Poles & Fixtures | C29: 9515 | D29: 18689.25 | E29: 13945.75 | F29: 24730 | G29: 15862 | H29: 29136.5 | I29: 41236 | J29: 25000
A30: U/G conduit | G30: 432.5
A31: Meters | B31: 196330.36 | D31: 7985.07 | E31: 2234.22 | F31: 667 | G31: 10845 | H31: 3836.74 | I31: 17749 | J31: 17098
A32: Capital Contribution | B32: -2157 | C32: -3338 | F32: -29147 | H32: -3750 | I32: -13728 | J32: -27134
A34: Sub-Total | B34: =SUM(B26:B33) -> 212658.93 | C34: =SUM(C26:C33) -> 23581.32 | D34: 40098.89 | E34: 27245.58 | F34: 18083.14 | G34: 45046.02 | H34: 39927.14 | I34: 134004.9 | J34: 79664
A36: General Plant
A37: Leasehold Improvement - Alarm System | B37: 623.54 | I37: 0 | J37: 500
A38: Office Furniture and Equipment | B38: 1309 | C38: 359.98 | D38: 230 | E38: 329 | I38: 899.97 | J38: 500
A39: Computer Equipment | B39: 11681 | C39: 210.81 | D39: 262.5 | E39: 8450.24 | F39: 560.18 | J39: 2500
A40: Software Norton | B40: 400.5
A41: Softwares | C41: 352.33 | D41: 38793.14 | E41: 2142 | F41: 1179 | G41: 6772 | J41: 0
A43: Sub-Total | E43: =SUM(E38:E42) -> 10921.24 | F43: 1739.18 | G43: 6772 | H43: 0 | I43: =SUM(I37:I42) -> 899.97 | J43: =SUM(J37:J42) -> 3500
A45: Miscellaneous
A46: Total | E46: =SUMPRODUCT(--($A17:$A45="Sub-Total"), E$17:E$45)+E45 -> 38166.82 | F46: 19822.32 | G46: 52148.02 | H46: 41247.14 | I46: 142797.87 | J46: 120454
A47: Less Renewable Generation Facility Assets and Other Non-Rate-Regulated Utility Assets (input as negative)
A48: Total | E48: =E46+E47 -> 38166.82 | F48: 19822.32 | G48: 52148.02 | H48: 41247.14 | I48: 142797.87 | J48: 120454
A50: Notes:
A52: 1 Please provide a breakdown of the major components of each capital project undertaken in each year. Please ensure that all projects below the materiality threshold are included in the miscellaneous line. Add more projects as required.
A53: 2 The applicant should group projects appropriately and avoid presentations that result in classification of significant components of the capital budget in the miscellaneous category.

Sheet App.2-AB_Capital Expenditures
AE1: File Number: | AG1: =EBNUMBER -> EB-2019-0041
AE2: Exhibit:
AE3: Tab:
AE4: Schedule:
A5: TO BE UPDATED AT THE DRAFT RATE ORDER STAGE | AE5: Page:
AE7: Date:
A9: Appendix 2-AB
A10: Table 2 - Capital Expenditure Summary from Chapter 5 Consolidated Distribution System Plan Filing Requirements
A11: First year of Forecast Period:
A12: =TestYear -> 2020
A13: CATEGORY | B13: Historical Period (previous plan1 & actual) | AC13: Forecast Period (planned)
B14: =E14-1 -> 2011 | E14: =H14-1 -> 2012 | H14: =K14-1 -> 2013 | K14: =N14-1 -> 2014 | N14: =Q14-1 -> 2015 | Q14: =T14-1 -> 2016 | T14: =W14-1 -> 2017 | W14: =Z14-1 -> 2018 | Z14: =AC14-1 -> 2019 | AC14: =A12 -> 2020 | AD14: =AC14+1 -> 2021 | AE14: =AD14+1 -> 2022 | AF14: =AE14+1 -> 2023 | AG14: =AF14+1 -> 2024
B15: Plan | C15: Actual | D15: Var | E15: Plan | F15: Actual | G15: Var | H15: Plan | I15: Actual | J15: Var | K15: Plan | L15: Actual | M15: Var | N15: Plan | O15: Actual | P15: Var | Q15: Plan | R15: Actual | S15: Var | T15: Plan | U15: Actual | V15: Var | W15: Plan | X15: Actual | Y15: Var | Z15: Plan | AA15: Actual2 | AB15: Var
B16: $ '000 | D16: % | E16: $ '000 | G16: % | H16: $ '000 | J16: % | K16: $ '000 | M16: % | N16: $ '000 | P16: % | Q16: $ '000 | S16: % | T16: $ '000 | V16: % | W16: $ '000 | Y16: % | Z16: $ '000 | AB16: % | AC16: $ '000
A17: System Access | D17: =IF(ISERROR((C17-B17)/B17),"--",(C17-B17)/B17) -> -- | E17: 0 | F17: 6313.85 | G17: =IF(ISERROR((F17-E17)/E17),"--",(F17-E17)/E17) -> -- | H17: 0 | I17: 947.5 | J17: =IF(ISERROR((I17-H17)/H17),"--",(I17-H17)/H17) -> -- | K17: 0 | M17: =IF(ISERROR((L17-K17)/K17),"--",(L17-K17)/K17) -> -- | N17: 0 | O17: 0 | P17: =IF(ISERROR((O17-N17)/N17),"--",(O17-N17)/N17) -> -- | Q17: 0 | R17: 0 | S17: =IF(ISERROR((R17-Q17)/Q17),"--",(R17-Q17)/Q17) -> -- | T17: 0 | U17: 330 | V17: =IF(ISERROR((U17-T17)/T17),"--",(U17-T17)/T17) -> -- | W17: 0 | X17: 1320 | Y17: =IF(ISERROR((X17-W17)/W17),"--",(X17-W17)/W17) -> -- | Z17: 0 | AA17: 7893 | AB17: =IF(ISERROR((AA17-Z17)/Z17),"--",(AA17-Z17)/Z17) -> -- | AC17: 37290 | AD17: 5000 | AE17: 5000 | AF17: 5000 | AG17: 5000
A18: System Renewal | D18: =IF(ISERROR((C18-B18)/B18),"--",(C18-B18)/B18) -> -- | E18: 236297 | F18: 214815.93 | G18: =IF(ISERROR((F18-E18)/E18),"--",(F18-E18)/E18) -> -0.0909070788 | H18: 43000 | I18: 26919.32 | J18: =IF(ISERROR((I18-H18)/H18),"--",(I18-H18)/H18) -> -0.3739693023 | K18: 43000 | L18: 40098.89 | M18: =IF(ISERROR((L18-K18)/K18),"--",(L18-K18)/K18) -> -0.06746767442 | N18: 43000 | O18: 27245.58 | P18: =IF(ISERROR((O18-N18)/N18),"--",(O18-N18)/N18) -> -0.3663818605 | Q18: 43000 | R18: 47230.14 | S18: =IF(ISERROR((R18-Q18)/Q18),"--",(R18-Q18)/Q18) -> 0.09837534884 | T18: 43000 | U18: 45046.02 | V18: =IF(ISERROR((U18-T18)/T18),"--",(U18-T18)/T18) -> 0.04758186047 | W18: 43000 | X18: 43677.14 | Y18: =IF(ISERROR((X18-W18)/W18),"--",(X18-W18)/W18) -> 0.01574744186 | Z18: 43000 | AA18: 147733 | AB18: =IF(ISERROR((AA18-Z18)/Z18),"--",(AA18-Z18)/Z18) -> 2.435651163 | AC18: 106798 | AD18: 100000 | AE18: 100000 | AF18: 100000 | AG18: 100000
A19: System Service | D19: -- | E19: 0 | F19: 0 | G19: -- | H19: 0 | I19: 0 | J19: -- | K19: 0 | M19: -- | N19: 0 | P19: -- | Q19: 0 | S19: -- | T19: 0 | V19: -- | W19: 0 | Y19: -- | Z19: 0 | AB19: --
A20: General Plant | D20: -- | E20: 42761 | F20: 14014.04 | G20: -0.6722705269 | H20: 14014 | I20: 923.12 | J20: -0.9341287284 | K20: 14014 | L20: 39285.64 | M20: 1.803313829 | N20: 14014 | O20: 10921.24 | P20: -0.2206907378 | Q20: 14014 | R20: 1739.18 | S20: -0.8758969602 | T20: 14014 | U20: 6772 | V20: -0.5167689453 | W20: 14014 | X20: 0 | Y20: -1 | Z20: 14014 | AA20: 900 | AB20: -0.9357785072 | AC20: 3500 | AD20: 5500 | AE20: 5500 | AF20: 5500 | AG20: 5500
A21: TOTAL EXPENDITURE | B21: =SUM(B17:B20) -> 0 | C21: =SUM(C17:C20) -> 0 | D21: -- | E21: =SUM(E17:E20) -> 279058 | F21: =SUM(F17:F20) -> 235143.82 | G21: -0.1573657806 | H21: =SUM(H17:H20) -> 57014 | I21: =SUM(I17:I20) -> 28789.94 | J21: -0.4950373592 | K21: =SUM(K17:K20) -> 57014 | L21: =SUM(L17:L20) -> 79384.53 | M21: 0.3923690672 | N21: =SUM(N17:N20) -> 57014 | O21: =SUM(O17:O20) -> 38166.82 | P21: -0.3305710878 | Q21: 57014 | R21: 48969.32 | S21: -0.1411000807 | T21: 57014 | U21: 52148.02 | V21: -0.08534710773 | W21: 57014 | X21: 44997.14 | Y21: -0.2107703371 | Z21: 57014 | AA21: 156526 | AB21: 1.745395868 | AC21: 147588 | AD21: 110500 | AE21: 110500 | AF21: 110500 | AG21: =SUM(AG17:AG20) -> 110500
A22: Capital Contributions | D22: -- | F22: -2157 | G22: -- | I22: -3338 | J22: -- | M22: -- | P22: -- | R22: -29147 | S22: -- | V22: -- | X22: -3750 | Y22: -- | AA22: -13728 | AB22: -- | AC22: -27134
A23: Net Capital Expenditures | D23: -- | E23: =E21+E22 -> 279058 | F23: =F21+F22 -> 232986.82 | G23: -0.1650953565 | H23: =H21+H22 -> 57014 | I23: =I21+I22 -> 25451.94 | J23: -0.5535843828 | K23: =K21+K22 -> 57014 | L23: =L21+L22 -> 79384.53 | M23: 0.3923690672 | N23: =N21+N22 -> 57014 | O23: =O21+O22 -> 38166.82 | P23: -0.3305710878 | Q23: =Q21+Q22 -> 57014 | R23: =R21+R22 -> 19822.32 | S23: -0.6523253938 | T23: =T21+T22 -> 57014 | U23: =U21+U22 -> 52148.02 | V23: -0.08534710773 | W23: =W21+W22 -> 57014 | X23: =X21+X22 -> 41247.14 | Y23: -0.2765436559 | Z23: =Z21+Z22 -> 57014 | AA23: =AA21+AA22 -> 142798 | AB23: 1.504612902 | AC23: =AC21+AC22 -> 120454 | AD23: =AD21+AD22 -> 110500 | AE23: =AE21+AE22 -> 110500 | AF23: =AF21+AF22 -> 110500 | AG23: =AG21+AG22 -> 110500
A24: System O&M | D24: -- | E24: 14825 | F24: 69469 | G24: 3.685935919 | H24: 14825 | I24: 30927 | J24: 1.08613828 | K24: 14825 | L24: 9876 | M24: -0.3338279933 | N24: 14825 | O24: 21935 | P24: 0.4795952782 | Q24: 14825 | R24: 44837 | S24: 2.024418212 | T24: 14825 | U24: 56272 | V24: 2.795750422 | W24: 14825 | X24: 44937.61 | Y24: 2.031204722 | Z24: 14825 | AA24: 44027 | AB24: 1.969780776 | AC24: 51146 | AD24: 51913.19 | AE24: 52691.88785 | AF24: 53482.26617 | AG24: 54284.50016
A26: Notes to the Table:
A27: 1. Historical “previous plan” data is not required unless a plan has previously been filed. However, use the last OEB-approved, at least on a Total (Capital) Expenditure basis for the last cost of service rebasing year, and the applicant should include their planned budget in each subsequent historical year up to and including the Bridge Year.
A28: 2. Indicate the number of months of 'actual' data included in the last year of the Historical Period (normally a 'bridge' year):
A30: Explanatory Notes on Variances (complete only if applicable)
A31: Notes on shifts in forecast vs. historical budgets by category
A34: Notes on year over year Plan vs. Actual variances for Total Expenditures
A37: Notes on Plan vs. Actual variance trends for individual expenditure categories

Sheet Hidden_CAPEX (hidden)
A1: Utility Name | B1: EB Number | C1: Test Year | D1: Bridge Year | E1: Last Rebasing Year | F1: Category | G1: Year | H1: Plan | I1: Actual
A2: ='LDC Info'!$E$14 -> Hydro 2000 Inc. | B2: =EBNUMBER -> EB-2019-0041 | C2: =TestYear -> 2020 | D2: =BridgeYear -> 2019 | E2: =RebaseYear -> 2012 | F2: System Access | G2: ='App.2-AB_Capital Expenditures'!B14 -> 2011 | H2: ='App.2-AB_Capital Expenditures'!B17 -> 0 | I2: ='App.2-AB_Capital Expenditures'!C17 -> 0
A3: ='LDC Info'!$E$14 -> Hydro 2000 Inc. | B3: EB-2019-0041 | C3: 2020 | D3: 2019 | E3: 2012 | F3: System Renewal | G3: ='App.2-AB_Capital Expenditures'!B14 -> 2011 | H3: ='App.2-AB_Capital Expenditures'!B18 -> 0 | I3: ='App.2-AB_Capital Expenditures'!C18 -> 0
A4: ='LDC Info'!$E$14 -> Hydro 2000 Inc. | B4: EB-2019-0041 | C4: 2020 | D4: 2019 | E4: 2012 | F4: System Service | G4: ='App.2-AB_Capital Expenditures'!B14 -> 2011 | H4: ='App.2-AB_Capital Expenditures'!B19 -> 0 | I4: ='App.2-AB_Capital Expenditures'!C19 -> 0
A5: ='LDC Info'!$E$14 -> Hydro 2000 Inc. | B5: EB-2019-0041 | C5: 2020 | D5: 2019 | E5: 2012 | F5: General Plant | G5: ='App.2-AB_Capital Expenditures'!B14 -> 2011 | H5: ='App.2-AB_Capital Expenditures'!B20 -> 0 | I5: ='App.2-AB_Capital Expenditures'!C20 -> 0
A6: ='LDC Info'!$E$14 -> Hydro 2000 Inc. | B6: EB-2019-0041 | C6: 2020 | D6: 2019 | E6: 2012 | F6: Total Expenditure | G6: ='App.2-AB_Capital Expenditures'!B14 -> 2011 | H6: ='App.2-AB_Capital Expenditures'!B21 -> 0 | I6: ='App.2-AB_Capital Expenditures'!C21 -> 0
A7: ='LDC Info'!$E$14 -> Hydro 2000 Inc. | B7: EB-2019-0041 | C7: 2020 | D7: 2019 | E7: 2012 | F7: Capital Contributions | G7: ='App.2-AB_Capital Expenditures'!B14 -> 2011 | H7: ='App.2-AB_Capital Expenditures'!B22 -> 0 | I7: ='App.2-AB_Capital Expenditures'!C22 -> 0
A8: ='LDC Info'!$E$14 -> Hydro 2000 Inc. | B8: EB-2019-0041 | C8: 2020 | D8: 2019 | E8: 2012 | F8: Net Capital Expenditures | G8: ='App.2-AB_Capital Expenditures'!B14 -> 2011 | H8: ='App.2-AB_Capital Expenditures'!B23 -> 0 | I8: ='App.2-AB_Capital Expenditures'!C23 -> 0
A9: ='LDC Info'!$E$14 -> Hydro 2000 Inc. | B9: EB-2019-0041 | C9: 2020 | D9: 2019 | E9: 2012 | F9: System O&M | G9: ='App.2-AB_Capital Expenditures'!B14 -> 2011 | H9: ='App.2-AB_Capital Expenditures'!B24 -> 0 | I9: ='App.2-AB_Capital Expenditures'!C24 -> 0
A10: ='LDC Info'!$E$14 -> Hydro 2000 Inc. | B10: EB-2019-0041 | C10: 2020 | D10: 2019 | E10: 2012 | F10: System Access | G10: ='App.2-AB_Capital Expenditures'!E14 -> 2012 | H10: ='App.2-AB_Capital Expenditures'!E17 -> 0 | I10: ='App.2-AB_Capital Expenditures'!F17 -> 6313.85
A11: ='LDC Info'!$E$14 -> Hydro 2000 Inc. | B11: EB-2019-0041 | C11: 2020 | D11: 2019 | E11: 2012 | F11: System Renewal | G11: ='App.2-AB_Capital Expenditures'!E14 -> 2012 | H11: ='App.2-AB_Capital Expenditures'!E18 -> 236297 | I11: ='App.2-AB_Capital Expenditures'!F18 -> 214815.93
A12: ='LDC Info'!$E$14 -> Hydro 2000 Inc. | B12: EB-2019-0041 | C12: 2020 | D12: 2019 | E12: 2012 | F12: System Service | G12: ='App.2-AB_Capital Expenditures'!E14 -> 2012 | H12: ='App.2-AB_Capital Expenditures'!E19 -> 0 | I12: ='App.2-AB_Capital Expenditures'!F19 -> 0
A13: ='LDC Info'!$E$14 -> Hydro 2000 Inc. | B13: EB-2019-0041 | C13: 2020 | D13: 2019 | E13: 2012 | F13: General Plant | G13: ='App.2-AB_Capital Expenditures'!E14 -> 2012 | H13: ='App.2-AB_Capital Expenditures'!E20 -> 42761 | I13: ='App.2-AB_Capital Expenditures'!F20 -> 14014.04
A14: ='LDC Info'!$E$14 -> Hydro 2000 Inc. | B14: EB-2019-0041 | C14: 2020 | D14: 2019 | E14: 2012 | F14: Total Expenditure | G14: ='App.2-AB_Capital Expenditures'!E14 -> 2012 | H14: ='App.2-AB_Capital Expenditures'!E21 -> 279058 | I14: ='App.2-AB_Capital Expenditures'!F21 -> 235143.82
A15: ='LDC Info'!$E$14 -> Hydro 2000 Inc. | B15: EB-2019-0041 | C15: 2020 | D15: 2019 | E15: 2012 | F15: Capital Contributions | G15: ='App.2-AB_Capital Expenditures'!E14 -> 2012 | H15: ='App.2-AB_Capital Expenditures'!E22 -> 0 | I15: ='App.2-AB_Capital Expenditures'!F22 -> -2157
A16: ='LDC Info'!$E$14 -> Hydro 2000 Inc. | B16: EB-2019-0041 | C16: 2020 | D16: 2019 | E16: 2012 | F16: Net Capital Expenditures | G16: ='App.2-AB_Capital Expenditures'!E14 -> 2012 | H16: ='App.2-AB_Capital Expenditures'!E23 -> 279058 | I16: ='App.2-AB_Capital Expenditures'!F23 -> 232986.82
A17: ='LDC Info'!$E$14 -> Hydro 2000 Inc. | B17: EB-2019-0041 | C17: 2020 | D17: 2019 | E17: 2012 | F17: System O&M | G17: ='App.2-AB_Capital Expenditures'!E14 -> 2012 | H17: ='App.2-AB_Capital Expenditures'!E24 -> 14825 | I17: ='App.2-AB_Capital Expenditures'!F24 -> 69469
A18: ='LDC Info'!$E$14 -> Hydro 2000 Inc. | B18: EB-2019-0041 | C18: 2020 | D18: 2019 | E18: 2012 | F18: System Access | G18: ='App.2-AB_Capital Expenditures'!H14 -> 2013 | H18: ='App.2-AB_Capital Expenditures'!H17 -> 0 | I18: ='App.2-AB_Capital Expenditures'!I17 -> 947.5
A19: ='LDC Info'!$E$14 -> Hydro 2000 Inc. | B19: EB-2019-0041 | C19: 2020 | D19: 2019 | E19: 2012 | F19: System Renewal | G19: ='App.2-AB_Capital Expenditures'!H14 -> 2013 | H19: ='App.2-AB_Capital Expenditures'!H18 -> 43000 | I19: ='App.2-AB_Capital Expenditures'!I18 -> 26919.32
A20: ='LDC Info'!$E$14 -> Hydro 2000 Inc. | B20: EB-2019-0041 | C20: 2020 | D20: 2019 | E20: 2012 | F20: System Service | G20: ='App.2-AB_Capital Expenditures'!H14 -> 2013 | H20: ='App.2-AB_Capital Expenditures'!H19 -> 0 | I20: ='App.2-AB_Capital Expenditures'!I19 -> 0
A21: ='LDC Info'!$E$14 -> Hydro 2000 Inc. | B21: EB-2019-0041 | C21: 2020 | D21: 2019 | E21: 2012 | F21: General Plant | G21: ='App.2-AB_Capital Expenditures'!H14 -> 2013 | H21: ='App.2-AB_Capital Expenditures'!H20 -> 14014 | I21: ='App.2-AB_Capital Expenditures'!I20 -> 923.12
A22: ='LDC Info'!$E$14 -> Hydro 2000 Inc. | B22: EB-2019-0041 | C22: 2020 | D22: 2019 | E22: 2012 | F22: Total Expenditure | G22: ='App.2-AB_Capital Expenditures'!H14 -> 2013 | H22: ='App.2-AB_Capital Expenditures'!H21 -> 57014 | I22: ='App.2-AB_Capital Expenditures'!I21 -> 28789.94
A23: ='LDC Info'!$E$14 -> Hydro 2000 Inc. | B23: EB-2019-0041 | C23: 2020 | D23: 2019 | E23: 2012 | F23: Capital Contributions | G23: ='App.2-AB_Capital Expenditures'!H14 -> 2013 | H23: ='App.2-AB_Capital Expenditures'!H22 -> 0 | I23: ='App.2-AB_Capital Expenditures'!I22 -> -3338
A24: ='LDC Info'!$E$14 -> Hydro 2000 Inc. | B24: EB-2019-0041 | C24: 2020 | D24: 2019 | E24: 2012 | F24: Net Capital Expenditures | G24: ='App.2-AB_Capital Expenditures'!H14 -> 2013 | H24: ='App.2-AB_Capital Expenditures'!H23 -> 57014 | I24: ='App.2-AB_Capital Expenditures'!I23 -> 25451.94
A25: ='LDC Info'!$E$14 -> Hydro 2000 Inc. | B25: EB-2019-0041 | C25: 2020 | D25: 2019 | E25: 2012 | F25: System O&M | G25: ='App.2-AB_Capital Expenditures'!H14 -> 2013 | H25: ='App.2-AB_Capital Expenditures'!H24 -> 14825 | I25: ='App.2-AB_Capital Expenditures'!I24 -> 30927
A26: ='LDC Info'!$E$14 -> Hydro 2000 Inc. | B26: EB-2019-0041 | C26: 2020 | D26: 2019 | E26: 2012 | F26: System Access | G26: ='App.2-AB_Capital Expenditures'!K14 -> 2014 | H26: ='App.2-AB_Capital Expenditures'!K17 -> 0 | I26: ='App.2-AB_Capital Expenditures'!L17 -> 0
A27: ='LDC Info'!$E$14 -> Hydro 2000 Inc. | B27: EB-2019-0041 | C27: 2020 | D27: 2019 | E27: 2012 | F27: System Renewal | G27: ='App.2-AB_Capital Expenditures'!K14 -> 2014 | H27: ='App.2-AB_Capital Expenditures'!K18 -> 43000 | I27: ='App.2-AB_Capital Expenditures'!L18 -> 40098.89
A28: ='LDC Info'!$E$14 -> Hydro 2000 Inc. | B28: EB-2019-0041 | C28: 2020 | D28: 2019 | E28: 2012 | F28: System Service | G28: ='App.2-AB_Capital Expenditures'!K14 -> 2014 | H28: ='App.2-AB_Capital Expenditures'!K19 -> 0 | I28: ='App.2-AB_Capital Expenditures'!L19 -> 0
A29: ='LDC Info'!$E$14 -> Hydro 2000 Inc. | B29: EB-2019-0041 | C29: 2020 | D29: 2019 | E29: 2012 | F29: General Plant | G29: ='App.2-AB_Capital Expenditures'!K14 -> 2014 | H29: ='App.2-AB_Capital Expenditures'!K20 -> 14014 | I29: ='App.2-AB_Capital Expenditures'!L20 -> 39285.64
A30: ='LDC Info'!$E$14 -> Hydro 2000 Inc. | B30: EB-2019-0041 | C30: 2020 | D30: 2019 | E30: 2012 | F30: Total Expenditure | G30: ='App.2-AB_Capital Expenditures'!K14 -> 2014 | H30: ='App.2-AB_Capital Expenditures'!K21 -> 57014 | I30: ='App.2-AB_Capital Expenditures'!L21 -> 79384.53
A31: ='LDC Info'!$E$14 -> Hydro 2000 Inc. | B31: EB-2019-0041 | C31: 2020 | D31: 2019 | E31: 2012 | F31: Capital Contributions | G31: ='App.2-AB_Capital Expenditures'!K14 -> 2014 | H31: ='App.2-AB_Capital Expenditures'!K22 -> 0 | I31: ='App.2-AB_Capital Expenditures'!L22 -> 0
A32: ='LDC Info'!$E$14 -> Hydro 2000 Inc. | B32: EB-2019-0041 | C32: 2020 | D32: 2019 | E32: 2012 | F32: Net Capital Expenditures | G32: ='App.2-AB_Capital Expenditures'!K14 -> 2014 | H32: ='App.2-AB_Capital Expenditures'!K23 -> 57014 | I32: ='App.2-AB_Capital Expenditures'!L23 -> 79384.53
A33: ='LDC Info'!$E$14 -> Hydro 2000 Inc. | B33: EB-2019-0041 | C33: 2020 | D33: 2019 | E33: 2012 | F33: System O&M | G33: ='App.2-AB_Capital Expenditures'!K14 -> 2014 | H33: ='App.2-AB_Capital Expenditures'!K24 -> 14825 | I33: ='App.2-AB_Capital Expenditures'!L24 -> 9876
A34: ='LDC Info'!$E$14 -> Hydro 2000 Inc. | B34: =EBNUMBER -> EB-2019-0041 | C34: =TestYear -> 2020 | D34: =BridgeYear -> 2019 | E34: =RebaseYear -> 2012 | F34: System Access | G34: ='App.2-AB_Capital Expenditures'!N14 -> 2015 | H34: ='App.2-AB_Capital Expenditures'!N17 -> 0 | I34: ='App.2-AB_Capital Expenditures'!O17 -> 0
A35: ='LDC Info'!$E$14 -> Hydro 2000 Inc. | B35: EB-2019-0041 | C35: 2020 | D35: 2019 | E35: 2012 | F35: System Renewal | G35: ='App.2-AB_Capital Expenditures'!N14 -> 2015 | H35: ='App.2-AB_Capital Expenditures'!N18 -> 43000 | I35: ='App.2-AB_Capital Expenditures'!O18 -> 27245.58
A36: ='LDC Info'!$E$14 -> Hydro 2000 Inc. | B36: EB-2019-0041 | C36: 2020 | D36: 2019 | E36: 2012 | F36: System Service | G36: ='App.2-AB_Capital Expenditures'!N14 -> 2015 | H36: ='App.2-AB_Capital Expenditures'!N19 -> 0 | I36: ='App.2-AB_Capital Expenditures'!O19 -> 0
A37: ='LDC Info'!$E$14 -> Hydro 2000 Inc. | B37: EB-2019-0041 | C37: 2020 | D37: 2019 | E37: 2012 | F37: General Plant | G37: ='App.2-AB_Capital Expenditures'!N14 -> 2015 | H37: ='App.2-AB_Capital Expenditures'!N20 -> 14014 | I37: ='App.2-AB_Capital Expenditures'!O20 -> 10921.24
A38: ='LDC Info'!$E$14 -> Hydro 2000 Inc. | B38: EB-2019-0041 | C38: 2020 | D38: 2019 | E38: 2012 | F38: Total Expenditure | G38: ='App.2-AB_Capital Expenditures'!N14 -> 2015 | H38: ='App.2-AB_Capital Expenditures'!N21 -> 57014 | I38: ='App.2-AB_Capital Expenditures'!O21 -> 38166.82
A39: ='LDC Info'!$E$14 -> Hydro 2000 Inc. | B39: EB-2019-0041 | C39: 2020 | D39: 2019 | E39: 2012 | F39: Capital Contributions | G39: ='App.2-AB_Capital Expenditures'!N14 -> 2015 | H39: ='App.2-AB_Capital Expenditures'!N22 -> 0 | I39: ='App.2-AB_Capital Expenditures'!O22 -> 0
A40: ='LDC Info'!$E$14 -> Hydro 2000 Inc. | B40: EB-2019-0041 | C40: 2020 | D40: 2019 | E40: 2012 | F40: Net Capital Expenditures | G40: ='App.2-AB_Capital Expenditures'!N14 -> 2015 | H40: ='App.2-AB_Capital Expenditures'!N23 -> 57014 | I40: ='App.2-AB_Capital Expenditures'!O23 -> 38166.82
A41: ='LDC Info'!$E$14 -> Hydro 2000 Inc. | B41: EB-2019-0041 | C41: 2020 | D41: 2019 | E41: 2012 | F41: System O&M | G41: ='App.2-AB_Capital Expenditures'!N14 -> 2015 | H41: ='App.2-AB_Capital Expenditures'!N24 -> 14825 | I41: ='App.2-AB_Capital Expenditures'!O24 -> 21935
A42: ='LDC Info'!$E$14 -> Hydro 2000 Inc. | B42: EB-2019-0041 | C42: 2020 | D42: 2019 | E42: 2012 | F42: System Access | G42: ='App.2-AB_Capital Expenditures'!Q14 -> 2016 | H42: ='App.2-AB_Capital Expenditures'!Q17 -> 0 | I42: ='App.2-AB_Capital Expenditures'!R17 -> 0
A43: ='LDC Info'!$E$14 -> Hydro 2000 Inc. | B43: EB-2019-0041 | C43: 2020 | D43: 2019 | E43: 2012 | F43: System Renewal | G43: ='App.2-AB_Capital Expenditures'!Q14 -> 2016 | H43: ='App.2-AB_Capital Expenditures'!Q18 -> 43000 | I43: ='App.2-AB_Capital Expenditures'!R18 -> 47230.14
A44: ='LDC Info'!$E$14 -> Hydro 2000 Inc. | B44: EB-2019-0041 | C44: 2020 | D44: 2019 | E44: 2012 | F44: System Service | G44: ='App.2-AB_Capital Expenditures'!Q14 -> 2016 | H44: ='App.2-AB_Capital Expenditures'!Q19 -> 0 | I44: ='App.2-AB_Capital Expenditures'!R19 -> 0
A45: ='LDC Info'!$E$14 -> Hydro 2000 Inc. | B45: EB-2019-0041 | C45: 2020 | D45: 2019 | E45: 2012 | F45: General Plant | G45: ='App.2-AB_Capital Expenditures'!Q14 -> 2016 | H45: ='App.2-AB_Capital Expenditures'!Q20 -> 14014 | I45: ='App.2-AB_Capital Expenditures'!R20 -> 1739.18
A46: ='LDC Info'!$E$14 -> Hydro 2000 Inc. | B46: EB-2019-0041 | C46: 2020 | D46: 2019 | E46: 2012 | F46: Total Expenditure | G46: ='App.2-AB_Capital Expenditures'!Q14 -> 2016 | H46: ='App.2-AB_Capital Expenditures'!Q21 -> 57014 | I46: ='App.2-AB_Capital Expenditures'!R21 -> 48969.32
A47: ='LDC Info'!$E$14 -> Hydro 2000 Inc. | B47: EB-2019-0041 | C47: 2020 | D47: 2019 | E47: 2012 | F47: Capital Contributions | G47: ='App.2-AB_Capital Expenditures'!Q14 -> 2016 | H47: ='App.2-AB_Capital Expenditures'!Q22 -> 0 | I47: ='App.2-AB_Capital Expenditures'!R22 -> -29147
A48: ='LDC Info'!$E$14 -> Hydro 2000 Inc. | B48: EB-2019-0041 | C48: 2020 | D48: 2019 | E48: 2012 | F48: Net Capital Expenditures | G48: ='App.2-AB_Capital Expenditures'!Q14 -> 2016 | H48: ='App.2-AB_Capital Expenditures'!Q23 -> 57014 | I48: ='App.2-AB_Capital Expenditures'!R23 -> 19822.32
A49: ='LDC Info'!$E$14 -> Hydro 2000 Inc. | B49: EB-2019-0041 | C49: 2020 | D49: 2019 | E49: 2012 | F49: System O&M | G49: ='App.2-AB_Capital Expenditures'!Q14 -> 2016 | H49: ='App.2-AB_Capital Expenditures'!Q24 -> 14825 | I49: ='App.2-AB_Capital Expenditures'!R24 -> 44837
A50: ='LDC Info'!$E$14 -> Hydro 2000 Inc. | B50: EB-2019-0041 | C50: 2020 | D50: 2019 | E50: 2012 | F50: System Access | G50: ='App.2-AB_Capital Expenditures'!T14 -> 2017 | H50: ='App.2-AB_Capital Expenditures'!T17 -> 0 | I50: ='App.2-AB_Capital Expenditures'!U17 -> 330
A51: ='LDC Info'!$E$14 -> Hydro 2000 Inc. | B51: EB-2019-0041 | C51: 2020 | D51: 2019 | E51: 2012 | F51: System Renewal | G51: ='App.2-AB_Capital Expenditures'!T14 -> 2017 | H51: ='App.2-AB_Capital Expenditures'!T18 -> 43000 | I51: ='App.2-AB_Capital Expenditures'!U18 -> 45046.02
A52: ='LDC Info'!$E$14 -> Hydro 2000 Inc. | B52: EB-2019-0041 | C52: 2020 | D52: 2019 | E52: 2012 | F52: System Service | G52: ='App.2-AB_Capital Expenditures'!T14 -> 2017 | H52: ='App.2-AB_Capital Expenditures'!T19 -> 0 | I52: ='App.2-AB_Capital Expenditures'!U19 -> 0
A53: ='LDC Info'!$E$14 -> Hydro 2000 Inc. | B53: EB-2019-0041 | C53: 2020 | D53: 2019 | E53: 2012 | F53: General Plant | G53: ='App.2-AB_Capital Expenditures'!T14 -> 2017 | H53: ='App.2-AB_Capital Expenditures'!T20 -> 14014 | I53: ='App.2-AB_Capital Expenditures'!U20 -> 6772
A54: ='LDC Info'!$E$14 -> Hydro 2000 Inc. | B54: EB-2019-0041 | C54: 2020 | D54: 2019 | E54: 2012 | F54: Total Expenditure | G54: ='App.2-AB_Capital Expenditures'!T14 -> 2017 | H54: ='App.2-AB_Capital Expenditures'!T21 -> 57014 | I54: ='App.2-AB_Capital Expenditures'!U21 -> 52148.02
A55: ='LDC Info'!$E$14 -> Hydro 2000 Inc. | B55: EB-2019-0041 | C55: 2020 | D55: 2019 | E55: 2012 | F55: Capital Contributions | G55: ='App.2-AB_Capital Expenditures'!T14 -> 2017 | H55: ='App.2-AB_Capital Expenditures'!T22 -> 0 | I55: ='App.2-AB_Capital Expenditures'!U22 -> 0
A56: ='LDC Info'!$E$14 -> Hydro 2000 Inc. | B56: EB-2019-0041 | C56: 2020 | D56: 2019 | E56: 2012 | F56: Net Capital Expenditures | G56: ='App.2-AB_Capital Expenditures'!T14 -> 2017 | H56: ='App.2-AB_Capital Expenditures'!T23 -> 57014 | I56: ='App.2-AB_Capital Expenditures'!U23 -> 52148.02
A57: ='LDC Info'!$E$14 -> Hydro 2000 Inc. | B57: EB-2019-0041 | C57: 2020 | D57: 2019 | E57: 2012 | F57: System O&M | G57: ='App.2-AB_Capital Expenditures'!T14 -> 2017 | H57: ='App.2-AB_Capital Expenditures'!T24 -> 14825 | I57: ='App.2-AB_Capital Expenditures'!U24 -> 56272
A58: ='LDC Info'!$E$14 -> Hydro 2000 Inc. | B58: EB-2019-0041 | C58: 2020 | D58: 2019 | E58: 2012 | F58: System Access | G58: ='App.2-AB_Capital Expenditures'!W14 -> 2018 | H58: ='App.2-AB_Capital Expenditures'!W17 -> 0 | I58: ='App.2-AB_Capital Expenditures'!X17 -> 1320
A59: ='LDC Info'!$E$14 -> Hydro 2000 Inc. | B59: EB-2019-0041 | C59: 2020 | D59: 2019 | E59: 2012 | F59: System Renewal | G59: ='App.2-AB_Capital Expenditures'!W14 -> 2018 | H59: ='App.2-AB_Capital Expenditures'!W18 -> 43000 | I59: ='App.2-AB_Capital Expenditures'!X18 -> 43677.14
A60: ='LDC Info'!$E$14 -> Hydro 2000 Inc. | B60: EB-2019-0041 | C60: 2020 | D60: 2019 | E60: 2012 | F60: System Service | G60: ='App.2-AB_Capital Expenditures'!W14 -> 2018 | H60: ='App.2-AB_Capital Expenditures'!W19 -> 0 | I60: ='App.2-AB_Capital Expenditures'!X19 -> 0
A61: ='LDC Info'!$E$14 -> Hydro 2000 Inc. | B61: EB-2019-0041 | C61: 2020 | D61: 2019 | E61: 2012 | F61: General Plant | G61: ='App.2-AB_Capital Expenditures'!W14 -> 2018 | H61: ='App.2-AB_Capital Expenditures'!W20 -> 14014 | I61: ='App.2-AB_Capital Expenditures'!X20 -> 0
A62: ='LDC Info'!$E$14 -> Hydro 2000 Inc. | B62: EB-2019-0041 | C62: 2020 | D62: 2019 | E62: 2012 | F62: Total Expenditure | G62: ='App.2-AB_Capital Expenditures'!W14 -> 2018 | H62: ='App.2-AB_Capital Expenditures'!W21 -> 57014 | I62: ='App.2-AB_Capital Expenditures'!X21 -> 44997.14
A63: ='LDC Info'!$E$14 -> Hydro 2000 Inc. | B63: EB-2019-0041 | C63: 2020 | D63: 2019 | E63: 2012 | F63: Capital Contributions | G63: ='App.2-AB_Capital Expenditures'!W14 -> 2018 | H63: ='App.2-AB_Capital Expenditures'!W22 -> 0 | I63: ='App.2-AB_Capital Expenditures'!X22 -> -3750
A64: ='LDC Info'!$E$14 -> Hydro 2000 Inc. | B64: EB-2019-0041 | C64: 2020 | D64: 2019 | E64: 2012 | F64: Net Capital Expenditures | G64: ='App.2-AB_Capital Expenditures'!W14 -> 2018 | H64: ='App.2-AB_Capital Expenditures'!W23 -> 57014 | I64: ='App.2-AB_Capital Expenditures'!X23 -> 41247.14
A65: ='LDC Info'!$E$14 -> Hydro 2000 Inc. | B65: EB-2019-0041 | C65: 2020 | D65: 2019 | E65: 2012 | F65: System O&M | G65: ='App.2-AB_Capital Expenditures'!W14 -> 2018 | H65: ='App.2-AB_Capital Expenditures'!W24 -> 14825 | I65: ='App.2-AB_Capital Expenditures'!X24 -> 44937.61
A66: ='LDC Info'!$E$14 -> Hydro 2000 Inc. | B66: =EBNUMBER -> EB-2019-0041 | C66: =TestYear -> 2020 | D66: =BridgeYear -> 2019 | E66: =RebaseYear -> 2012 | F66: System Access | G66: ='App.2-AB_Capital Expenditures'!Z14 -> 2019 | H66: ='App.2-AB_Capital Expenditures'!Z17 -> 0 | I66: ='App.2-AB_Capital Expenditures'!AA17 -> 7893
A67: ='LDC Info'!$E$14 -> Hydro 2000 Inc. | B67: EB-2019-0041 | C67: 2020 | D67: 2019 | E67: 2012 | F67: System Renewal | G67: ='App.2-AB_Capital Expenditures'!Z14 -> 2019 | H67: ='App.2-AB_Capital Expenditures'!Z18 -> 43000 | I67: ='App.2-AB_Capital Expenditures'!AA18 -> 147733
A68: ='LDC Info'!$E$14 -> Hydro 2000 Inc. | B68: EB-2019-0041 | C68: 2020 | D68: 2019 | E68: 2012 | F68: System Service | G68: ='App.2-AB_Capital Expenditures'!Z14 -> 2019 | H68: ='App.2-AB_Capital Expenditures'!Z19 -> 0 | I68: ='App.2-AB_Capital Expenditures'!AA19 -> 0
A69: ='LDC Info'!$E$14 -> Hydro 2000 Inc. | B69: EB-2019-0041 | C69: 2020 | D69: 2019 | E69: 2012 | F69: General Plant | G69: ='App.2-AB_Capital Expenditures'!Z14 -> 2019 | H69: ='App.2-AB_Capital Expenditures'!Z20 -> 14014 | I69: ='App.2-AB_Capital Expenditures'!AA20 -> 900
A70: ='LDC Info'!$E$14 -> Hydro 2000 Inc. | B70: EB-2019-0041 | C70: 2020 | D70: 2019 | E70: 2012 | F70: Total Expenditure | G70: ='App.2-AB_Capital Expenditures'!Z14 -> 2019 | H70: ='App.2-AB_Capital Expenditures'!Z21 -> 57014 | I70: ='App.2-AB_Capital Expenditures'!AA21 -> 156526
A71: ='LDC Info'!$E$14 -> Hydro 2000 Inc. | B71: EB-2019-0041 | C71: 2020 | D71: 2019 | E71: 2012 | F71: Capital Contributions | G71: ='App.2-AB_Capital Expenditures'!Z14 -> 2019 | H71: ='App.2-AB_Capital Expenditures'!Z22 -> 0 | I71: ='App.2-AB_Capital Expenditures'!AA22 -> -13728
A72: ='LDC Info'!$E$14 -> Hydro 2000 Inc. | B72: EB-2019-0041 | C72: 2020 | D72: 2019 | E72: 2012 | F72: Net Capital Expenditures | G72: ='App.2-AB_Capital Expenditures'!Z14 -> 2019 | H72: ='App.2-AB_Capital Expenditures'!Z23 -> 57014 | I72: ='App.2-AB_Capital Expenditures'!AA23 -> 142798
A73: ='LDC Info'!$E$14 -> Hydro 2000 Inc. | B73: EB-2019-0041 | C73: 2020 | D73: 2019 | E73: 2012 | F73: System O&M | G73: ='App.2-AB_Capital Expenditures'!Z14 -> 2019 | H73: ='App.2-AB_Capital Expenditures'!Z24 -> 14825 | I73: ='App.2-AB_Capital Expenditures'!AA24 -> 44027
A74: ='LDC Info'!$E$14 -> Hydro 2000 Inc. | B74: EB-2019-0041 | C74: 2020 | D74: 2019 | E74: 2012 | F74: System Access | G74: ='App.2-AB_Capital Expenditures'!AC14 -> 2020 | H74: ='App.2-AB_Capital Expenditures'!AC17 -> 37290
A75: ='LDC Info'!$E$14 -> Hydro 2000 Inc. | B75: EB-2019-0041 | C75: 2020 | D75: 2019 | E75: 2012 | F75: System Renewal | G75: ='App.2-AB_Capital Expenditures'!AC14 -> 2020 | H75: ='App.2-AB_Capital Expenditures'!AC18 -> 106798
A76: ='LDC Info'!$E$14 -> Hydro 2000 Inc. | B76: EB-2019-0041 | C76: 2020 | D76: 2019 | E76: 2012 | F76: System Service | G76: ='App.2-AB_Capital Expenditures'!AC14 -> 2020 | H76: ='App.2-AB_Capital Expenditures'!AC19 -> 0
A77: ='LDC Info'!$E$14 -> Hydro 2000 Inc. | B77: EB-2019-0041 | C77: 2020 | D77: 2019 | E77: 2012 | F77: General Plant | G77: ='App.2-AB_Capital Expenditures'!AC14 -> 2020 | H77: ='App.2-AB_Capital Expenditures'!AC20 -> 3500
A78: ='LDC Info'!$E$14 -> Hydro 2000 Inc. | B78: EB-2019-0041 | C78: 2020 | D78: 2019 | E78: 2012 | F78: Total Expenditure | G78: ='App.2-AB_Capital Expenditures'!AC14 -> 2020 | H78: ='App.2-AB_Capital Expenditures'!AC21 -> 147588
A79: ='LDC Info'!$E$14 -> Hydro 2000 Inc. | B79: EB-2019-0041 | C79: 2020 | D79: 2019 | E79: 2012 | F79: Capital Contributions | G79: ='App.2-AB_Capital Expenditures'!AC14 -> 2020 | H79: ='App.2-AB_Capital Expenditures'!AC22 -> -27134
A80: ='LDC Info'!$E$14 -> Hydro 2000 Inc. | B80: EB-2019-0041 | C80: 2020 | D80: 2019 | E80: 2012 | F80: Net Capital Expenditures | G80: ='App.2-AB_Capital Expenditures'!AC14 -> 2020 | H80: ='App.2-AB_Capital Expenditures'!AC23 -> 120454
A81: ='LDC Info'!$E$14 -> Hydro 2000 Inc. | B81: EB-2019-0041 | C81: 2020 | D81: 2019 | E81: 2012 | F81: System O&M | G81: ='App.2-AB_Capital Expenditures'!AC14 -> 2020 | H81: ='App.2-AB_Capital Expenditures'!AC24 -> 51146
A82: ='LDC Info'!$E$14 -> Hydro 2000 Inc. | B82: EB-2019-0041 | C82: 2020 | D82: 2019 | E82: 2012 | F82: System Access | G82: ='App.2-AB_Capital Expenditures'!AD14 -> 2021 | H82: ='App.2-AB_Capital Expenditures'!AD17 -> 5000
A83: ='LDC Info'!$E$14 -> Hydro 2000 Inc. | B83: EB-2019-0041 | C83: 2020 | D83: 2019 | E83: 2012 | F83: System Renewal | G83: ='App.2-AB_Capital Expenditures'!AD14 -> 2021 | H83: ='App.2-AB_Capital Expenditures'!AD18 -> 100000
A84: ='LDC Info'!$E$14 -> Hydro 2000 Inc. | B84: EB-2019-0041 | C84: 2020 | D84: 2019 | E84: 2012 | F84: System Service | G84: ='App.2-AB_Capital Expenditures'!AD14 -> 2021 | H84: ='App.2-AB_Capital Expenditures'!AD19 -> 0
A85: ='LDC Info'!$E$14 -> Hydro 2000 Inc. | B85: EB-2019-0041 | C85: 2020 | D85: 2019 | E85: 2012 | F85: General Plant | G85: ='App.2-AB_Capital Expenditures'!AD14 -> 2021 | H85: ='App.2-AB_Capital Expenditures'!AD20 -> 5500
A86: ='LDC Info'!$E$14 -> Hydro 2000 Inc. | B86: EB-2019-0041 | C86: 2020 | D86: 2019 | E86: 2012 | F86: Total Expenditure | G86: ='App.2-AB_Capital Expenditures'!AD14 -> 2021 | H86: ='App.2-AB_Capital Expenditures'!AD21 -> 110500
A87: ='LDC Info'!$E$14 -> Hydro 2000 Inc. | B87: EB-2019-0041 | C87: 2020 | D87: 2019 | E87: 2012 | F87: Capital Contributions | G87: ='App.2-AB_Capital Expenditures'!AD14 -> 2021 | H87: ='App.2-AB_Capital Expenditures'!AD22 -> 0
A88: ='LDC Info'!$E$14 -> Hydro 2000 Inc. | B88: EB-2019-0041 | C88: 2020 | D88: 2019 | E88: 2012 | F88: Net Capital Expenditures | G88: ='App.2-AB_Capital Expenditures'!AD14 -> 2021 | H88: ='App.2-AB_Capital Expenditures'!AD23 -> 110500
A89: ='LDC Info'!$E$14 -> Hydro 2000 Inc. | B89: EB-2019-0041 | C89: 2020 | D89: 2019 | E89: 2012 | F89: System O&M | G89: ='App.2-AB_Capital Expenditures'!AD14 -> 2021 | H89: ='App.2-AB_Capital Expenditures'!AD24 -> 51913.19
A90: ='LDC Info'!$E$14 -> Hydro 2000 Inc. | B90: EB-2019-0041 | C90: 2020 | D90: 2019 | E90: 2012 | F90: System Access | G90: ='App.2-AB_Capital Expenditures'!AE14 -> 2022 | H90: ='App.2-AB_Capital Expenditures'!AE17 -> 5000
A91: ='LDC Info'!$E$14 -> Hydro 2000 Inc. | B91: EB-2019-0041 | C91: 2020 | D91: 2019 | E91: 2012 | F91: System Renewal | G91: ='App.2-AB_Capital Expenditures'!AE14 -> 2022 | H91: ='App.2-AB_Capital Expenditures'!AE18 -> 100000
A92: ='LDC Info'!$E$14 -> Hydro 2000 Inc. | B92: EB-2019-0041 | C92: 2020 | D92: 2019 | E92: 2012 | F92: System Service | G92: ='App.2-AB_Capital Expenditures'!AE14 -> 2022 | H92: ='App.2-AB_Capital Expenditures'!AE19 -> 0
A93: ='LDC Info'!$E$14 -> Hydro 2000 Inc. | B93: EB-2019-0041 | C93: 2020 | D93: 2019 | E93: 2012 | F93: General Plant | G93: ='App.2-AB_Capital Expenditures'!AE14 -> 2022 | H93: ='App.2-AB_Capital Expenditures'!AE20 -> 5500
A94: ='LDC Info'!$E$14 -> Hydro 2000 Inc. | B94: EB-2019-0041 | C94: 2020 | D94: 2019 | E94: 2012 | F94: Total Expenditure | G94: ='App.2-AB_Capital Expenditures'!AE14 -> 2022 | H94: ='App.2-AB_Capital Expenditures'!AE21 -> 110500
A95: ='LDC Info'!$E$14 -> Hydro 2000 Inc. | B95: EB-2019-0041 | C95: 2020 | D95: 2019 | E95: 2012 | F95: Capital Contributions | G95: ='App.2-AB_Capital Expenditures'!AE14 -> 2022 | H95: ='App.2-AB_Capital Expenditures'!AE22 -> 0
A96: ='LDC Info'!$E$14 -> Hydro 2000 Inc. | B96: EB-2019-0041 | C96: 2020 | D96: 2019 | E96: 2012 | F96: Net Capital Expenditures | G96: ='App.2-AB_Capital Expenditures'!AE14 -> 2022 | H96: ='App.2-AB_Capital Expenditures'!AE23 -> 110500
A97: ='LDC Info'!$E$14 -> Hydro 2000 Inc. | B97: EB-2019-0041 | C97: 2020 | D97: 2019 | E97: 2012 | F97: System O&M | G97: ='App.2-AB_Capital Expenditures'!AE14 -> 2022 | H97: ='App.2-AB_Capital Expenditures'!AE24 -> 52691.88785
A98: ='LDC Info'!$E$14 -> Hydro 2000 Inc. | B98: =EBNUMBER -> EB-2019-0041 | C98: =TestYear -> 2020 | D98: =BridgeYear -> 2019 | E98: =RebaseYear -> 2012 | F98: System Access | G98: ='App.2-AB_Capital Expenditures'!AF14 -> 2023 | H98: ='App.2-AB_Capital Expenditures'!AF17 -> 5000
A99: ='LDC Info'!$E$14 -> Hydro 2000 Inc. | B99: EB-2019-0041 | C99: 2020 | D99: 2019 | E99: 2012 | F99: System Renewal | G99: ='App.2-AB_Capital Expenditures'!AF14 -> 2023 | H99: ='App.2-AB_Capital Expenditures'!AF18 -> 100000
A100: ='LDC Info'!$E$14 -> Hydro 2000 Inc. | B100: EB-2019-0041 | C100: 2020 | D100: 2019 | E100: 2012 | F100: System Service | G100: ='App.2-AB_Capital Expenditures'!AF14 -> 2023 | H100: ='App.2-AB_Capital Expenditures'!AF19 -> 0
A101: ='LDC Info'!$E$14 -> Hydro 2000 Inc. | B101: EB-2019-0041 | C101: 2020 | D101: 2019 | E101: 2012 | F101: General Plant | G101: ='App.2-AB_Capital Expenditures'!AF14 -> 2023 | H101: ='App.2-AB_Capital Expenditures'!AF20 -> 5500
A102: ='LDC Info'!$E$14 -> Hydro 2000 Inc. | B102: EB-2019-0041 | C102: 2020 | D102: 2019 | E102: 2012 | F102: Total Expenditure | G102: ='App.2-AB_Capital Expenditures'!AF14 -> 2023 | H102: ='App.2-AB_Capital Expenditures'!AF21 -> 110500
A103: ='LDC Info'!$E$14 -> Hydro 2000 Inc. | B103: EB-2019-0041 | C103: 2020 | D103: 2019 | E103: 2012 | F103: Capital Contributions | G103: ='App.2-AB_Capital Expenditures'!AF14 -> 2023 | H103: ='App.2-AB_Capital Expenditures'!AF22 -> 0
A104: ='LDC Info'!$E$14 -> Hydro 2000 Inc. | B104: EB-2019-0041 | C104: 2020 | D104: 2019 | E104: 2012 | F104: Net Capital Expenditures | G104: ='App.2-AB_Capital Expenditures'!AF14 -> 2023 | H104: ='App.2-AB_Capital Expenditures'!AF23 -> 110500
A105: ='LDC Info'!$E$14 -> Hydro 2000 Inc. | B105: EB-2019-0041 | C105: 2020 | D105: 2019 | E105: 2012 | F105: System O&M | G105: ='App.2-AB_Capital Expenditures'!AF14 -> 2023 | H105: ='App.2-AB_Capital Expenditures'!AF24 -> 53482.26617
A106: ='LDC Info'!$E$14 -> Hydro 2000 Inc. | B106: EB-2019-0041 | C106: 2020 | D106: 2019 | E106: 2012 | F106: System Access | G106: ='App.2-AB_Capital Expenditures'!AG14 -> 2024 | H106: ='App.2-AB_Capital Expenditures'!AG17 -> 5000
A107: ='LDC Info'!$E$14 -> Hydro 2000 Inc. | B107: EB-2019-0041 | C107: 2020 | D107: 2019 | E107: 2012 | F107: System Renewal | G107: ='App.2-AB_Capital Expenditures'!AG14 -> 2024 | H107: ='App.2-AB_Capital Expenditures'!AG18 -> 100000
A108: ='LDC Info'!$E$14 -> Hydro 2000 Inc. | B108: EB-2019-0041 | C108: 2020 | D108: 2019 | E108: 2012 | F108: System Service | G108: ='App.2-AB_Capital Expenditures'!AG14 -> 2024 | H108: ='App.2-AB_Capital Expenditures'!AG19 -> 0
A109: ='LDC Info'!$E$14 -> Hydro 2000 Inc. | B109: EB-2019-0041 | C109: 2020 | D109: 2019 | E109: 2012 | F109: General Plant | G109: ='App.2-AB_Capital Expenditures'!AG14 -> 2024 | H109: ='App.2-AB_Capital Expenditures'!AG20 -> 5500
A110: ='LDC Info'!$E$14 -> Hydro 2000 Inc. | B110: EB-2019-0041 | C110: 2020 | D110: 2019 | E110: 2012 | F110: Total Expenditure | G110: ='App.2-AB_Capital Expenditures'!AG14 -> 2024 | H110: ='App.2-AB_Capital Expenditures'!AG21 -> 110500
A111: ='LDC Info'!$E$14 -> Hydro 2000 Inc. | B111: EB-2019-0041 | C111: 2020 | D111: 2019 | E111: 2012 | F111: Capital Contributions | G111: ='App.2-AB_Capital Expenditures'!AG14 -> 2024 | H111: ='App.2-AB_Capital Expenditures'!AG22 -> 0
A112: ='LDC Info'!$E$14 -> Hydro 2000 Inc. | B112: EB-2019-0041 | C112: 2020 | D112: 2019 | E112: 2012 | F112: Net Capital Expenditures | G112: ='App.2-AB_Capital Expenditures'!AG14 -> 2024 | H112: ='App.2-AB_Capital Expenditures'!AG23 -> 110500
A113: ='LDC Info'!$E$14 -> Hydro 2000 Inc. | B113: EB-2019-0041 | C113: 2020 | D113: 2019 | E113: 2012 | F113: System O&M | G113: ='App.2-AB_Capital Expenditures'!AG14 -> 2024 | H113: ='App.2-AB_Capital Expenditures'!AG24 -> 54284.50016

Sheet App.2-AC_Customer Engagement
B1: File Number: | C1: =EBNUMBER -> EB-2019-0041
B2: Exhibit:
B3: Tab:
B4: Schedule:
B5: Page:
B7: Date:
A9: Appendix 2-AC
A10: Customer Engagement Activities Summary
A12: Provide a list of customer engagement activities | B12: Provide a list of customer needs and preferences identified through each engagement activity | C12: Actions taken to respond to identified needs and preferences. If no action was taken, explain why.
A45: Note: Use "ALT-ENTER" to go to the next line within a cell

Sheet App.2-B_Acctg Instructions
A1: General Instructions to MIFRS Appendices
A2: Types of Schedules to File
A4: The purpose of this tab is to provide general instructions. The specific instructions to each appendix are listed in footnotes of each appendix.
A6: The typical applicant is expected to have made capitalization and depreciation policy changes under CGAAP as permitted by the OEB on January 1, 2012 or mandated by the OEB by January 1, 2013, and adopted IFRS for reporting purposes on January 1, 2015 (transition date January 1, 2014). Most distributors filing for 2020 rates have rebased with these accounting changes reflected in a prior rebasing application. If that is the case, information relating to pre-accounting policy changes is not generally required. Some distributors may have rebased under MIFRS. If that is the case, information related to the accounting standard used prior to IFRS is not generally required. The information to be provided by applicants will depend on when the accounting policy changes were made and when they last rebased. In general, applicants should provide the following information in the appendices:
E9: Reflecting Accounting Policy Changes in Current Application | G9: Reflected Accounting Policy Changes in Prior Application3 | H9: Rebased under MIFRS in Prior Application3
E10: Accounting Policy Changes in 2012 and Adopted IFRS in 2015 | F10: Accounting Policy Changes in 2013 and Adopted IFRS in 2015 | G10: Adopted IFRS in 2015 | H10: IFRS Since 2015
A11: Information to be filed in 2019 CoS Application | B11: 2020 | C11: Test | E11: MIFRS | F11: MIFRS | G11: MIFRS | H11: MIFRS
B12: 2019 | C12: Bridge | E12: MIFRS | F12: MIFRS | G12: MIFRS | H12: MIFRS
B13: 2018 | C13: Historical | E13: MIFRS | F13: MIFRS | G13: MIFRS | H13: MIFRS
B14: 2017 | C14: Historical | E14: MIFRS | F14: MIFRS | G14: MIFRS | H14: MIFRS
B15: 2016 | C15: Historical | E15: MIFRS | F15: MIFRS | G15: MIFRS | H15: MIFRS
B16: 2015 | C16: Historical | E16: MIFRS and Revised CGAAP1 | F16: MIFRS and Revised CGAAP1 | G16: MIFRS and Revised CGAAP1 | H16: N/A
B17: 2014 | C17: Historical | E17: Revised CGAAP | F17: CGAAP and Revised CGAAP2 | G17: N/A | H17: N/A
B18: 2013 | C18: Historical | E18: CGAAP and Revised CGAAP2 | F18: N/A | G18: N/A | H18: N/A
A20: 1) For the transition year (2014), the applicant may file two appendices, one under Revised CGAAP and one under MIFRS, depending on the materiality of impacts. See the specific instructions under each appendix below for further details.
A21: 2) For applicants that are reflecting accounting policy changes for the first time in a rebasing application, the applicant must file two appendices in the year that the applicant implemented changes to its capitalization and depreciation policies (2012 or 2013), one before and one after the policy changes.
A22: 3) Applicants should provide CGAAP and Revised CGAAP schedules (i.e. as indicated in the first two columns of the above table) to support balances in Account 1576 if the account has yet to be disposed of.
A25: Appendix 2-BA - Fixed Asset Schedule
A27: Applicants are to provide Appendix 2-BA in accordance with the years and corresponding accounting standards noted in the above table to provide a year over year continuity in fixed assets.
A28: If this is the first application where the applicant is rebasing under MIFRS, the applicant should file two appendices, one under Revised CGAAP and one under MIFRS for the transition year (2014), if the change between Revised CGAAP and MIFRS is material. If the change from the accounting standards is not material, the applicant may choose to only provide one appendix under MIFRS. However, the applicant must also indicate the fixed asset net book value balance under Revised CGAAP, the total dollar value of the change and explain why it is not material.
A32: The applicant must establish the continuity of historical cost for gross assets and accumulated depreciation by asset class by ensuring that the opening balance in the year agrees to the closing balance in the prior year.
A35: Appendix 2-Cx - Depreciation and Amortization
A37: Applicants are to provide Appendix 2-C in accordance with the years and corresponding accounting standards listed in the above table.
A38: Appendix 2-C is to be used under all of the scenarios presented in the table above. In the appendix, the applicant will need to indicate which scenario applies. The appendix is to be duplicated for each year and for each accounting standard required as per the above table.
A39: Depreciation accounting policy changes were mandated by the OEB by January 1, 2013. In general, no further changes to an applicant's depreciation policy (i.e. assets' service lives) are expected after the OEB mandated changes by January 1, 2013, unless a change is determined to be necessary in accordance with the depreciation review required under IFRS. If the applicant has made any changes to its depreciation policy subsequent to the OEB mandated changes, for the year of the change, applicants must quantify the change in depreciation. If there are significant changes to multiple asset classes, the applicant must complete Appendix 2-C before and after the change. Applicants must also explain the nature of the change, the reason for the change, quantify the impact of the change.
A41: Appendix 2-E - Account 1575, IFRS-CGAAP Transitional PP&E Amounts (2-EA), Account 1576, Accounting Changes Under CGAAP (2-EB, 2-EC) CONTACT OEB STAFF IF TAB REQUIRED
A43: 1) For an applicant that has a balance in Account 1576 to dispose:
A44: · | B44: If an applicant changed capitalization and depreciation policies effective January 1, 2012, the applicant must complete Appendix 2-EB
A45: · | B45: If an applicant changed capitalization and depreciation policies effective January 1, 2013, the applicant must complete Appendix 2-EC
A47: 2) For an applicant that has a balance in Account 1575 to dispose:
A48: · | B48: The applicant must complete 2-EA
A49: If the applicant did not make any further PP&E accounting policy changes beyond the capitalization and depreciation policy changes as mandated by the OEB by January 1, 2013 (i.e. no further changes made on transition to IFRS), the applicant must indicate this and does not need to complete Appendix 2-EA.
A53: Appendix 2-Y - Summary of Impacts to Revenue Requirement from Transition to MIFRS CONTACT OEB STAFF IF TAB REQUIRED
A55: Applicants must complete Appendix 2-Y if this is the first rebasing application under MIFRS. An applicant must provide a summary of the dollar impacts of MIFRS to each component of the revenue requirement (e.g. rate base, operating costs, etc.), including the overall impact on the proposed revenue requirement. Accordingly, the applicant must identify financial differences and resulting revenue requirement impacts arising from the adoption of MIFRS as compared to CGAAP. If the applicant is reflecting the changes in capitalization and depreciation policies for the first time in a rebasing application as well, then a comparison between MIFRS and CGAAP before the change in accounting policies should be completed. If the applicant changed capitalization and depreciation policies and reflected these changes in a prior rebasing application, then a comparison between MIFRS and CGAAP after the change in accounting policies should be completed.

Sheet App.2-BA_Fixed Asset Cont
D6: CGAAP up to 2015 and MIFRS up to 2020 | V6: CGAAP 2012 to 2020
A10: Fixed Asset Continuity Schedule - CGAAP/ASPE/USGAAP | S10: Fixed Asset Continuity Schedule - CGAAP/ASPE/USGAAP
E12: Year | F12: 2012 | G12: Former CGAAP - without changes to the policies | W12: Year | X12: 2012 | Y12: Former CGAAP - without changes to the policies
D14: Cost | J14: Accumulated Depreciation | V14: Cost | AB14: Accumulated Depreciation
A15: CCA Class | B15: OEB | C15: Description | D15: Opening Balance | E15: Additions | F15: Disposals | G15: Closing Balance | I15: Opening Balance | J15: Additions | K15: Disposals | L15: Closing Balance | M15: Net Book Value | O15: AVG Gross Bal | P15: AVG AccDep | S15: CCA Class | T15: OEB | U15: Description | V15: Opening Balance | W15: Additions | X15: Disposals | Y15: Closing Balance | AA15: Opening Balance | AB15: Additions | AC15: Disposals | AD15: Closing Balance | AE15: Net Book Value | AG15: AVG Gross Bal | AH15: AVG AccDep
A16: 12 | B16: 1611 | C16: Computer Software (Formally known as Account 1925) | D16: 100736.38 | E16: 400.5 | F16: 29761 | G16: =D16+E16+F16 -> 130897.88 | I16: 44199.38 | J16: 40319.5 | K16: 11352 | L16: =I16+J16+K16 -> 95870.88 | M16: =G16-L16 -> 35027 | O16: =AVERAGE(G16,D16) -> 115817.13 | P16: =AVERAGE(L16,I16) -> 70035.13 | S16: 12 | T16: 1611 | U16: Computer Software (Formally known as Account 1925) | V16: 100736.38 | W16: 400.5 | X16: 29761 | Y16: =V16+W16+X16 -> 130897.88 | AA16: 44199.38 | AB16: 40319.5 | AC16: 11352 | AD16: =AA16+AB16+AC16 -> 95870.88 | AE16: =Y16-AD16 -> 35027 | AG16: =AVERAGE(Y16,V16) -> 115817.13 | AH16: =AVERAGE(AD16,AA16) -> 70035.13
A17: CEC | B17: 1612 | C17: Land Rights (Formally known as Account 1906 and 1806) | D17: 0 | E17: 0 | F17: 0 | G17: =D17+E17+F17 -> 0 | I17: 0 | J17: 0 | K17: 0 | L17: =I17+J17+K17 -> 0 | M17: =G17-L17 -> 0 | O17: 0 | P17: 0 | S17: CEC | T17: 1612 | U17: Land Rights (Formally known as Account 1906 and 1806) | V17: 0 | W17: 0 | X17: 0 | Y17: =V17+W17+X17 -> 0 | AA17: 0 | AB17: 0 | AC17: 0 | AD17: =AA17+AB17+AC17 -> 0 | AE17: =Y17-AD17 -> 0 | AG17: 0 | AH17: 0
A18: N/A | B18: 1805 | C18: Land | D18: 0 | E18: 0 | F18: 0 | G18: =D18+E18+F18 -> 0 | I18: 0 | J18: 0 | K18: 0 | L18: =I18+J18+K18 -> 0 | M18: 0 | O18: 0 | P18: 0 | S18: N/A | T18: 1805 | U18: Land | V18: 0 | W18: 0 | X18: 0 | Y18: =V18+W18+X18 -> 0 | AA18: 0 | AB18: 0 | AC18: 0 | AD18: =AA18+AB18+AC18 -> 0 | AE18: 0 | AG18: 0 | AH18: 0
A19: 47 | B19: 1808 | C19: Buildings | D19: 0 | E19: 0 | F19: 0 | G19: =D19+E19+F19 -> 0 | I19: 0 | J19: 0 | K19: 0 | L19: =I19+J19+K19 -> 0 | M19: 0 | O19: 0 | P19: 0 | S19: 47 | T19: 1808 | U19: Buildings | V19: 0 | W19: 0 | X19: 0 | Y19: =V19+W19+X19 -> 0 | AA19: 0 | AB19: 0 | AC19: 0 | AD19: =AA19+AB19+AC19 -> 0 | AE19: 0 | AG19: 0 | AH19: 0
A20: 13 | B20: 1810 | C20: Leasehold Improvements | D20: 3481.08 | E20: 623.54 | F20: 0 | G20: 4104.62 | I20: 348.08 | J20: 758.54 | K20: 0 | L20: 1106.62 | M20: 2998 | O20: 3792.85 | P20: 727.35 | S20: 13 | T20: 1810 | U20: Leasehold Improvements | V20: 3481.08 | W20: 623.54 | X20: 0 | Y20: 4104.62 | AA20: 348.08 | AB20: 758.54 | AC20: 0 | AD20: 1106.62 | AE20: 2998 | AG20: 3792.85 | AH20: 727.35
A21: 47 | B21: 1815 | C21: Transformer Station Equipment >50 kV | D21: 0 | E21: 0 | F21: 0 | G21: 0 | I21: 0 | J21: 0 | K21: 0 | L21: 0 | M21: 0 | O21: 0 | P21: 0 | S21: 47 | T21: 1815 | U21: Transformer Station Equipment >50 kV | V21: 0 | W21: 0 | X21: 0 | Y21: 0 | AA21: 0 | AB21: 0 | AC21: 0 | AD21: 0 | AE21: 0 | AG21: 0 | AH21: 0
A22: 47 | B22: 1820 | C22: Distribution Station Equipment <50 kV | D22: 0 | E22: 0 | F22: 0 | G22: 0 | I22: 0 | J22: 0 | K22: 0 | L22: 0 | M22: 0 | O22: 0 | P22: 0 | S22: 47 | T22: 1820 | U22: Distribution Station Equipment <50 kV | V22: 0 | W22: 0 | X22: 0 | Y22: 0 | AA22: 0 | AB22: 0 | AC22: 0 | AD22: 0 | AE22: 0 | AG22: 0 | AH22: 0
A23: 47 | B23: 1825 | C23: Storage Battery Equipment | D23: 0 | E23: 0 | F23: 0 | G23: 0 | I23: 0 | J23: 0 | K23: 0 | L23: 0 | M23: 0 | O23: 0 | P23: 0 | S23: 47 | T23: 1825 | U23: Storage Battery Equipment | V23: 0 | W23: 0 | X23: 0 | Y23: 0 | AA23: 0 | AB23: 0 | AC23: 0 | AD23: 0 | AE23: 0 | AG23: 0 | AH23: 0
A24: 47 | B24: 1830 | C24: Poles, Towers & Fixtures | D24: 285874.68 | E24: 4850 | F24: 0 | G24: 290724.68 | I24: 142202.68 | J24: 16482 | K24: 0 | L24: 158684.68 | M24: 132040 | O24: 288299.68 | P24: 150443.68 | S24: 47 | T24: 1830 | U24: Poles, Towers & Fixtures | V24: 285874.68 | W24: 4850 | X24: 0 | Y24: 290724.68 | AA24: 142202.68 | AB24: 16482 | AC24: 0 | AD24: 158684.68 | AE24: 132040 | AG24: 288299.68 | AH24: 150443.68
A25: 47 | B25: 1835 | C25: Overhead Conductors & Devices | D25: 288198.66 | E25: 6685.75 | F25: 0 | G25: 294884.41 | I25: 142177.66 | J25: 16613.75 | K25: 0 | L25: 158791.41 | M25: 136093 | O25: 291541.535 | P25: 150484.535 | S25: 47 | T25: 1835 | U25: Overhead Conductors & Devices | V25: 288198.66 | W25: 6685.75 | X25: 0 | Y25: 294884.41 | AA25: 142177.66 | AB25: 16613.75 | AC25: 0 | AD25: 158791.41 | AE25: 136093 | AG25: 291541.535 | AH25: 150484.535
A26: 47 | B26: 1840 | C26: Underground Conduit | D26: 13404.71 | E26: 0 | F26: 0 | G26: 13404.71 | I26: 3215.71 | J26: 536 | K26: 0 | L26: 3751.71 | M26: 9653 | O26: 13404.71 | P26: 3483.71 | S26: 47 | T26: 1840 | U26: Underground Conduit | V26: 13404.71 | W26: 0 | X26: 0 | Y26: 13404.71 | AA26: 3215.71 | AB26: 536 | AC26: 0 | AD26: 3751.71 | AE26: 9653 | AG26: 13404.71 | AH26: 3483.71
A27: 47 | B27: 1845 | C27: Underground Conductors & Devices | D27: 93348.16 | E27: 800.5 | F27: 0 | G27: 94148.66 | I27: 43615.16 | J27: 4951.5 | K27: 0 | L27: 48566.66 | M27: 45582 | O27: 93748.41 | P27: 46090.91 | S27: 47 | T27: 1845 | U27: Underground Conductors & Devices | V27: 93348.16 | W27: 800.5 | X27: 0 | Y27: 94148.66 | AA27: 43615.16 | AB27: 4951.5 | AC27: 0 | AD27: 48566.66 | AE27: 45582 | AG27: 93748.41 | AH27: 46090.91
A28: 47 | B28: 1850 | C28: Line Transformers | D28: 114133.9 | E28: 10999.32 | F28: 0 | G28: 125133.22 | I28: 48402.9 | J28: 6378.32 | K28: 0 | L28: 54781.22 | M28: 70352 | O28: 119633.56 | P28: 51592.06 | S28: 47 | T28: 1850 | U28: Line Transformers | V28: 114133.9 | W28: 10999.32 | X28: 0 | Y28: 125133.22 | AA28: 48402.9 | AB28: 6378.32 | AC28: 0 | AD28: 54781.22 | AE28: 70352 | AG28: 119633.56 | AH28: 51592.06
A29: 47 | B29: 1855 | C29: Services (Overhead & Underground) | D29: 70177.31 | E29: 1463.85 | F29: 0 | G29: 71641.16 | I29: 14471.31 | J29: 2836.85 | K29: 0 | L29: 17308.16 | M29: 54333 | O29: 70909.235 | P29: 15889.735 | S29: 47 | T29: 1855 | U29: Services (Overhead & Underground) | V29: 70177.31 | W29: 1463.85 | X29: 0 | Y29: 71641.16 | AA29: 14471.31 | AB29: 2836.85 | AC29: 0 | AD29: 17308.16 | AE29: 54333 | AG29: 70909.235 | AH29: 15889.735
A30: 47 | B30: 1860 | C30: Meters | D30: 57560.08 | E30: 3033.36 | F30: 0 | G30: 60593.44 | I30: 39400.08 | J30: 3913.36 | K30: 0 | L30: 43313.44 | M30: 17280 | O30: 59076.76 | P30: 41356.76 | S30: 47 | T30: 1860 | U30: Meters | V30: 57560.08 | W30: 3033.36 | X30: 0 | Y30: 60593.44 | AA30: 39400.08 | AB30: 3913.36 | AC30: 0 | AD30: 43313.44 | AE30: 17280 | AG30: 59076.76 | AH30: 41356.76
A31: 47 | B31: 1860 | C31: Meters (Smart Meters) | D31: 0 | E31: 193296.94 | F31: 0 | G31: 193296.94 | I31: 0 | J31: 12885.94 | K31: 44900 | L31: 57785.94 | M31: 135511 | O31: 96648.47 | P31: 28892.97 | S31: 47 | T31: 1860 | U31: Meters (Smart Meters) | V31: 0 | W31: 0 | X31: 193296.94 | Y31: 193296.94 | AA31: 0 | AB31: 12885.94 | AC31: 44900 | AD31: 57785.94 | AE31: 135511 | AG31: 96648.47 | AH31: 28892.97
A32: N/A | B32: 1905 | C32: Land | D32: 0 | E32: 0 | F32: 0 | G32: 0 | I32: 0 | J32: 0 | K32: 0 | L32: 0 | M32: 0 | O32: 0 | P32: 0 | S32: N/A | T32: 1905 | U32: Land | V32: 0 | W32: 0 | X32: 0 | Y32: 0 | AA32: 0 | AB32: 0 | AC32: 0 | AD32: 0 | AE32: 0 | AG32: 0 | AH32: 0
A33: 47 | B33: 1908 | C33: Buildings & Fixtures | D33: 0 | E33: 0 | F33: 0 | G33: 0 | I33: 0 | J33: 0 | K33: 0 | L33: 0 | M33: 0 | O33: 0 | P33: 0 | S33: 47 | T33: 1908 | U33: Buildings & Fixtures | V33: 0 | W33: 0 | X33: 0 | Y33: 0 | AA33: 0 | AB33: 0 | AC33: 0 | AD33: 0 | AE33: 0 | AG33: 0 | AH33: 0
A34: 13 | B34: 1910 | C34: Leasehold Improvements | D34: 0 | E34: 0 | F34: 0 | G34: 0 | I34: 0 | J34: 0 | K34: 0 | L34: 0 | M34: 0 | O34: 0 | P34: 0 | S34: 13 | T34: 1910 | U34: Leasehold Improvements | V34: 0 | W34: 0 | X34: 0 | Y34: 0 | AA34: 0 | AB34: 0 | AC34: 0 | AD34: 0 | AE34: 0 | AG34: 0 | AH34: 0
A35: 8 | B35: 1915 | C35: Office Furniture & Equipment (10 years) | D35: 20390.39 | E35: 1309 | F35: 0 | G35: 21699.39 | I35: 3792.39 | J35: 2371 | K35: 0 | L35: 6163.39 | M35: 15536 | O35: 21044.89 | P35: 4977.89 | S35: 8 | T35: 1915 | U35: Office Furniture & Equipment (10 years) | V35: 20390.39 | W35: 1309 | X35: 0 | Y35: 21699.39 | AA35: 3792.39 | AB35: 2371 | AC35: 0 | AD35: 6163.39 | AE35: 15536 | AG35: 21044.89 | AH35: 4977.89
A36: 8 | B36: 1915 | C36: Office Furniture & Equipment (5 years) | D36: 0 | E36: 0 | F36: 0 | G36: 0 | I36: 0 | J36: 0 | K36: 0 | L36: 0 | M36: 0 | O36: 0 | P36: 0 | S36: 8 | T36: 1915 | U36: Office Furniture & Equipment (5 years) | V36: 0 | W36: 0 | X36: 0 | Y36: 0 | AA36: 0 | AB36: 0 | AC36: 0 | AD36: 0 | AE36: 0 | AG36: 0 | AH36: 0
A37: 10 | B37: 1920 | C37: Computer Equipment - Hardware | D37: 10453.32 | E37: 0 | F37: -10453.32 | G37: 0 | I37: 10453.32 | J37: 0 | K37: -10453.32 | L37: 0 | M37: 0 | O37: 5226.66 | P37: 5226.66 | S37: 10 | T37: 1920 | U37: Computer Equipment - Hardware | V37: 10453.32 | W37: 0 | X37: -10453.32 | Y37: 0 | AA37: 10453.32 | AB37: 0 | AC37: -10453.32 | AD37: 0 | AE37: 0 | AG37: 5226.66 | AH37: 5226.66
A38: 45 | B38: 1920 | C38: Computer Equip.-Hardware(Post Mar. 22/04) | D38: 14365.73 | E38: 0 | F38: -14365.73 | G38: 0 | I38: 14365.73 | J38: 0 | K38: -14365.73 | L38: 0 | M38: 0 | O38: 7182.865 | P38: 7182.865 | S38: 45 | T38: 1920 | U38: Computer Equip.-Hardware(Post Mar. 22/04) | V38: 14365.73 | W38: 0 | X38: -14365.73 | Y38: 0 | AA38: 14365.73 | AB38: 0 | AC38: -14365.73 | AD38: 0 | AE38: 0 | AG38: 7182.865 | AH38: 7182.865
A39: 45.1 | B39: 1920 | C39: Computer Equip.-Hardware(Post Mar. 19/07) | D39: 17478.68 | E39: 11680.9 | F39: -10891.76 | G39: 18267.82 | I39: 6815.68 | J39: 2594.9 | K39: -4839.76 | L39: 4570.82 | M39: 13697 | O39: 17873.25 | P39: 5693.25 | S39: 45.1 | T39: 1920 | U39: Computer Equip.-Hardware(Post Mar. 19/07) | V39: 17478.68 | W39: 11680.9 | X39: -10891.76 | Y39: 18267.82 | AA39: 6815.68 | AB39: 2594.9 | AC39: -4839.76 | AD39: 4570.82 | AE39: 13697 | AG39: 17873.25 | AH39: 5693.25
A40: 10 | B40: 1930 | C40: Transportation Equipment | D40: 0 | E40: 0 | F40: 0 | G40: 0 | I40: 0 | J40: 0 | K40: 0 | L40: 0 | M40: 0 | O40: 0 | P40: 0 | S40: 10 | T40: 1930 | U40: Transportation Equipment | V40: 0 | W40: 0 | X40: 0 | Y40: 0 | AA40: 0 | AB40: 0 | AC40: 0 | AD40: 0 | AE40: 0 | AG40: 0 | AH40: 0
A41: 8 | B41: 1935 | C41: Stores Equipment | D41: 0 | E41: 0 | F41: 0 | G41: 0 | I41: 0 | J41: 0 | K41: 0 | L41: 0 | M41: 0 | O41: 0 | P41: 0 | S41: 8 | T41: 1935 | U41: Stores Equipment | V41: 0 | W41: 0 | X41: 0 | Y41: 0 | AA41: 0 | AB41: 0 | AC41: 0 | AD41: 0 | AE41: 0 | AG41: 0 | AH41: 0
A42: 8 | B42: 1940 | C42: Tools, Shop & Garage Equipment | D42: 0 | E42: 0 | F42: 0 | G42: 0 | I42: 0 | J42: 0 | K42: 0 | L42: 0 | M42: 0 | O42: 0 | P42: 0 | S42: 8 | T42: 1940 | U42: Tools, Shop & Garage Equipment | V42: 0 | W42: 0 | X42: 0 | Y42: 0 | AA42: 0 | AB42: 0 | AC42: 0 | AD42: 0 | AE42: 0 | AG42: 0 | AH42: 0
A43: 8 | B43: 1945 | C43: Measurement & Testing Equipment | D43: 0 | E43: 0 | F43: 0 | G43: 0 | I43: 0 | J43: 0 | K43: 0 | L43: 0 | M43: 0 | O43: 0 | P43: 0 | S43: 8 | T43: 1945 | U43: Measurement & Testing Equipment | V43: 0 | W43: 0 | X43: 0 | Y43: 0 | AA43: 0 | AB43: 0 | AC43: 0 | AD43: 0 | AE43: 0 | AG43: 0 | AH43: 0
A44: 8 | B44: 1950 | C44: Power Operated Equipment | D44: 0 | E44: 0 | F44: 0 | G44: 0 | I44: 0 | J44: 0 | K44: 0 | L44: 0 | M44: 0 | O44: 0 | P44: 0 | S44: 8 | T44: 1950 | U44: Power Operated Equipment | V44: 0 | W44: 0 | X44: 0 | Y44: 0 | AA44: 0 | AB44: 0 | AC44: 0 | AD44: 0 | AE44: 0 | AG44: 0 | AH44: 0
A45: 8 | B45: 1955 | C45: Communications Equipment | D45: 0 | E45: 0 | F45: 0 | G45: 0 | I45: 0 | J45: 0 | K45: 0 | L45: 0 | M45: 0 | O45: 0 | P45: 0 | S45: 8 | T45: 1955 | U45: Communications Equipment | V45: 0 | W45: 0 | X45: 0 | Y45: 0 | AA45: 0 | AB45: 0 | AC45: 0 | AD45: 0 | AE45: 0 | AG45: 0 | AH45: 0
A46: 8 | B46: 1955 | C46: Communication Equipment (Smart Meters) | D46: 0 | E46: 0 | F46: 0 | G46: 0 | I46: 0 | J46: 0 | K46: 0 | L46: 0 | M46: 0 | O46: 0 | P46: 0 | S46: 8 | T46: 1955 | U46: Communication Equipment (Smart Meters) | V46: 0 | W46: 0 | X46: 0 | Y46: 0 | AA46: 0 | AB46: 0 | AC46: 0 | AD46: 0 | AE46: 0 | AG46: 0 | AH46: 0
A47: 8 | B47: 1960 | C47: Miscellaneous Equipment | D47: 0 | E47: 0 | F47: 0 | G47: 0 | I47: 0 | J47: 0 | K47: 0 | L47: 0 | M47: 0 | O47: 0 | P47: 0 | S47: 8 | T47: 1960 | U47: Miscellaneous Equipment | V47: 0 | W47: 0 | X47: 0 | Y47: 0 | AA47: 0 | AB47: 0 | AC47: 0 | AD47: 0 | AE47: 0 | AG47: 0 | AH47: 0
A48: 47 | B48: 1970 | C48: Load Management Controls Customer Premises | D48: 0 | E48: 0 | F48: 0 | G48: 0 | I48: 0 | J48: 0 | K48: 0 | L48: 0 | M48: 0 | O48: 0 | P48: 0 | S48: 47 | T48: 1970 | U48: Load Management Controls Customer Premises | V48: 0 | W48: 0 | X48: 0 | Y48: 0 | AA48: 0 | AB48: 0 | AC48: 0 | AD48: 0 | AE48: 0 | AG48: 0 | AH48: 0
A49: 47 | B49: 1975 | C49: Load Management Controls Utility Premises | D49: 0 | E49: 0 | F49: 0 | G49: 0 | I49: 0 | J49: 0 | K49: 0 | L49: 0 | M49: 0 | O49: 0 | P49: 0 | S49: 47 | T49: 1975 | U49: Load Management Controls Utility Premises | V49: 0 | W49: 0 | X49: 0 | Y49: 0 | AA49: 0 | AB49: 0 | AC49: 0 | AD49: 0 | AE49: 0 | AG49: 0 | AH49: 0
A50: 47 | B50: 1980 | C50: System Supervisor Equipment | D50: 0 | E50: 0 | F50: 0 | G50: 0 | I50: 0 | J50: 0 | K50: 0 | L50: 0 | M50: 0 | O50: 0 | P50: 0 | S50: 47 | T50: 1980 | U50: System Supervisor Equipment | V50: 0 | W50: 0 | X50: 0 | Y50: 0 | AA50: 0 | AB50: 0 | AC50: 0 | AD50: 0 | AE50: 0 | AG50: 0 | AH50: 0
A51: 47 | B51: 1985 | C51: Miscellaneous Fixed Assets | D51: 0 | E51: 0 | F51: 0 | G51: 0 | I51: 0 | J51: 0 | K51: 0 | L51: 0 | M51: 0 | O51: 0 | P51: 0 | S51: 47 | T51: 1985 | U51: Miscellaneous Fixed Assets | V51: 0 | W51: 0 | X51: 0 | Y51: 0 | AA51: 0 | AB51: 0 | AC51: 0 | AD51: 0 | AE51: 0 | AG51: 0 | AH51: 0
A52: 47 | B52: 1990 | C52: Other Tangible Property | D52: 0 | E52: 0 | F52: 0 | G52: 0 | I52: 0 | J52: 0 | K52: 0 | L52: 0 | M52: 0 | O52: 0 | P52: 0 | S52: 47 | T52: 1990 | U52: Other Tangible Property | V52: 0 | W52: 0 | X52: 0 | Y52: 0 | AA52: 0 | AB52: 0 | AC52: 0 | AD52: 0 | AE52: 0 | AG52: 0 | AH52: 0
A53: 47 | B53: 1995 | C53: Contributions & Grants | D53: -148764.32 | E53: -2157.11 | F53: 0 | G53: -150921.43 | I53: -27124.32 | J53: -6013.11 | K53: 0 | L53: -33137.43 | M53: -117784 | O53: -149842.875 | P53: -30130.875 | S53: 47 | T53: 1995 | U53: Contributions & Grants | V53: -148764.32 | W53: -2157.11 | X53: 0 | Y53: -150921.43 | AA53: -27124.32 | AB53: -6013.11 | AC53: 0 | AD53: -33137.43 | AE53: -117784 | AG53: -149842.875 | AH53: -30130.875
B54: etc. | D54: 0 | E54: 0 | F54: 0 | G54: 0 | I54: 0 | J54: 0 | K54: 0 | L54: 0 | M54: 0 | O54: 0 | P54: 0 | T54: etc. | V54: 0 | W54: 0 | X54: 0 | Y54: 0 | AA54: 0 | AB54: 0 | AC54: 0 | AD54: 0 | AE54: 0 | AG54: 0 | AH54: 0
B55: etc. | D55: 0 | E55: 0 | F55: 0 | G55: 0 | I55: 0 | J55: 0 | K55: 0 | L55: 0 | M55: 0 | O55: 0 | P55: 0 | T55: etc. | V55: 0 | W55: 0 | X55: 0 | Y55: 0 | AA55: 0 | AB55: 0 | AC55: 0 | AD55: 0 | AE55: 0 | AG55: 0 | AH55: 0
B56: etc. | D56: 0 | E56: 0 | F56: 0 | G56: 0 | I56: 0 | J56: 0 | K56: 0 | L56: 0 | M56: 0 | O56: 0 | P56: 0 | T56: etc. | V56: 0 | W56: 0 | X56: 0 | Y56: 0 | AA56: 0 | AB56: 0 | AC56: 0 | AD56: 0 | AE56: 0 | AG56: 0 | AH56: 0
B57: etc. | D57: 0 | E57: 0 | F57: 0 | G57: 0 | I57: 0 | J57: 0 | K57: 0 | L57: 0 | M57: 0 | O57: 0 | P57: 0 | T57: etc. | V57: 0 | W57: 0 | X57: 0 | Y57: 0 | AA57: 0 | AB57: 0 | AC57: 0 | AD57: 0 | AE57: 0 | AG57: 0 | AH57: 0
B58: etc. | D58: 0 | E58: 0 | F58: 0 | G58: 0 | I58: 0 | J58: 0 | K58: 0 | L58: 0 | M58: 0 | O58: 0 | P58: 0 | T58: etc. | V58: 0 | W58: 0 | X58: 0 | Y58: 0 | AA58: 0 | AB58: 0 | AC58: 0 | AD58: 0 | AE58: 0 | AG58: 0 | AH58: 0
B59: etc. | D59: 0 | E59: 0 | F59: 0 | G59: 0 | I59: 0 | J59: 0 | K59: 0 | L59: 0 | M59: 0 | O59: 0 | P59: 0 | T59: etc. | V59: 0 | W59: 0 | X59: 0 | Y59: 0 | AA59: 0 | AB59: 0 | AC59: 0 | AD59: 0 | AE59: 0 | AG59: 0 | AH59: 0
B60: etc. | D60: 0 | E60: 0 | F60: 0 | G60: 0 | I60: 0 | J60: 0 | K60: 0 | L60: 0 | M60: 0 | O60: 0 | P60: 0 | T60: etc. | V60: 0 | W60: 0 | X60: 0 | Y60: 0 | AA60: 0 | AB60: 0 | AC60: 0 | AD60: 0 | AE60: 0 | AG60: 0 | AH60: 0
B61: etc. | D61: 0 | E61: 0 | F61: 0 | G61: 0 | I61: 0 | J61: 0 | K61: 0 | L61: 0 | M61: 0 | O61: 0 | P61: 0 | T61: etc. | V61: 0 | W61: 0 | X61: 0 | Y61: 0 | AA61: 0 | AB61: 0 | AC61: 0 | AD61: 0 | AE61: 0 | AG61: 0 | AH61: 0
B62: etc. | D62: 0 | E62: 0 | F62: 0 | G62: 0 | I62: 0 | J62: 0 | K62: 0 | L62: 0 | M62: 0 | O62: 0 | P62: 0 | T62: etc. | V62: 0 | W62: 0 | X62: 0 | Y62: 0 | AA62: 0 | AB62: 0 | AC62: 0 | AD62: 0 | AE62: 0 | AG62: 0 | AH62: 0
B63: etc. | D63: 0 | E63: 0 | F63: 0 | G63: 0 | I63: 0 | J63: 0 | K63: 0 | L63: 0 | M63: 0 | O63: 0 | P63: 0 | T63: etc. | V63: 0 | W63: 0 | X63: 0 | Y63: 0 | AA63: 0 | AB63: 0 | AC63: 0 | AD63: 0 | AE63: 0 | AG63: 0 | AH63: 0
B64: etc. | D64: 0 | E64: 0 | F64: 0 | G64: =D64+E64+F64 -> 0 | I64: 0 | J64: 0 | K64: 0 | L64: 0 | M64: 0 | O64: 0 | P64: 0 | T64: etc. | V64: 0 | W64: 0 | X64: 0 | Y64: =V64+W64+X64 -> 0 | AA64: 0 | AB64: 0 | AC64: 0 | AD64: 0 | AE64: 0 | AG64: 0 | AH64: 0
G65: =D65+E65+F65 -> 0 | I65: 0 | J65: 0 | K65: 0 | L65: 0 | M65: 0 | O65: 0 | P65: 0 | Y65: =V65+W65+X65 -> 0 | AA65: 0 | AB65: 0 | AC65: 0 | AD65: 0 | AE65: 0 | AG65: 0 | AH65: 0
C66: Sub-Total | D66: =SUM(D16:D65) -> 940838.76 | E66: =SUM(E16:E65) -> 232986.55 | F66: =SUM(F16:F65) -> -5949.81 | G66: =SUM(G16:G65) -> 1167875.5 | I66: 486335.76 | J66: =SUM(J16:J65) -> 104628.55 | K66: 26593.19 | L66: 617557.5 | M66: 550318 | O66: =SUM(O16:O65) -> 1054357.13 | P66: =SUM(P16:P65) -> 551946.63 | U66: Sub-Total | V66: =SUM(V16:V65) -> 940838.76 | W66: =SUM(W16:W65) -> 39689.61 | X66: =SUM(X16:X65) -> 187347.13 | Y66: =SUM(Y16:Y65) -> 1167875.5 | AA66: =SUM(AA16:AA65) -> 486335.76 | AB66: =SUM(AB16:AB65) -> 104628.55 | AC66: =SUM(AC16:AC65) -> 26593.19 | AD66: =SUM(AD16:AD65) -> 617557.5 | AE66: =SUM(AE16:AE65) -> 550318 | AG66: =SUM(AG16:AG65) -> 1054357.13 | AH66: =SUM(AH16:AH65) -> 551946.63
C67: Less Socialized Renewable Energy Generation Investments (input as negative)Less Socialized Renewable Energy Generation Investments (input as negative) | G67: =D67+E67+F67 -> 0 | L67: =I67+J67+K67 -> 0 | M67: =G67+L67 -> 0 | O67: =O66-P66 -> 502410.5 | U67: Less Socialized Renewable Energy Generation Investments (input as negative)Less Socialized Renewable Energy Generation Investments (input as negative) | Y67: =V67+W67+X67 -> 0 | AD67: =AA67+AB67+AC67 -> 0 | AE67: =Y67+AD67 -> 0
C68: Less Other Non Rate-Regulated Utility Assets (input as negative)Less Other Non Rate-Regulated Utility Assets (input as negative) | G68: 0 | L68: =I68+J68+K68 -> 0 | M68: =G68+L68 -> 0 | U68: Less Other Non Rate-Regulated Utility Assets (input as negative)Less Other Non Rate-Regulated Utility Assets (input as negative) | Y68: =V68+W68+X68 -> 0 | AD68: =AA68+AB68+AC68 -> 0 | AE68: =Y68+AD68 -> 0
C69: Total PP&E | D69: =SUM(D66:D68) -> 940838.76 | E69: =SUM(E66:E68) -> 232986.55 | F69: =SUM(F66:F68) -> -5949.81 | G69: =SUM(G66:G68) -> 1167875.5 | I69: =SUM(I66:I68) -> 486335.76 | J69: =SUM(J66:J68) -> 104628.55 | K69: =SUM(K66:K68) -> 26593.19 | L69: =SUM(L66:L68) -> 617557.5 | M69: =SUM(M66:M68) -> 550318 | U69: Total PP&E | V69: =SUM(V66:V68) -> 940838.76 | W69: =SUM(W66:W68) -> 39689.61 | X69: =SUM(X66:X68) -> 187347.13 | Y69: =SUM(Y66:Y68) -> 1167875.5 | AA69: =SUM(AA66:AA68) -> 486335.76 | AB69: =SUM(AB66:AB68) -> 104628.55 | AC69: =SUM(AC66:AC68) -> 26593.19 | AD69: =SUM(AD66:AD68) -> 617557.5 | AE69: =SUM(AE66:AE68) -> 550318
C70: Depreciation Expense adj. from gain or loss on the retirement of assets (pool of like assets) | U70: Depreciation Expense adj. from gain or loss on the retirement of assets (pool of like assets)
C71: Total | J71: =J69+J70 -> 104628.55 | U71: Total | AB71: =AB69+AB70 -> 104628.55
G73: Less: Fully Allocated Depreciation | Y73: Less: Fully Allocated Depreciation
A74: 10 | C74: Transportation | G74: Transportation | S74: 10 | U74: Transportation | Y74: Transportation
A75: 8 | C75: Stores Equipment | G75: Stores Equipment | S75: 8 | U75: Stores Equipment | Y75: Stores Equipment
A76: 8 | C76: Tools, Shop | G76: Tools, Shop | S76: 8 | U76: Tools, Shop | Y76: Tools, Shop
A77: 8 | C77: Meas/Testing | G77: Meas/Testing | S77: 8 | U77: Meas/Testing | Y77: Meas/Testing
A78: 8 | C78: Communication | G78: Communication | S78: 8 | U78: Communication | Y78: Communication
G79: Net Depreciation | J79: =J71+J74+J78+J75+J76+J77 -> 104628.55 | Y79: Net Depreciation | AB79: =AB71+AB74+AB78+AB75+AB76+AB77 -> 104628.55
E81: Year | F81: 2013 | G81: CGAAP - with changes to policies | W81: Year | X81: 2013 | Y81: Former CGAAP - without changes to the policies
D83: Cost | J83: Accumulated Depreciation | V83: Cost | AB83: Accumulated Depreciation
A84: CCA Class | B84: OEB | C84: Description | D84: Opening Balance | E84: Additions | F84: Disposals | G84: Closing Balance | I84: Opening Balance | J84: Additions | K84: Disposals | L84: Closing Balance | M84: Net Book Value | O84: AVG Gross Bal | P84: AVG AccDep | S84: CCA Class | T84: OEB | U84: Description | V84: Opening Balance | W84: Additions | X84: Disposals | Y84: Closing Balance | AA84: Opening Balance | AB84: Additions | AC84: Disposals | AD84: Closing Balance | AE84: Net Book Value | AG84: AVG Gross Bal | AH84: AVG AccDep
A85: 12 | B85: 1611 | C85: Computer Software (Formally known as Account 1925) | D85: =G16 -> 130897.88 | E85: 352.33 | F85: 0 | G85: =D85+E85+F85 -> 131250.21 | I85: =L16 -> 95870.88 | J85: 16761.33 | K85: 0 | L85: =I85+J85+K85 -> 112632.21 | M85: =G85-L85 -> 18618 | O85: =AVERAGE(G85,D85) -> 131074.045 | P85: =AVERAGE(L85,I85) -> 104251.545 | S85: 12 | T85: 1611 | U85: Computer Software (Formally known as Account 1925) | V85: =Y16 -> 130897.88 | W85: 352.33 | X85: 0 | Y85: =V85+W85+X85 -> 131250.21 | AA85: =AD16 -> 95870.88 | AB85: =717+2619.33+7473+5952 -> 16761.33 | AC85: 0 | AD85: =AA85+AB85+AC85 -> 112632.21 | AE85: =Y85-AD85 -> 18618 | AG85: =AVERAGE(Y85,V85) -> 131074.045 | AH85: =AVERAGE(AD85,AA85) -> 104251.545
A86: CEC | B86: 1612 | C86: Land Rights (Formally known as Account 1906 and 1806) | D86: 0 | E86: 0 | F86: 0 | G86: =D86+E86+F86 -> 0 | I86: 0 | J86: 0 | K86: 0 | L86: =I86+J86+K86 -> 0 | M86: =G86-L86 -> 0 | O86: 0 | P86: 0 | S86: CEC | T86: 1612 | U86: Land Rights (Formally known as Account 1906 and 1806) | V86: 0 | W86: 0 | X86: 0 | Y86: =V86+W86+X86 -> 0 | AA86: 0 | AB86: 0 | AC86: 0 | AD86: =AA86+AB86+AC86 -> 0 | AE86: =Y86-AD86 -> 0 | AG86: 0 | AH86: 0
A87: N/A | B87: 1805 | C87: Land | D87: 0 | E87: 0 | F87: 0 | G87: =D87+E87+F87 -> 0 | I87: 0 | J87: 0 | K87: 0 | L87: =I87+J87+K87 -> 0 | M87: 0 | O87: 0 | P87: 0 | S87: N/A | T87: 1805 | U87: Land | V87: 0 | W87: 0 | X87: 0 | Y87: =V87+W87+X87 -> 0 | AA87: 0 | AB87: 0 | AC87: 0 | AD87: =AA87+AB87+AC87 -> 0 | AE87: 0 | AG87: 0 | AH87: 0
A88: 47 | B88: 1808 | C88: Buildings | D88: 0 | E88: 0 | F88: 0 | G88: =D88+E88+F88 -> 0 | I88: 0 | J88: 0 | K88: 0 | L88: =I88+J88+K88 -> 0 | M88: 0 | O88: 0 | P88: 0 | S88: 47 | T88: 1808 | U88: Buildings | V88: 0 | W88: 0 | X88: 0 | Y88: =V88+W88+X88 -> 0 | AA88: 0 | AB88: 0 | AC88: 0 | AD88: =AA88+AB88+AC88 -> 0 | AE88: 0 | AG88: 0 | AH88: 0
A89: 13 | B89: 1810 | C89: Leasehold Improvements | D89: 4104.62 | E89: 0 | F89: 0 | G89: 4104.62 | I89: 1106.62 | J89: 821 | K89: 0 | L89: 1927.62 | M89: 2177 | O89: 4104.62 | P89: 1517.12 | S89: 13 | T89: 1810 | U89: Leasehold Improvements | V89: 4104.62 | W89: 0 | X89: 0 | Y89: 4104.62 | AA89: 1106.62 | AB89: 821 | AC89: 0 | AD89: 1927.62 | AE89: 2177 | AG89: 4104.62 | AH89: 1517.12
A90: 47 | B90: 1815 | C90: Transformer Station Equipment >50 kV | D90: 0 | E90: 0 | F90: 0 | G90: 0 | I90: 0 | J90: 0 | K90: 0 | L90: 0 | M90: 0 | O90: 0 | P90: 0 | S90: 47 | T90: 1815 | U90: Transformer Station Equipment >50 kV | V90: 0 | W90: 0 | X90: 0 | Y90: 0 | AA90: 0 | AB90: 0 | AC90: 0 | AD90: 0 | AE90: 0 | AG90: 0 | AH90: 0
A91: 47 | B91: 1820 | C91: Distribution Station Equipment <50 kV | D91: 0 | E91: 0 | F91: 0 | G91: 0 | I91: 0 | J91: 0 | K91: 0 | L91: 0 | M91: 0 | O91: 0 | P91: 0 | S91: 47 | T91: 1820 | U91: Distribution Station Equipment <50 kV | V91: 0 | W91: 0 | X91: 0 | Y91: 0 | AA91: 0 | AB91: 0 | AC91: 0 | AD91: 0 | AE91: 0 | AG91: 0 | AH91: 0
A92: 47 | B92: 1825 | C92: Storage Battery Equipment | D92: 0 | E92: 0 | F92: 0 | G92: 0 | I92: 0 | J92: 0 | K92: 0 | L92: 0 | M92: 0 | O92: 0 | P92: 0 | S92: 47 | T92: 1825 | U92: Storage Battery Equipment | V92: 0 | W92: 0 | X92: 0 | Y92: 0 | AA92: 0 | AB92: 0 | AC92: 0 | AD92: 0 | AE92: 0 | AG92: 0 | AH92: 0
A93: 47 | B93: 1830 | C93: Poles, Towers & Fixtures | D93: 290724.68 | E93: 9515.01 | F93: 0 | G93: 300239.69 | I93: 158684.68 | J93: 9318.01 | K93: 0 | L93: 168002.69 | M93: 132237 | O93: 295482.185 | P93: 163343.685 | S93: 47 | T93: 1830 | U93: Poles, Towers & Fixtures | V93: 290724.68 | W93: 9515.01 | X93: 0 | Y93: 300239.69 | AA93: 158684.68 | AB93: 16769.01 | AC93: 0 | AD93: 175453.69 | AE93: 124786 | AG93: 295482.185 | AH93: 167069.185
A94: 47 | B94: 1835 | C94: Overhead Conductors & Devices | D94: 294884.41 | E94: 8904.7 | F94: 0 | G94: 303789.11 | I94: 158791.41 | J94: 7049.7 | K94: 0 | L94: 165841.11 | M94: 137948 | O94: 299336.76 | P94: 162316.26 | S94: 47 | T94: 1835 | U94: Overhead Conductors & Devices | V94: 294884.41 | W94: 8904.7 | X94: 0 | Y94: 303789.11 | AA94: 158791.41 | AB94: 16923.7 | AC94: 0 | AD94: 175715.11 | AE94: 128074 | AG94: 299336.76 | AH94: 167253.26
A95: 47 | B95: 1840 | C95: Underground Conduit | D95: 13404.71 | E95: 0 | F95: 0 | G95: 13404.71 | I95: 3751.71 | J95: 268 | K95: 0 | L95: 4019.71 | M95: 9385 | O95: 13404.71 | P95: 3885.71 | S95: 47 | T95: 1840 | U95: Underground Conduit | V95: 13404.71 | W95: 0 | X95: 0 | Y95: 13404.71 | AA95: 3751.71 | AB95: 536 | AC95: 0 | AD95: 4287.71 | AE95: 9117 | AG95: 13404.71 | AH95: 4019.71
A96: 47 | B96: 1845 | C96: Underground Conductors & Devices | D96: 94148.66 | E96: 7206.62 | F96: 0 | G96: 101355.28 | I96: 48566.66 | J96: 4257.62 | K96: 0 | L96: 52824.28 | M96: 48531 | O96: 97751.97 | P96: 50695.47 | S96: 47 | T96: 1845 | U96: Underground Conductors & Devices | V96: 94148.66 | W96: 7206.62 | X96: 0 | Y96: 101355.28 | AA96: 48566.66 | AB96: 5110.62 | AC96: 0 | AD96: 53677.28 | AE96: 47678 | AG96: 97751.97 | AH96: 51121.97
A97: 47 | B97: 1850 | C97: Line Transformers | D97: 125133.22 | E97: 1293 | F97: 0 | G97: 126426.22 | I97: 54781.22 | J97: 3823 | K97: 0 | L97: 58604.22 | M97: 67822 | O97: 125779.72 | P97: 56692.72 | S97: 47 | T97: 1850 | U97: Line Transformers | V97: 125133.22 | W97: 1293 | X97: 0 | Y97: 126426.22 | AA97: 54781.22 | AB97: =6086+32 -> 6118 | AC97: 0 | AD97: 60899.22 | AE97: 65527 | AG97: 125779.72 | AH97: 57840.22
A98: 47 | B98: 1855 | C98: Services (Overhead & Underground) | D98: 71641.16 | E98: 947.5 | F98: 0 | G98: 72588.66 | I98: 17308.16 | J98: 2405.5 | K98: 0 | L98: 19713.66 | M98: 52875 | O98: 72114.91 | P98: 18510.91 | S98: 47 | T98: 1855 | U98: Services (Overhead & Underground) | V98: 71641.16 | W98: 947.5 | X98: 0 | Y98: 72588.66 | AA98: 17308.16 | AB98: 2886.5 | AC98: 0 | AD98: 20194.66 | AE98: 52394 | AG98: 72114.91 | AH98: 18751.41
A99: 47 | B99: 1860 | C99: Meters | D99: 60593.44 | E99: 0 | F99: 0 | G99: 60593.44 | I99: 43313.44 | J99: 1012 | K99: 0 | L99: 44325.44 | M99: 16268 | O99: 60593.44 | P99: 43819.44 | S99: 47 | T99: 1860 | U99: Meters | V99: 60593.44 | W99: 0 | X99: 0 | Y99: 60593.44 | AA99: 43313.44 | AB99: =711+301 -> 1012 | AC99: 0 | AD99: 44325.44 | AE99: 16268 | AG99: 60593.44 | AH99: 43819.44
A100: 47 | B100: 1860 | C100: Meters (Smart Meters) | D100: 193296.94 | E100: 0 | F100: 0 | G100: 193296.94 | I100: 57785.94 | J100: 12886 | K100: 0 | L100: 70671.94 | M100: 122625 | O100: 193296.94 | P100: 64228.94 | S100: 47 | T100: 1860 | U100: Meters (Smart Meters) | V100: 193296.94 | W100: 0 | X100: 0 | Y100: 193296.94 | AA100: 57785.94 | AB100: 12886 | AC100: 0 | AD100: 70671.94 | AE100: 122625 | AG100: 193296.94 | AH100: 64228.94
A101: N/A | B101: 1905 | C101: Land | D101: 0 | E101: 0 | F101: 0 | G101: 0 | I101: 0 | J101: 0 | K101: 0 | L101: 0 | M101: 0 | O101: 0 | P101: 0 | S101: N/A | T101: 1905 | U101: Land | V101: 0 | W101: 0 | X101: 0 | Y101: 0 | AA101: 0 | AB101: 0 | AC101: 0 | AD101: 0 | AE101: 0 | AG101: 0 | AH101: 0
A102: 47 | B102: 1908 | C102: Buildings & Fixtures | D102: 0 | E102: 0 | F102: 0 | G102: 0 | I102: 0 | J102: 0 | K102: 0 | L102: 0 | M102: 0 | O102: 0 | P102: 0 | S102: 47 | T102: 1908 | U102: Buildings & Fixtures | V102: 0 | W102: 0 | X102: 0 | Y102: 0 | AA102: 0 | AB102: 0 | AC102: 0 | AD102: 0 | AE102: 0 | AG102: 0 | AH102: 0
A103: 13 | B103: 1910 | C103: Leasehold Improvements | D103: 0 | E103: 0 | F103: 0 | G103: 0 | I103: 0 | J103: 0 | K103: 0 | L103: 0 | M103: 0 | O103: 0 | P103: 0 | S103: 13 | T103: 1910 | U103: Leasehold Improvements | V103: 0 | W103: 0 | X103: 0 | Y103: 0 | AA103: 0 | AB103: 0 | AC103: 0 | AD103: 0 | AE103: 0 | AG103: 0 | AH103: 0
A104: 8 | B104: 1915 | C104: Office Furniture & Equipment (10 years) | D104: 21699.39 | E104: 359.98 | F104: 0 | G104: 22059.37 | I104: 6163.39 | J104: 1898.98 | K104: 0 | L104: 8062.37 | M104: 13997 | O104: 21879.38 | P104: 7112.88 | S104: 8 | T104: 1915 | U104: Office Furniture & Equipment (10 years) | V104: 21699.39 | W104: 359.98 | X104: 0 | Y104: 22059.37 | AA104: 6163.39 | AB104: 1898.98 | AC104: 0 | AD104: 8062.37 | AE104: 13997 | AG104: 21879.38 | AH104: 7112.88
A105: 8 | B105: 1915 | C105: Office Furniture & Equipment (5 years) | D105: 0 | E105: 0 | F105: 0 | G105: 0 | I105: 0 | J105: 0 | K105: 0 | L105: 0 | M105: 0 | O105: 0 | P105: 0 | S105: 8 | T105: 1915 | U105: Office Furniture & Equipment (5 years) | V105: 0 | W105: 0 | X105: 0 | Y105: 0 | AA105: 0 | AB105: 0 | AC105: 0 | AD105: 0 | AE105: 0 | AG105: 0 | AH105: 0
A106: 10 | B106: 1920 | C106: Computer Equipment - Hardware | D106: 0 | E106: 0 | F106: 0 | G106: 0 | I106: 0 | J106: 0 | K106: 0 | L106: 0 | M106: 0 | O106: 0 | P106: 0 | S106: 10 | T106: 1920 | U106: Computer Equipment - Hardware | V106: 0 | W106: 0 | X106: 0 | Y106: 0 | AA106: 0 | AB106: 0 | AC106: 0 | AD106: 0 | AE106: 0 | AG106: 0 | AH106: 0
A107: 45 | B107: 1920 | C107: Computer Equip.-Hardware(Post Mar. 22/04) | D107: 0 | E107: 0 | F107: 0 | G107: 0 | I107: 0 | J107: 0 | K107: 0 | L107: 0 | M107: 0 | O107: 0 | P107: 0 | S107: 45 | T107: 1920 | U107: Computer Equip.-Hardware(Post Mar. 22/04) | V107: 0 | W107: 0 | X107: 0 | Y107: 0 | AA107: 0 | AB107: 0 | AC107: 0 | AD107: 0 | AE107: 0 | AG107: 0 | AH107: 0
A108: 45.1 | B108: 1920 | C108: Computer Equip.-Hardware(Post Mar. 19/07) | D108: 18267.82 | E108: 210.81 | F108: 0 | G108: 18478.63 | I108: 4570.82 | J108: 5540.81 | K108: 0 | L108: 10111.63 | M108: 8367 | O108: 18373.225 | P108: 7341.225 | S108: 45.1 | T108: 1920 | U108: Computer Equip.-Hardware(Post Mar. 19/07) | V108: 18267.82 | W108: 210.81 | X108: 0 | Y108: 18478.63 | AA108: 4570.82 | AB108: 5540.81 | AC108: 0 | AD108: 10111.63 | AE108: 8367 | AG108: 18373.225 | AH108: 7341.225
A109: 10 | B109: 1930 | C109: Transportation Equipment | D109: 0 | E109: 0 | F109: 0 | G109: 0 | I109: 0 | J109: 0 | K109: 0 | L109: 0 | M109: 0 | O109: 0 | P109: 0 | S109: 10 | T109: 1930 | U109: Transportation Equipment | V109: 0 | W109: 0 | X109: 0 | Y109: 0 | AA109: 0 | AB109: 0 | AC109: 0 | AD109: 0 | AE109: 0 | AG109: 0 | AH109: 0
A110: 8 | B110: 1935 | C110: Stores Equipment | D110: 0 | E110: 0 | F110: 0 | G110: 0 | I110: 0 | J110: 0 | K110: 0 | L110: 0 | M110: 0 | O110: 0 | P110: 0 | S110: 8 | T110: 1935 | U110: Stores Equipment | V110: 0 | W110: 0 | X110: 0 | Y110: 0 | AA110: 0 | AB110: 0 | AC110: 0 | AD110: 0 | AE110: 0 | AG110: 0 | AH110: 0
A111: 8 | B111: 1940 | C111: Tools, Shop & Garage Equipment | D111: 0 | E111: 0 | F111: 0 | G111: 0 | I111: 0 | J111: 0 | K111: 0 | L111: 0 | M111: 0 | O111: 0 | P111: 0 | S111: 8 | T111: 1940 | U111: Tools, Shop & Garage Equipment | V111: 0 | W111: 0 | X111: 0 | Y111: 0 | AA111: 0 | AB111: 0 | AC111: 0 | AD111: 0 | AE111: 0 | AG111: 0 | AH111: 0
A112: 8 | B112: 1945 | C112: Measurement & Testing Equipment | D112: 0 | E112: 0 | F112: 0 | G112: 0 | I112: 0 | J112: 0 | K112: 0 | L112: 0 | M112: 0 | O112: 0 | P112: 0 | S112: 8 | T112: 1945 | U112: Measurement & Testing Equipment | V112: 0 | W112: 0 | X112: 0 | Y112: 0 | AA112: 0 | AB112: 0 | AC112: 0 | AD112: 0 | AE112: 0 | AG112: 0 | AH112: 0
A113: 8 | B113: 1950 | C113: Power Operated Equipment | D113: 0 | E113: 0 | F113: 0 | G113: 0 | I113: 0 | J113: 0 | K113: 0 | L113: 0 | M113: 0 | O113: 0 | P113: 0 | S113: 8 | T113: 1950 | U113: Power Operated Equipment | V113: 0 | W113: 0 | X113: 0 | Y113: 0 | AA113: 0 | AB113: 0 | AC113: 0 | AD113: 0 | AE113: 0 | AG113: 0 | AH113: 0
A114: 8 | B114: 1955 | C114: Communications Equipment | D114: 0 | E114: 0 | F114: 0 | G114: 0 | I114: 0 | J114: 0 | K114: 0 | L114: 0 | M114: 0 | O114: 0 | P114: 0 | S114: 8 | T114: 1955 | U114: Communications Equipment | V114: 0 | W114: 0 | X114: 0 | Y114: 0 | AA114: 0 | AB114: 0 | AC114: 0 | AD114: 0 | AE114: 0 | AG114: 0 | AH114: 0
A115: 8 | B115: 1955 | C115: Communication Equipment (Smart Meters) | D115: 0 | E115: 0 | F115: 0 | G115: 0 | I115: 0 | J115: 0 | K115: 0 | L115: 0 | M115: 0 | O115: 0 | P115: 0 | S115: 8 | T115: 1955 | U115: Communication Equipment (Smart Meters) | V115: 0 | W115: 0 | X115: 0 | Y115: 0 | AA115: 0 | AB115: 0 | AC115: 0 | AD115: 0 | AE115: 0 | AG115: 0 | AH115: 0
A116: 8 | B116: 1960 | C116: Miscellaneous Equipment | D116: 0 | E116: 0 | F116: 0 | G116: 0 | I116: 0 | J116: 0 | K116: 0 | L116: 0 | M116: 0 | O116: 0 | P116: 0 | S116: 8 | T116: 1960 | U116: Miscellaneous Equipment | V116: 0 | W116: 0 | X116: 0 | Y116: 0 | AA116: 0 | AB116: 0 | AC116: 0 | AD116: 0 | AE116: 0 | AG116: 0 | AH116: 0
A117: 47 | B117: 1970 | C117: Load Management Controls Customer Premises | D117: 0 | E117: 0 | F117: 0 | G117: 0 | I117: 0 | J117: 0 | K117: 0 | L117: 0 | M117: 0 | O117: 0 | P117: 0 | S117: 47 | T117: 1970 | U117: Load Management Controls Customer Premises | V117: 0 | W117: 0 | X117: 0 | Y117: 0 | AA117: 0 | AB117: 0 | AC117: 0 | AD117: 0 | AE117: 0 | AG117: 0 | AH117: 0
A118: 47 | B118: 1975 | C118: Load Management Controls Utility Premises | D118: 0 | E118: 0 | F118: 0 | G118: 0 | I118: 0 | J118: 0 | K118: 0 | L118: 0 | M118: 0 | O118: 0 | P118: 0 | S118: 47 | T118: 1975 | U118: Load Management Controls Utility Premises | V118: 0 | W118: 0 | X118: 0 | Y118: 0 | AA118: 0 | AB118: 0 | AC118: 0 | AD118: 0 | AE118: 0 | AG118: 0 | AH118: 0
A119: 47 | B119: 1980 | C119: System Supervisor Equipment | D119: 0 | E119: 0 | F119: 0 | G119: 0 | I119: 0 | J119: 0 | K119: 0 | L119: 0 | M119: 0 | O119: 0 | P119: 0 | S119: 47 | T119: 1980 | U119: System Supervisor Equipment | V119: 0 | W119: 0 | X119: 0 | Y119: 0 | AA119: 0 | AB119: 0 | AC119: 0 | AD119: 0 | AE119: 0 | AG119: 0 | AH119: 0
A120: 47 | B120: 1985 | C120: Miscellaneous Fixed Assets | D120: 0 | E120: 0 | F120: 0 | G120: 0 | I120: 0 | J120: 0 | K120: 0 | L120: 0 | M120: 0 | O120: 0 | P120: 0 | S120: 47 | T120: 1985 | U120: Miscellaneous Fixed Assets | V120: 0 | W120: 0 | X120: 0 | Y120: 0 | AA120: 0 | AB120: 0 | AC120: 0 | AD120: 0 | AE120: 0 | AG120: 0 | AH120: 0
A121: 47 | B121: 1990 | C121: Other Tangible Property | D121: 0 | E121: 0 | F121: 0 | G121: 0 | I121: 0 | J121: 0 | K121: 0 | L121: 0 | M121: 0 | O121: 0 | P121: 0 | S121: 47 | T121: 1990 | U121: Other Tangible Property | V121: 0 | W121: 0 | X121: 0 | Y121: 0 | AA121: 0 | AB121: 0 | AC121: 0 | AD121: 0 | AE121: 0 | AG121: 0 | AH121: 0
A122: 47 | B122: 1995 | C122: Contributions & Grants | D122: -150921.43 | E122: -3337.5 | F122: 0 | G122: -154258.93 | I122: -33137.43 | J122: -4060.5 | K122: 0 | L122: -37197.93 | M122: -117061 | O122: -152590.18 | P122: -35167.68 | S122: 47 | T122: 1995 | U122: Contributions & Grants | V122: -150921.43 | W122: -3337.5 | X122: 0 | Y122: -154258.93 | AA122: -33137.43 | AB122: -6128.5 | AC122: 0 | AD122: -39265.93 | AE122: -114993 | AG122: -152590.18 | AH122: -36201.68
B123: etc. | D123: 0 | E123: 0 | F123: 0 | G123: 0 | J123: 0 | K123: 0 | L123: 0 | M123: 0 | O123: 0 | P123: 0 | T123: etc. | V123: 0 | W123: 0 | X123: 0 | Y123: 0 | AB123: 0 | AC123: 0 | AD123: 0 | AE123: 0 | AG123: 0 | AH123: 0
B124: etc. | D124: 0 | E124: 0 | F124: 0 | G124: 0 | J124: 0 | K124: 0 | L124: 0 | M124: 0 | O124: 0 | P124: 0 | T124: etc. | V124: 0 | W124: 0 | X124: 0 | Y124: 0 | AB124: 0 | AC124: 0 | AD124: 0 | AE124: 0 | AG124: 0 | AH124: 0
B125: etc. | D125: 0 | E125: 0 | F125: 0 | G125: 0 | J125: 0 | K125: 0 | L125: 0 | M125: 0 | O125: 0 | P125: 0 | T125: etc. | V125: 0 | W125: 0 | X125: 0 | Y125: 0 | AB125: 0 | AC125: 0 | AD125: 0 | AE125: 0 | AG125: 0 | AH125: 0
B126: etc. | D126: 0 | E126: 0 | F126: 0 | G126: 0 | J126: 0 | K126: 0 | L126: 0 | M126: 0 | O126: 0 | P126: 0 | T126: etc. | V126: 0 | W126: 0 | X126: 0 | Y126: 0 | AB126: 0 | AC126: 0 | AD126: 0 | AE126: 0 | AG126: 0 | AH126: 0
B127: etc. | D127: 0 | E127: 0 | F127: 0 | G127: 0 | J127: 0 | K127: 0 | L127: 0 | M127: 0 | O127: 0 | P127: 0 | T127: etc. | V127: 0 | W127: 0 | X127: 0 | Y127: 0 | AB127: 0 | AC127: 0 | AD127: 0 | AE127: 0 | AG127: 0 | AH127: 0
B128: etc. | D128: 0 | E128: 0 | F128: 0 | G128: 0 | J128: 0 | K128: 0 | L128: 0 | M128: 0 | O128: 0 | P128: 0 | T128: etc. | V128: 0 | W128: 0 | X128: 0 | Y128: 0 | AB128: 0 | AC128: 0 | AD128: 0 | AE128: 0 | AG128: 0 | AH128: 0
B129: etc. | D129: 0 | E129: 0 | F129: 0 | G129: 0 | J129: 0 | K129: 0 | L129: 0 | M129: 0 | O129: 0 | P129: 0 | T129: etc. | V129: 0 | W129: 0 | X129: 0 | Y129: 0 | AB129: 0 | AC129: 0 | AD129: 0 | AE129: 0 | AG129: 0 | AH129: 0
B130: etc. | D130: 0 | E130: 0 | F130: 0 | G130: 0 | J130: 0 | K130: 0 | L130: 0 | M130: 0 | O130: 0 | P130: 0 | T130: etc. | V130: 0 | W130: 0 | X130: 0 | Y130: 0 | AB130: 0 | AC130: 0 | AD130: 0 | AE130: 0 | AG130: 0 | AH130: 0
B131: etc. | D131: 0 | E131: 0 | F131: 0 | G131: 0 | J131: 0 | K131: 0 | L131: 0 | M131: 0 | O131: 0 | P131: 0 | T131: etc. | V131: 0 | W131: 0 | X131: 0 | Y131: 0 | AB131: 0 | AC131: 0 | AD131: 0 | AE131: 0 | AG131: 0 | AH131: 0
B132: etc. | D132: 0 | E132: 0 | F132: 0 | G132: 0 | J132: 0 | K132: 0 | L132: 0 | M132: 0 | O132: 0 | P132: 0 | T132: etc. | V132: 0 | W132: 0 | X132: 0 | Y132: 0 | AB132: 0 | AC132: 0 | AD132: 0 | AE132: 0 | AG132: 0 | AH132: 0
B133: etc. | D133: =G64 -> 0 | E133: 0 | F133: 0 | G133: =D133+E133+F133 -> 0 | J133: 0 | K133: 0 | L133: 0 | M133: 0 | O133: 0 | P133: 0 | T133: etc. | V133: =Y64 -> 0 | W133: 0 | X133: 0 | Y133: =V133+W133+X133 -> 0 | AB133: 0 | AC133: 0 | AD133: 0 | AE133: 0 | AG133: 0 | AH133: 0
D134: =G65 -> 0 | G134: =D134+E134+F134 -> 0 | I134: =L65 -> 0 | J134: 0 | K134: 0 | L134: 0 | M134: 0 | O134: 0 | P134: 0 | V134: =Y65 -> 0 | Y134: =V134+W134+X134 -> 0 | AA134: =AD65 -> 0 | AB134: 0 | AC134: 0 | AD134: 0 | AE134: 0 | AG134: 0 | AH134: 0
C135: Sub-Total | D135: =SUM(D85:D134) -> 1167875.5 | E135: =SUM(E85:E134) -> 25452.45 | F135: =SUM(F85:F134) -> 0 | G135: =SUM(G85:G134) -> 1193327.95 | I135: =SUM(I85:I134) -> 617557.5 | J135: =SUM(J85:J134) -> 61981.45 | K135: =SUM(K85:K134) -> 0 | L135: =SUM(L85:L134) -> 679538.95 | M135: =SUM(M85:M134) -> 513789 | O135: =SUM(O85:O134) -> 1180601.725 | P135: =SUM(P85:P134) -> 648548.225 | U135: Sub-Total | V135: =SUM(V85:V134) -> 1167875.5 | W135: =SUM(W85:W134) -> 25452.45 | X135: =SUM(X85:X134) -> 0 | Y135: =SUM(Y85:Y134) -> 1193327.95 | AA135: =SUM(AA85:AA134) -> 617557.5 | AB135: =SUM(AB85:AB134) -> 81135.45 | AC135: =SUM(AC85:AC134) -> 0 | AD135: =SUM(AD85:AD134) -> 698692.95 | AE135: =SUM(AE85:AE134) -> 494635 | AG135: =SUM(AG85:AG134) -> 1180601.725 | AH135: =SUM(AH85:AH134) -> 658125.225
C136: Less Socialized Renewable Energy Generation Investments (input as negative)Less Socialized Renewable Energy Generation Investments (input as negative) | G136: =D136+E136+F136 -> 0 | L136: =I136+J136+K136 -> 0 | M136: =G136+L136 -> 0 | O136: =O135-P135 -> 532053.5 | U136: Less Socialized Renewable Energy Generation Investments (input as negative)Less Socialized Renewable Energy Generation Investments (input as negative) | Y136: =V136+W136+X136 -> 0 | AD136: =AA136+AB136+AC136 -> 0 | AE136: =Y136+AD136 -> 0
C137: Less Other Non Rate-Regulated Utility Assets (input as negative)Less Other Non Rate-Regulated Utility Assets (input as negative) | G137: =D137+E137+F137 -> 0 | L137: =I137+J137+K137 -> 0 | M137: =G137+L137 -> 0 | U137: Less Other Non Rate-Regulated Utility Assets (input as negative)Less Other Non Rate-Regulated Utility Assets (input as negative) | Y137: =V137+W137+X137 -> 0 | AD137: =AA137+AB137+AC137 -> 0 | AE137: =Y137+AD137 -> 0
C138: Total PP&E | D138: =SUM(D135:D137) -> 1167875.5 | E138: =SUM(E135:E137) -> 25452.45 | F138: =SUM(F135:F137) -> 0 | G138: =SUM(G135:G137) -> 1193327.95 | I138: =SUM(I135:I137) -> 617557.5 | J138: =SUM(J135:J137) -> 61981.45 | K138: =SUM(K135:K137) -> 0 | L138: =SUM(L135:L137) -> 679538.95 | M138: =SUM(M135:M137) -> 513789 | U138: Total PP&E | V138: =SUM(V135:V137) -> 1167875.5 | W138: =SUM(W135:W137) -> 25452.45 | X138: =SUM(X135:X137) -> 0 | Y138: =SUM(Y135:Y137) -> 1193327.95 | AA138: =SUM(AA135:AA137) -> 617557.5 | AB138: =SUM(AB135:AB137) -> 81135.45 | AC138: =SUM(AC135:AC137) -> 0 | AD138: =SUM(AD135:AD137) -> 698692.95 | AE138: =SUM(AE135:AE137) -> 494635
C139: Depreciation Expense adj. from gain or loss on the retirement of assets (pool of like assets) | U139: Depreciation Expense adj. from gain or loss on the retirement of assets (pool of like assets)
C140: Total | J140: =J138+J139 -> 61981.45 | U140: Total | AB140: =AB138+AB139 -> 81135.45
G142: Less: Fully Allocated Depreciation | Y142: Less: Fully Allocated Depreciation
A143: 10 | C143: Transportation | G143: Transportation | S143: 10 | U143: Transportation | Y143: Transportation
A144: 8 | C144: Stores Equipment | G144: Stores Equipment | S144: 8 | U144: Stores Equipment | Y144: Stores Equipment
A145: 8 | C145: Tools, Shop | G145: Tools, Shop | S145: 8 | U145: Tools, Shop | Y145: Tools, Shop
A146: 8 | C146: Meas/Testing | G146: Meas/Testing | S146: 8 | U146: Meas/Testing | Y146: Meas/Testing
A147: 8 | C147: Communication | G147: Communication | S147: 8 | U147: Communication | Y147: Communication
G148: Net Depreciation | J148: =J140+J143+J147+J144+J145+J146 -> 61981.45 | Y148: Net Depreciation | AB148: =AB140+AB143+AB147+AB144+AB145+AB146 -> 81135.45
E150: Year | F150: 2014 | G150: CGAAP - with changes to policies | W150: Year | X150: 2014 | Y150: Former CGAAP - without changes to the policies
D152: Cost | J152: Accumulated Depreciation | V152: Cost | AB152: Accumulated Depreciation
A153: CCA Class | B153: OEB | C153: Description | D153: Opening Balance | E153: Additions | F153: Disposals | G153: Closing Balance | I153: Opening Balance | J153: Additions | K153: Disposals | L153: Closing Balance | M153: Net Book Value | O153: AVG Gross Bal | P153: AVG AccDep | S153: CCA Class | T153: OEB | U153: Description | V153: Opening Balance | W153: Additions | X153: Disposals | Y153: Closing Balance | AA153: Opening Balance | AB153: Additions | AC153: Disposals | AD153: Closing Balance | AE153: Net Book Value | AG153: AVG Gross Bal | AH153: AVG AccDep
A154: 12 | B154: 1611 | C154: Computer Software (Formally known as Account 1925) | D154: =G85 -> 131250.21 | E154: 38793.14 | F154: 0 | G154: =D154+E154+F154 -> 170043.35 | I154: =L85 -> 112632.21 | J154: 15984.14 | K154: 0 | L154: =I154+J154+K154 -> 128616.35 | M154: =G154-L154 -> 41427 | O154: =AVERAGE(G154,D154) -> 150646.78 | P154: =AVERAGE(L154,I154) -> 120624.28 | S154: 12 | T154: 1611 | U154: Computer Software (Formally known as Account 1925) | V154: =Y85 -> 131250.21 | W154: 38793.14 | X154: 0 | Y154: =V154+W154+X154 -> 170043.35 | AA154: =AD85 -> 112632.21 | AB154: 15984.14 | AC154: 0 | AD154: =AA154+AB154+AC154 -> 128616.35 | AE154: =Y154-AD154 -> 41427 | AG154: =AVERAGE(Y154,V154) -> 150646.78 | AH154: =AVERAGE(AD154,AA154) -> 120624.28
A155: CEC | B155: 1612 | C155: Land Rights (Formally known as Account 1906 and 1806) | D155: 0 | E155: 0 | F155: 0 | G155: =D155+E155+F155 -> 0 | I155: 0 | J155: 0 | K155: 0 | L155: =I155+J155+K155 -> 0 | M155: =G155-L155 -> 0 | O155: 0 | P155: 0 | S155: CEC | T155: 1612 | U155: Land Rights (Formally known as Account 1906 and 1806) | V155: 0 | W155: 0 | X155: 0 | Y155: =V155+W155+X155 -> 0 | AA155: 0 | AB155: 0 | AC155: 0 | AD155: =AA155+AB155+AC155 -> 0 | AE155: =Y155-AD155 -> 0 | AG155: 0 | AH155: 0
A156: N/A | B156: 1805 | C156: Land | D156: 0 | E156: 0 | F156: 0 | G156: =D156+E156+F156 -> 0 | I156: 0 | J156: 0 | K156: 0 | L156: =I156+J156+K156 -> 0 | M156: 0 | O156: 0 | P156: 0 | S156: N/A | T156: 1805 | U156: Land | V156: 0 | W156: 0 | X156: 0 | Y156: =V156+W156+X156 -> 0 | AA156: 0 | AB156: 0 | AC156: 0 | AD156: =AA156+AB156+AC156 -> 0 | AE156: 0 | AG156: 0 | AH156: 0
A157: 47 | B157: 1808 | C157: Buildings | D157: 0 | E157: 0 | F157: 0 | G157: =D157+E157+F157 -> 0 | I157: 0 | J157: 0 | K157: 0 | L157: =I157+J157+K157 -> 0 | M157: 0 | O157: 0 | P157: 0 | S157: 47 | T157: 1808 | U157: Buildings | V157: 0 | W157: 0 | X157: 0 | Y157: =V157+W157+X157 -> 0 | AA157: 0 | AB157: 0 | AC157: 0 | AD157: =AA157+AB157+AC157 -> 0 | AE157: 0 | AG157: 0 | AH157: 0
A158: 13 | B158: 1810 | C158: Leasehold Improvements | D158: 4104.62 | E158: 0 | F158: 0 | G158: 4104.62 | I158: 1927.62 | J158: 821 | K158: 0 | L158: 2748.62 | M158: 1356 | O158: 4104.62 | P158: 2338.12 | S158: 13 | T158: 1810 | U158: Leasehold Improvements | V158: 4104.62 | W158: 0 | X158: 0 | Y158: 4104.62 | AA158: 1927.62 | AB158: 821 | AC158: 0 | AD158: 2748.62 | AE158: 1356 | AG158: 4104.62 | AH158: 2338.12
A159: 47 | B159: 1815 | C159: Transformer Station Equipment >50 kV | D159: 0 | E159: 0 | F159: 0 | G159: 0 | I159: 0 | J159: 0 | K159: 0 | L159: 0 | M159: 0 | O159: 0 | P159: 0 | S159: 47 | T159: 1815 | U159: Transformer Station Equipment >50 kV | V159: 0 | W159: 0 | X159: 0 | Y159: 0 | AA159: 0 | AB159: 0 | AC159: 0 | AD159: 0 | AE159: 0 | AG159: 0 | AH159: 0
A160: 47 | B160: 1820 | C160: Distribution Station Equipment <50 kV | D160: 0 | E160: 0 | F160: 0 | G160: 0 | I160: 0 | J160: 0 | K160: 0 | L160: 0 | M160: 0 | O160: 0 | P160: 0 | S160: 47 | T160: 1820 | U160: Distribution Station Equipment <50 kV | V160: 0 | W160: 0 | X160: 0 | Y160: 0 | AA160: 0 | AB160: 0 | AC160: 0 | AD160: 0 | AE160: 0 | AG160: 0 | AH160: 0
A161: 47 | B161: 1825 | C161: Storage Battery Equipment | D161: 0 | E161: 0 | F161: 0 | G161: 0 | I161: 0 | J161: 0 | K161: 0 | L161: 0 | M161: 0 | O161: 0 | P161: 0 | S161: 47 | T161: 1825 | U161: Storage Battery Equipment | V161: 0 | W161: 0 | X161: 0 | Y161: 0 | AA161: 0 | AB161: 0 | AC161: 0 | AD161: 0 | AE161: 0 | AG161: 0 | AH161: 0
A162: 47 | B162: 1830 | C162: Poles, Towers & Fixtures | D162: 300239.69 | E162: 18689.25 | F162: 0 | G162: 318928.94 | I162: 168002.69 | J162: 9631.25 | K162: 0 | L162: 177633.94 | M162: 141295 | O162: 309584.315 | P162: 172818.315 | S162: 47 | T162: 1830 | U162: Poles, Towers & Fixtures | V162: 300239.69 | W162: 18689.25 | X162: 0 | Y162: 318928.94 | AA162: 175453.69 | AB162: 9635.25 | AC162: 0 | AD162: 185088.94 | AE162: 133840 | AG162: 309584.315 | AH162: 180271.315
A163: 47 | B163: 1835 | C163: Overhead Conductors & Devices | D163: 303789.11 | E163: 1374.25 | F163: 0 | G163: 305163.36 | I163: 165841.11 | J163: 7135.25 | K163: 0 | L163: 172976.36 | M163: 132187 | O163: 304476.235 | P163: 169408.735 | S163: 47 | T163: 1835 | U163: Overhead Conductors & Devices | V163: 303789.11 | W163: 1374.25 | X163: 0 | Y163: 305163.36 | AA163: 175715.11 | AB163: 10462.25 | AC163: 0 | AD163: 186177.36 | AE163: 118986 | AG163: 304476.235 | AH163: 180946.235
A164: 47 | B164: 1840 | C164: Underground Conduit | D164: 13404.71 | E164: 0 | F164: 0 | G164: 13404.71 | I164: 4019.71 | J164: 268 | K164: 0 | L164: 4287.71 | M164: 9117 | O164: 13404.71 | P164: 4153.71 | S164: 47 | T164: 1840 | U164: Underground Conduit | V164: 13404.71 | W164: 0 | X164: 0 | Y164: 13404.71 | AA164: 4287.71 | AB164: 536 | AC164: 0 | AD164: 4823.71 | AE164: 8581 | AG164: 13404.71 | AH164: 4555.71
A165: 47 | B165: 1845 | C165: Underground Conductors & Devices | D165: 101355.28 | E165: 3808.55 | F165: 0 | G165: 105163.83 | I165: 52824.28 | J165: 4440.55 | K165: 0 | L165: 57264.83 | M165: 47899 | O165: 103259.555 | P165: 55044.555 | S165: 47 | T165: 1845 | U165: Underground Conductors & Devices | V165: 101355.28 | W165: 3808.55 | X165: 0 | Y165: 105163.83 | AA165: 53677.28 | AB165: 5330.55 | AC165: 0 | AD165: 59007.83 | AE165: 46156 | AG165: 103259.555 | AH165: 56342.555
A166: 47 | B166: 1850 | C166: Line Transformers | D166: 126426.22 | E166: 8241.77 | F166: 0 | G166: 134667.99 | I166: 58604.22 | J166: 3238.77 | K166: 0 | L166: 61842.99 | M166: 72825 | O166: 130547.105 | P166: 60223.605 | S166: 47 | T166: 1850 | U166: Line Transformers | V166: 126426.22 | W166: 8241.77 | X166: 0 | Y166: 134667.99 | AA166: 60899.22 | AB166: =3461.77+32 -> 3493.77 | AC166: 0 | AD166: 64392.99 | AE166: 70275 | AG166: 130547.105 | AH166: 62646.105
A167: 47 | B167: 1855 | C167: Services (Overhead & Underground) | D167: 72588.66 | E167: 0 | F167: 0 | G167: 72588.66 | I167: 19713.66 | J167: 2421 | K167: 0 | L167: 22134.66 | M167: 50454 | O167: 72588.66 | P167: 20924.16 | S167: 47 | T167: 1855 | U167: Services (Overhead & Underground) | V167: 72588.66 | W167: 0 | X167: 0 | Y167: 72588.66 | AA167: 20194.66 | AB167: 2905 | AC167: 0 | AD167: 23099.66 | AE167: 49489 | AG167: 72588.66 | AH167: 21647.16
A168: 47 | B168: 1860 | C168: Meters | D168: 60593.44 | E168: 0 | F168: 0 | G168: 60593.44 | I168: 44325.44 | J168: 1012 | K168: 0 | L168: 45337.44 | M168: 15256 | O168: 60593.44 | P168: 44831.44 | S168: 47 | T168: 1860 | U168: Meters | V168: 60593.44 | W168: 0 | X168: 0 | Y168: 60593.44 | AA168: 44325.44 | AB168: =711+301 -> 1012 | AC168: 0 | AD168: 45337.44 | AE168: 15256 | AG168: 60593.44 | AH168: 44831.44
A169: 47 | B169: 1860 | C169: Meters (Smart Meters) | D169: 193296.94 | E169: 7985.07 | F169: 0 | G169: 201282.01 | I169: 70671.94 | J169: 13152.07 | K169: 0 | L169: 83824.01 | M169: 117458 | O169: 197289.475 | P169: 77247.975 | S169: 47 | T169: 1860 | U169: Meters (Smart Meters) | V169: 193296.94 | W169: 7985.07 | X169: 0 | Y169: 201282.01 | AA169: 70671.94 | AB169: 13152.07 | AC169: 0 | AD169: 83824.01 | AE169: 117458 | AG169: 197289.475 | AH169: 77247.975
A170: N/A | B170: 1905 | C170: Land | D170: 0 | E170: 0 | F170: 0 | G170: 0 | I170: 0 | J170: 0 | K170: 0 | L170: 0 | M170: 0 | O170: 0 | P170: 0 | S170: N/A | T170: 1905 | U170: Land | V170: 0 | W170: 0 | X170: 0 | Y170: 0 | AA170: 0 | AB170: 0 | AC170: 0 | AD170: 0 | AE170: 0 | AG170: 0 | AH170: 0
A171: 47 | B171: 1908 | C171: Buildings & Fixtures | D171: 0 | E171: 0 | F171: 0 | G171: 0 | I171: 0 | J171: 0 | K171: 0 | L171: 0 | M171: 0 | O171: 0 | P171: 0 | S171: 47 | T171: 1908 | U171: Buildings & Fixtures | V171: 0 | W171: 0 | X171: 0 | Y171: 0 | AA171: 0 | AB171: 0 | AC171: 0 | AD171: 0 | AE171: 0 | AG171: 0 | AH171: 0
A172: 13 | B172: 1910 | C172: Leasehold Improvements | D172: 0 | E172: 0 | F172: 0 | G172: 0 | I172: 0 | J172: 0 | K172: 0 | L172: 0 | M172: 0 | O172: 0 | P172: 0 | S172: 13 | T172: 1910 | U172: Leasehold Improvements | V172: 0 | W172: 0 | X172: 0 | Y172: 0 | AA172: 0 | AB172: 0 | AC172: 0 | AD172: 0 | AE172: 0 | AG172: 0 | AH172: 0
A173: 8 | B173: 1915 | C173: Office Furniture & Equipment (10 years) | D173: 22059.37 | E173: 230 | F173: 0 | G173: 22289.37 | I173: 8062.37 | J173: 1893 | K173: 0 | L173: 9955.37 | M173: 12334 | O173: 22174.37 | P173: 9008.87 | S173: 8 | T173: 1915 | U173: Office Furniture & Equipment (10 years) | V173: 22059.37 | W173: 230 | X173: 0 | Y173: 22289.37 | AA173: 8062.37 | AB173: 1893 | AC173: 0 | AD173: 9955.37 | AE173: 12334 | AG173: 22174.37 | AH173: 9008.87
A174: 8 | B174: 1915 | C174: Office Furniture & Equipment (5 years) | D174: 0 | E174: 0 | F174: 0 | G174: 0 | I174: 0 | J174: 0 | K174: 0 | L174: 0 | M174: 0 | O174: 0 | P174: 0 | S174: 8 | T174: 1915 | U174: Office Furniture & Equipment (5 years) | V174: 0 | W174: 0 | X174: 0 | Y174: 0 | AA174: 0 | AB174: 0 | AC174: 0 | AD174: 0 | AE174: 0 | AG174: 0 | AH174: 0
A175: 10 | B175: 1920 | C175: Computer Equipment - Hardware | D175: 0 | E175: 0 | F175: 0 | G175: 0 | I175: 0 | J175: 0 | K175: 0 | L175: 0 | M175: 0 | O175: 0 | P175: 0 | S175: 10 | T175: 1920 | U175: Computer Equipment - Hardware | V175: 0 | W175: 0 | X175: 0 | Y175: 0 | AA175: 0 | AB175: 0 | AC175: 0 | AD175: 0 | AE175: 0 | AG175: 0 | AH175: 0
A176: 45 | B176: 1920 | C176: Computer Equip.-Hardware(Post Mar. 22/04) | D176: 0 | E176: 0 | F176: 0 | G176: 0 | I176: 0 | J176: 0 | K176: 0 | L176: 0 | M176: 0 | O176: 0 | P176: 0 | S176: 45 | T176: 1920 | U176: Computer Equip.-Hardware(Post Mar. 22/04) | V176: 0 | W176: 0 | X176: 0 | Y176: 0 | AA176: 0 | AB176: 0 | AC176: 0 | AD176: 0 | AE176: 0 | AG176: 0 | AH176: 0
A177: 45.1 | B177: 1920 | C177: Computer Equip.-Hardware(Post Mar. 19/07) | D177: 18478.63 | E177: 262.5 | F177: 0 | G177: 18741.13 | I177: 10111.63 | J177: 2404.5 | K177: 0 | L177: 12516.13 | M177: 6225 | O177: 18609.88 | P177: 11313.88 | S177: 45.1 | T177: 1920 | U177: Computer Equip.-Hardware(Post Mar. 19/07) | V177: 18478.63 | W177: 262.5 | X177: 0 | Y177: 18741.13 | AA177: 10111.63 | AB177: 2404.5 | AC177: 0 | AD177: 12516.13 | AE177: 6225 | AG177: 18609.88 | AH177: 11313.88
A178: 10 | B178: 1930 | C178: Transportation Equipment | D178: 0 | E178: 0 | F178: 0 | G178: 0 | I178: 0 | J178: 0 | K178: 0 | L178: 0 | M178: 0 | O178: 0 | P178: 0 | S178: 10 | T178: 1930 | U178: Transportation Equipment | V178: 0 | W178: 0 | X178: 0 | Y178: 0 | AA178: 0 | AB178: 0 | AC178: 0 | AD178: 0 | AE178: 0 | AG178: 0 | AH178: 0
A179: 8 | B179: 1935 | C179: Stores Equipment | D179: 0 | E179: 0 | F179: 0 | G179: 0 | I179: 0 | J179: 0 | K179: 0 | L179: 0 | M179: 0 | O179: 0 | P179: 0 | S179: 8 | T179: 1935 | U179: Stores Equipment | V179: 0 | W179: 0 | X179: 0 | Y179: 0 | AA179: 0 | AB179: 0 | AC179: 0 | AD179: 0 | AE179: 0 | AG179: 0 | AH179: 0
A180: 8 | B180: 1940 | C180: Tools, Shop & Garage Equipment | D180: 0 | E180: 0 | F180: 0 | G180: 0 | I180: 0 | J180: 0 | K180: 0 | L180: 0 | M180: 0 | O180: 0 | P180: 0 | S180: 8 | T180: 1940 | U180: Tools, Shop & Garage Equipment | V180: 0 | W180: 0 | X180: 0 | Y180: 0 | AA180: 0 | AB180: 0 | AC180: 0 | AD180: 0 | AE180: 0 | AG180: 0 | AH180: 0
A181: 8 | B181: 1945 | C181: Measurement & Testing Equipment | D181: 0 | E181: 0 | F181: 0 | G181: 0 | I181: 0 | J181: 0 | K181: 0 | L181: 0 | M181: 0 | O181: 0 | P181: 0 | S181: 8 | T181: 1945 | U181: Measurement & Testing Equipment | V181: 0 | W181: 0 | X181: 0 | Y181: 0 | AA181: 0 | AB181: 0 | AC181: 0 | AD181: 0 | AE181: 0 | AG181: 0 | AH181: 0
A182: 8 | B182: 1950 | C182: Power Operated Equipment | D182: 0 | E182: 0 | F182: 0 | G182: 0 | I182: 0 | J182: 0 | K182: 0 | L182: 0 | M182: 0 | O182: 0 | P182: 0 | S182: 8 | T182: 1950 | U182: Power Operated Equipment | V182: 0 | W182: 0 | X182: 0 | Y182: 0 | AA182: 0 | AB182: 0 | AC182: 0 | AD182: 0 | AE182: 0 | AG182: 0 | AH182: 0
A183: 8 | B183: 1955 | C183: Communications Equipment | D183: 0 | E183: 0 | F183: 0 | G183: 0 | I183: 0 | J183: 0 | K183: 0 | L183: 0 | M183: 0 | O183: 0 | P183: 0 | S183: 8 | T183: 1955 | U183: Communications Equipment | V183: 0 | W183: 0 | X183: 0 | Y183: 0 | AA183: 0 | AB183: 0 | AC183: 0 | AD183: 0 | AE183: 0 | AG183: 0 | AH183: 0
A184: 8 | B184: 1955 | C184: Communication Equipment (Smart Meters) | D184: 0 | E184: 0 | F184: 0 | G184: 0 | I184: 0 | J184: 0 | K184: 0 | L184: 0 | M184: 0 | O184: 0 | P184: 0 | S184: 8 | T184: 1955 | U184: Communication Equipment (Smart Meters) | V184: 0 | W184: 0 | X184: 0 | Y184: 0 | AA184: 0 | AB184: 0 | AC184: 0 | AD184: 0 | AE184: 0 | AG184: 0 | AH184: 0
A185: 8 | B185: 1960 | C185: Miscellaneous Equipment | D185: 0 | E185: 0 | F185: 0 | G185: 0 | I185: 0 | J185: 0 | K185: 0 | L185: 0 | M185: 0 | O185: 0 | P185: 0 | S185: 8 | T185: 1960 | U185: Miscellaneous Equipment | V185: 0 | W185: 0 | X185: 0 | Y185: 0 | AA185: 0 | AB185: 0 | AC185: 0 | AD185: 0 | AE185: 0 | AG185: 0 | AH185: 0
A186: 47 | B186: 1970 | C186: Load Management Controls Customer Premises | D186: 0 | E186: 0 | F186: 0 | G186: 0 | I186: 0 | J186: 0 | K186: 0 | L186: 0 | M186: 0 | O186: 0 | P186: 0 | S186: 47 | T186: 1970 | U186: Load Management Controls Customer Premises | V186: 0 | W186: 0 | X186: 0 | Y186: 0 | AA186: 0 | AB186: 0 | AC186: 0 | AD186: 0 | AE186: 0 | AG186: 0 | AH186: 0
A187: 47 | B187: 1975 | C187: Load Management Controls Utility Premises | D187: 0 | E187: 0 | F187: 0 | G187: 0 | I187: 0 | J187: 0 | K187: 0 | L187: 0 | M187: 0 | O187: 0 | P187: 0 | S187: 47 | T187: 1975 | U187: Load Management Controls Utility Premises | V187: 0 | W187: 0 | X187: 0 | Y187: 0 | AA187: 0 | AB187: 0 | AC187: 0 | AD187: 0 | AE187: 0 | AG187: 0 | AH187: 0
A188: 47 | B188: 1980 | C188: System Supervisor Equipment | D188: 0 | E188: 0 | F188: 0 | G188: 0 | I188: 0 | J188: 0 | K188: 0 | L188: 0 | M188: 0 | O188: 0 | P188: 0 | S188: 47 | T188: 1980 | U188: System Supervisor Equipment | V188: 0 | W188: 0 | X188: 0 | Y188: 0 | AA188: 0 | AB188: 0 | AC188: 0 | AD188: 0 | AE188: 0 | AG188: 0 | AH188: 0
A189: 47 | B189: 1985 | C189: Miscellaneous Fixed Assets | D189: 0 | E189: 0 | F189: 0 | G189: 0 | I189: 0 | J189: 0 | K189: 0 | L189: 0 | M189: 0 | O189: 0 | P189: 0 | S189: 47 | T189: 1985 | U189: Miscellaneous Fixed Assets | V189: 0 | W189: 0 | X189: 0 | Y189: 0 | AA189: 0 | AB189: 0 | AC189: 0 | AD189: 0 | AE189: 0 | AG189: 0 | AH189: 0
A190: 47 | B190: 1990 | C190: Other Tangible Property | D190: 0 | E190: 0 | F190: 0 | G190: 0 | I190: 0 | J190: 0 | K190: 0 | L190: 0 | M190: 0 | O190: 0 | P190: 0 | S190: 47 | T190: 1990 | U190: Other Tangible Property | V190: 0 | W190: 0 | X190: 0 | Y190: 0 | AA190: 0 | AB190: 0 | AC190: 0 | AD190: 0 | AE190: 0 | AG190: 0 | AH190: 0
A191: 47 | B191: 1995 | C191: Contributions & Grants | D191: -154258.93 | E191: 0 | F191: 0 | G191: -154258.93 | I191: -37197.93 | J191: -4098 | K191: 0 | L191: -41295.93 | M191: -112963 | O191: -154258.93 | P191: -39246.93 | S191: 47 | T191: 1995 | U191: Contributions & Grants | V191: -154258.93 | W191: 0 | X191: 0 | Y191: -154258.93 | AA191: -39265.93 | AB191: -6196 | AC191: 0 | AD191: -45461.93 | AE191: -108797 | AG191: -154258.93 | AH191: -42363.93
B192: etc. | D192: 0 | E192: 0 | F192: 0 | G192: 0 | I192: 0 | J192: 0 | K192: 0 | L192: 0 | M192: 0 | O192: 0 | P192: 0 | T192: etc. | V192: 0 | W192: 0 | X192: 0 | Y192: 0 | AA192: 0 | AB192: 0 | AC192: 0 | AD192: 0 | AE192: 0 | AG192: 0 | AH192: 0
B193: etc. | D193: 0 | E193: 0 | F193: 0 | G193: 0 | I193: 0 | J193: 0 | K193: 0 | L193: 0 | M193: 0 | O193: 0 | P193: 0 | T193: etc. | V193: 0 | W193: 0 | X193: 0 | Y193: 0 | AA193: 0 | AB193: 0 | AC193: 0 | AD193: 0 | AE193: 0 | AG193: 0 | AH193: 0
B194: etc. | D194: 0 | E194: 0 | F194: 0 | G194: 0 | I194: 0 | J194: 0 | K194: 0 | L194: 0 | M194: 0 | O194: 0 | P194: 0 | T194: etc. | V194: 0 | W194: 0 | X194: 0 | Y194: 0 | AA194: 0 | AB194: 0 | AC194: 0 | AD194: 0 | AE194: 0 | AG194: 0 | AH194: 0
B195: etc. | D195: 0 | E195: 0 | F195: 0 | G195: 0 | I195: 0 | J195: 0 | K195: 0 | L195: 0 | M195: 0 | O195: 0 | P195: 0 | T195: etc. | V195: 0 | W195: 0 | X195: 0 | Y195: 0 | AA195: 0 | AB195: 0 | AC195: 0 | AD195: 0 | AE195: 0 | AG195: 0 | AH195: 0
B196: etc. | D196: 0 | E196: 0 | F196: 0 | G196: 0 | I196: 0 | J196: 0 | K196: 0 | L196: 0 | M196: 0 | O196: 0 | P196: 0 | T196: etc. | V196: 0 | W196: 0 | X196: 0 | Y196: 0 | AA196: 0 | AB196: 0 | AC196: 0 | AD196: 0 | AE196: 0 | AG196: 0 | AH196: 0
B197: etc. | D197: 0 | E197: 0 | F197: 0 | G197: 0 | I197: 0 | J197: 0 | K197: 0 | L197: 0 | M197: 0 | O197: 0 | P197: 0 | T197: etc. | V197: 0 | W197: 0 | X197: 0 | Y197: 0 | AA197: 0 | AB197: 0 | AC197: 0 | AD197: 0 | AE197: 0 | AG197: 0 | AH197: 0
B198: etc. | D198: 0 | E198: 0 | F198: 0 | G198: 0 | I198: 0 | J198: 0 | K198: 0 | L198: 0 | M198: 0 | O198: 0 | P198: 0 | T198: etc. | V198: 0 | W198: 0 | X198: 0 | Y198: 0 | AA198: 0 | AB198: 0 | AC198: 0 | AD198: 0 | AE198: 0 | AG198: 0 | AH198: 0
B199: etc. | D199: 0 | E199: 0 | F199: 0 | G199: 0 | I199: 0 | J199: 0 | K199: 0 | L199: 0 | M199: 0 | O199: 0 | P199: 0 | T199: etc. | V199: 0 | W199: 0 | X199: 0 | Y199: 0 | AA199: 0 | AB199: 0 | AC199: 0 | AD199: 0 | AE199: 0 | AG199: 0 | AH199: 0
B200: etc. | D200: 0 | E200: 0 | F200: 0 | G200: 0 | I200: 0 | J200: 0 | K200: 0 | L200: 0 | M200: 0 | O200: 0 | P200: 0 | T200: etc. | V200: 0 | W200: 0 | X200: 0 | Y200: 0 | AA200: 0 | AB200: 0 | AC200: 0 | AD200: 0 | AE200: 0 | AG200: 0 | AH200: 0
B201: etc. | D201: 0 | E201: 0 | F201: 0 | G201: 0 | I201: 0 | J201: 0 | K201: 0 | L201: 0 | M201: 0 | O201: 0 | P201: 0 | T201: etc. | V201: 0 | W201: 0 | X201: 0 | Y201: 0 | AA201: 0 | AB201: 0 | AC201: 0 | AD201: 0 | AE201: 0 | AG201: 0 | AH201: 0
B202: etc. | D202: =G133 -> 0 | E202: 0 | F202: 0 | G202: =D202+E202+F202 -> 0 | I202: =L133 -> 0 | J202: 0 | K202: 0 | L202: 0 | M202: 0 | O202: 0 | P202: 0 | T202: etc. | V202: =Y133 -> 0 | W202: 0 | X202: 0 | Y202: =V202+W202+X202 -> 0 | AA202: =AD133 -> 0 | AB202: 0 | AC202: 0 | AD202: 0 | AE202: 0 | AG202: 0 | AH202: 0
D203: =G134 -> 0 | G203: =D203+E203+F203 -> 0 | I203: =L134 -> 0 | J203: 0 | K203: 0 | L203: 0 | M203: 0 | O203: 0 | P203: 0 | V203: =Y134 -> 0 | Y203: =V203+W203+X203 -> 0 | AA203: =AD134 -> 0 | AB203: 0 | AC203: 0 | AD203: 0 | AE203: 0 | AG203: 0 | AH203: 0
C204: Sub-Total | D204: =SUM(D154:D203) -> 1193327.95 | E204: =SUM(E154:E203) -> 79384.53 | F204: =SUM(F154:F203) -> 0 | G204: =SUM(G154:G203) -> 1272712.48 | I204: =SUM(I154:I203) -> 679538.95 | J204: =SUM(J154:J203) -> 58303.53 | K204: =SUM(K154:K203) -> 0 | L204: =SUM(L154:L203) -> 737842.48 | M204: =SUM(M154:M203) -> 534870 | O204: =SUM(O154:O203) -> 1233020.215 | P204: =SUM(P154:P203) -> 708690.715 | U204: Sub-Total | V204: =SUM(V154:V203) -> 1193327.95 | W204: =SUM(W154:W203) -> 79384.53 | X204: =SUM(X154:X203) -> 0 | Y204: =SUM(Y154:Y203) -> 1272712.48 | AA204: =SUM(AA154:AA203) -> 698692.95 | AB204: =SUM(AB154:AB203) -> 61433.53 | AC204: =SUM(AC154:AC203) -> 0 | AD204: =SUM(AD154:AD203) -> 760126.48 | AE204: =SUM(AE154:AE203) -> 512586 | AG204: =SUM(AG154:AG203) -> 1233020.215 | AH204: =SUM(AH154:AH203) -> 729409.715
C205: Less Socialized Renewable Energy Generation Investments (input as negative)Less Socialized Renewable Energy Generation Investments (input as negative) | G205: =D205+E205+F205 -> 0 | L205: =I205+J205+K205 -> 0 | M205: =G205+L205 -> 0 | O205: =O204-P204 -> 524329.5 | U205: Less Socialized Renewable Energy Generation Investments (input as negative)Less Socialized Renewable Energy Generation Investments (input as negative) | Y205: =V205+W205+X205 -> 0 | AD205: =AA205+AB205+AC205 -> 0 | AE205: =Y205+AD205 -> 0
C206: Less Other Non Rate-Regulated Utility Assets (input as negative)Less Other Non Rate-Regulated Utility Assets (input as negative) | G206: =D206+E206+F206 -> 0 | L206: =I206+J206+K206 -> 0 | M206: =G206+L206 -> 0 | U206: Less Other Non Rate-Regulated Utility Assets (input as negative)Less Other Non Rate-Regulated Utility Assets (input as negative) | Y206: =V206+W206+X206 -> 0 | AD206: =AA206+AB206+AC206 -> 0 | AE206: =Y206+AD206 -> 0
C207: Total PP&E | D207: =SUM(D204:D206) -> 1193327.95 | E207: =SUM(E204:E206) -> 79384.53 | F207: =SUM(F204:F206) -> 0 | G207: =SUM(G204:G206) -> 1272712.48 | I207: =SUM(I204:I206) -> 679538.95 | J207: =SUM(J204:J206) -> 58303.53 | K207: =SUM(K204:K206) -> 0 | L207: =SUM(L204:L206) -> 737842.48 | M207: =SUM(M204:M206) -> 534870 | U207: Total PP&E | V207: =SUM(V204:V206) -> 1193327.95 | W207: =SUM(W204:W206) -> 79384.53 | X207: =SUM(X204:X206) -> 0 | Y207: =SUM(Y204:Y206) -> 1272712.48 | AA207: =SUM(AA204:AA206) -> 698692.95 | AB207: =SUM(AB204:AB206) -> 61433.53 | AC207: =SUM(AC204:AC206) -> 0 | AD207: =SUM(AD204:AD206) -> 760126.48 | AE207: =SUM(AE204:AE206) -> 512586
C208: Depreciation Expense adj. from gain or loss on the retirement of assets (pool of like assets) | U208: Depreciation Expense adj. from gain or loss on the retirement of assets (pool of like assets)
C209: Total | J209: =J207+J208 -> 58303.53 | U209: Total | AB209: =AB207+AB208 -> 61433.53
G211: Less: Fully Allocated Depreciation | Y211: Less: Fully Allocated Depreciation
A212: 10 | C212: Transportation | G212: Transportation | S212: 10 | U212: Transportation | Y212: Transportation
A213: 8 | C213: Stores Equipment | G213: Stores Equipment | S213: 8 | U213: Stores Equipment | Y213: Stores Equipment
A214: 8 | C214: Tools, Shop | G214: Tools, Shop | S214: 8 | U214: Tools, Shop | Y214: Tools, Shop
A215: 8 | C215: Meas/Testing | G215: Meas/Testing | S215: 8 | U215: Meas/Testing | Y215: Meas/Testing
A216: 8 | C216: Communication | G216: Communication | S216: 8 | U216: Communication | Y216: Communication
G217: Net Depreciation | J217: =J209+J212+J216+J213+J214+J215 -> 58303.53 | Y217: Net Depreciation | AB217: =AB209+AB212+AB216+AB213+AB214+AB215 -> 61433.53
... 455 more rows

Sheet Appendix 2-BB Service Life
N1: File Number: | P1: ='LDC Info'!E16 -> EB-2019-0041
N2: Exhibit:
N3: Tab:
N4: Schedule:
N5: Page:
N7: Date:
A9: Appendix 2-BB
A10: Service Life Comparison
A11: Table F-1 from Kinetrics Report1
D15: Asset Details | G15: Useful Life | K15: USoA Account Number | L15: USoA Account Description | M15: Current | O15: Proposed
B16: Parent* | C16: # | D16: Category| Component | Type | G16: MIN UL | H16: TUL | I16: MAX UL | M16: Years | N16: Rate | O16: Years | P16: Rate
B17: OH | C17: 1 | D17: Fully Dressed Wood Poles | E17: Overall | G17: 35 | H17: 45 | I17: 75 | K17: 1830 | L17: Poles, Towers and Fixtures | M17: 25 | N17: =IF(ISERROR(1/M17), "", 1/M17) -> 0.04 | O17: 40 | P17: =IF(ISERROR(1/O17), "", 1/O17) -> 0.025
E18: Cross Arm | F18: Wood | G18: 20 | H18: 40 | I18: 55 | K18: 1830 | L18: Poles, Towers and Fixtures | M18: 25 | N18: =IF(ISERROR(1/M18), "", 1/M18) -> 0.04 | O18: 40 | P18: =IF(ISERROR(1/O18), "", 1/O18) -> 0.025
F19: Steel | G19: 30 | H19: 70 | I19: 95 | K19: 1830 | L19: Poles, Towers and Fixtures | M19: 25 | N19: 0.04 | O19: 40 | P19: 0.025
C20: 2 | D20: Fully Dressed Concrete Poles | E20: Overall | G20: 50 | H20: 60 | I20: 80 | K20: 1830 | L20: Poles, Towers and Fixtures | M20: 25 | N20: 0.04 | O20: 40 | P20: 0.025
E21: Cross Arm | F21: Wood | G21: 20 | H21: 40 | I21: 55 | K21: 1830 | L21: Poles, Towers and Fixtures | M21: 25 | N21: 0.04 | O21: 40 | P21: 0.025
F22: Steel | G22: 30 | H22: 70 | I22: 95 | K22: 1830 | L22: Poles, Towers and Fixtures | M22: 25 | N22: 0.04 | O22: 40 | P22: 0.025
C23: 3 | D23: Fully Dressed Steel Poles | E23: Overall | G23: 60 | H23: 60 | I23: 80 | K23: N/A
E24: Cross Arm | F24: Wood | G24: 20 | H24: 40 | I24: 55 | K24: N/A
F25: Steel | G25: 30 | H25: 70 | I25: 95 | K25: N/A
C26: 4 | D26: OH Line Switch | G26: 30 | H26: 45 | I26: 55 | K26: 1835 | L26: Overhead Conductors & Devices | M26: 25 | N26: 0.04 | O26: 40 | P26: 0.025
C27: 5 | D27: OH Line Switch Motor | G27: 15 | H27: 25 | I27: 25 | K27: 1835 | L27: Overhead Conductors & Devices | M27: 25 | N27: 0.04 | O27: 20 | P27: 0.05
C28: 6 | D28: OH Line Switch RTU | G28: 15 | H28: 20 | I28: 20 | K28: 1835 | L28: Overhead Conductors & Devices | M28: 25 | N28: 0.04 | O28: 20 | P28: 0.05
C29: 7 | D29: OH Integral Switches | G29: 35 | H29: 45 | I29: 60 | K29: 1835 | L29: Overhead Conductors & Devices | M29: 25 | N29: 0.04 | O29: 40 | P29: 0.025
C30: 8 | D30: OH Conductors | G30: 50 | H30: 60 | I30: 75 | K30: 1835 | L30: Overhead Conductors & Devices | M30: 25 | N30: 0.04 | O30: 60 | P30: 0.01666666667
C31: 9 | D31: OH Transformers & Voltage Regulators | G31: 30 | H31: 40 | I31: 60 | K31: 1850 | L31: Line Transformers | M31: 25 | N31: 0.04 | O31: 40 | P31: 0.025
C32: 10 | D32: OH Shunt Capacitor Banks | G32: 25 | H32: 30 | I32: 40 | K32: N/A
C33: 11 | D33: Reclosers | G33: 25 | H33: 40 | I33: 55 | K33: N/A
B34: TS & MS | C34: 12 | D34: Power Transformers | E34: Overall | G34: 30 | H34: 45 | I34: 60 | K34: 1850 | L34: Line Transformers | M34: 25 | N34: 0.04 | O34: 40 | P34: 0.025
E35: Bushing | G35: 10 | H35: 20 | I35: 30
E36: Tap Changer | G36: 20 | H36: 30 | I36: 60
C37: 13 | D37: Station Service Transformer | G37: 30 | H37: 45 | I37: 55
C38: 14 | D38: Station Grounding Transformer | G38: 30 | H38: 40 | I38: 40
C39: 15 | D39: Station DC System | E39: Overall | G39: 10 | H39: 20 | I39: 30
E40: Battery Bank | G40: 10 | H40: 15 | I40: 15 | K40: 1820 | L40: Distribution Station Equipment | M40: 30 | N40: 0.03333333333 | O40: 20 | P40: 0.05
E41: Charger | G41: 20 | H41: 20 | I41: 30 | K41: 1820 | L41: Distribution Station Equipment | M41: 30 | N41: 0.03333333333 | O41: 20 | P41: 0.05
C42: 16 | D42: Station Metal Clad Switchgear | E42: Overall | G42: 30 | H42: 40 | I42: 60 | K42: 1820 | L42: Distribution Station Equipment | M42: 25 | N42: 0.04 | O42: 40 | P42: 0.025
E43: Removable Breaker | G43: 25 | H43: 40 | I43: 60
C44: 17 | D44: Station Independent Breakers | G44: 35 | H44: 45 | I44: 65
C45: 18 | D45: Station Switch | G45: 30 | H45: 50 | I45: 60
C46: 19 | D46: Electromechanical Relays | G46: 25 | H46: 35 | I46: 50
C47: 20 | D47: Solid State Relays | G47: 10 | H47: 30 | I47: 45 | K47: 1820 | L47: Distribution Station Equipment | M47: 25 | N47: 0.04 | O47: 30 | P47: 0.03333333333
C48: 21 | D48: Digital & Numeric Relays | G48: 15 | H48: 20 | I48: 20
C49: 22 | D49: Rigid Busbars | G49: 30 | H49: 55 | I49: 60
C50: 23 | D50: Steel Structure | G50: 35 | H50: 50 | I50: 90
B51: UG | C51: 24 | D51: Primary Paper Insulated Lead Covered (PILC) Cables | G51: 60 | H51: 65 | I51: 75 | K51: N/A
C52: 25 | D52: Primary Ethylene-Propylene Rubber (EPR) Cables | G52: 20 | H52: 25 | I52: 25 | K52: 1845 | L52: Underground Conductors & Devices | M52: 25 | N52: 0.04 | O52: 40 | P52: 0.025
C53: 26 | D53: Primary Non-Tree Retardant (TR) Cross Linked Polyethylene (XLPE) Cables Direct BuriedPrimary Non-Tree Retardant (TR) Cross Linked Polyethylene (XLPE) Cables Direct BuriedPrimary Non-Tree Retardant (TR) Cross Linked Polyethylene (XLPE) Cables Direct BuriedPrimary Non-Tree Retardant (TR) Cross Linked Polyethylene (XLPE) Cables Direct Buried | G53: 20 | H53: 25 | I53: 30 | K53: 1845 | L53: Underground Conductors & Devices | M53: 25 | N53: 0.04 | O53: 40 | P53: 0.025
C54: 27 | D54: Primary Non-TR XLPE Cables in Duct | G54: 20 | H54: 25 | I54: 30 | K54: 1845 | L54: Underground Conductors & Devices | M54: 25 | N54: 0.04 | O54: 40 | P54: 0.025
C55: 28 | D55: Primary TR XLPE Cables Direct Buried | G55: 25 | H55: 30 | I55: 35 | K55: 1845 | L55: Underground Conductors & Devices | M55: 25 | N55: 0.04 | O55: 40 | P55: 0.025
C56: 29 | D56: Primary TR XLPE Cables in Duct | G56: 35 | H56: 40 | I56: 55 | K56: 1845 | L56: Underground Conductors & Devices | M56: 25 | N56: 0.04 | O56: 40 | P56: 0.025
C57: 30 | D57: Secondary PILC Cables | G57: 70 | H57: 75 | I57: 80 | K57: N/A
C58: 31 | D58: Secondary Cables Direct Buried | G58: 25 | H58: 35 | I58: 40 | K58: 1855 | L58: Services | M58: 25 | N58: 0.04 | O58: 60 | P58: 0.01666666667
C59: 32 | D59: Secondary Cables in Duct | G59: 35 | H59: 40 | I59: 60 | K59: 1855 | L59: Services | M59: 25 | N59: 0.04 | O59: 60 | P59: 0.01666666667
C60: 33 | D60: Network Tranformers | E60: Overall | G60: 20 | H60: 35 | I60: 50 | K60: N/A
E61: Protector | G61: 20 | H61: 35 | I61: 40 | K61: N/A
C62: 34 | D62: Pad-Mounted Transformers | G62: 25 | H62: 40 | I62: 45 | K62: 1850 | L62: Line Transformers | M62: 25 | N62: 0.04 | O62: 40 | P62: 0.025
C63: 35 | D63: Submersible/Vault Transformers | G63: 25 | H63: 35 | I63: 45 | K63: 1850 | L63: Line Transformers | M63: 25 | N63: 0.04 | O63: 40 | P63: 0.025
C64: 36 | D64: UG Foundation | G64: 35 | H64: 55 | I64: 70 | K64: 1840 | L64: Underground Conduit | M64: 25 | N64: 0.04 | O64: 60 | P64: 0.01666666667
C65: 37 | D65: UG Vaults | E65: Overall | G65: 40 | H65: 60 | I65: 80 | K65: N/A
E66: Roof | G66: 20 | H66: 30 | I66: 45 | K66: N/A
C67: 38 | D67: UG Vault Switches | G67: 20 | H67: 35 | I67: 50 | K67: 1845 | L67: Underground Conductors & Devices | M67: 25 | N67: 0.04 | O67: 30 | P67: 0.03333333333
C68: 39 | D68: Pad-Mounted Switchgear | G68: 20 | H68: 30 | I68: 45 | K68: 1845 | L68: Underground Conductors & Devices | M68: 25 | N68: 0.04 | O68: 30 | P68: 0.03333333333
C69: 40 | D69: Ducts | G69: 30 | H69: 50 | I69: 85 | K69: 1840 | L69: Underground Conduit | M69: 25 | N69: 0.04 | O69: 60 | P69: 0.01666666667
C70: 41 | D70: Concrete Encased Duct Banks | G70: 35 | H70: 55 | I70: 80 | K70: 1840 | L70: Underground Conduit | M70: 25 | N70: 0.04 | O70: 60 | P70: 0.01666666667
C71: 42 | D71: Cable Chambers | G71: 50 | H71: 60 | I71: 80 | K71: 1840 | L71: Underground Conduit | M71: 25 | N71: 0.04 | O71: 60 | P71: 0.01666666667
B72: S | C72: 43 | D72: Remote SCADA | G72: 15 | H72: 20 | I72: 30
B75: Table F-2 from Kinetrics Report1
D77: Asset Details | G77: Useful Life Range | K77: USoA Account Number | L77: USoA Account Description | M77: Current | O77: Proposed
C78: # | D78: Category| Component | Type | M78: Years | N78: Rate | O78: Years | P78: Rate
C79: 1 | D79: Office Equipment | G79: 5-15 | K79: 1915 | L79: Office Furniture & Equipment | M79: 10 | N79: =IF(ISERROR(1/M79), "", 1/M79) -> 0.1 | O79: 10 | P79: =IF(ISERROR(1/O79), "", 1/O79) -> 0.1
C80: 2 | D80: Vehicles | E80: Trucks & Buckets | G80: 5-15 | K80: 1930 | L80: Transportation Equipment | M80: 8 | N80: =IF(ISERROR(1/M80), "", 1/M80) -> 0.125 | O80: 15 | P80: =IF(ISERROR(1/O80), "", 1/O80) -> 0.06666666667
E81: Trailers | G81: 5-20 | K81: 1930 | L81: Transportation Equipment | M81: 8 | N81: 0.125 | O81: 20 | P81: 0.05
E82: Vans | G82: 5-10 | K82: 1930 | L82: Transportation Equipment | M82: 5 | N82: 0.2 | O82: 12 | P82: 0.08333333333
C83: 3 | D83: Administrative Buildings | G83: 50-75 | K83: 200/201 | L83: Building & Fixtures | M83: 1950-05-01 | N83: 5.43951262e-05 | O83: 1950-05-01 | P83: 5.43951262e-05
C84: 4 | D84: Leasehold Improvements | G84: Lease dependent | K84: N/A | M84: 0 | O84: 0
C85: 5 | D85: Station Buildings | E85: Station Buildings | G85: 50-75 | K85: 1808 | L85: Building & Fixtures | M85: 50 | N85: 0.02 | O85: 50 | P85: 0.02
E86: Parking | G86: 25-30 | K86: 1808 | L86: Building & Fixtures | M86: 30 | N86: 0.03333333333 | O86: 30 | P86: 0.03333333333
E87: Fence | G87: 25-60 | K87: 1808 | L87: Building & Fixtures | M87: 25 | N87: 0.04 | O87: 25 | P87: 0.04
E88: Roof | G88: 20-30 | K88: 1808 | L88: Building & Fixtures | M88: 20 | N88: 0.05 | O88: 20 | P88: 0.05
C89: 6 | D89: Computer Equipment | E89: Hardware | G89: 3-5 | K89: 1920 | L89: Computer Equipment - Hardware | M89: 5 | N89: 0.2 | O89: 5 | P89: 0.2
E90: Software | G90: 2-5 | K90: 1925 | L90: Computer Equipment - Software | M90: 5 | N90: 0.2 | O90: 5 | P90: 0.2
C91: 7 | D91: Equipment | E91: Power Operated | G91: 5-10 | K91: N/A
E92: Stores | G92: 5-10 | K92: 1935 | L92: Stores Equipment | M92: 10 | N92: 0.1 | O92: 10 | P92: 0.1
E93: Tools, Shop, Garage Equipment | G93: 5-10 | K93: 1940 | L93: Tools, Shops Garage Equipment | M93: 10 | N93: 0.1 | O93: 10 | P93: 0.1
E94: Measurement & Testing Equipment | G94: 5-10 | K94: 1945 | L94: Measurement and Testing Equipment | M94: 10 | N94: 0.1 | O94: 10 | P94: 0.1
C95: 8 | D95: Communication | E95: Towers | G95: 60-70 | K95: 1955 | L95: Communication Equipment | M95: 10 | N95: 0.1 | O95: 10 | P95: 0.1
E96: Wireless | G96: 2-10 | K96: 1955 | L96: Communication Equipment | M96: 10 | N96: 0.1 | O96: 10 | P96: 0.1
C97: 9 | D97: Residential Energy Meters | G97: 25-35 | K97: 1860 | L97: Meters | M97: 25 | N97: 0.04 | O97: 15 | P97: 0.06666666667
C98: 10 | D98: Industrial/Commercial Energy Meters | G98: 25-35 | K98: 1860 | L98: Meters | O98: 20 | P98: 0.05
C99: 11 | D99: Wholesale Energy Meters | G99: 15-30 | K99: N/A
C100: 12 | D100: Current & Potential Transformer (CT & PT) | G100: 35-50 | K100: 1860 | L100: Meters | O100: 45 | P100: 0.02222222222
C101: 13 | D101: Smart Meters | G101: 5-15 | K101: 1860 | L101: Meters | M101: 15 | N101: 0.06666666667 | O101: 15 | P101: 0.06666666667
C102: 14 | D102: Repeaters - Smart Metering | G102: 10-15 | K102: 1915 | L102: Office Furniture & Equipment | M102: 5 | N102: 0.2 | O102: 5 | P102: 0.2
C103: 15 | D103: Data Collectors - Smart Metering | G103: 15-20 | K103: 1915 | L103: Office Furniture & Equipment | M103: 5 | N103: 0.2 | O103: 5 | P103: 0.2
B106: * TS & MS = Transformer and Municipal Stations UG = Underground Systems S = Monitoring and Control Systems
B108: Note 1: | C108: Tables F-1 and F-2 above are to be used as a reference in order to complete columns J, K, L and N.
C109: See pages 17-19 of Kinetrics Report

Sheet App.2-C_DepExp
A9: Appendix 2-C | Y9: CGAAP
A10: Depreciation and Amortization Expense | Y10: Revised CGAAP
Y11: MIFRS
A14: Scenario that applies | C14: Applicable Years and Accounting Standard | R14: Year Reflected in Schedule Below | S14: Accounting Standard Reflected in Schedule Below
A15: Rebasing for the first time with depreciation policy changes made in 2012. | C15: This appendix must be duplicated and completed for the years 2012 to 2018. The appendix for 2012 is to be completed under CGAAP (prior to changes in depreciation policies). The appendix for 2012 to 2014 must be completed under Revised CGAAP (after changes in depreciation policies). The appendix for 2014 to 2018 is to be completed under MIFRS (2014 if changes to MIFRS are material).
A16: Rebasing for the first time with depreciation policy changes made in 2013. | C16: This appendix must be duplicated and completed for the years 2013 to 2018. The appendix for 2013 is to be completed under CGAAP (prior to changes in depreciation policies). The appendix for 2013 to 2014 must be completed under Revised CGAAP (after changes in depreciation policies). The appendix for 2014 to 2018 is to be completed under MIFRS (2014 if changes to MIFRS are material).
A17: Already rebased with depreciation policy changes in a prior rate application | C17: This appendix must be completed for 2014 to 2018. The appendix for 2014 is to be completed under Revised CGAAP (after changes in depreciation policies). The appendix for 2014 to 2018 is to be completed under MIFRS (2014 if changes to MIFRS are material).
B19: 2012 CGAAP | C19: Book Values | J19: Service Lives | N19: Depreciation Expense
A20: Account | B20: Description | C20: Opening Net Book Value of Existing Assets as at Date of Policy Change (Jan. 1) 1 | D20: Less Fully Depreciated 7 | E20: Net Amount of Existing Assets Before Policy Change to be Depreciated | F20: Opening Gross Book Value of Assets Acquired After Policy Change 2 | G20: Less Fully Depreciated 8 | H20: Net Amount of Assets Acquired After Policy Change to be Depreciated | I20: Current Year Additions | J20: Average Remaining Life of Assets Existing Before Policy Change 3 | K20: Depreciation Rate Assets Acquired After Policy Change | L20: Life of Assets Acquired After Policy Change 4 | M20: Depreciation Rate on New Additions | N20: Depreciation Expense on Assets Existing Before Policy Change | O20: Depreciation Expense on Assets Acquired After Policy Change | P20: Depreciation Expense on Current Year Additions 5 | Q20: Total Current Year Depreciation Expense | R20: Depreciation Expense per Appendix 2-BA Fixed Assets, Column J | S20: Variance 6
C21: a | D21: b | E21: c = a-b | F21: d | G21: e | H21: f = d- e | I21: g | J21: h | K21: i = 1/h | L21: j | M21: k = 1/j | N21: l = c/h | O21: m = f/j | P21: n = g*0.5/j | Q21: o = l+m+n | R21: p | S21: q = p-o
A22: 1611 | B22: Computer Software (Formally known as Account 1925) | C22: =100736.38+29761 -> 130497.38 | D22: =-14179.97/0.2 -> -70899.85 | E22: =C22-D22 -> 201397.23 | H22: =F22-G22 -> 0 | I22: 400.5 | J22: 5 | K22: =IF(J22=0,0,1/J22) -> 0.2 | L22: 5 | M22: =IF(L22=0,0,1/L22) -> 0.2 | N22: =IF(J22=0,0,+E22/J22) -> 40279.446 | O22: =IF(L22=0,0,+H22/L22) -> 0 | P22: =IF(L22=0,0,+(I22*0.5)/L22) -> 40.05 | Q22: =IF(ISERROR(+N22+O22+P22), 0, +N22+O22+P22) -> 40319.496 | R22: 40319.5 | S22: =IF(ISERROR(+R22-122), 0, +R22-Q22) -> 0.004000000001
A23: 1612 | B23: Land Rights (Formally known as Account 1906) | E23: =C23-D23 -> 0 | H23: =F23-G23 -> 0 | K23: =IF(J23=0,0,1/J23) -> 0 | M23: =IF(L23=0,0,1/L23) -> 0 | N23: =IF(J23=0,0,+E23/J23) -> 0 | O23: =IF(L23=0,0,+H23/L23) -> 0 | P23: =IF(L23=0,0,+(I23*0.5)/L23) -> 0 | Q23: =IF(ISERROR(+N23+O23+P23), 0, +N23+O23+P23) -> 0 | S23: =IF(ISERROR(+R23-122), 0, +R23-Q23) -> 0
A24: 1805 | B24: Land | E24: 0 | H24: 0 | K24: 0 | M24: 0 | N24: 0 | O24: =IF(L24=0,0,+H24/L24) -> 0 | P24: 0 | Q24: 0 | S24: 0
A25: 1808 | B25: Buildings | E25: 0 | H25: 0 | K25: 0 | M25: 0 | N25: 0 | O25: 0 | P25: 0 | Q25: 0 | S25: 0
A26: 1810 | B26: Leasehold Improvements | C26: 3481.08 | E26: 3481.08 | H26: 0 | I26: 623.54 | J26: 5 | K26: 0.2 | L26: 5 | M26: 0.2 | N26: 696.216 | O26: 0 | P26: 62.354 | Q26: 758.57 | R26: 758.54 | S26: -0.03
A27: 1815 | B27: Transformer Station Equipment >50 kV | E27: 0 | H27: 0 | K27: 0 | M27: 0 | N27: 0 | O27: 0 | P27: 0 | Q27: 0 | S27: 0
A28: 1820 | B28: Distribution Station Equipment <50 kV | E28: 0 | H28: 0 | K28: 0 | M28: 0 | N28: 0 | O28: 0 | P28: 0 | Q28: 0 | S28: 0
A29: 1825 | B29: Storage Battery Equipment | E29: 0 | H29: 0 | K29: 0 | M29: 0 | N29: 0 | O29: 0 | P29: 0 | Q29: 0 | S29: 0
A30: 1830 | B30: Poles, Towers & Fixtures | C30: =285874.68+182751.63 -> 468626.31 | D30: =2360.05/0.04 -> 59001.25 | E30: 409625.06 | H30: 0 | I30: 4850 | J30: 25 | K30: 0.04 | L30: 25 | M30: 0.04 | N30: 16385.0024 | O30: 0 | P30: 97 | Q30: 16482.0024 | R30: 16482 | S30: -0.002400000001
A31: 1835 | B31: Overhead Conductors & Devices | C31: =288198.66+182836.63 -> 471035.29 | D31: =2361.38/0.04 -> 59034.5 | E31: 412000.79 | H31: 0 | I31: 6685.75 | J31: 25 | K31: 0.04 | L31: 25 | M31: 0.04 | N31: 16480.0316 | O31: 0 | P31: 133.715 | Q31: 16613.7466 | R31: 16613.75 | S31: 0.003400000001
A32: 1840 | B32: Underground Conduit | C32: 13404.71 | E32: 13404.71 | H32: 0 | J32: 25 | K32: 0.04 | L32: 25 | M32: 0.04 | N32: 536.1884 | O32: 0 | P32: 0 | Q32: 536.1884 | R32: 536 | S32: -0.1884
A33: 1845 | B33: Underground Conductors & Devices | C33: =93348.16+36981.04 -> 130329.2 | D33: =261.67/0.04 -> 6541.75 | E33: 123787.45 | H33: 0 | J33: 25 | K33: 0.04 | L33: 25 | M33: 0.04 | N33: 4951.498 | O33: 0 | P33: 0 | Q33: 4951.498 | R33: 4951.5 | S33: 0.001999999999
A34: 1850 | B34: Line Transformers | C34: =113345.72+147954.6+788.18 -> 262088.5 | D34: =4325.21/0.04 -> 108130.25 | E34: 153958.25 | H34: 0 | I34: 10999.32 | J34: 25 | K34: 0.04 | L34: 25 | M34: 0.04 | N34: 6158.33 | O34: 0 | P34: 219.9864 | Q34: 6378.3164 | R34: =6346.32+32 -> 6378.32 | S34: 0.0036
A35: 1855 | B35: Services (Overhead & Underground) | C35: 70177.31 | E35: 70177.31 | H35: 0 | I35: 1463.85 | J35: 25 | K35: 0.04 | L35: 25 | M35: 0.04 | N35: 2807.0924 | O35: 0 | P35: 29.277 | Q35: 2836.3694 | R35: 2836.85 | S35: 0.4806
A36: 1860 | B36: Meters | C36: =56054.47+76680.9 -> 132735.37 | D36: =1596.72/0.04 -> 39918 | E36: 92817.37 | H36: 0 | I36: 22.14 | J36: 25 | K36: 0.04 | L36: 25 | M36: 0.04 | N36: 3712.6948 | O36: 0 | P36: 0.4428 | Q36: 3713.1376 | R36: 3713.14 | S36: 0.0024
A37: 1860 | B37: Meters (Smart Meters) | C37: =1505.61+193296.94 -> 194802.55 | E37: 194802.55 | H37: 0 | I37: 3011.22 | J37: 15 | K37: 0.06666666667 | L37: 15 | M37: 0.06666666667 | N37: 12986.83667 | O37: 0 | P37: 100.374 | Q37: 13087.21067 | R37: =200.22+12885.94 -> 13086.16 | S37: -1.050666667
A38: 1905 | B38: Land | E38: 0 | H38: 0 | K38: 0 | M38: 0 | N38: 0 | O38: 0 | P38: 0 | Q38: 0 | S38: 0
A39: 1908 | B39: Buildings & Fixtures | E39: 0 | H39: 0 | K39: 0 | M39: 0 | N39: 0 | O39: 0 | P39: 0 | Q39: 0 | S39: 0
A40: 1910 | B40: Leasehold Improvements | E40: 0 | H40: 0 | K40: 0 | M40: 0 | N40: 0 | O40: 0 | P40: 0 | Q40: 0 | S40: 0
A41: 1915 | B41: Office Furniture & Equipment (10 years) | C41: =20390.39+8954.25 -> 29344.64 | D41: =628.91/0.1 -> 6289.1 | E41: 23055.54 | H41: 0 | I41: 1309 | J41: 10 | K41: 0.1 | L41: 10 | M41: 0.1 | N41: 2305.554 | O41: 0 | P41: 65.45 | Q41: 2371.004 | R41: 2371 | S41: -0.004
A42: 1915 | B42: Office Furniture & Equipment (5 years) | E42: 0 | H42: 0 | K42: 0 | M42: 0 | N42: 0 | O42: 0 | P42: 0 | Q42: 0 | S42: 0
A43: 1920 | B43: Computer Equipment - Hardware | E43: 0 | H43: 0 | K43: 0 | M43: 0 | N43: 0 | O43: 0 | P43: 0 | Q43: 0 | S43: 0
A44: 1920 | B44: Computer Equip.-Hardware(Post Mar. 22/04) | E44: 0 | H44: 0 | K44: 0 | M44: 0 | N44: 0 | O44: 0 | P44: 0 | Q44: 0 | S44: 0
A45: 1920 | B45: Computer Equip.-Hardware(Post Mar. 19/07) | C45: =42297.73+28922.3 -> 71220.03 | D45: =12817.2/0.2 -> 64086 | E45: 7134.03 | H45: 0 | I45: 11680.9 | J45: 5 | K45: 0.2 | L45: 5 | M45: 0.2 | N45: 1426.806 | O45: 0 | P45: 1168.09 | Q45: 2594.896 | R45: 2594.9 | S45: 0.004
A46: 1930 | B46: Transportation Equipment | E46: 0 | H46: 0 | K46: 0 | M46: 0 | N46: 0 | O46: 0 | P46: 0 | Q46: 0 | S46: 0
A47: 1935 | B47: Stores Equipment | E47: 0 | H47: 0 | K47: 0 | M47: 0 | N47: 0 | O47: 0 | P47: 0 | Q47: 0 | S47: 0
A48: 1940 | B48: Tools, Shop & Garage Equipment | E48: 0 | H48: 0 | K48: 0 | M48: 0 | N48: 0 | O48: 0 | P48: 0 | Q48: 0 | S48: 0
A49: 1945 | B49: Measurement & Testing Equipment | E49: 0 | H49: 0 | K49: 0 | M49: 0 | N49: 0 | O49: 0 | P49: 0 | Q49: 0 | S49: 0
A50: 1950 | B50: Power Operated Equipment | E50: 0 | H50: 0 | K50: 0 | M50: 0 | N50: 0 | O50: 0 | P50: 0 | Q50: 0 | S50: 0
A51: 1955 | B51: Communications Equipment | E51: 0 | H51: 0 | K51: 0 | M51: 0 | N51: 0 | O51: 0 | P51: 0 | Q51: 0 | S51: 0
A52: 1955 | B52: Communication Equipment (Smart Meters) | E52: 0 | H52: 0 | K52: 0 | M52: 0 | N52: 0 | O52: 0 | P52: 0 | Q52: 0 | S52: 0
A53: 1960 | B53: Miscellaneous Equipment | E53: 0 | H53: 0 | K53: 0 | M53: 0 | N53: 0 | O53: 0 | P53: 0 | Q53: 0 | S53: 0
A54: 1970 | B54: Load Management Controls Customer Premises | E54: 0 | H54: 0 | K54: 0 | M54: 0 | N54: 0 | O54: 0 | P54: 0 | Q54: 0 | S54: 0
A55: 1975 | B55: Load Management Controls Utility Premises | E55: 0 | H55: 0 | K55: 0 | M55: 0 | N55: 0 | O55: 0 | P55: 0 | Q55: 0 | S55: 0
A56: 1980 | B56: System Supervisor Equipment | E56: 0 | H56: 0 | K56: 0 | M56: 0 | N56: 0 | O56: 0 | P56: 0 | Q56: 0 | S56: 0
A57: 1985 | B57: Miscellaneous Fixed Assets | E57: 0 | H57: 0 | K57: 0 | M57: 0 | N57: 0 | O57: 0 | P57: 0 | Q57: 0 | S57: 0
A58: 1990 | B58: Other Tangible Property | E58: 0 | H58: 0 | K58: 0 | M58: 0 | N58: 0 | O58: 0 | P58: 0 | Q58: 0 | S58: 0
A59: 1995 | B59: Contributions & Grants | C59: -148764.32 | D59: =19.39/0.04 -> 484.75 | E59: -149249.07 | H59: 0 | I59: -2157.11 | J59: 25 | K59: 0.04 | L59: 25 | M59: 0.04 | N59: -5969.9628 | O59: 0 | P59: -43.1422 | Q59: -6013.105 | R59: -6013.11 | S59: -0.004999999999
B60: Total | C60: =SUM(C22:C59) -> 1828978.05 | D60: 272585.75 | E60: 1556392.3 | F60: 0 | G60: 0 | H60: 0 | I60: 38889.11 | N60: =SUM(N22:N59) -> 102755.7335 | O60: 0 | P60: 1873.597 | Q60: 104629.3305 | R60: 104628.55 | S60: -0.7804666667
B63: 2013 CGAAP | C63: Book Values | J63: Service Lives | N63: Depreciation Expense
A64: Account | B64: Description | C64: Opening Net Book Value of Existing Assets as at Date of Policy Change (Jan. 1) 1 | D64: Less Fully Depreciated 7 | E64: Net Amount of Existing Assets Before Policy Change to be Depreciated | F64: Opening Gross Book Value of Assets Acquired After Policy Change 2 | G64: Less Fully Depreciated 8 | H64: Net Amount of Assets Acquired After Policy Change to be Depreciated | I64: Current Year Additions | J64: Average Remaining Life of Assets Existing Before Policy Change 3 | K64: Depreciation Rate Assets Acquired After Policy Change | L64: Life of Assets Acquired After Policy Change 4 | M64: Depreciation Rate on New Additions | N64: Depreciation Expense on Assets Existing Before Policy Change | O64: Depreciation Expense on Assets Acquired After Policy Change | P64: Depreciation Expense on Current Year Additions 5 | Q64: Total Current Year Depreciation Expense | R64: Depreciation Expense per Appendix 2-BA Fixed Assets, Column J | S64: Variance 6
C65: a | D65: b | E65: c = a-b | F65: d | G65: e | H65: f = d- e | I65: g | J65: h | K65: i = 1/h | L65: j | M65: k = 1/j | N65: l = c/h | O65: m = f/j | P65: n = g*0.5/j | Q65: o = l+m+n | R65: p | S65: q = p-o
A66: 1611 | B66: Computer Software (Formally known as Account 1925) | C66: 130897.88 | D66: =9453.48/0.2 -> 47267.4 | E66: =C66-D66 -> 83630.48 | H66: =F66-G66 -> 0 | I66: 352.33 | J66: 5 | K66: =IF(J66=0,0,1/J66) -> 0.2 | L66: 5 | M66: =IF(L66=0,0,1/L66) -> 0.2 | N66: =IF(J66=0,0,+E66/J66) -> 16726.096 | O66: =IF(L66=0,0,+H66/L66) -> 0 | P66: =IF(L66=0,0,+(I66*0.5)/L66) -> 35.233 | Q66: =IF(ISERROR(+N66+O66+P66), 0, +N66+O66+P66) -> 16761.329 | R66: 16761.33 | S66: =IF(ISERROR(+R66-122), 0, +R66-Q66) -> 0.001
A67: 1612 | B67: Land Rights (Formally known as Account 1906) | E67: =C67-D67 -> 0 | H67: =F67-G67 -> 0 | K67: =IF(J67=0,0,1/J67) -> 0 | M67: =IF(L67=0,0,1/L67) -> 0 | N67: =IF(J67=0,0,+E67/J67) -> 0 | O67: =IF(L67=0,0,+H67/L67) -> 0 | P67: =IF(L67=0,0,+(I67*0.5)/L67) -> 0 | Q67: =IF(ISERROR(+N67+O67+P67), 0, +N67+O67+P67) -> 0 | S67: =IF(ISERROR(+R67-122), 0, +R67-Q67) -> 0
A68: 1805 | B68: Land | E68: 0 | H68: 0 | K68: 0 | M68: 0 | N68: 0 | O68: =IF(L68=0,0,+H68/L68) -> 0 | P68: 0 | Q68: 0 | S68: 0
A69: 1808 | B69: Buildings | E69: 0 | H69: 0 | K69: 0 | M69: 0 | N69: 0 | O69: 0 | P69: 0 | Q69: 0 | S69: 0
A70: 1810 | B70: Leasehold Improvements | C70: 4104.62 | E70: 4104.62 | H70: 0 | J70: 5 | K70: 0.2 | L70: 5 | M70: 0.2 | N70: 820.924 | O70: 0 | P70: 0 | Q70: 820.924 | R70: 821 | S70: 0.076
A71: 1815 | B71: Transformer Station Equipment >50 kV | E71: 0 | H71: 0 | K71: 0 | M71: 0 | N71: 0 | O71: 0 | P71: 0 | Q71: 0 | S71: 0
A72: 1820 | B72: Distribution Station Equipment <50 kV | E72: 0 | H72: 0 | K72: 0 | M72: 0 | N72: 0 | O72: 0 | P72: 0 | Q72: 0 | S72: 0
A73: 1825 | B73: Storage Battery Equipment | E73: 0 | H73: 0 | K73: 0 | M73: 0 | N73: 0 | O73: 0 | P73: 0 | Q73: 0 | S73: 0
A74: 1830 | B74: Poles, Towers & Fixtures | C74: =290724.68+182751.63 -> 473476.31 | D74: =2360.34/0.04 -> 59008.5 | E74: 414467.81 | H74: 0 | I74: 9515.01 | J74: 25 | K74: 0.04 | L74: 25 | M74: 0.04 | N74: 16578.7124 | O74: 0 | P74: 190.3002 | Q74: 16769.0126 | R74: 16769.01 | S74: -0.002600000003
A75: 1835 | B75: Overhead Conductors & Devices | C75: =294884.41+182836.63 -> 477721.04 | D75: =2363.24/0.04 -> 59081 | E75: 418640.04 | H75: 0 | I75: 8904.7 | J75: 25 | K75: 0.04 | L75: 25 | M75: 0.04 | N75: 16745.6016 | O75: 0 | P75: 178.094 | Q75: 16923.6956 | R75: 16923.7 | S75: 0.004400000002
A76: 1840 | B76: Underground Conduit | C76: 13404.71 | E76: 13404.71 | H76: 0 | J76: 25 | K76: 0.04 | L76: 25 | M76: 0.04 | N76: 536.1884 | O76: 0 | P76: 0 | Q76: 536.1884 | R76: 536 | S76: -0.1884
A77: 1845 | B77: Underground Conductors & Devices | C77: =94148.66+36981.04 -> 131129.7 | D77: =278.7/0.04 -> 6967.5 | E77: 124162.2 | H77: 0 | I77: 7206.62 | J77: 25 | K77: 0.04 | L77: 25 | M77: 0.04 | N77: 4966.488 | O77: 0 | P77: 144.1324 | Q77: 5110.6204 | R77: 5110.62 | S77: -0.0004000000008
A78: 1850 | B78: Line Transformers | C78: =124345.04+147954.6+788.18 -> 273087.82 | D78: =4831.37/0.04 -> 120784.25 | E78: 152303.57 | H78: 0 | I78: 1293 | J78: 25 | K78: 0.04 | L78: 25 | M78: 0.04 | N78: 6092.1428 | O78: 0 | P78: 25.86 | Q78: 6118.0028 | R78: =6086+32 -> 6118 | S78: -0.0028
A79: 1855 | B79: Services (Overhead & Underground) | C79: 71641.16 | E79: 71641.16 | H79: 0 | I79: 947.5 | J79: 25 | K79: 0.04 | L79: 25 | M79: 0.04 | N79: 2865.6464 | O79: 0 | P79: 18.95 | Q79: 2884.5964 | R79: 2886.5 | S79: 1.9036
A80: 1860 | B80: Meters | C80: =56076.61+76680.9 -> 132757.51 | D80: =4599.3/0.04 -> 114982.5 | E80: 17775.01 | H80: 0 | J80: 25 | K80: 0.04 | L80: 25 | M80: 0.04 | N80: 711.0004 | O80: 0 | P80: 0 | Q80: 711.0004 | R80: 711 | S80: -0.0004000000004
A81: 1860 | B81: Meters (Smart Meters) | C81: =4516.83+193296.94 -> 197813.77 | E81: 197813.77 | H81: 0 | J81: 15 | K81: 0.06666666667 | L81: 15 | M81: 0.06666666667 | N81: 13187.58467 | O81: 0 | P81: 0 | Q81: 13187.58467 | R81: =301+12886 -> 13187 | S81: -0.5846666667
A82: 1905 | B82: Land | E82: 0 | H82: 0 | K82: 0 | M82: 0 | N82: 0 | O82: 0 | P82: 0 | Q82: 0 | S82: 0
A83: 1908 | B83: Buildings & Fixtures | E83: 0 | H83: 0 | K83: 0 | M83: 0 | N83: 0 | O83: 0 | P83: 0 | Q83: 0 | S83: 0
A84: 1910 | B84: Leasehold Improvements | E84: 0 | H84: 0 | K84: 0 | M84: 0 | N84: 0 | O84: 0 | P84: 0 | Q84: 0 | S84: 0
A85: 1915 | B85: Office Furniture & Equipment (10 years) | C85: =21699.39+8954.25 -> 30653.64 | D85: =1184.38/0.1 -> 11843.8 | E85: 18809.84 | H85: 0 | I85: 359.98 | J85: 10 | K85: 0.1 | L85: 10 | M85: 0.1 | N85: 1880.984 | O85: 0 | P85: 17.999 | Q85: 1898.983 | R85: 1898.98 | S85: -0.003
A86: 1915 | B86: Office Furniture & Equipment (5 years) | E86: 0 | H86: 0 | K86: 0 | M86: 0 | N86: 0 | O86: 0 | P86: 0 | Q86: 0 | S86: 0
A87: 1920 | B87: Computer Equipment - Hardware | E87: 0 | H87: 0 | K87: 0 | M87: 0 | N87: 0 | O87: 0 | P87: 0 | Q87: 0 | S87: 0
A88: 1920 | B88: Computer Equip.-Hardware(Post Mar. 22/04) | E88: 0 | H88: 0 | K88: 0 | M88: 0 | N88: 0 | O88: 0 | P88: 0 | Q88: 0 | S88: 0
A89: 1920 | B89: Computer Equip.-Hardware(Post Mar. 19/07) | C89: =18267.82+20449.81 -> 38717.63 | D89: =2223.8/0.2 -> 11119 | E89: 27598.63 | H89: 0 | I89: 210.81 | J89: 5 | K89: 0.2 | L89: 5 | M89: 0.2 | N89: 5519.726 | O89: 0 | P89: 21.081 | Q89: 5540.807 | R89: 5540.81 | S89: 0.003
A90: 1930 | B90: Transportation Equipment | E90: 0 | H90: 0 | K90: 0 | M90: 0 | N90: 0 | O90: 0 | P90: 0 | Q90: 0 | S90: 0
A91: 1935 | B91: Stores Equipment | E91: 0 | H91: 0 | K91: 0 | M91: 0 | N91: 0 | O91: 0 | P91: 0 | Q91: 0 | S91: 0
A92: 1940 | B92: Tools, Shop & Garage Equipment | E92: 0 | H92: 0 | K92: 0 | M92: 0 | N92: 0 | O92: 0 | P92: 0 | Q92: 0 | S92: 0
A93: 1945 | B93: Measurement & Testing Equipment | E93: 0 | H93: 0 | K93: 0 | M93: 0 | N93: 0 | O93: 0 | P93: 0 | Q93: 0 | S93: 0
A94: 1950 | B94: Power Operated Equipment | E94: 0 | H94: 0 | K94: 0 | M94: 0 | N94: 0 | O94: 0 | P94: 0 | Q94: 0 | S94: 0
A95: 1955 | B95: Communications Equipment | E95: 0 | H95: 0 | K95: 0 | M95: 0 | N95: 0 | O95: 0 | P95: 0 | Q95: 0 | S95: 0
A96: 1955 | B96: Communication Equipment (Smart Meters) | E96: 0 | H96: 0 | K96: 0 | M96: 0 | N96: 0 | O96: 0 | P96: 0 | Q96: 0 | S96: 0
A97: 1960 | B97: Miscellaneous Equipment | E97: 0 | H97: 0 | K97: 0 | M97: 0 | N97: 0 | O97: 0 | P97: 0 | Q97: 0 | S97: 0
A98: 1970 | B98: Load Management Controls Customer Premises | E98: 0 | H98: 0 | K98: 0 | M98: 0 | N98: 0 | O98: 0 | P98: 0 | Q98: 0 | S98: 0
A99: 1975 | B99: Load Management Controls Utility Premises | E99: 0 | H99: 0 | K99: 0 | M99: 0 | N99: 0 | O99: 0 | P99: 0 | Q99: 0 | S99: 0
A100: 1980 | B100: System Supervisor Equipment | E100: 0 | H100: 0 | K100: 0 | M100: 0 | N100: 0 | O100: 0 | P100: 0 | Q100: 0 | S100: 0
A101: 1985 | B101: Miscellaneous Fixed Assets | E101: 0 | H101: 0 | K101: 0 | M101: 0 | N101: 0 | O101: 0 | P101: 0 | Q101: 0 | S101: 0
A102: 1990 | B102: Other Tangible Property | E102: 0 | H102: 0 | K102: 0 | M102: 0 | N102: 0 | O102: 0 | P102: 0 | Q102: 0 | S102: 0
A103: 1995 | B103: Contributions & Grants | C103: -150921.43 | D103: =24.89/0.04 -> 622.25 | E103: -151543.68 | H103: 0 | I103: -3337.5 | J103: 25 | K103: 0.04 | L103: 25 | M103: 0.04 | N103: -6061.7472 | O103: 0 | P103: -66.75 | Q103: -6128.4972 | R103: -6128.5 | S103: -0.0028
B104: Total | C104: =SUM(C66:C103) -> 1824484.36 | D104: 431676.2 | E104: 1392808.16 | F104: 0 | G104: 0 | H104: 0 | I104: 25452.45 | N104: =SUM(N66:N103) -> 80569.34747 | O104: 0 | P104: 564.8996 | Q104: 81134.24707 | R104: 81135.45 | S104: 1.202933333
A107: General: | B107: Applicants are to complete this appendix to show the reasonability of the depreciation expense that is included in rate base via. Accumulated depreciation and the revenue requirement.
B108: Applicants must provide a breakdown of depreciation and amortization expense in the above format for all relevant accounts. Balances presented in the table should exclude asset retirement obligations (AROs) and the related depreciation and accretion expense. These should be disclosed separately consistent with the Notes of historical Audited Financial Statements.
A111: Notes:
A112: 1 | B112: This is the net book value of assets that existed as at the date of the utility's change in depreciation policies (i.e. as at Jan. 1, 2012 or Jan. 1, 2013). These assets are to be depreciated at the average remaining service life. This amount will not change in years subsequent to the date of the utility's change in depreciation policies. This column is expected to be used until the assets that existed as at the date of the utility's change in depreciation policies are fully depreciated.
A113: 2 | B113: This is the opening gross book value of assets that have been acquired after the date of the utilities change in depreciation policies (i.e. additions starting in 2012/2013 for those who changed policies Jan. 1, 2012/2013). These assets are to be depreciated at the revised service life. The amount is expected to be equal to the gross book value of the prior year plus the prior year's additions.
A114: 3 | B114: A recalculation should be performed to determine the average remaining life of opening balance of assets (i.e. excluding current year's additions) under the change in policies under CGAAP. For example, Asset A had a useful life of 20 years under CGAAP without the change in policies. On January 1 of the year of policy changes, Asset A was 3 years depreciated. As a result, Asset A would have a remaining service life of 17 years (20 years less 3 years) as at January 1 of the year of policy changes. Due to making the change in policies under CGAAP, management re-assessed the asset useful lives and concluded that the revised useful life of Asset A is now 30 years. Therefore, the average remaining useful life of the opening balance of Asset A is determined to be 27 years (30 years less 3 years) under the revised CGAAP as at January 1 of the year of policy changes.
A115: 4 | B115: The useful life used should be consistent with the OEB's regulatory accounting policies as set out in the Accounting Procedures Handbook for Electricity Distributors, effective Jan. 1, 2012 and also with the Report of the Board, Transition to International Financial Reporting Standards, EB-2008-0408, and the Kinectrics Report.
A116: 5 | B116: Board policy of the "half-year" rule - the applicant must ensure that additions in the year attract a half-year depreciation expense in the first year. Deviations from this standard practice must be supported in the application.
A117: 6 | B117: The applicant must provide an explanation of material variances in evidence.
A118: 7 | B118: This should include assets in column a (excel column C) that become fully depreciated since the date of the policy change. The amount input in b (excel column D) should equal the net book value of the asset as at the date of depreciation policy change
A119: 8 | B119: This should include assets in column d (excel column f) that have become fully depreciated. The amount input in e (excel column G) should equal the gross book value of the asset
A122: Scenario that applies | C122: Applicable Years and Accounting Standard | R122: Year Reflected in Schedule Below | S122: Accounting Standard Reflected in Schedule Below
A123: Rebasing for the first time with depreciation policy changes made in 2012. | C123: This appendix must be duplicated and completed for the years 2012 to 2018. The appendix for 2012 is to be completed under CGAAP (prior to changes in depreciation policies). The appendix for 2012 to 2014 must be completed under Revised CGAAP (after changes in depreciation policies). The appendix for 2014 to 2018 is to be completed under MIFRS (2014 if changes to MIFRS are material).
A124: Rebasing for the first time with depreciation policy changes made in 2013. | C124: This appendix must be duplicated and completed for the years 2013 to 2018. The appendix for 2013 is to be completed under CGAAP (prior to changes in depreciation policies). The appendix for 2013 to 2014 must be completed under Revised CGAAP (after changes in depreciation policies). The appendix for 2014 to 2018 is to be completed under MIFRS (2014 if changes to MIFRS are material).
A125: Already rebased with depreciation policy changes in a prior rate application | C125: This appendix must be completed for 2014 to 2018. The appendix for 2014 is to be completed under Revised CGAAP (after changes in depreciation policies). The appendix for 2014 to 2018 is to be completed under MIFRS (2014 if changes to MIFRS are material).
B127: 2012 RevisedCGAAP | C127: Book Values | J127: Service Lives | N127: Depreciation Expense
A128: Account | B128: Description | C128: Opening Net Book Value of Existing Assets as at Date of Policy Change (Jan. 1) 1 | D128: Less Fully Depreciated 7 | E128: Net Amount of Existing Assets Before Policy Change to be Depreciated | F128: Opening Gross Book Value of Assets Acquired After Policy Change 2 | G128: Less Fully Depreciated 8 | H128: Net Amount of Assets Acquired After Policy Change to be Depreciated | I128: Current Year Additions | J128: Average Remaining Life of Assets Existing Before Policy Change 3 | K128: Depreciation Rate Assets Acquired After Policy Change | L128: Life of Assets Acquired After Policy Change 4 | M128: Depreciation Rate on New Additions | N128: Depreciation Expense on Assets Existing Before Policy Change | O128: Depreciation Expense on Assets Acquired After Policy Change | P128: Depreciation Expense on Current Year Additions 5 | Q128: Total Current Year Depreciation Expense | R128: Depreciation Expense per Appendix 2-BA Fixed Assets, Column J | S128: Variance 6
C129: a | D129: b | E129: c = a-b | F129: d | G129: e | H129: f = d- e | I129: g | J129: h | K129: i = 1/h | L129: j | M129: k = 1/j | N129: l = c/h | O129: m = f/j | P129: n = g*0.5/j | Q129: o = l+m+n | R129: p | S129: q = p-o
A130: 1611 | B130: Computer Software (Formally known as Account 1925) | E130: =C130-D130 -> 0 | H130: =F130-G130 -> 0 | K130: =IF(J130=0,0,1/J130) -> 0 | M130: =IF(L130=0,0,1/L130) -> 0 | N130: =IF(J130=0,0,+E130/J130) -> 0 | O130: =IF(L130=0,0,+H130/L130) -> 0 | P130: =IF(L130=0,0,+(I130*0.5)/L130) -> 0 | Q130: =IF(ISERROR(+N130+O130+P130), 0, +N130+O130+P130) -> 0 | S130: =IF(ISERROR(+R130-122), 0, +R130-Q130) -> 0
A131: 1612 | B131: Land Rights (Formally known as Account 1906) | E131: =C131-D131 -> 0 | H131: =F131-G131 -> 0 | K131: =IF(J131=0,0,1/J131) -> 0 | M131: =IF(L131=0,0,1/L131) -> 0 | N131: =IF(J131=0,0,+E131/J131) -> 0 | O131: =IF(L131=0,0,+H131/L131) -> 0 | P131: =IF(L131=0,0,+(I131*0.5)/L131) -> 0 | Q131: =IF(ISERROR(+N131+O131+P131), 0, +N131+O131+P131) -> 0 | S131: =IF(ISERROR(+R131-122), 0, +R131-Q131) -> 0
A132: 1805 | B132: Land | E132: 0 | H132: 0 | K132: 0 | M132: 0 | N132: 0 | O132: =IF(L132=0,0,+H132/L132) -> 0 | P132: 0 | Q132: 0 | S132: 0
A133: 1808 | B133: Buildings | E133: 0 | H133: 0 | K133: 0 | M133: 0 | N133: 0 | O133: 0 | P133: 0 | Q133: 0 | S133: 0
A134: 1810 | B134: Leasehold Improvements | E134: 0 | H134: 0 | K134: 0 | M134: 0 | N134: 0 | O134: 0 | P134: 0 | Q134: 0 | S134: 0
A135: 1815 | B135: Transformer Station Equipment >50 kV | E135: 0 | H135: 0 | K135: 0 | M135: 0 | N135: 0 | O135: 0 | P135: 0 | Q135: 0 | S135: 0
A136: 1820 | B136: Distribution Station Equipment <50 kV | E136: 0 | H136: 0 | K136: 0 | M136: 0 | N136: 0 | O136: 0 | P136: 0 | Q136: 0 | S136: 0
A137: 1825 | B137: Storage Battery Equipment | E137: 0 | H137: 0 | K137: 0 | M137: 0 | N137: 0 | O137: 0 | P137: 0 | Q137: 0 | S137: 0
A138: 1830 | B138: Poles, Towers & Fixtures | E138: 0 | H138: 0 | K138: 0 | M138: 0 | N138: 0 | O138: 0 | P138: 0 | Q138: 0 | S138: 0
A139: 1835 | B139: Overhead Conductors & Devices | E139: 0 | H139: 0 | K139: 0 | M139: 0 | N139: 0 | O139: 0 | P139: 0 | Q139: 0 | S139: 0
A140: 1840 | B140: Underground Conduit | E140: 0 | H140: 0 | K140: 0 | M140: 0 | N140: 0 | O140: 0 | P140: 0 | Q140: 0 | S140: 0
A141: 1845 | B141: Underground Conductors & Devices | E141: 0 | H141: 0 | K141: 0 | M141: 0 | N141: 0 | O141: 0 | P141: 0 | Q141: 0 | S141: 0
A142: 1850 | B142: Line Transformers | E142: 0 | H142: 0 | K142: 0 | M142: 0 | N142: 0 | O142: 0 | P142: 0 | Q142: 0 | S142: 0
A143: 1855 | B143: Services (Overhead & Underground) | E143: 0 | H143: 0 | K143: 0 | M143: 0 | N143: 0 | O143: 0 | P143: 0 | Q143: 0 | S143: 0
A144: 1860 | B144: Meters | E144: 0 | H144: 0 | K144: 0 | M144: 0 | N144: 0 | O144: 0 | P144: 0 | Q144: 0 | S144: 0
A145: 1860 | B145: Meters (Smart Meters) | E145: 0 | H145: 0 | K145: 0 | M145: 0 | N145: 0 | O145: 0 | P145: 0 | Q145: 0 | S145: 0
A146: 1905 | B146: Land | E146: 0 | H146: 0 | K146: 0 | M146: 0 | N146: 0 | O146: 0 | P146: 0 | Q146: 0 | S146: 0
A147: 1908 | B147: Buildings & Fixtures | E147: 0 | H147: 0 | K147: 0 | M147: 0 | N147: 0 | O147: 0 | P147: 0 | Q147: 0 | S147: 0
A148: 1910 | B148: Leasehold Improvements | E148: 0 | H148: 0 | K148: 0 | M148: 0 | N148: 0 | O148: 0 | P148: 0 | Q148: 0 | S148: 0
A149: 1915 | B149: Office Furniture & Equipment (10 years) | E149: 0 | H149: 0 | K149: 0 | M149: 0 | N149: 0 | O149: 0 | P149: 0 | Q149: 0 | S149: 0
A150: 1915 | B150: Office Furniture & Equipment (5 years) | E150: 0 | H150: 0 | K150: 0 | M150: 0 | N150: 0 | O150: 0 | P150: 0 | Q150: 0 | S150: 0
A151: 1920 | B151: Computer Equipment - Hardware | E151: 0 | H151: 0 | K151: 0 | M151: 0 | N151: 0 | O151: 0 | P151: 0 | Q151: 0 | S151: 0
A152: 1920 | B152: Computer Equip.-Hardware(Post Mar. 22/04) | E152: 0 | H152: 0 | K152: 0 | M152: 0 | N152: 0 | O152: 0 | P152: 0 | Q152: 0 | S152: 0
A153: 1920 | B153: Computer Equip.-Hardware(Post Mar. 19/07) | E153: 0 | H153: 0 | K153: 0 | M153: 0 | N153: 0 | O153: 0 | P153: 0 | Q153: 0 | S153: 0
A154: 1930 | B154: Transportation Equipment | E154: 0 | H154: 0 | K154: 0 | M154: 0 | N154: 0 | O154: 0 | P154: 0 | Q154: 0 | S154: 0
A155: 1935 | B155: Stores Equipment | E155: 0 | H155: 0 | K155: 0 | M155: 0 | N155: 0 | O155: 0 | P155: 0 | Q155: 0 | S155: 0
A156: 1940 | B156: Tools, Shop & Garage Equipment | E156: 0 | H156: 0 | K156: 0 | M156: 0 | N156: 0 | O156: 0 | P156: 0 | Q156: 0 | S156: 0
A157: 1945 | B157: Measurement & Testing Equipment | E157: 0 | H157: 0 | K157: 0 | M157: 0 | N157: 0 | O157: 0 | P157: 0 | Q157: 0 | S157: 0
A158: 1950 | B158: Power Operated Equipment | E158: 0 | H158: 0 | K158: 0 | M158: 0 | N158: 0 | O158: 0 | P158: 0 | Q158: 0 | S158: 0
A159: 1955 | B159: Communications Equipment | E159: 0 | H159: 0 | K159: 0 | M159: 0 | N159: 0 | O159: 0 | P159: 0 | Q159: 0 | S159: 0
A160: 1955 | B160: Communication Equipment (Smart Meters) | E160: 0 | H160: 0 | K160: 0 | M160: 0 | N160: 0 | O160: 0 | P160: 0 | Q160: 0 | S160: 0
A161: 1960 | B161: Miscellaneous Equipment | E161: 0 | H161: 0 | K161: 0 | M161: 0 | N161: 0 | O161: 0 | P161: 0 | Q161: 0 | S161: 0
A162: 1970 | B162: Load Management Controls Customer Premises | E162: 0 | H162: 0 | K162: 0 | M162: 0 | N162: 0 | O162: 0 | P162: 0 | Q162: 0 | S162: 0
A163: 1975 | B163: Load Management Controls Utility Premises | E163: 0 | H163: 0 | K163: 0 | M163: 0 | N163: 0 | O163: 0 | P163: 0 | Q163: 0 | S163: 0
A164: 1980 | B164: System Supervisor Equipment | E164: 0 | H164: 0 | K164: 0 | M164: 0 | N164: 0 | O164: 0 | P164: 0 | Q164: 0 | S164: 0
A165: 1985 | B165: Miscellaneous Fixed Assets | E165: 0 | H165: 0 | K165: 0 | M165: 0 | N165: 0 | O165: 0 | P165: 0 | Q165: 0 | S165: 0
A166: 1990 | B166: Other Tangible Property | E166: 0 | H166: 0 | K166: 0 | M166: 0 | N166: 0 | O166: 0 | P166: 0 | Q166: 0 | S166: 0
A167: 1995 | B167: Contributions & Grants | E167: 0 | H167: 0 | K167: 0 | M167: 0 | N167: 0 | O167: 0 | P167: 0 | Q167: 0 | S167: 0
B168: Total | C168: =SUM(C130:C167) -> 0 | D168: 0 | E168: 0 | F168: 0 | G168: 0 | H168: 0 | I168: 0 | N168: =SUM(N130:N167) -> 0 | O168: 0 | P168: 0 | Q168: 0 | R168: 0 | S168: 0
B170: 2013 RevisedCGAAP | C170: Book Values | J170: Service Lives | N170: Depreciation Expense
A171: Account | B171: Description | C171: Opening Net Book Value of Existing Assets as at Date of Policy Change (Jan. 1) 1 | D171: Less Fully Depreciated 7 | E171: Net Amount of Existing Assets Before Policy Change to be Depreciated | F171: Opening Gross Book Value of Assets Acquired After Policy Change 2 | G171: Less Fully Depreciated 8 | H171: Net Amount of Assets Acquired After Policy Change to be Depreciated | I171: Current Year Additions | J171: Average Remaining Life of Assets Existing Before Policy Change 3 | K171: Depreciation Rate Assets Acquired After Policy Change | L171: Life of Assets Acquired After Policy Change 4 | M171: Depreciation Rate on New Additions | N171: Depreciation Expense on Assets Existing Before Policy Change | O171: Depreciation Expense on Assets Acquired After Policy Change | P171: Depreciation Expense on Current Year Additions 5 | Q171: Total Current Year Depreciation Expense | R171: Depreciation Expense per Appendix 2-BA Fixed Assets, Column J | S171: Variance 6
C172: a | D172: b | E172: c = a-b | F172: d | G172: e | H172: f = d- e | I172: g | J172: h | K172: i = 1/h | L172: j | M172: k = 1/j | N172: l = c/h | O172: m = f/j | P172: n = g*0.5/j | Q172: o = l+m+n | R172: p | S172: q = p-o
A173: 1611 | B173: Computer Software (Formally known as Account 1925) | C173: 130897.88 | D173: =9453.48/0.2 -> 47267.4 | E173: =C173-D173 -> 83630.48 | H173: =F173-G173 -> 0 | I173: 352.33 | J173: 5 | K173: =IF(J173=0,0,1/J173) -> 0.2 | L173: 5 | M173: =IF(L173=0,0,1/L173) -> 0.2 | N173: =IF(J173=0,0,+E173/J173) -> 16726.096 | O173: =IF(L173=0,0,+H173/L173) -> 0 | P173: =IF(L173=0,0,+(I173*0.5)/L173) -> 35.233 | Q173: =IF(ISERROR(+N173+O173+P173), 0, +N173+O173+P173) -> 16761.329 | R173: 16761.33 | S173: =IF(ISERROR(+R173-122), 0, +R173-Q173) -> 0.001
A174: 1612 | B174: Land Rights (Formally known as Account 1906) | E174: =C174-D174 -> 0 | H174: =F174-G174 -> 0 | K174: =IF(J174=0,0,1/J174) -> 0 | M174: =IF(L174=0,0,1/L174) -> 0 | N174: =IF(J174=0,0,+E174/J174) -> 0 | O174: =IF(L174=0,0,+H174/L174) -> 0 | P174: =IF(L174=0,0,+(I174*0.5)/L174) -> 0 | Q174: =IF(ISERROR(+N174+O174+P174), 0, +N174+O174+P174) -> 0 | S174: =IF(ISERROR(+R174-122), 0, +R174-Q174) -> 0
A175: 1805 | B175: Land | E175: 0 | H175: 0 | K175: 0 | M175: 0 | N175: 0 | O175: =IF(L175=0,0,+H175/L175) -> 0 | P175: 0 | Q175: 0 | S175: 0
A176: 1808 | B176: Buildings | E176: 0 | H176: 0 | K176: 0 | M176: 0 | N176: 0 | O176: 0 | P176: 0 | Q176: 0 | S176: 0
A177: 1810 | B177: Leasehold Improvements | C177: 4104.62 | E177: 4104.62 | H177: 0 | J177: 5 | K177: 0.2 | L177: 5 | M177: 0.2 | N177: 820.924 | O177: 0 | P177: 0 | Q177: 820.924 | R177: 821 | S177: 0.076
A178: 1815 | B178: Transformer Station Equipment >50 kV | E178: 0 | H178: 0 | K178: 0 | M178: 0 | N178: 0 | O178: 0 | P178: 0 | Q178: 0 | S178: 0
A179: 1820 | B179: Distribution Station Equipment <50 kV | E179: 0 | H179: 0 | K179: 0 | M179: 0 | N179: 0 | O179: 0 | P179: 0 | Q179: 0 | S179: 0
A180: 1825 | B180: Storage Battery Equipment | E180: 0 | H180: 0 | K180: 0 | M180: 0 | N180: 0 | O180: 0 | P180: 0 | Q180: 0 | S180: 0
A181: 1830 | B181: Poles, Towers & Fixtures | C181: =290724.68+182751.63 -> 473476.31 | D181: =1309.41/0.022222222 -> 58923.45059 | E181: 414552.8594 | H181: 0 | I181: 9515.01 | J181: 45 | K181: 0.02222222222 | L181: 45 | M181: 0.02222222222 | N181: 9212.285765 | O181: 0 | P181: 105.7223333 | Q181: 9318.008098 | R181: 9318.01 | S181: 0.001901982991
A182: 1835 | B182: Overhead Conductors & Devices | C182: =294884.41+182836.63 -> 477721.04 | D182: =986.52/0.01666666666 -> 59191.20002 | E182: 418529.84 | H182: 0 | I182: 8904.7 | J182: 60 | K182: 0.01666666667 | L182: 60 | M182: 0.01666666667 | N182: 6975.497333 | O182: 0 | P182: 74.20583333 | Q182: 7049.703166 | R182: 7049.7 | S182: -0.003166272058
A183: 1840 | B183: Underground Conduit | C183: 13404.71 | E183: 13404.71 | H183: 0 | J183: 50 | K183: 0.02 | L183: 50 | M183: 0.02 | N183: 268.0942 | O183: 0 | P183: 0 | Q183: 268.0942 | R183: 268 | S183: -0.0942
A184: 1845 | B184: Underground Conductors & Devices | C184: =94148.66+36981.04 -> 131129.7 | D184: =233.48/0.033333333 -> 7004.40007 | E184: 124125.2999 | H184: 0 | I184: 7206.62 | J184: 30 | K184: 0.03333333333 | L184: 30 | M184: 0.03333333333 | N184: 4137.509998 | O184: 0 | P184: 120.1103333 | Q184: 4257.620331 | R184: 4257.62 | S184: -0.0003309985341
A185: 1850 | B185: Line Transformers | C185: =124345.04+147954.6+788.18 -> 273087.82 | D185: =3020.36/0.025 -> 120814.4 | E185: 152273.42 | H185: 0 | I185: 1293 | J185: 40 | K185: 0.025 | L185: 40 | M185: 0.025 | N185: 3806.8355 | O185: 0 | P185: 16.1625 | Q185: 3822.998 | R185: =3803+20 -> 3823 | S185: 0.002
A186: 1855 | B186: Services (Overhead & Underground) | C186: 71641.16 | E186: 71641.16 | H186: 0 | I186: 947.5 | J186: 30 | K186: 0.03333333333 | L186: 30 | M186: 0.03333333333 | N186: 2388.038667 | O186: 0 | P186: 15.79166667 | Q186: 2403.830333 | R186: 2405.5 | S186: 1.669666667
A187: 1860 | B187: Meters | C187: =56076.61+76680.9 -> 132757.51 | D187: =4599.3/0.04 -> 114982.5 | E187: 17775.01 | H187: 0 | J187: 25 | K187: 0.04 | L187: 25 | M187: 0.04 | N187: 711.0004 | O187: 0 | P187: 0 | Q187: 711.0004 | R187: 711 | S187: -0.0004000000004
A188: 1860 | B188: Meters (Smart Meters) | C188: =4516.83+193296.94 -> 197813.77 | E188: 197813.77 | H188: 0 | J188: 15 | K188: 0.06666666667 | L188: 15 | M188: 0.06666666667 | N188: 13187.58467 | O188: 0 | P188: 0 | Q188: 13187.58467 | R188: =301+12886 -> 13187 | S188: -0.5846666667
A189: 1905 | B189: Land | E189: 0 | H189: 0 | K189: 0 | M189: 0 | N189: 0 | O189: 0 | P189: 0 | Q189: 0 | S189: 0
A190: 1908 | B190: Buildings & Fixtures | E190: 0 | H190: 0 | K190: 0 | M190: 0 | N190: 0 | O190: 0 | P190: 0 | Q190: 0 | S190: 0
A191: 1910 | B191: Leasehold Improvements | E191: 0 | H191: 0 | K191: 0 | M191: 0 | N191: 0 | O191: 0 | P191: 0 | Q191: 0 | S191: 0
A192: 1915 | B192: Office Furniture & Equipment (10 years) | C192: =21699.39+8954.25 -> 30653.64 | D192: =1184.38/0.1 -> 11843.8 | E192: 18809.84 | H192: 0 | I192: 359.98 | J192: 10 | K192: 0.1 | L192: 10 | M192: 0.1 | N192: 1880.984 | O192: 0 | P192: 17.999 | Q192: 1898.983 | R192: 1898.98 | S192: -0.003
A193: 1915 | B193: Office Furniture & Equipment (5 years) | E193: 0 | H193: 0 | K193: 0 | M193: 0 | N193: 0 | O193: 0 | P193: 0 | Q193: 0 | S193: 0
A194: 1920 | B194: Computer Equipment - Hardware | E194: 0 | H194: 0 | K194: 0 | M194: 0 | N194: 0 | O194: 0 | P194: 0 | Q194: 0 | S194: 0
A195: 1920 | B195: Computer Equip.-Hardware(Post Mar. 22/04) | E195: 0 | H195: 0 | K195: 0 | M195: 0 | N195: 0 | O195: 0 | P195: 0 | Q195: 0 | S195: 0
A196: 1920 | B196: Computer Equip.-Hardware(Post Mar. 19/07) | C196: =18267.82+20449.81 -> 38717.63 | D196: =2223.8/0.2 -> 11119 | E196: 27598.63 | H196: 0 | I196: 210.81 | J196: 5 | K196: 0.2 | L196: 5 | M196: 0.2 | N196: 5519.726 | O196: 0 | P196: 21.081 | Q196: 5540.807 | R196: 5540.81 | S196: 0.003
A197: 1930 | B197: Transportation Equipment | E197: 0 | H197: 0 | K197: 0 | M197: 0 | N197: 0 | O197: 0 | P197: 0 | Q197: 0 | S197: 0
A198: 1935 | B198: Stores Equipment | E198: 0 | H198: 0 | K198: 0 | M198: 0 | N198: 0 | O198: 0 | P198: 0 | Q198: 0 | S198: 0
A199: 1940 | B199: Tools, Shop & Garage Equipment | E199: 0 | H199: 0 | K199: 0 | M199: 0 | N199: 0 | O199: 0 | P199: 0 | Q199: 0 | S199: 0
A200: 1945 | B200: Measurement & Testing Equipment | E200: 0 | H200: 0 | K200: 0 | M200: 0 | N200: 0 | O200: 0 | P200: 0 | Q200: 0 | S200: 0
A201: 1950 | B201: Power Operated Equipment | E201: 0 | H201: 0 | K201: 0 | M201: 0 | N201: 0 | O201: 0 | P201: 0 | Q201: 0 | S201: 0
A202: 1955 | B202: Communications Equipment | E202: 0 | H202: 0 | K202: 0 | M202: 0 | N202: 0 | O202: 0 | P202: 0 | Q202: 0 | S202: 0
A203: 1955 | B203: Communication Equipment (Smart Meters) | E203: 0 | H203: 0 | K203: 0 | M203: 0 | N203: 0 | O203: 0 | P203: 0 | Q203: 0 | S203: 0
A204: 1960 | B204: Miscellaneous Equipment | E204: 0 | H204: 0 | K204: 0 | M204: 0 | N204: 0 | O204: 0 | P204: 0 | Q204: 0 | S204: 0
A205: 1970 | B205: Load Management Controls Customer Premises | E205: 0 | H205: 0 | K205: 0 | M205: 0 | N205: 0 | O205: 0 | P205: 0 | Q205: 0 | S205: 0
A206: 1975 | B206: Load Management Controls Utility Premises | E206: 0 | H206: 0 | K206: 0 | M206: 0 | N206: 0 | O206: 0 | P206: 0 | Q206: 0 | S206: 0
A207: 1980 | B207: System Supervisor Equipment | E207: 0 | H207: 0 | K207: 0 | M207: 0 | N207: 0 | O207: 0 | P207: 0 | Q207: 0 | S207: 0
A208: 1985 | B208: Miscellaneous Fixed Assets | E208: 0 | H208: 0 | K208: 0 | M208: 0 | N208: 0 | O208: 0 | P208: 0 | Q208: 0 | S208: 0
A209: 1990 | B209: Other Tangible Property | E209: 0 | H209: 0 | K209: 0 | M209: 0 | N209: 0 | O209: 0 | P209: 0 | Q209: 0 | S209: 0
A210: 1995 | B210: Contributions & Grants | C210: -150921.43 | E210: -150921.43 | H210: 0 | I210: -3337.5 | J210: 37.57 | K210: 0.02661698163 | L210: 37.57 | M210: 0.02661698163 | N210: -4017.072931 | O210: 0 | P210: -44.4170881 | Q210: -4061.490019 | R210: -4060.5 | S210: 0.9900186319
B211: Total | C211: =SUM(C173:C210) -> 1824484.36 | D211: 431146.1507 | E211: 1393338.209 | F211: 0 | G211: 0 | H211: 0 | I211: 25452.45 | N211: =SUM(N173:N210) -> 61617.5036 | O211: 0 | P211: 361.8885786 | Q211: 61979.39218 | R211: 61981.45 | S211: 2.057823344
B213: 2014 RevisedCGAAP | C213: Book Values | J213: Service Lives | N213: Depreciation Expense
A214: Account | B214: Description | C214: Opening Net Book Value of Existing Assets as at Date of Policy Change (Jan. 1) 1 | D214: Less Fully Depreciated 7 | E214: Net Amount of Existing Assets Before Policy Change to be Depreciated | F214: Opening Gross Book Value of Assets Acquired After Policy Change 2 | G214: Less Fully Depreciated 8 | H214: Net Amount of Assets Acquired After Policy Change to be Depreciated | I214: Current Year Additions | J214: Average Remaining Life of Assets Existing Before Policy Change 3 | K214: Depreciation Rate Assets Acquired After Policy Change | L214: Life of Assets Acquired After Policy Change 4 | M214: Depreciation Rate on New Additions | N214: Depreciation Expense on Assets Existing Before Policy Change | O214: Depreciation Expense on Assets Acquired After Policy Change | P214: Depreciation Expense on Current Year Additions 5 | Q214: Total Current Year Depreciation Expense | R214: Depreciation Expense per Appendix 2-BA Fixed Assets, Column J | S214: Variance 6
C215: a | D215: b | E215: c = a-b | F215: d | G215: e | H215: f = d- e | I215: g | J215: h | K215: i = 1/h | L215: j | M215: k = 1/j | N215: l = c/h | O215: m = f/j | P215: n = g*0.5/j | Q215: o = l+m+n | R215: p | S215: q = p-o
A216: 1611 | B216: Computer Software (Formally known as Account 1925) | C216: 131250.21 | D216: =14145.22/0.2 -> 70726.1 | E216: =C216-D216 -> 60524.11 | H216: =F216-G216 -> 0 | I216: 38793.14 | J216: 5 | K216: =IF(J216=0,0,1/J216) -> 0.2 | L216: 5 | M216: =IF(L216=0,0,1/L216) -> 0.2 | N216: =IF(J216=0,0,+E216/J216) -> 12104.822 | O216: =IF(L216=0,0,+H216/L216) -> 0 | P216: =IF(L216=0,0,+(I216*0.5)/L216) -> 3879.314 | Q216: =IF(ISERROR(+N216+O216+P216), 0, +N216+O216+P216) -> 15984.136 | R216: 15984.14 | S216: =IF(ISERROR(+R216-122), 0, +R216-Q216) -> 0.003999999999
A217: 1612 | B217: Land Rights (Formally known as Account 1906) | E217: =C217-D217 -> 0 | H217: =F217-G217 -> 0 | K217: =IF(J217=0,0,1/J217) -> 0 | M217: =IF(L217=0,0,1/L217) -> 0 | N217: =IF(J217=0,0,+E217/J217) -> 0 | O217: =IF(L217=0,0,+H217/L217) -> 0 | P217: =IF(L217=0,0,+(I217*0.5)/L217) -> 0 | Q217: =IF(ISERROR(+N217+O217+P217), 0, +N217+O217+P217) -> 0 | S217: =IF(ISERROR(+R217-122), 0, +R217-Q217) -> 0
A218: 1805 | B218: Land | E218: 0 | H218: 0 | K218: 0 | M218: 0 | N218: 0 | O218: =IF(L218=0,0,+H218/L218) -> 0 | P218: 0 | Q218: 0 | S218: 0
A219: 1808 | B219: Buildings | E219: 0 | H219: 0 | K219: 0 | M219: 0 | N219: 0 | O219: 0 | P219: 0 | Q219: 0 | S219: 0
A220: 1810 | B220: Leasehold Improvements | C220: 4104.62 | E220: 4104.62 | H220: 0 | J220: 5 | K220: 0.2 | L220: 5 | M220: 0.2 | N220: 820.924 | O220: 0 | P220: 0 | Q220: 820.924 | R220: 821 | S220: 0.076
A221: 1815 | B221: Transformer Station Equipment >50 kV | E221: 0 | H221: 0 | K221: 0 | M221: 0 | N221: 0 | O221: 0 | P221: 0 | Q221: 0 | S221: 0
A222: 1820 | B222: Distribution Station Equipment <50 kV | E222: 0 | H222: 0 | K222: 0 | M222: 0 | N222: 0 | O222: 0 | P222: 0 | Q222: 0 | S222: 0
... 394 more rows

Sheet App.2-D_Overhead
G1: File Number: | H1: =EBNUMBER -> EB-2019-0041
G2: Exhibit:
G3: Tab:
G4: Schedule:
G5: Page:
G7: Date:
A9: Appendix 2-D
A10: Overhead Expense
A12: Applicants are to provide a breakdown of OM&A before capitalization in the below table. OM&A before capitalization may be broken down by cost center, program, drivers or another format best suited to focus on capitalized vs. uncapitalized OM&A.
A14: OM&A Before Capitalization
B15: =F15-4 -> 2016 | C15: =F15-3 -> 2017 | D15: =F15-2 -> 2018 | E15: =F15-1 -> 2019 | F15: =TestYear -> 2020
B16: Historical Year | C16: Historical Year | D16: Historical Year | E16: Bridge Year | F16: Test Year
A27: Total OM&A Before Capitalization (B) | B27: =SUM(B17:B26) -> 0 | C27: =SUM(C17:C26) -> 0 | D27: =SUM(D17:D26) -> 0 | E27: =SUM(E17:E26) -> 0 | F27: =SUM(F17:F26) -> 0
A29: Applicants are to provide a breakdown of capitalized OM&A in the below table. Capitalized OM&A may be broken down using the categories listed in the table below if possible. Otherwise, applicants are to provide its own break down of capitalized OM&A.
A31: Capitalized OM&A | G31: Directly | H31: Explanation for Change in Overhead Capitalized
B32: =F32-4 -> 2016 | C32: =F32-3 -> 2017 | D32: =F32-2 -> 2018 | E32: =F32-1 -> 2019 | F32: =TestYear -> 2020 | G32: Attributable?
B33: Historical Year | C33: Historical Year | D33: Historical Year | E33: Bridge Year | F33: Test Year | G33: (Yes/No)
A34: employee benefits
A35: costs of site preparation
A36: initial delivery and handling costs
A37: costs of testing whether the asset is functioning properly
A38: professional fees
A40: costs of opening a new facility
A41: costs of introducing a new product or service (including costs of advertising and promotional activities)
A42: costs of conducting business in a new location or with a new class of customer (including costs of staff training)
A43: administration and other general overhead costs
A45: Insert description of additional item(s) and new rows if needed
A47: Total Capitalized OM&A (A) | B47: =SUM(B34:B46) -> 0 | C47: =SUM(C34:C46) -> 0 | D47: =SUM(D34:D46) -> 0 | E47: =SUM(E34:E46) -> 0 | F47: =SUM(F34:F46) -> 0
A49: % of Capitalized OM&A (=A/B) | B49: =IF(ISERROR(B47/B27),"0%",B47/B27) -> 0% | C49: =IF(ISERROR(C47/C27),"0%",C47/C27) -> 0% | D49: =IF(ISERROR(D47/D27),"0%",D47/D27) -> 0% | E49: =IF(ISERROR(E47/E27),"0%",E47/E27) -> 0% | F49: =IF(ISERROR(F47/F27),"0%",F47/F27) -> 0%

Sheet App.2-EA_Account 1575 (2015) (hidden)
H1: File Number: | I1: =EBNUMBER -> EB-2019-0041
H2: Exhibit:
H3: Tab:
H4: Schedule:
H5: Page:
H7: Date:
A9: Appendix 2-EA
A10: Account 1575 - IFRS-CGAAP Transitional PP&E Amounts
A11: 2015 Adopters of IFRS for Financial Reporting Purposes
A13: For applicants that adopted IFRS on January 1, 2015 for financial reporting purposes
B17: 2014 | C17: =TestYear-3 -> 2017 | D17: =TestYear-2 -> 2018 | E17: =CONCATENATE(TestYear-1," Bridge Year") -> 2019 Bridge Year | F17: =CONCATENATE(TestYear," Rebasing Year") -> 2020 Rebasing Year
A18: Reporting Basis | B18: CGAAP | C18: CGAAP | D18: CGAAP | E18: MIFRS | F18: MIFRS
B19: Actual | C19: Actual | D19: Actual | E19: Forecast | F19: Forecast
D20: $ | E20: $
A21: PP&E Values under CGAAP
A22: Opening net PP&E - Note 1 | C22: =+B25 -> 0 | D22: =+C25 -> 0 | E22: =+D25 -> 0
A23: Net Additions - Note 4
A24: Net Depreciation (amounts should be negative) - Note 4
A25: Closing net PP&E (1) | B25: =SUM(B22:B24) -> 0 | C25: =SUM(C22:C24) -> 0 | D25: =SUM(D22:D24) -> 0 | E25: =SUM(E22:E24) -> 0
A27: PP&E Values under MIFRS (Starts from 2014, the transition year)
A28: Opening net PP&E - Note 1 | C28: =+B31 -> 0 | D28: =+C31 -> 0 | E28: =+D31 -> 0
A29: Net Additions - Note 4
A30: Net Depreciation (amounts should be negative) - Note 4
A31: Closing net PP&E (2) | B31: =SUM(B28:B30) -> 0 | C31: =SUM(C28:C30) -> 0 | D31: =SUM(D28:D30) -> 0 | E31: =SUM(E28:E30) -> 0
A33: Difference in Closing net PP&E, former CGAAP vs. revised CGAAP | B33: =B25-B31 -> 0 | C33: =C25-C31 -> 0 | D33: =D25-D31 -> 0 | E33: =E25-E31 -> 0
A36: Effect on Deferral and Variance Account Rate Riders
A37: Closing balance in Account 1575 | F37: =IF(ISERROR(E33), 0, E33) -> 0 | H37: WACC
A38: Return on Rate Base Associated with Account 1575 balance at WACC - Note 2 | F38: =E33*I37*I38 -> 0 | G38: # of years of rate rider disposition period
A39: Amount included in Deferral and Variance Account Rate Rider Calculation | F39: =F37+F38 -> 0
A41: Notes:
A42: 1 For an applicant that adopted IFRS on January 1, 2015, the PP&E values as of January 1, 2014 under both CGAAP and MIFRS should be the same.
A43: 2 Return on rate base associated with deferred balance is calculated as:
A44: the deferral account closing balance as of 2017 x WACC X # of years of rate rider disposition period
A45: * Please note that the calculation should be adjusted once WACC is updated and finalized in the rate application.
A46: 3 The PP&E deferral account is cleared by including the total balance in the deferral and variance account rate rider calculation.
A47: 4 Net additions are additions net of disposals; Net depreciation is additions to depreciation net of disposals.

Sheet App.2-EB_Account 1576 (2012) (hidden)
K1: File Number: | L1: =EBNUMBER -> EB-2019-0041
K2: Exhibit:
K3: Tab:
K4: Schedule:
K5: Page:
K7: Date:
A9: Appendix 2-EB
A10: Account 1576 - Accounting Changes under CGAAP
A11: 2012 Changes in Accounting Policies under CGAAP
A13: For applicants with a balance in Account 1576 and made capitalization and depreciation expense accounting policy changes under CGAAP effective January 1, 2012. This is the first time the applicant is rebasing with changes in these accounting policies.
B17: Prior Years Rebasing | C17: 2012 | D17: 2013 | E17: 2014 | F17: 2015 | G17: 2016 | H17: 2017 | I17: 2018 Rebasing Year
A18: Reporting Basis | B18: CGAAP | C18: CGAAP | D18: CGAAP | E18: CGAAP | F18: MIFRS - Note 5 | G18: MIFRS | H18: MIFRS | I18: MIFRS
B19: Forecast | C19: Actual | D19: Actual | E19: Actual | F19: Actual | G19: Actual | H19: Forecast | I19: Forecast
C20: $ | D20: $ | E20: $ | F20: $ | G20: $ | H20: $
A21: PP&E Values under former CGAAP
A22: Opening net PP&E - Note 1 | D22: =+C25 -> 0 | E22: =+D25 -> 0 | F22: =+E25 -> 0 | G22: =+F25 -> 0 | H22: =+G25 -> 0
A23: Net Additions - Note 4
A24: Net Depreciation (amounts should be negative) - Note 4
A25: Closing net PP&E (1) | C25: =C22+C23+C24 -> 0 | D25: 0 | E25: 0 | F25: 0 | G25: 0 | H25: 0
A27: PP&E Values under revised CGAAP (Starts from 2012)
A28: Opening net PP&E - Note 1 | D28: =+C31 -> 0 | E28: =+D31 -> 0 | F28: =+E31 -> 0 | G28: =+F31 -> 0 | H28: =+G31 -> 0
A29: Net Additions - Note 4
A30: Net Depreciation (amounts should be negative) - Note 4
A31: Closing net PP&E (2) | C31: =SUM(C28:C30) -> 0 | D31: 0 | E31: 0 | F31: 0 | G31: 0 | H31: 0
A33: Difference in Closing net PP&E, former CGAAP vs. revised CGAAP | C33: =C25-C31 -> 0 | D33: 0 | E33: 0 | F33: 0 | G33: 0 | H33: 0
A36: Effect on Deferral and Variance Account Rate Riders
A37: Closing balance in Account 1576 | I37: =IF(ISERROR(H33), 0, H33) -> 0 | K37: WACC
A38: Return on Rate Base Associated with Account 1576 balance at WACC - Note 2 | I38: =H33*L37*L38 -> 0 | J38: # of years of rate rider disposition period
A39: Amount included in Deferral and Variance Account Rate Rider Calculation | I39: =I37+I38 -> 0
A41: Notes:
A42: 1 For an applicant that made the capitalization and depreciation expense accounting policy changes on January 1, 2012, the PP&E values as of January 1, 2012 under both former CGAAP and revised CGAAP should be the same.
A43: 2 Return on rate base associated with Account 1576 balance is calculated as:
A44: the variance account ending balance as of 2017 x WACC X # of years of rate rider disposition period
A45: * Please note that the calculation should be adjusted once WACC is updated and finalized in the rate application.
A46: 3 Account 1576 is cleared by including the total balance in the deferral and variance account rate rider calculation.
A47: 4 Net additions are additions net of disposals; Net depreciation is additions to depreciation net of disposals.
A48: 5 Differences due to the adoption of MIFRS are to be shown separately in Account 1575 in Appendix 2-EA as Accounts 1575 and 1576 cannot be used interchangably.

Sheet App.2-EC_Account 1576 (2013) (hidden)
J1: File Number: | K1: =EBNUMBER -> EB-2019-0041
J2: Exhibit:
J3: Tab:
J4: Schedule:
J5: Page:
J7: Date:
A9: Appendix 2-EC
A10: Account 1576 - Accounting Changes under CGAAP
A11: 2013 Changes in Accounting Policies under CGAAP
A13: For applicants with a balance in Account 1576 and made capitalization and depreciation expense accounting policy changes under CGAAP effective January 1, 2013. This is the first time the applicant is rebasing with changes in these accounting policies.
B17: Prior Years Rebasing | C17: 2013 | D17: 2014 | E17: 2015 | F17: 2016 | G17: 2017 | H17: 2018 Rebasing Year
A18: Reporting Basis | B18: CGAAP | C18: CGAAP | D18: CGAAP | E18: MIFRS - Note 5 | F18: MIFRS | G18: MIFRS | H18: MIFRS
B19: Actual | C19: Actual | D19: Actual | E19: Actual | F19: Actual | G19: Forecast | H19: Forecast
C20: $ | D20: $ | F20: $
A21: PP&E Values under former CGAAP
A22: Opening net PP&E - Note 1 | D22: =+C25 -> 0 | E22: =+D25 -> 0 | F22: =+E25 -> 0 | G22: =+F25 -> 0
A23: Net Additions - Note 4
A24: Net Depreciation (amounts should be negative) - Note 4
A25: Closing net PP&E (1) | C25: =C22+C23+C24 -> 0 | D25: =D22+D23+D24 -> 0 | E25: =E22+E23+E24 -> 0 | F25: =F22+F23+F24 -> 0 | G25: =G22+G23+G24 -> 0
A27: PP&E Values under revised CGAAP (Starts from 2012)
A28: Opening net PP&E - Note 1 | D28: =+C31 -> 0 | E28: =+D31 -> 0 | F28: =+E31 -> 0 | G28: =+F31 -> 0
A29: Net Additions - Note 4
A30: Net Depreciation (amounts should be negative) - Note 4
A31: Closing net PP&E (2) | C31: =SUM(C28:C30) -> 0 | D31: =SUM(D28:D30) -> 0 | E31: =SUM(E28:E30) -> 0 | F31: =SUM(F28:F30) -> 0 | G31: =SUM(G28:G30) -> 0
A33: Difference in Closing net PP&E, former CGAAP vs. revised CGAAP | C33: =C25-C31 -> 0 | D33: =D25-D31 -> 0 | E33: =E25-E31 -> 0 | F33: =F25-F31 -> 0 | G33: =G25-G31 -> 0
A36: Effect on Deferral and Variance Account Rate Riders
A37: Closing balance in Account 1576 | H37: =IF(ISERROR(G33), 0, G33) -> 0 | J37: WACC
A38: Return on Rate Base Associated with Account 1576 balance at WACC - Note 2 | H38: =G33*K37*K38 -> 0 | I38: # of years of rate rider disposition period
A39: Amount included in Deferral and Variance Account Rate Rider Calculation | H39: =H37+H38 -> 0
A41: Notes:
A42: 1 For an applicant that made the capitalization and depreciation expense accounting policy changes on January 1, 2013, the PP&E values as of January 1, 2013 under both former CGAAP and revised CGAAP should be the same.
A43: 2 Return on rate base associated with Account 1576 balance is calculated as:
A44: the variance account ending balance as of 2017 x WACC X # of years of rate rider disposition period
A45: * Please note that the calculation should be adjusted once WACC is updated and finalized in the rate application.
A46: 3 Account 1576 is cleared by including the total balance in the deferral and variance account rate rider calculation.
A47: 4 Net additions are additions net of disposals; Net depreciation is additions to depreciation net of disposals.
A48: 5 Differences due to the adoption of MIFRS are to be shown separately in Account 1575 in Appendix 2-EA as Accounts 1575 and 1576 cannot be used interchangably.

Sheet App.2-FA Proposed REG Invest.
K1: File Number: | L1: =EBNUMBER -> EB-2019-0041
K2: Exhibit:
K3: Tab:
A4: TO BE UPDATED AT DRAFT RATE ORDER STAGE | K4: Schedule:
K5: Page:
K7: Date:
A9: Appendix 2-FA
A10: Renewable Generation Connection Investment Summary (past investments or over the future rate setting period)
A12: Enter the details of the Renewable Generation Connection projects as described in the appropriate section of the Filing Requirements.
A13: All costs entered on this page will be transferred to the appropriate cells in the appendices that follow.
A14: For Part A, Renewable Enabling Improvements (REI), these amounts will be transferred to Appendix 2 - FB
A15: For Part B, Expansions, these amounts will be transferred to Appendix 2 - FC
A17: If there are more than five projects proposed to be in-service in a certain year, please amend the tables below and ensure that the formulae for the Total Amounts in any given rate year are updated.
A18: Based on the current methodology and allocation, amounts allocated represent 6% for REI Connection Investments and 17% for Expansion Investments. (EB-2009-0349, 6-10-2010, p. 15, note 9)
A20: There are two scenarios described below. Separate sets of spreadsheets (2-FA, 2-FB, 2-FC) should be submited for each scenario as required.
A21: Scenario 1: | B21: Past Investments with No Recovery. The distributor has made investments in the past (during the IRM Years), but has not received approval for these projects and therefore did not receive
B22: revenue from the IESO under Regulation 330/09 and did not receive ratepayer revenue for the direct benefit portion of the investment.
B23: The WCA percentage, debt percentages, interest rates, kWh, tax rates, amortization period, CCA Class and percentage should correspond to the distributor's last Cost of Service approval.
B24: The Direct Benefit portion of the calculated Revenue Requirement for each year should be summed and can be applied for recovery from the distributor's ratepayers through a rate rider.
B25: The Provincial Recovery portion of the calculated Revenue Requirement for each year should be summed and can be applied for recovery from the IESO through a separate order.
A27: Scenario 2: | B27: ="Investments in the Test Year and Beyond. Distributor plans to make investments in " & TestYear & " and/or beyond. These investments should be added to 2-FA in the appropriate year." -> Investments in the Test Year and Beyond. Distributor plans to make investments in 2020 and/or beyond. These investments should be added to 2-FA in the appropriate year.
B28: The WCA percentage, debt percentages, interest rates, kWh, tax rates, amortization period, CCA Class and percentage should correspond to the distributor's current application.
A30: Part A | C30: =IF(C31=TestYear, "Test Year", "") ->  | H30: Test Year
A31: REI Investments (Direct Benefit at 6%) | C31: =D31-1 -> 2015 | D31: =E31-1 -> 2016 | E31: =F31-1 -> 2017 | F31: =G31-1 -> 2018 | G31: =H31-1 -> 2019 | H31: =TestYear -> 2020 | I31: =H31+1 -> 2021 | J31: =I31+1 -> 2022 | K31: =J31+1 -> 2023 | L31: =K31+1 -> 2024
A32: Project 1
A33: Name: REI Connection Project
A34: Capital Costs | C34: 0 | D34: 0 | E34: 0 | F34: 0 | G34: 0 | H34: 0 | I34: 0 | J34: 0 | K34: 0 | L34: 0
A35: OM&A (Start-Up) | C35: 0 | D35: 0 | E35: 0 | F35: 0 | G35: 0 | H35: 0 | I35: 0 | J35: 0 | K35: 0 | L35: 0
A36: OM&A (Ongoing) | C36: 0 | D36: 0 | E36: 0 | F36: 0 | G36: 0 | H36: 0 | I36: 0 | J36: 0 | K36: 0 | L36: 0
A38: Project 2
A39: Name: REI Connection Project
A40: Capital Costs | C40: 0 | D40: 0 | E40: 0 | F40: 0 | G40: 0 | H40: 0 | I40: 0 | J40: 0 | K40: 0 | L40: 0
A41: OM&A (Start-Up) | C41: 0 | D41: 0 | E41: 0 | F41: 0 | G41: 0 | H41: 0 | I41: 0 | J41: 0 | K41: 0 | L41: 0
A42: OM&A (Ongoing) | C42: 0 | D42: 0 | E42: 0 | F42: 0 | G42: 0 | H42: 0 | I42: 0 | J42: 0 | K42: 0 | L42: 0
A44: Project 3
A45: Name: REI Connection Project
A46: Capital Costs | C46: 0 | D46: 0 | E46: 0 | F46: 0 | G46: 0 | H46: 0 | I46: 0 | J46: 0 | K46: 0 | L46: 0
A47: OM&A (Start-Up) | C47: 0 | D47: 0 | E47: 0 | F47: 0 | G47: 0 | H47: 0 | I47: 0 | J47: 0 | K47: 0 | L47: 0
A48: OM&A (Ongoing) | C48: 0 | D48: 0 | E48: 0 | F48: 0 | G48: 0 | H48: 0 | I48: 0 | J48: 0 | K48: 0 | L48: 0
A50: Project 4
A51: Name: REI Connection Project
A52: Capital Costs | C52: 0 | D52: 0 | E52: 0 | F52: 0 | G52: 0 | H52: 0 | I52: 0 | J52: 0 | K52: 0 | L52: 0
A53: OM&A (Start-Up) | C53: 0 | D53: 0 | E53: 0 | F53: 0 | G53: 0 | H53: 0 | I53: 0 | J53: 0 | K53: 0 | L53: 0
A54: OM&A (Ongoing) | C54: 0 | D54: 0 | E54: 0 | F54: 0 | G54: 0 | H54: 0 | I54: 0 | J54: 0 | K54: 0 | L54: 0
A56: Project 5
A57: Name: REI Connection Project
A58: Capital Costs | C58: 0 | D58: 0 | E58: 0 | F58: 0 | G58: 0 | H58: 0 | I58: 0 | J58: 0 | K58: 0 | L58: 0
A59: OM&A (Start-Up) | C59: 0 | D59: 0 | E59: 0 | F59: 0 | G59: 0 | H59: 0 | I59: 0 | J59: 0 | K59: 0 | L59: 0
A60: OM&A (Ongoing) | C60: 0 | D60: 0 | E60: 0 | F60: 0 | G60: 0 | H60: 0 | I60: 0 | J60: 0 | K60: 0 | L60: 0
A62: Total Capital Costs | C62: =SUM(C58,C52,C46,C40,C34) -> 0 | D62: =SUM(D58,D52,D46,D40,D34) -> 0 | E62: 0 | F62: 0 | G62: 0 | H62: =SUM(H58,H52,H46,H40,H34) -> 0 | I62: =SUM(I58,I52,I46,I40,I34) -> 0 | J62: 0 | K62: 0 | L62: 0
A63: Total OM&A (Start-Up) | C63: =SUM(C59,C53,C47,C41,C35) -> 0 | D63: 0 | E63: 0 | F63: 0 | G63: 0 | H63: =SUM(H59,H53,H47,H41,H35) -> 0 | I63: 0 | J63: 0 | K63: 0 | L63: 0
A64: Total OM&A (Ongoing) | C64: =SUM(C60,C54,C48,C42,C36) -> 0 | D64: 0 | E64: 0 | F64: 0 | G64: 0 | H64: =SUM(H60,H54,H48,H42,H36) -> 0 | I64: 0 | J64: 0 | K64: 0 | L64: 0
A67: Part B | C67: =IF(C68=TestYear, "Test Year", "") ->  | H67: Test Year
A68: Expansion Investments (Direct Benefit at 17%) | C68: =D68-1 -> 2015 | D68: =E68-1 -> 2016 | E68: =F68-1 -> 2017 | F68: =G68-1 -> 2018 | G68: =H68-1 -> 2019 | H68: =TestYear -> 2020 | I68: =H68+1 -> 2021 | J68: =I68+1 -> 2022 | K68: =J68+1 -> 2023 | L68: =K68+1 -> 2024
A69: Project 1
A70: Name: Expansion Connection Project
A71: Capital Costs | C71: 0 | D71: 0 | E71: 0 | F71: 0 | G71: 0 | H71: 0 | I71: 0 | J71: 0 | K71: 0 | L71: 0
A72: OM&A (Start-Up) | C72: 0 | D72: 0 | E72: 0 | F72: 0 | G72: 0 | H72: 0 | I72: 0 | J72: 0 | K72: 0 | L72: 0
A73: OM&A (Ongoing) | C73: 0 | D73: 0 | E73: 0 | F73: 0 | G73: 0 | H73: 0 | I73: 0 | J73: 0 | K73: 0 | L73: 0
A75: Project 2
A76: Name: Expansion Connection Project
A77: Capital Costs | C77: 0 | D77: 0 | E77: 0 | F77: 0 | G77: 0 | H77: 0 | I77: 0 | J77: 0 | K77: 0 | L77: 0
A78: OM&A (Start-Up) | C78: 0 | D78: 0 | E78: 0 | F78: 0 | G78: 0 | H78: 0 | I78: 0 | J78: 0 | K78: 0 | L78: 0
A79: OM&A (Ongoing) | C79: 0 | D79: 0 | E79: 0 | F79: 0 | G79: 0 | H79: 0 | I79: 0 | J79: 0 | K79: 0 | L79: 0
A81: Project 3
A82: Name: Expansion Connection Project
A83: Capital Costs | C83: 0 | D83: 0 | E83: 0 | F83: 0 | G83: 0 | H83: 0 | I83: 0 | J83: 0 | K83: 0 | L83: 0
A84: OM&A (Start-Up) | C84: 0 | D84: 0 | E84: 0 | F84: 0 | G84: 0 | H84: 0 | I84: 0 | J84: 0 | K84: 0 | L84: 0
A85: OM&A (Ongoing) | C85: 0 | D85: 0 | E85: 0 | F85: 0 | G85: 0 | H85: 0 | I85: 0 | J85: 0 | K85: 0 | L85: 0
A87: Project 4
A88: Name: Expansion Connection Project
A89: Capital Costs | C89: 0 | D89: 0 | E89: 0 | F89: 0 | G89: 0 | H89: 0 | I89: 0 | J89: 0 | K89: 0 | L89: 0
A90: OM&A (Start-Up) | C90: 0 | D90: 0 | E90: 0 | F90: 0 | G90: 0 | H90: 0 | I90: 0 | J90: 0 | K90: 0 | L90: 0
A91: OM&A (Ongoing) | C91: 0 | D91: 0 | E91: 0 | F91: 0 | G91: 0 | H91: 0 | I91: 0 | J91: 0 | K91: 0 | L91: 0
A93: Project 5
A94: Name: Expansion Connection Project
A95: Capital Costs | C95: 0 | D95: 0 | E95: 0 | F95: 0 | G95: 0 | H95: 0 | I95: 0 | J95: 0 | K95: 0 | L95: 0
A96: OM&A (Start-Up) | C96: 0 | D96: 0 | E96: 0 | F96: 0 | G96: 0 | H96: 0 | I96: 0 | J96: 0 | K96: 0 | L96: 0
A97: OM&A (Ongoing) | C97: 0 | D97: 0 | E97: 0 | F97: 0 | G97: 0 | H97: 0 | I97: 0 | J97: 0 | K97: 0 | L97: 0
A99: Total Capital Costs | C99: =SUM(C95,C89,C83,C77,C71) -> 0 | D99: =SUM(D95,D89,D83,D77,D71) -> 0 | E99: 0 | F99: 0 | G99: 0 | H99: =SUM(H95,H89,H83,H77,H71) -> 0 | I99: =SUM(I95,I89,I83,I77,I71) -> 0 | J99: 0 | K99: 0 | L99: 0
A100: Total OM&A (Start-Up) | C100: =SUM(C96,C90,C84,C78,C72) -> 0 | D100: 0 | E100: 0 | F100: 0 | G100: 0 | H100: =SUM(H96,H90,H84,H78,H72) -> 0 | I100: 0 | J100: 0 | K100: 0 | L100: 0
A101: Total OM&A (Ongoing) | C101: =SUM(C97,C91,C85,C79,C73) -> 0 | D101: 0 | E101: 0 | F101: 0 | G101: 0 | H101: =SUM(H97,H91,H85,H79,H73) -> 0 | I101: 0 | J101: 0 | K101: 0 | L101: 0

Sheet Hidden_REG Invest. (hidden)
A1: Utility Name | B1: EB Number | C1: Test Year | D1: Bridge Year | E1: Last Rebasing Year | F1: Renewable Generation Connection Investment Summary | G1: Year | H1: Amount
A2: ='LDC Info'!$E$14 -> Hydro 2000 Inc. | B2: =EBNUMBER -> EB-2019-0041 | C2: =TestYear -> 2020 | D2: =BridgeYear -> 2019 | E2: =RebaseYear -> 2012 | F2: REI Investments_A_Total Capital Costs | G2: ='App.2-FA Proposed REG Invest.'!C31 -> 2015 | H2: ='App.2-FA Proposed REG Invest.'!C62 -> 0
A3: ='LDC Info'!$E$14 -> Hydro 2000 Inc. | B3: EB-2019-0041 | C3: 2020 | D3: 2019 | E3: 2012 | F3: REI Investments_A_Total OM&A Start-Up | G3: ='App.2-FA Proposed REG Invest.'!C31 -> 2015 | H3: ='App.2-FA Proposed REG Invest.'!C63 -> 0
A4: ='LDC Info'!$E$14 -> Hydro 2000 Inc. | B4: EB-2019-0041 | C4: 2020 | D4: 2019 | E4: 2012 | F4: REI Investments_A_Total OM&A Ongoing | G4: ='App.2-FA Proposed REG Invest.'!C31 -> 2015 | H4: ='App.2-FA Proposed REG Invest.'!C64 -> 0
A5: ='LDC Info'!$E$14 -> Hydro 2000 Inc. | B5: EB-2019-0041 | C5: 2020 | D5: 2019 | E5: 2012 | F5: REI Investments_A_Total Capital Costs | G5: ='App.2-FA Proposed REG Invest.'!D31 -> 2016 | H5: ='App.2-FA Proposed REG Invest.'!D62 -> 0
A6: ='LDC Info'!$E$14 -> Hydro 2000 Inc. | B6: EB-2019-0041 | C6: 2020 | D6: 2019 | E6: 2012 | F6: REI Investments_A_Total OM&A Start-Up | G6: ='App.2-FA Proposed REG Invest.'!D31 -> 2016 | H6: ='App.2-FA Proposed REG Invest.'!D63 -> 0
A7: ='LDC Info'!$E$14 -> Hydro 2000 Inc. | B7: EB-2019-0041 | C7: 2020 | D7: 2019 | E7: 2012 | F7: REI Investments_A_Total OM&A Ongoing | G7: ='App.2-FA Proposed REG Invest.'!D31 -> 2016 | H7: ='App.2-FA Proposed REG Invest.'!D64 -> 0
A8: ='LDC Info'!$E$14 -> Hydro 2000 Inc. | B8: EB-2019-0041 | C8: 2020 | D8: 2019 | E8: 2012 | F8: REI Investments_A_Total Capital Costs | G8: ='App.2-FA Proposed REG Invest.'!E31 -> 2017 | H8: ='App.2-FA Proposed REG Invest.'!E62 -> 0
A9: ='LDC Info'!$E$14 -> Hydro 2000 Inc. | B9: EB-2019-0041 | C9: 2020 | D9: 2019 | E9: 2012 | F9: REI Investments_A_Total OM&A Start-Up | G9: ='App.2-FA Proposed REG Invest.'!E31 -> 2017 | H9: ='App.2-FA Proposed REG Invest.'!E63 -> 0
A10: ='LDC Info'!$E$14 -> Hydro 2000 Inc. | B10: EB-2019-0041 | C10: 2020 | D10: 2019 | E10: 2012 | F10: REI Investments_A_Total OM&A Ongoing | G10: ='App.2-FA Proposed REG Invest.'!E31 -> 2017 | H10: ='App.2-FA Proposed REG Invest.'!E64 -> 0
A11: ='LDC Info'!$E$14 -> Hydro 2000 Inc. | B11: EB-2019-0041 | C11: 2020 | D11: 2019 | E11: 2012 | F11: REI Investments_A_Total Capital Costs | G11: ='App.2-FA Proposed REG Invest.'!F31 -> 2018 | H11: ='App.2-FA Proposed REG Invest.'!F62 -> 0
A12: ='LDC Info'!$E$14 -> Hydro 2000 Inc. | B12: EB-2019-0041 | C12: 2020 | D12: 2019 | E12: 2012 | F12: REI Investments_A_Total OM&A Start-Up | G12: ='App.2-FA Proposed REG Invest.'!F31 -> 2018 | H12: ='App.2-FA Proposed REG Invest.'!F63 -> 0
A13: ='LDC Info'!$E$14 -> Hydro 2000 Inc. | B13: EB-2019-0041 | C13: 2020 | D13: 2019 | E13: 2012 | F13: REI Investments_A_Total OM&A Ongoing | G13: ='App.2-FA Proposed REG Invest.'!F31 -> 2018 | H13: ='App.2-FA Proposed REG Invest.'!F64 -> 0
A14: ='LDC Info'!$E$14 -> Hydro 2000 Inc. | B14: EB-2019-0041 | C14: 2020 | D14: 2019 | E14: 2012 | F14: REI Investments_A_Total Capital Costs | G14: ='App.2-FA Proposed REG Invest.'!G31 -> 2019 | H14: ='App.2-FA Proposed REG Invest.'!G62 -> 0
A15: ='LDC Info'!$E$14 -> Hydro 2000 Inc. | B15: EB-2019-0041 | C15: 2020 | D15: 2019 | E15: 2012 | F15: REI Investments_A_Total OM&A Start-Up | G15: ='App.2-FA Proposed REG Invest.'!G31 -> 2019 | H15: ='App.2-FA Proposed REG Invest.'!G63 -> 0
A16: ='LDC Info'!$E$14 -> Hydro 2000 Inc. | B16: EB-2019-0041 | C16: 2020 | D16: 2019 | E16: 2012 | F16: REI Investments_A_Total OM&A Ongoing | G16: ='App.2-FA Proposed REG Invest.'!G31 -> 2019 | H16: ='App.2-FA Proposed REG Invest.'!G64 -> 0
A17: ='LDC Info'!$E$14 -> Hydro 2000 Inc. | B17: EB-2019-0041 | C17: 2020 | D17: 2019 | E17: 2012 | F17: REI Investments_A_Total Capital Costs | G17: ='App.2-FA Proposed REG Invest.'!H31 -> 2020 | H17: ='App.2-FA Proposed REG Invest.'!H62 -> 0
A18: ='LDC Info'!$E$14 -> Hydro 2000 Inc. | B18: EB-2019-0041 | C18: 2020 | D18: 2019 | E18: 2012 | F18: REI Investments_A_Total OM&A Start-Up | G18: ='App.2-FA Proposed REG Invest.'!H31 -> 2020 | H18: ='App.2-FA Proposed REG Invest.'!H63 -> 0
A19: ='LDC Info'!$E$14 -> Hydro 2000 Inc. | B19: EB-2019-0041 | C19: 2020 | D19: 2019 | E19: 2012 | F19: REI Investments_A_Total OM&A Ongoing | G19: ='App.2-FA Proposed REG Invest.'!H31 -> 2020 | H19: ='App.2-FA Proposed REG Invest.'!H64 -> 0
A20: ='LDC Info'!$E$14 -> Hydro 2000 Inc. | B20: EB-2019-0041 | C20: 2020 | D20: 2019 | E20: 2012 | F20: REI Investments_A_Total Capital Costs | G20: ='App.2-FA Proposed REG Invest.'!I31 -> 2021 | H20: ='App.2-FA Proposed REG Invest.'!I62 -> 0
A21: ='LDC Info'!$E$14 -> Hydro 2000 Inc. | B21: EB-2019-0041 | C21: 2020 | D21: 2019 | E21: 2012 | F21: REI Investments_A_Total OM&A Start-Up | G21: ='App.2-FA Proposed REG Invest.'!I31 -> 2021 | H21: ='App.2-FA Proposed REG Invest.'!I63 -> 0
A22: ='LDC Info'!$E$14 -> Hydro 2000 Inc. | B22: EB-2019-0041 | C22: 2020 | D22: 2019 | E22: 2012 | F22: REI Investments_A_Total OM&A Ongoing | G22: ='App.2-FA Proposed REG Invest.'!I31 -> 2021 | H22: ='App.2-FA Proposed REG Invest.'!I64 -> 0
A23: ='LDC Info'!$E$14 -> Hydro 2000 Inc. | B23: EB-2019-0041 | C23: 2020 | D23: 2019 | E23: 2012 | F23: REI Investments_A_Total Capital Costs | G23: ='App.2-FA Proposed REG Invest.'!J31 -> 2022 | H23: ='App.2-FA Proposed REG Invest.'!J62 -> 0
A24: ='LDC Info'!$E$14 -> Hydro 2000 Inc. | B24: EB-2019-0041 | C24: 2020 | D24: 2019 | E24: 2012 | F24: REI Investments_A_Total OM&A Start-Up | G24: ='App.2-FA Proposed REG Invest.'!J31 -> 2022 | H24: ='App.2-FA Proposed REG Invest.'!J63 -> 0
A25: ='LDC Info'!$E$14 -> Hydro 2000 Inc. | B25: EB-2019-0041 | C25: 2020 | D25: 2019 | E25: 2012 | F25: REI Investments_A_Total OM&A Ongoing | G25: ='App.2-FA Proposed REG Invest.'!J31 -> 2022 | H25: ='App.2-FA Proposed REG Invest.'!J64 -> 0
A26: ='LDC Info'!$E$14 -> Hydro 2000 Inc. | B26: EB-2019-0041 | C26: 2020 | D26: 2019 | E26: 2012 | F26: REI Investments_A_Total Capital Costs | G26: ='App.2-FA Proposed REG Invest.'!K31 -> 2023 | H26: ='App.2-FA Proposed REG Invest.'!K62 -> 0
A27: ='LDC Info'!$E$14 -> Hydro 2000 Inc. | B27: EB-2019-0041 | C27: 2020 | D27: 2019 | E27: 2012 | F27: REI Investments_A_Total OM&A Start-Up | G27: ='App.2-FA Proposed REG Invest.'!K31 -> 2023 | H27: ='App.2-FA Proposed REG Invest.'!K63 -> 0
A28: ='LDC Info'!$E$14 -> Hydro 2000 Inc. | B28: EB-2019-0041 | C28: 2020 | D28: 2019 | E28: 2012 | F28: REI Investments_A_Total OM&A Ongoing | G28: ='App.2-FA Proposed REG Invest.'!K31 -> 2023 | H28: ='App.2-FA Proposed REG Invest.'!K64 -> 0
A29: ='LDC Info'!$E$14 -> Hydro 2000 Inc. | B29: EB-2019-0041 | C29: 2020 | D29: 2019 | E29: 2012 | F29: REI Investments_A_Total Capital Costs | G29: ='App.2-FA Proposed REG Invest.'!L31 -> 2024 | H29: ='App.2-FA Proposed REG Invest.'!L62 -> 0
A30: ='LDC Info'!$E$14 -> Hydro 2000 Inc. | B30: EB-2019-0041 | C30: 2020 | D30: 2019 | E30: 2012 | F30: REI Investments_A_Total OM&A Start-Up | G30: ='App.2-FA Proposed REG Invest.'!L31 -> 2024 | H30: ='App.2-FA Proposed REG Invest.'!L63 -> 0
A31: ='LDC Info'!$E$14 -> Hydro 2000 Inc. | B31: EB-2019-0041 | C31: 2020 | D31: 2019 | E31: 2012 | F31: REI Investments_A_Total OM&A Ongoing | G31: ='App.2-FA Proposed REG Invest.'!L31 -> 2024 | H31: ='App.2-FA Proposed REG Invest.'!L64 -> 0
A32: ='LDC Info'!$E$14 -> Hydro 2000 Inc. | B32: EB-2019-0041 | C32: 2020 | D32: 2019 | E32: 2012 | F32: Expansion Investments_B_Total Capital Costs | G32: ='App.2-FA Proposed REG Invest.'!C31 -> 2015 | H32: ='App.2-FA Proposed REG Invest.'!C99 -> 0
A33: ='LDC Info'!$E$14 -> Hydro 2000 Inc. | B33: EB-2019-0041 | C33: 2020 | D33: 2019 | E33: 2012 | F33: Expansion Investments_B_Total OM&A Start-Up | G33: ='App.2-FA Proposed REG Invest.'!C31 -> 2015 | H33: ='App.2-FA Proposed REG Invest.'!C100 -> 0
A34: ='LDC Info'!$E$14 -> Hydro 2000 Inc. | B34: EB-2019-0041 | C34: 2020 | D34: 2019 | E34: 2012 | F34: Expansion Investments_B_Total OM&A Ongoing | G34: ='App.2-FA Proposed REG Invest.'!C31 -> 2015 | H34: ='App.2-FA Proposed REG Invest.'!C101 -> 0
A35: ='LDC Info'!$E$14 -> Hydro 2000 Inc. | B35: EB-2019-0041 | C35: 2020 | D35: 2019 | E35: 2012 | F35: Expansion Investments_B_Total Capital Costs | G35: ='App.2-FA Proposed REG Invest.'!D31 -> 2016 | H35: ='App.2-FA Proposed REG Invest.'!D99 -> 0
A36: ='LDC Info'!$E$14 -> Hydro 2000 Inc. | B36: EB-2019-0041 | C36: 2020 | D36: 2019 | E36: 2012 | F36: Expansion Investments_B_Total OM&A Start-Up | G36: ='App.2-FA Proposed REG Invest.'!D31 -> 2016 | H36: ='App.2-FA Proposed REG Invest.'!D100 -> 0
A37: ='LDC Info'!$E$14 -> Hydro 2000 Inc. | B37: EB-2019-0041 | C37: 2020 | D37: 2019 | E37: 2012 | F37: Expansion Investments_B_Total OM&A Ongoing | G37: ='App.2-FA Proposed REG Invest.'!D31 -> 2016 | H37: ='App.2-FA Proposed REG Invest.'!D101 -> 0
A38: ='LDC Info'!$E$14 -> Hydro 2000 Inc. | B38: EB-2019-0041 | C38: 2020 | D38: 2019 | E38: 2012 | F38: Expansion Investments_B_Total Capital Costs | G38: ='App.2-FA Proposed REG Invest.'!E31 -> 2017 | H38: ='App.2-FA Proposed REG Invest.'!E99 -> 0
A39: ='LDC Info'!$E$14 -> Hydro 2000 Inc. | B39: EB-2019-0041 | C39: 2020 | D39: 2019 | E39: 2012 | F39: Expansion Investments_B_Total OM&A Start-Up | G39: ='App.2-FA Proposed REG Invest.'!E31 -> 2017 | H39: ='App.2-FA Proposed REG Invest.'!E100 -> 0
A40: ='LDC Info'!$E$14 -> Hydro 2000 Inc. | B40: EB-2019-0041 | C40: 2020 | D40: 2019 | E40: 2012 | F40: Expansion Investments_B_Total OM&A Ongoing | G40: ='App.2-FA Proposed REG Invest.'!E31 -> 2017 | H40: ='App.2-FA Proposed REG Invest.'!E101 -> 0
A41: ='LDC Info'!$E$14 -> Hydro 2000 Inc. | B41: EB-2019-0041 | C41: 2020 | D41: 2019 | E41: 2012 | F41: Expansion Investments_B_Total Capital Costs | G41: ='App.2-FA Proposed REG Invest.'!F31 -> 2018 | H41: ='App.2-FA Proposed REG Invest.'!F99 -> 0
A42: ='LDC Info'!$E$14 -> Hydro 2000 Inc. | B42: EB-2019-0041 | C42: 2020 | D42: 2019 | E42: 2012 | F42: Expansion Investments_B_Total OM&A Start-Up | G42: ='App.2-FA Proposed REG Invest.'!F31 -> 2018 | H42: ='App.2-FA Proposed REG Invest.'!F100 -> 0
A43: ='LDC Info'!$E$14 -> Hydro 2000 Inc. | B43: EB-2019-0041 | C43: 2020 | D43: 2019 | E43: 2012 | F43: Expansion Investments_B_Total OM&A Ongoing | G43: ='App.2-FA Proposed REG Invest.'!F31 -> 2018 | H43: ='App.2-FA Proposed REG Invest.'!F101 -> 0
A44: ='LDC Info'!$E$14 -> Hydro 2000 Inc. | B44: EB-2019-0041 | C44: 2020 | D44: 2019 | E44: 2012 | F44: Expansion Investments_B_Total Capital Costs | G44: ='App.2-FA Proposed REG Invest.'!G31 -> 2019 | H44: ='App.2-FA Proposed REG Invest.'!G99 -> 0
A45: ='LDC Info'!$E$14 -> Hydro 2000 Inc. | B45: EB-2019-0041 | C45: 2020 | D45: 2019 | E45: 2012 | F45: Expansion Investments_B_Total OM&A Start-Up | G45: ='App.2-FA Proposed REG Invest.'!G31 -> 2019 | H45: ='App.2-FA Proposed REG Invest.'!G100 -> 0
A46: ='LDC Info'!$E$14 -> Hydro 2000 Inc. | B46: EB-2019-0041 | C46: 2020 | D46: 2019 | E46: 2012 | F46: Expansion Investments_B_Total OM&A Ongoing | G46: ='App.2-FA Proposed REG Invest.'!G31 -> 2019 | H46: ='App.2-FA Proposed REG Invest.'!G101 -> 0
A47: ='LDC Info'!$E$14 -> Hydro 2000 Inc. | B47: EB-2019-0041 | C47: 2020 | D47: 2019 | E47: 2012 | F47: Expansion Investments_B_Total Capital Costs | G47: ='App.2-FA Proposed REG Invest.'!H31 -> 2020 | H47: ='App.2-FA Proposed REG Invest.'!H99 -> 0
A48: ='LDC Info'!$E$14 -> Hydro 2000 Inc. | B48: EB-2019-0041 | C48: 2020 | D48: 2019 | E48: 2012 | F48: Expansion Investments_B_Total OM&A Start-Up | G48: ='App.2-FA Proposed REG Invest.'!H31 -> 2020 | H48: ='App.2-FA Proposed REG Invest.'!H100 -> 0
A49: ='LDC Info'!$E$14 -> Hydro 2000 Inc. | B49: EB-2019-0041 | C49: 2020 | D49: 2019 | E49: 2012 | F49: Expansion Investments_B_Total OM&A Ongoing | G49: ='App.2-FA Proposed REG Invest.'!H31 -> 2020 | H49: ='App.2-FA Proposed REG Invest.'!H101 -> 0
A50: ='LDC Info'!$E$14 -> Hydro 2000 Inc. | B50: EB-2019-0041 | C50: 2020 | D50: 2019 | E50: 2012 | F50: Expansion Investments_B_Total Capital Costs | G50: ='App.2-FA Proposed REG Invest.'!I31 -> 2021 | H50: ='App.2-FA Proposed REG Invest.'!I99 -> 0
A51: ='LDC Info'!$E$14 -> Hydro 2000 Inc. | B51: EB-2019-0041 | C51: 2020 | D51: 2019 | E51: 2012 | F51: Expansion Investments_B_Total OM&A Start-Up | G51: ='App.2-FA Proposed REG Invest.'!I31 -> 2021 | H51: ='App.2-FA Proposed REG Invest.'!I100 -> 0
A52: ='LDC Info'!$E$14 -> Hydro 2000 Inc. | B52: EB-2019-0041 | C52: 2020 | D52: 2019 | E52: 2012 | F52: Expansion Investments_B_Total OM&A Ongoing | G52: ='App.2-FA Proposed REG Invest.'!I31 -> 2021 | H52: ='App.2-FA Proposed REG Invest.'!I101 -> 0
A53: ='LDC Info'!$E$14 -> Hydro 2000 Inc. | B53: EB-2019-0041 | C53: 2020 | D53: 2019 | E53: 2012 | F53: Expansion Investments_B_Total Capital Costs | G53: ='App.2-FA Proposed REG Invest.'!J31 -> 2022 | H53: ='App.2-FA Proposed REG Invest.'!J99 -> 0
A54: ='LDC Info'!$E$14 -> Hydro 2000 Inc. | B54: EB-2019-0041 | C54: 2020 | D54: 2019 | E54: 2012 | F54: Expansion Investments_B_Total OM&A Start-Up | G54: ='App.2-FA Proposed REG Invest.'!J31 -> 2022 | H54: ='App.2-FA Proposed REG Invest.'!J100 -> 0
A55: ='LDC Info'!$E$14 -> Hydro 2000 Inc. | B55: EB-2019-0041 | C55: 2020 | D55: 2019 | E55: 2012 | F55: Expansion Investments_B_Total OM&A Ongoing | G55: ='App.2-FA Proposed REG Invest.'!J31 -> 2022 | H55: ='App.2-FA Proposed REG Invest.'!J101 -> 0
A56: ='LDC Info'!$E$14 -> Hydro 2000 Inc. | B56: EB-2019-0041 | C56: 2020 | D56: 2019 | E56: 2012 | F56: Expansion Investments_B_Total Capital Costs | G56: ='App.2-FA Proposed REG Invest.'!K31 -> 2023 | H56: ='App.2-FA Proposed REG Invest.'!K99 -> 0
A57: ='LDC Info'!$E$14 -> Hydro 2000 Inc. | B57: EB-2019-0041 | C57: 2020 | D57: 2019 | E57: 2012 | F57: Expansion Investments_B_Total OM&A Start-Up | G57: ='App.2-FA Proposed REG Invest.'!K31 -> 2023 | H57: ='App.2-FA Proposed REG Invest.'!K100 -> 0
A58: ='LDC Info'!$E$14 -> Hydro 2000 Inc. | B58: EB-2019-0041 | C58: 2020 | D58: 2019 | E58: 2012 | F58: Expansion Investments_B_Total OM&A Ongoing | G58: ='App.2-FA Proposed REG Invest.'!K31 -> 2023 | H58: ='App.2-FA Proposed REG Invest.'!K101 -> 0
A59: ='LDC Info'!$E$14 -> Hydro 2000 Inc. | B59: EB-2019-0041 | C59: 2020 | D59: 2019 | E59: 2012 | F59: Expansion Investments_B_Total Capital Costs | G59: ='App.2-FA Proposed REG Invest.'!L31 -> 2024 | H59: ='App.2-FA Proposed REG Invest.'!L99 -> 0
A60: ='LDC Info'!$E$14 -> Hydro 2000 Inc. | B60: EB-2019-0041 | C60: 2020 | D60: 2019 | E60: 2012 | F60: Expansion Investments_B_Total OM&A Start-Up | G60: ='App.2-FA Proposed REG Invest.'!L31 -> 2024 | H60: ='App.2-FA Proposed REG Invest.'!L100 -> 0
A61: ='LDC Info'!$E$14 -> Hydro 2000 Inc. | B61: EB-2019-0041 | C61: 2020 | D61: 2019 | E61: 2012 | F61: Expansion Investments_B_Total OM&A Ongoing | G61: ='App.2-FA Proposed REG Invest.'!L31 -> 2024 | H61: ='App.2-FA Proposed REG Invest.'!L101 -> 0

Sheet App.2-FB Calc of REG Improvemnt
Q1: File Number: | R1: =EBNUMBER -> EB-2019-0041
Q2: Exhibit:
Q3: Tab:
A4: TO BE UPDATED AT DRAFT RATE ORDER STAGE | Q4: Schedule:
Q5: Page:
Q7: Date:
A9: Appendix 2-FB
A10: Calculation of Renewable Generation Connection Direct Benefits/Provincial Amount: Renewable Enabling Improvement Investments
A12: This table will calculate the distributor/provincial shares of the investments entered in Part A of Appendix 2-FA.
A13: Enter values in green shaded cells: WCA percentage, debt percentages, interest rates, kWh, tax rates, amortization period, CCA Class and percentage.
A14: ="For historical investments, enter these variables that were approved in your last cost of service test year. For " & TestYear & " and beyond, enter variables as in the application." -> For historical investments, enter these variables that were approved in your last cost of service test year. For 2020 and beyond, enter variables as in the application.
A15: Rate Riders are not calculated for the Test Year as these assets and costs are already in the distributor's rate base/revenue requirement.
C17: =F17-1 -> 2015 | F17: =I17-1 -> 2016 | I17: =L17-1 -> 2017 | L17: =O17-1 -> 2018 | O17: =BridgeYear -> 2019 | R17: =CONCATENATE(TestYear," Test Year") -> 2020 Test Year | U17: =TestYear+1 -> 2021 | X17: =U17+1 -> 2022 | Y17: 2016 | AA17: =X17+1 -> 2023 | AD17: =AA17+1 -> 2024
D18: Direct Benefit | E18: Provincial | G18: Direct Benefit | H18: Provincial | J18: Direct Benefit | K18: Provincial | M18: Direct Benefit | N18: Provincial | P18: Direct Benefit | Q18: Provincial | S18: Direct Benefit | T18: Provincial | V18: Direct Benefit | W18: Provincial | Y18: Direct Benefit | Z18: Provincial | AB18: Direct Benefit | AC18: Provincial | AE18: Direct Benefit | AF18: Provincial
C19: Total | D19: 0.06 | E19: 0.94 | F19: Total | G19: 0.06 | H19: 0.94 | I19: Total | J19: 0.06 | K19: 0.94 | L19: Total | M19: 0.06 | N19: 0.94 | O19: Total | P19: 0.06 | Q19: 0.94 | R19: Total | S19: 0.06 | T19: 0.94 | U19: Total | V19: 0.06 | W19: 0.94 | X19: Total | Y19: 0.06 | Z19: 0.94 | AA19: Total | AB19: 0.06 | AC19: 0.94 | AD19: Total | AE19: 0.06 | AF19: 0.94
A20: Net Fixed Assets (average) | C20: =F82 ->  | D20: =C20*D19 ->  | E20: =C20*E19 ->  | F20: =G82 ->  | G20: =F20*G19 ->  | H20: =F20*H19 ->  | I20: =H82 ->  | J20: =I20*J19 ->  | K20: =I20*K19 ->  | L20: =I82 ->  | M20: =L20*M19 ->  | N20: =L20*N19 ->  | O20: =J82 ->  | P20: =O20*P19 ->  | Q20: =O20*Q19 ->  | R20: =K82 ->  | S20: =R20*S19 ->  | T20: =R20*T19 ->  | U20: =L82 ->  | V20: =U20*V19 ->  | W20: =U20*W19 ->  | X20: =M82 ->  | Y20: =X20*Y19 ->  | Z20: =X20*Z19 ->  | AA20: =N82 ->  | AB20: =AA20*AB19 ->  | AC20: =AA20*AC19 ->  | AD20: =O82 ->  | AE20: =AD20*AE19 ->  | AF20: =AD20*AF19 -> 
A21: Incremental OM&A (on-going, N/A for Provincial Recovery) | C21: ='App.2-FA Proposed REG Invest.'!C64 -> 0 | D21: =C21 -> 0 | F21: ='App.2-FA Proposed REG Invest.'!D64 -> 0 | G21: =F21 -> 0 | I21: ='App.2-FA Proposed REG Invest.'!E64 -> 0 | J21: =I21 -> 0 | L21: ='App.2-FA Proposed REG Invest.'!F64 -> 0 | M21: =L21 -> 0 | O21: ='App.2-FA Proposed REG Invest.'!G64 -> 0 | P21: =O21 -> 0 | R21: ='App.2-FA Proposed REG Invest.'!H64 -> 0 | S21: =R21 -> 0 | U21: ='App.2-FA Proposed REG Invest.'!I64 -> 0 | V21: =U21 -> 0 | X21: ='App.2-FA Proposed REG Invest.'!J64 -> 0 | Y21: =X21 -> 0 | AA21: ='App.2-FA Proposed REG Invest.'!K64 -> 0 | AB21: =AA21 -> 0 | AD21: ='App.2-FA Proposed REG Invest.'!L64 -> 0 | AE21: =AD21 -> 0
A22: Incremental OM&A (start-up, applicable for Provincial Recovery) | C22: ='App.2-FA Proposed REG Invest.'!C63 -> 0 | D22: =C22*D19 -> 0 | E22: =C22*E19 -> 0 | F22: ='App.2-FA Proposed REG Invest.'!D63 -> 0 | G22: =F22*G19 -> 0 | H22: =F22*H19 -> 0 | I22: ='App.2-FA Proposed REG Invest.'!E63 -> 0 | J22: =I22*J19 -> 0 | K22: =I22*K19 -> 0 | L22: ='App.2-FA Proposed REG Invest.'!F63 -> 0 | M22: =L22*M19 -> 0 | N22: =L22*N19 -> 0 | O22: ='App.2-FA Proposed REG Invest.'!G63 -> 0 | P22: =O22*P19 -> 0 | Q22: =O22*Q19 -> 0 | R22: ='App.2-FA Proposed REG Invest.'!H63 -> 0 | S22: =R22*S19 -> 0 | T22: =R22*T19 -> 0 | U22: ='App.2-FA Proposed REG Invest.'!I63 -> 0 | V22: =U22*V19 -> 0 | W22: =U22*W19 -> 0 | X22: ='App.2-FA Proposed REG Invest.'!J63 -> 0 | Y22: =X22*Y19 -> 0 | Z22: =X22*Z19 -> 0 | AA22: ='App.2-FA Proposed REG Invest.'!K63 -> 0 | AB22: =AA22*AB19 -> 0 | AC22: =AA22*AC19 -> 0 | AD22: ='App.2-FA Proposed REG Invest.'!L63 -> 0 | AE22: =AD22*AE19 -> 0 | AF22: =AD22*AF19 -> 0
A23: WCA | D23: =(D21+D22)*$B$23 -> 0 | E23: =E22*$B$23 -> 0 | G23: =(G21+G22)*$B$23 -> 0 | H23: =H22*$B$23 -> 0 | J23: =(J21+J22)*$B$23 -> 0 | K23: =K22*$B$23 -> 0 | M23: =(M21+M22)*$B$23 -> 0 | N23: =N22*$B$23 -> 0 | P23: =(P21+P22)*$B$23 -> 0 | Q23: =Q22*$B$23 -> 0 | S23: =(S21+S22)*$B$23 -> 0 | T23: =T22*$B$23 -> 0 | V23: =(V21+V22)*$B$23 -> 0 | W23: =W22*$B$23 -> 0 | Y23: =(Y21+Y22)*$B$23 -> 0 | Z23: =Z22*$B$23 -> 0 | AB23: =(AB21+AB22)*$B$23 -> 0 | AC23: =AC22*$B$23 -> 0 | AE23: =(AE21+AE22)*$B$23 -> 0 | AF23: =AF22*$B$23 -> 0
A24: Rate Base | D24: =SUM(D20+D23) ->  | E24: =SUM(E20+E23) ->  | G24: =SUM(G20+G23) ->  | H24: =SUM(H20+H23) ->  | J24: =SUM(J20+J23) ->  | K24: =SUM(K20+K23) ->  | M24: =SUM(M20+M23) ->  | N24: =SUM(N20+N23) ->  | P24: =SUM(P20+P23) ->  | Q24: =SUM(Q20+Q23) ->  | S24: =SUM(S20+S23) ->  | T24: =SUM(T20+T23) ->  | V24: =SUM(V20+V23) ->  | W24: =SUM(W20+W23) ->  | Y24: =SUM(Y20+Y23) ->  | Z24: =SUM(Z20+Z23) ->  | AB24: =SUM(AB20+AB23) ->  | AC24: =SUM(AC20+AC23) ->  | AE24: =SUM(AE20+AE23) ->  | AF24: =SUM(AF20+AF23) -> 
A27: Deemed ST Debt | D27: =D24*$B$27 ->  | E27: =E24*$B$27 ->  | G27: =G24*$B$27 ->  | H27: =H24*$B$27 ->  | J27: =J24*$B$27 ->  | K27: =K24*$B$27 ->  | M27: =M24*$B$27 ->  | N27: =N24*$B$27 ->  | P27: =P24*$B$27 ->  | Q27: =Q24*$B$27 ->  | S27: =S24*$B$27 ->  | T27: =T24*$B$27 ->  | V27: =V24*$B$27 ->  | W27: =W24*$B$27 ->  | Y27: =Y24*$B$27 ->  | Z27: =Z24*$B$27 ->  | AB27: =AB24*$B$27 ->  | AC27: =AC24*$B$27 ->  | AE27: =AE24*$B$27 ->  | AF27: =AF24*$B$27 -> 
A28: Deemed LT Debt | D28: =D24*$B$28 ->  | E28: =E24*$B$28 ->  | G28: =G24*$B$28 ->  | H28: =H24*$B$28 ->  | J28: =J24*$B$28 ->  | K28: =K24*$B$28 ->  | M28: =M24*$B$28 ->  | N28: =N24*$B$28 ->  | P28: =P24*$B$28 ->  | Q28: =Q24*$B$28 ->  | S28: =S24*$B$28 ->  | T28: =T24*$B$28 ->  | V28: =V24*$B$28 ->  | W28: =W24*$B$28 ->  | Y28: =Y24*$B$28 ->  | Z28: =Z24*$B$28 ->  | AB28: =AB24*$B$28 ->  | AC28: =AC24*$B$28 ->  | AE28: =AE24*$B$28 ->  | AF28: =AF24*$B$28 -> 
A29: Deemed Equity | D29: =D24*$B$29 ->  | E29: =E24*$B$29 ->  | G29: =G24*$B$29 ->  | H29: =H24*$B$29 ->  | J29: =J24*$B$29 ->  | K29: =K24*$B$29 ->  | M29: =M24*$B$29 ->  | N29: =N24*$B$29 ->  | P29: =P24*$B$29 ->  | Q29: =Q24*$B$29 ->  | S29: =S24*$B$29 ->  | T29: =T24*$B$29 ->  | V29: =V24*$B$29 ->  | W29: =W24*$B$29 ->  | Y29: =Y24*$B$29 ->  | Z29: =Z24*$B$29 ->  | AB29: =AB24*$B$29 ->  | AC29: =AC24*$B$29 ->  | AE29: =AE24*$B$29 ->  | AF29: =AF24*$B$29 -> 
A31: ST Interest | D31: =D27*$B31 ->  | G31: =G27*$B31 ->  | J31: =J27*$B31 ->  | M31: =M27*$B31 ->  | P31: =P27*$B31 ->  | S31: =S27*$B31 ->  | V31: =V27*$B31 ->  | Y31: =Y27*$B31 ->  | AB31: =AB27*$B31 ->  | AE31: =AE27*$B31 -> 
A32: LT Interest | D32: =D28*$B32 -> 
A33: ROE | D33: =D29*$B33 -> 
A34: Cost of Capital Total | D34: =SUM(D31:D33) ->  | E34: =SUM(E31:E33) ->  | G34: =SUM(G31:G33) ->  | H34: =SUM(H31:H33) ->  | J34: =SUM(J31:J33) ->  | K34: =SUM(K31:K33) ->  | M34: =SUM(M31:M33) ->  | N34: =SUM(N31:N33) ->  | P34: =SUM(P31:P33) ->  | Q34: =SUM(Q31:Q33) ->  | S34: =SUM(S31:S33) ->  | T34: =SUM(T31:T33) ->  | V34: =SUM(V31:V33) ->  | W34: =SUM(W31:W33) ->  | Y34: =SUM(Y31:Y33) ->  | Z34: =SUM(Z31:Z33) ->  | AB34: =SUM(AB31:AB33) ->  | AC34: =SUM(AC31:AC33) ->  | AE34: =SUM(AE31:AE33) ->  | AF34: =SUM(AF31:AF33) -> 
A36: OM&A | D36: =D21+D22 -> 0 | E36: =E22 -> 0 | G36: =G21+G22 -> 0 | H36: =H22 -> 0 | J36: =J21+J22 -> 0 | K36: =K22 -> 0 | M36: =M21+M22 -> 0 | N36: =N22 -> 0 | P36: =P21+P22 -> 0 | Q36: =Q22 -> 0 | S36: =S21+S22 -> 0 | T36: =T22 -> 0 | V36: =V21+V22 -> 0 | W36: =W22 -> 0 | Y36: =Y21+Y22 -> 0 | Z36: =Z22 -> 0 | AB36: =AB21+AB22 -> 0 | AC36: =AC22 -> 0 | AE36: =AE21+AE22 -> 0 | AF36: =AF22 -> 0
A37: Amortization | C37: =D77 -> 0 | D37: =C37*D$19 -> 0 | E37: =C37*E$19 -> 0 | F37: =G77 ->  | G37: =F37*G$19 ->  | H37: =F37*H$19 ->  | I37: =H77 ->  | J37: =I37*J$19 ->  | K37: =I37*K$19 ->  | L37: =I77 ->  | M37: =L37*M$19 ->  | N37: =L37*N$19 ->  | O37: =J77 ->  | P37: =O37*P$19 ->  | Q37: =O37*Q$19 ->  | R37: =K77 ->  | S37: =R37*S$19 ->  | T37: =R37*T$19 ->  | U37: =L76+L77 ->  | V37: =U37*V$19 ->  | W37: =U37*W$19 ->  | X37: =M76+M77 ->  | Y37: =X37*Y$19 ->  | Z37: =X37*Z$19 ->  | AA37: =N76+N77 ->  | AB37: =AA37*AB$19 ->  | AC37: =AA37*AC$19 ->  | AD37: =O76+O77 ->  | AE37: =AD37*AE$19 ->  | AF37: =AD37*AF$19 -> 
A38: Grossed-up PILs | D38: =D65 ->  | E38: =E65 ->  | G38: =G65 ->  | H38: =H65 ->  | J38: =J65 ->  | K38: =K65 ->  | M38: =M65 ->  | N38: =N65 ->  | P38: =P65 ->  | Q38: =Q65 ->  | S38: =S65 ->  | T38: =T65 ->  | V38: =V65 ->  | W38: =W65 ->  | Y38: =Y65 ->  | Z38: =Z65 ->  | AB38: =AB65 ->  | AC38: =AC65 ->  | AE38: =AE65 ->  | AF38: =AF65 -> 
A40: Revenue Requirement | D40: =SUM(D34:D38) ->  | E40: =SUM(E34:E38) ->  | G40: =SUM(G34:G38) ->  | H40: =SUM(H34:H38) ->  | J40: =SUM(J34:J38) ->  | K40: =SUM(K34:K38) ->  | M40: =SUM(M34:M38) ->  | N40: =SUM(N34:N38) ->  | P40: =SUM(P34:P38) ->  | Q40: =SUM(Q34:Q38) ->  | S40: =SUM(S34:S38) ->  | T40: =SUM(T34:T38) ->  | V40: =SUM(V34:V38) ->  | W40: =SUM(W34:W38) ->  | Y40: =SUM(Y34:Y38) ->  | Z40: =SUM(Z34:Z38) ->  | AB40: =SUM(AB34:AB38) ->  | AC40: =SUM(AC34:AC38) ->  | AE40: =SUM(AE34:AE38) ->  | AF40: =SUM(AF34:AF38) -> 
A43: Provincial Rate Protection | E43: =E40 ->  | H43: =H40 ->  | K43: =K40 ->  | N43: =N40 ->  | Q43: =Q40 ->  | T43: =T40 ->  | W43: =W40 ->  | Z43: =Z40 ->  | AC43: =AC40 ->  | AF43: =AF40 -> 
A45: Monthly Amount Paid by IESO | E45: =E43/12 ->  | H45: =H43/12 ->  | K45: =K43/12 ->  | N45: =N43/12 ->  | Q45: =Q43/12 ->  | T45: =T43/12 ->  | W45: =W43/12 ->  | Z45: =Z43/12 ->  | AC45: =AC43/12 ->  | AF45: =AF43/12 -> 
A47: Note 1: The distributor should follow the regulatory accounting set out in the Accounting Procedure Handbook Guidance FAQs issued in March 2015. Q10 of the APH FAQs states that: “For approved eligible investments as defined under O.Reg. 330/09 under the OEB Act, a variance account will continue to be used for the purpose of recording variances between the revenue requirement based on actual costs of approved eligible investments and the revenue received from the IESO.” The answer for Q10 provides the accounting guidance for this variance account: “Distributors that have included eligible investments to connect qualifying facilities in their DS plans are to establish the variance Account 1533 Renewable Generation Connection Funding Adder Deferral Account, Sub-account Provincial Rate Protection Payment Variances following OEB approval for investments forecast to enter service beyond the test year for purposes of implementing rate protection pursuant to O.Reg. 330/09. The purpose of this variance account is to track the variance between the distributor’s revenue requirement associated with the portion of the actual capital and/or operating costs that are eligible for rate protection, as incurred by the distributor for eligible renewable enabling and expansion investments, and the rate protection payments collected from the IESO.” The answer further provides the journal entries to record the variances. Distributors should follow the instructions in the answer for recording the journal entries in the variance account 1533.
A49: Note 2: For the Test Year, Costs and Revenues of the Direct Benefit are to be included in the test year applicant Rate Base and Revenues.
A51: PILs Calculation
D52: =F17-1 -> 2015 | G52: =F17 -> 2016 | J52: =I17 -> 2017 | M52: =L17 -> 2018 | P52: =O17 -> 2019 | S52: =R17 -> 2020 Test Year | V52: =U17 -> 2021 | Y52: =X17 -> 2022 | AB52: =AA17 -> 2023 | AE52: =AD17 -> 2024
A53: Income Tax | D53: Direct Benefit | E53: Provincial | G53: Direct Benefit | H53: Provincial | J53: Direct Benefit | K53: Provincial | M53: Direct Benefit | N53: Provincial | P53: Direct Benefit | Q53: Provincial | S53: Direct Benefit | T53: Provincial | V53: Direct Benefit | W53: Provincial | Y53: Direct Benefit | Z53: Provincial | AB53: Direct Benefit | AC53: Provincial | AE53: Direct Benefit | AF53: Provincial
AA54: Total | AD54: Total
A55: Net Income - ROE on Rate Base | D55: =D33 ->  | E55: =E33 ->  | G55: =G33 ->  | H55: =H33 ->  | J55: =J33 ->  | K55: =K33 ->  | M55: =M33 ->  | N55: =N33 ->  | P55: =P33 ->  | Q55: =Q33 ->  | S55: =S33 ->  | T55: =T33 ->  | V55: =V33 ->  | W55: =W33 ->  | Y55: =Y33 ->  | Z55: =Z33 ->  | AB55: =AB33 ->  | AC55: =AC33 ->  | AE55: =AE33 ->  | AF55: =AF33 -> 
A56: Amortization (6% DB and 94% P) | D56: =D37 -> 0 | E56: =E37 -> 0 | G56: =G37 ->  | H56: =H37 ->  | J56: =J37 ->  | K56: =K37 ->  | M56: =M37 ->  | N56: =N37 ->  | P56: =P37 ->  | Q56: =Q37 ->  | S56: =S37 ->  | T56: =T37 ->  | V56: =V37 ->  | W56: =W37 ->  | Y56: =Y37 ->  | Z56: =Z37 ->  | AB56: =AB37 ->  | AC56: =AC37 ->  | AE56: =AE37 ->  | AF56: =AF37 -> 
A57: CCA (6% DB and 94% P) | D57: =-D94*D$19 -> 0 | E57: =-D94*E$19 -> 0 | G57: =-G94*G$19 -> 0 | H57: =-G94*H$19 -> 0 | J57: =-H94*J19 -> 0 | K57: =-H94*K$19 -> 0 | M57: =-I94*M$19 -> 0 | N57: =-I94*N$19 -> 0 | P57: =-J94*P$19 -> 0 | Q57: =-J94*Q$19 -> 0 | S57: =-K94*S$19 -> 0 | T57: =-K94*T$19 -> 0 | V57: =-L94*V$19 -> 0 | W57: =-L94*W$19 -> 0 | Y57: =-M94*Y$19 -> 0 | Z57: =-M94*Z$19 -> 0 | AB57: =-N94*AB$19 -> 0 | AC57: =-N94*AC$19 -> 0 | AE57: =-O94*AE$19 -> 0 | AF57: =-O94*AF$19 -> 0
A58: Taxable income | D58: =SUM(D55:D57) ->  | E58: =SUM(E55:E57) ->  | G58: =SUM(G55:G57) ->  | H58: =SUM(H55:H57) ->  | J58: =SUM(J55:J57) ->  | K58: =SUM(K55:K57) ->  | M58: =SUM(M55:M57) ->  | N58: =SUM(N55:N57) ->  | P58: =SUM(P55:P57) ->  | Q58: =SUM(Q55:Q57) ->  | S58: =SUM(S55:S57) ->  | T58: =SUM(T55:T57) ->  | V58: =SUM(V55:V57) ->  | W58: =SUM(W55:W57) ->  | Y58: =SUM(Y55:Y57) ->  | Z58: =SUM(Z55:Z57) ->  | AB58: =SUM(AB55:AB57) ->  | AC58: =SUM(AC55:AC57) ->  | AE58: =SUM(AE55:AE57) ->  | AF58: =SUM(AF55:AF57) -> 
A60: Tax Rate (to be entered)
A62: Income Taxes Payable | D62: =D58*D60 ->  | E62: =E58*E60 ->  | G62: =G58*G60 ->  | H62: =H58*H60 ->  | J62: =J58*J60 ->  | K62: =K58*K60 ->  | M62: =M58*M60 ->  | N62: =N58*N60 ->  | P62: =P58*P60 ->  | Q62: =Q58*Q60 ->  | S62: =S58*S60 ->  | T62: =T58*T60 ->  | V62: =V58*V60 ->  | W62: =W58*W60 ->  | Y62: =Y58*Y60 ->  | Z62: =Z58*Z60 ->  | AB62: =AB58*AB60 ->  | AC62: =AC58*AC60 ->  | AE62: =AE58*AE60 ->  | AF62: =AF58*AF60 -> 
A63: Gross Up
A64: Income Taxes Payable | D64: =D62/(1-D60) ->  | E64: =E62/(1-E60) ->  | G64: =G62/(1-G60) ->  | H64: =H62/(1-H60) ->  | J64: =J62/(1-J60) ->  | K64: =K62/(1-K60) ->  | M64: =M62/(1-M60) ->  | N64: =N62/(1-N60) ->  | P64: =P62/(1-P60) ->  | Q64: =Q62/(1-Q60) ->  | S64: =S62/(1-S60) ->  | T64: =T62/(1-T60) ->  | V64: =V62/(1-V60) ->  | W64: =W62/(1-W60) ->  | Y64: =Y62/(1-Y60) ->  | Z64: =Z62/(1-Z60) ->  | AB64: =AB62/(1-AB60) ->  | AC64: =AC62/(1-AC60) ->  | AE64: =AE62/(1-AE60) ->  | AF64: =AF62/(1-AF60) -> 
A65: Grossed Up PILs | D65: =SUM(D64:D64) ->  | E65: =SUM(E64:E64) ->  | G65: =SUM(G64:G64) ->  | H65: =SUM(H64:H64) ->  | J65: =SUM(J64:J64) ->  | K65: =SUM(K64:K64) ->  | M65: =SUM(M64:M64) ->  | N65: =SUM(N64:N64) ->  | P65: =SUM(P64:P64) ->  | Q65: =SUM(Q64:Q64) ->  | S65: =SUM(S64:S64) ->  | T65: =SUM(T64:T64) ->  | V65: =SUM(V64:V64) ->  | W65: =SUM(W64:W64) ->  | Y65: =SUM(Y64:Y64) ->  | Z65: =SUM(Z64:Z64) ->  | AB65: =SUM(AB64:AB64) ->  | AC65: =SUM(AC64:AC64) ->  | AE65: =SUM(AE64:AE64) ->  | AF65: =SUM(AF64:AF64) -> 
F68: =G68-1 -> 2015 | G68: =H68-1 -> 2016 | H68: =I68-1 -> 2017 | I68: =J68-1 -> 2018 | J68: =K68-1 -> 2019 | K68: =TestYear -> 2020 | L68: =K68+1 -> 2021 | M68: =L68+1 -> 2022 | N68: =M68+1 -> 2023 | O68: =N68+1 -> 2024
A69: Net Fixed Assets
B70: Enter applicable amortization in years:
A71: Opening Gross Fixed Assets | G71: =F73 -> 0 | H71: =G73 -> 0 | I71: 0 | J71: 0 | K71: 0 | L71: 0 | M71: 0 | N71: 0 | O71: 0
A72: Gross Capital Additions | F72: ='App.2-FA Proposed REG Invest.'!C62 -> 0 | G72: ='App.2-FA Proposed REG Invest.'!D62 -> 0 | H72: ='App.2-FA Proposed REG Invest.'!E62 -> 0 | I72: ='App.2-FA Proposed REG Invest.'!F62 -> 0 | J72: ='App.2-FA Proposed REG Invest.'!G62 -> 0 | K72: ='App.2-FA Proposed REG Invest.'!H62 -> 0 | L72: ='App.2-FA Proposed REG Invest.'!I62 -> 0 | M72: ='App.2-FA Proposed REG Invest.'!J62 -> 0 | N72: ='App.2-FA Proposed REG Invest.'!K62 -> 0 | O72: ='App.2-FA Proposed REG Invest.'!L62 -> 0
A73: Closing Gross Fixed Assets | F73: =SUM(F71:F72) -> 0 | G73: =SUM(G71:G72) -> 0 | H73: 0 | I73: 0 | J73: 0 | K73: 0 | L73: 0 | M73: 0 | N73: 0 | O73: 0
A75: Opening Accumulated Amortization | H75: =+G78 ->  | I75: =H78 -> 
A76: Current Year Amortization (before additions) | F76: =IF(ISERROR(F71/$C$70), 0, F71/$C$70) -> 0 | G76: 0 | H76: 0 | I76: 0 | J76: 0 | K76: 0 | L76: 0 | M76: 0 | N76: 0 | O76: 0
A77: Additions (half year) | F77: =F72/$C$70/2 ->  | L77: =L72/C70/2 ->  | M77: =M72/C70/2 ->  | N77: =N72/C70/2 ->  | O77: =O72/C70/2 -> 
A78: Closing Accumulated Amortization | F78: =SUM(F75+F76+F77) ->  | L78: =SUM(L75:L77) ->  | M78: =SUM(M75:M77) ->  | N78: =SUM(N75:N77) ->  | O78: =SUM(O75:O77) -> 
A80: Opening Net Fixed Assets | F80: =F71-F75 -> 0 | G80: 0 | L80: =K81 ->  | M80: =L81 ->  | N80: =M81 ->  | O80: =N81 -> 
A81: Closing Net Fixed Assets | F81: =F73-F78 ->  | G81: =G73-G78 -> 
A82: Average Net Fixed Assets | F82: =SUM(F80:F81)/2 ->  | G82: =SUM(G80:G81)/2 -> 
A84: UCC for PILs Calculation
F85: =F68 -> 2015 | G85: =G68 -> 2016 | H85: =H68 -> 2017 | I85: 2018 | J85: 2019 | K85: 2020 | L85: 2021 | M85: 2022 | N85: 2023 | O85: 2024
A87: Opening UCC | G87: =F95 -> 0 | H87: =G95 -> 0 | I87: 0 | J87: 0 | K87: 0 | L87: 0 | M87: 0 | N87: 0 | O87: 0
A88: Capital Additions (from Appendix 2-FA) | F88: =F72 -> 0 | G88: =G72 -> 0 | H88: 0 | I88: 0 | J88: 0 | K88: 0 | L88: 0 | M88: 0 | N88: 0 | O88: 0
A89: UCC Before Half Year Rule | F89: =SUM(F87:F88) -> 0 | G89: =SUM(G87:G88) -> 0 | H89: 0 | I89: 0 | J89: 0 | K89: 0 | L89: 0 | M89: 0 | N89: 0 | O89: 0
A90: Half Year Rule (1/2 Additions - Disposals) | F90: =F88/2 -> 0 | G90: =G88/2 -> 0 | H90: 0 | I90: 0 | J90: 0 | K90: 0 | L90: 0 | M90: 0 | N90: 0 | O90: 0
A91: Reduced UCC | F91: =F89-F90 -> 0 | G91: =G89-G90 -> 0 | H91: 0 | I91: 0 | J91: 0 | K91: 0 | L91: 0 | M91: 0 | N91: 0 | O91: 0
A92: CCA Rate Class (to be entered) | F92: =C92 -> 0 | G92: =C92 -> 0 | H92: =G92 -> 0 | I92: 0 | J92: 0 | K92: 0 | L92: 0 | M92: 0 | N92: 0 | O92: 0
A93: CCA Rate (to be entered) | F93: =C93 -> 0 | G93: =C93 -> 0 | H93: 0 | I93: 0 | J93: 0 | K93: 0 | L93: 0 | M93: 0 | N93: 0 | O93: 0
A94: CCA | F94: =F91*F93 -> 0 | G94: =G91*G93 -> 0 | H94: 0 | I94: 0 | J94: 0 | K94: 0 | L94: 0 | M94: 0 | N94: 0 | O94: 0
A95: Closing UCC | F95: =F89-F94 -> 0 | G95: =G89-G94 -> 0 | H95: 0 | I95: 0 | J95: 0 | K95: 0 | L95: 0 | M95: 0 | N95: 0 | O95: 0

Sheet Hidden_REG Improvement (hidden)
A1: Utility Name | B1: EB Number | C1: Test Year | D1: Bridge Year | E1: Last Rebasing Year | F1: Renewable Generation Connection Direct Benefits/Provincial Amount Renewable Enabling Improvement Investments | G1: Year | H1: Amount
A2: ='LDC Info'!$E$14 -> Hydro 2000 Inc. | B2: =EBNUMBER -> EB-2019-0041 | C2: =TestYear -> 2020 | D2: =BridgeYear -> 2019 | E2: =RebaseYear -> 2012 | F2: Provincial Rate Protection | G2: ='App.2-FB Calc of REG Improvemnt'!C17 -> 2015 | H2: ='App.2-FB Calc of REG Improvemnt'!E43 -> 
A3: ='LDC Info'!$E$14 -> Hydro 2000 Inc. | B3: EB-2019-0041 | C3: 2020 | D3: 2019 | E3: 2012 | F3: Provincial Rate Protection | G3: ='App.2-FB Calc of REG Improvemnt'!F17 -> 2016 | H3: ='App.2-FB Calc of REG Improvemnt'!H43 -> 
A4: ='LDC Info'!$E$14 -> Hydro 2000 Inc. | B4: EB-2019-0041 | C4: 2020 | D4: 2019 | E4: 2012 | F4: Provincial Rate Protection | G4: ='App.2-FB Calc of REG Improvemnt'!I17 -> 2017 | H4: ='App.2-FB Calc of REG Improvemnt'!K43 -> 
A5: ='LDC Info'!$E$14 -> Hydro 2000 Inc. | B5: EB-2019-0041 | C5: 2020 | D5: 2019 | E5: 2012 | F5: Provincial Rate Protection | G5: ='App.2-FB Calc of REG Improvemnt'!L17 -> 2018 | H5: ='App.2-FB Calc of REG Improvemnt'!N43 -> 
A6: ='LDC Info'!$E$14 -> Hydro 2000 Inc. | B6: EB-2019-0041 | C6: 2020 | D6: 2019 | E6: 2012 | F6: Provincial Rate Protection | G6: ='App.2-FB Calc of REG Improvemnt'!O17 -> 2019 | H6: ='App.2-FB Calc of REG Improvemnt'!Q43 -> 
A7: ='LDC Info'!$E$14 -> Hydro 2000 Inc. | B7: EB-2019-0041 | C7: 2020 | D7: 2019 | E7: 2012 | F7: Provincial Rate Protection | G7: =LEFT('App.2-FB Calc of REG Improvemnt'!R17,4) -> 2020 | H7: ='App.2-FB Calc of REG Improvemnt'!T43 -> 
A8: ='LDC Info'!$E$14 -> Hydro 2000 Inc. | B8: EB-2019-0041 | C8: 2020 | D8: 2019 | E8: 2012 | F8: Provincial Rate Protection | G8: ='App.2-FB Calc of REG Improvemnt'!U17 -> 2021 | H8: ='App.2-FB Calc of REG Improvemnt'!W43 -> 
A9: ='LDC Info'!$E$14 -> Hydro 2000 Inc. | B9: EB-2019-0041 | C9: 2020 | D9: 2019 | E9: 2012 | F9: Provincial Rate Protection | G9: ='App.2-FB Calc of REG Improvemnt'!X17 -> 2022 | H9: ='App.2-FB Calc of REG Improvemnt'!Z43 -> 
A10: ='LDC Info'!$E$14 -> Hydro 2000 Inc. | B10: EB-2019-0041 | C10: 2020 | D10: 2019 | E10: 2012 | F10: Provincial Rate Protection | G10: ='App.2-FB Calc of REG Improvemnt'!AA17 -> 2023 | H10: ='App.2-FB Calc of REG Improvemnt'!AC43 -> 
A11: ='LDC Info'!$E$14 -> Hydro 2000 Inc. | B11: EB-2019-0041 | C11: 2020 | D11: 2019 | E11: 2012 | F11: Provincial Rate Protection | G11: ='App.2-FB Calc of REG Improvemnt'!AD17 -> 2024 | H11: ='App.2-FB Calc of REG Improvemnt'!AF43 -> 

Sheet App.2-FC Calc of REG Expansion
Q1: File Number: | R1: =EBNUMBER -> EB-2019-0041
Q2: Exhibit:
Q3: Tab:
A4: TO BE UPDATED AT THE DRAFT RATE ORDER STAGE | Q4: Schedule:
Q5: Page:
Q7: Date:
A9: Appendix 2-FC
A10: Calculation of Renewable Generation Connection Direct Benefits/Provincial Amount: Renewable Expansion Investments
A12: This table will calculate the distributor/provincial shares of the investments entered in Part B of Appendix 2-FA.
A13: Enter values in green shaded cells: WCA percentage, debt percentages, interest rates, kWh, tax rates, amortization period, CCA Class and percentage.
A14: ="For historical investments, enter these variables that were approved your last cost of service test year. For " & TestYear & " and beyond, enter variables as in the application." -> For historical investments, enter these variables that were approved your last cost of service test year. For 2020 and beyond, enter variables as in the application.
A15: Rate Riders are not calculated for the Test Year as these assets and costs are already in the distributor's rate base.
D18: =G18-1 -> 2015 | G18: =J18-1 -> 2016 | J18: =M18-1 -> 2017 | M18: =P18-1 -> 2018 | P18: =BridgeYear -> 2019 | S18: =CONCATENATE(TestYear," Test Year") -> 2020 Test Year | V18: =TestYear+1 -> 2021 | W18: 2016 | Y18: =V18+1 -> 2022 | AB18: =Y18+1 -> 2023 | AE18: =AB18+1 -> 2024
E19: Direct Benefit | F19: Provincial | H19: Direct Benefit | I19: Provincial | K19: Direct Benefit | L19: Provincial | N19: Direct Benefit | O19: Provincial | Q19: Direct Benefit | R19: Provincial | T19: Direct Benefit | U19: Provincial | W19: Direct Benefit | X19: Provincial | Z19: Direct Benefit | AA19: Provincial | AC19: Direct Benefit | AD19: Provincial | AF19: Direct Benefit | AG19: Provincial
D20: Total | E20: 0.17 | F20: 0.83 | G20: Total | H20: 0.17 | I20: 0.83 | J20: Total | K20: 0.17 | L20: 0.83 | M20: Total | N20: 0.17 | O20: 0.83 | P20: Total | Q20: 0.17 | R20: 0.83 | S20: Total | T20: 0.17 | U20: 0.83 | V20: Total | W20: 0.17 | X20: 0.83 | Y20: Total | Z20: 0.17 | AA20: 0.83 | AB20: Total | AC20: 0.17 | AD20: 0.83 | AE20: Total | AF20: 0.17 | AG20: 0.83
A21: Net Fixed Assets (average) | D21: =J82 ->  | E21: =D21*E20 ->  | F21: =D21*F20 ->  | G21: =G82 ->  | H21: =G21*H20 ->  | I21: =G21*I20 ->  | J21: =H82 ->  | K21: =J21*K20 ->  | L21: =J21*L20 ->  | M21: =I82 ->  | N21: =M21*N20 ->  | O21: =M21*O20 ->  | P21: =J82 ->  | Q21: =P21*Q20 ->  | R21: =P21*R20 ->  | S21: =K82 ->  | T21: =S21*T20 ->  | U21: =S21*U20 ->  | V21: =L82 ->  | W21: =V21*W20 ->  | X21: =V21*X20 ->  | Y21: =M82 ->  | Z21: =Y21*Z20 ->  | AA21: =Y21*AA20 ->  | AB21: =N82 ->  | AC21: =AB21*AC20 ->  | AD21: =AB21*AD20 ->  | AE21: =O82 ->  | AF21: =AE21*AF20 ->  | AG21: =AE21*AG20 -> 
A22: Incremental OM&A (on-going, N/A for Provincial Recovery) | D22: ='App.2-FA Proposed REG Invest.'!C$101 -> 0 | E22: =D22 -> 0 | G22: ='App.2-FA Proposed REG Invest.'!D$101 -> 0 | H22: =G22 -> 0 | J22: ='App.2-FA Proposed REG Invest.'!E$101 -> 0 | K22: =J22 -> 0 | M22: ='App.2-FA Proposed REG Invest.'!F$101 -> 0 | N22: =M22 -> 0 | P22: ='App.2-FA Proposed REG Invest.'!G$101 -> 0 | Q22: =P22 -> 0 | S22: ='App.2-FA Proposed REG Invest.'!H$101 -> 0 | T22: =S22 -> 0 | V22: ='App.2-FA Proposed REG Invest.'!I$101 -> 0 | W22: =V22 -> 0 | Y22: ='App.2-FA Proposed REG Invest.'!J$101 -> 0 | Z22: =Y22 -> 0 | AB22: ='App.2-FA Proposed REG Invest.'!K$101 -> 0 | AC22: =AB22 -> 0 | AE22: ='App.2-FA Proposed REG Invest.'!L$101 -> 0 | AF22: =AE22 -> 0
A23: Incremental OM&A (start-up, applicable for Provincial Recovery) | D23: ='App.2-FA Proposed REG Invest.'!C$100 -> 0 | E23: =D23*E20 -> 0 | F23: =D23*F20 -> 0 | G23: ='App.2-FA Proposed REG Invest.'!D$100 -> 0 | H23: =G23*H20 -> 0 | I23: =G23*I20 -> 0 | J23: ='App.2-FA Proposed REG Invest.'!E$100 -> 0 | K23: =J23*K20 -> 0 | L23: =J23*L20 -> 0 | M23: ='App.2-FA Proposed REG Invest.'!F$100 -> 0 | N23: =M23*N20 -> 0 | O23: =M23*O20 -> 0 | P23: ='App.2-FA Proposed REG Invest.'!G$100 -> 0 | Q23: =P23*Q20 -> 0 | R23: =P23*R20 -> 0 | S23: ='App.2-FA Proposed REG Invest.'!H$100 -> 0 | T23: =S23*T20 -> 0 | U23: =S23*U20 -> 0 | V23: ='App.2-FA Proposed REG Invest.'!I$100 -> 0 | W23: =V23*W20 -> 0 | X23: =V23*X20 -> 0 | Y23: ='App.2-FA Proposed REG Invest.'!J$100 -> 0 | Z23: =Y23*Z20 -> 0 | AA23: =Y23*AA20 -> 0 | AB23: ='App.2-FA Proposed REG Invest.'!K$100 -> 0 | AC23: =AB23*AC20 -> 0 | AD23: =AB23*AD20 -> 0 | AE23: ='App.2-FA Proposed REG Invest.'!L$100 -> 0 | AF23: =AE23*AF20 -> 0 | AG23: =AE23*AG20 -> 0
A24: WCA | E24: =(E22+E23)*$B$24 -> 0 | F24: =F23*$B$24 -> 0 | H24: =(H22+H23)*$B$24 -> 0 | I24: =I23*$B$24 -> 0 | K24: =(K22+K23)*$B$24 -> 0 | L24: =L23*$B$24 -> 0 | N24: =(N22+N23)*$B$24 -> 0 | O24: =O23*$B$24 -> 0 | Q24: =(Q22+Q23)*$B$24 -> 0 | R24: =R23*$B$24 -> 0 | T24: =(T22+T23)*$B$24 -> 0 | U24: =U23*$B$24 -> 0 | W24: =(W22+W23)*$B$24 -> 0 | X24: =X23*$B$24 -> 0 | Z24: =(Z22+Z23)*$B$24 -> 0 | AA24: =AA23*$B$24 -> 0 | AC24: =(AC22+AC23)*$B$24 -> 0 | AD24: =AD23*$B$24 -> 0 | AF24: =(AF22+AF23)*$B$24 -> 0 | AG24: =AG23*$B$24 -> 0
A25: Rate Base | E25: =SUM(E21+E24) ->  | F25: =SUM(F21+F24) ->  | H25: =SUM(H21+H24) ->  | I25: =SUM(I21+I24) ->  | K25: =SUM(K21+K24) ->  | L25: =SUM(L21+L24) ->  | N25: =SUM(N21+N24) ->  | O25: =SUM(O21+O24) ->  | Q25: =SUM(Q21+Q24) ->  | R25: =SUM(R21+R24) ->  | T25: =SUM(T21+T24) ->  | U25: =SUM(U21+U24) ->  | W25: =SUM(W21+W24) ->  | X25: =SUM(X21+X24) ->  | Z25: =SUM(Z21+Z24) ->  | AA25: =SUM(AA21+AA24) ->  | AC25: =SUM(AC21+AC24) ->  | AD25: =SUM(AD21+AD24) ->  | AF25: =SUM(AF21+AF24) ->  | AG25: =SUM(AG21+AG24) -> 
A28: Deemed ST Debt | E28: =E25*$B$28 ->  | F28: =F25*$B$28 ->  | H28: =H25*$B$28 ->  | I28: =I25*$B$28 ->  | K28: =K25*$B$28 ->  | L28: =L25*$B$28 ->  | N28: =N25*$B$28 ->  | O28: =O25*$B$28 ->  | Q28: =Q25*$B$28 ->  | R28: =R25*$B$28 ->  | T28: =T25*$B$28 ->  | U28: =U25*$B$28 ->  | W28: =W25*$B$28 ->  | X28: =X25*$B$28 ->  | Z28: =Z25*$B$28 ->  | AA28: =AA25*$B$28 ->  | AC28: =AC25*$B$28 ->  | AD28: =AD25*$B$28 ->  | AF28: =AF25*$B$28 ->  | AG28: =AG25*$B$28 -> 
A29: Deemed LT Debt | E29: =E25*$B$29 ->  | F29: =F25*$B$29 ->  | H29: =H25*$B$29 ->  | I29: =I25*$B$29 ->  | K29: =K25*$B$29 ->  | L29: =L25*$B$29 ->  | N29: =N25*$B$29 ->  | O29: =O25*$B$29 ->  | Q29: =Q25*$B$29 ->  | R29: =R25*$B$29 ->  | T29: =T25*$B$29 ->  | U29: =U25*$B$29 ->  | W29: =W25*$B$29 ->  | X29: =X25*$B$29 ->  | Z29: =Z25*$B$29 ->  | AA29: =AA25*$B$29 ->  | AC29: =AC25*$B$29 ->  | AD29: =AD25*$B$29 ->  | AF29: =AF25*$B$29 ->  | AG29: =AG25*$B$29 -> 
A30: Deemed Equity | E30: =E25*$B$30 ->  | F30: =F25*$B$30 ->  | H30: =H25*$B$30 ->  | I30: =I25*$B$30 ->  | K30: =K25*$B$30 ->  | L30: =L25*$B$30 ->  | N30: =N25*$B$30 ->  | O30: =O25*$B$30 ->  | Q30: =Q25*$B$30 ->  | R30: =R25*$B$30 ->  | T30: =T25*$B$30 ->  | U30: =U25*$B$30 ->  | W30: =W25*$B$30 ->  | X30: =X25*$B$30 ->  | Z30: =Z25*$B$30 ->  | AA30: =AA25*$B$30 ->  | AC30: =AC25*$B$30 ->  | AD30: =AD25*$B$30 ->  | AF30: =AF25*$B$30 ->  | AG30: =AG25*$B$30 -> 
A32: ST Interest | E32: =E28*$B$32 ->  | F32: =F28*$B$32 ->  | H32: =H28*$B$32 ->  | I32: =I28*$B$32 ->  | K32: =K28*$B$32 ->  | L32: =L28*$B$32 ->  | N32: =N28*$B$32 ->  | O32: =O28*$B$32 ->  | Q32: =Q28*$B$32 ->  | R32: =R28*$B$32 ->  | T32: =T28*$B$32 ->  | U32: =U28*$B$32 ->  | W32: =W28*$B$32 ->  | X32: =X28*$B$32 ->  | Z32: =Z28*$B$32 ->  | AA32: =AA28*$B$32 ->  | AC32: =AC28*$B$32 ->  | AD32: =AD28*$B$32 ->  | AF32: =AF28*$B$32 ->  | AG32: =AG28*$B$32 -> 
A33: LT Interest | E33: =E29*$B$33 ->  | F33: =F29*$B$33 ->  | H33: =H29*$B$33 ->  | I33: =I29*$B$33 ->  | K33: =K29*$B$33 ->  | L33: =L29*$B$33 ->  | N33: =N29*$B$33 ->  | O33: =O29*$B$33 ->  | Q33: =Q29*$B$33 ->  | R33: =R29*$B$33 ->  | T33: =T29*$B$33 ->  | U33: =U29*$B$33 ->  | W33: =W29*$B$33 ->  | X33: =X29*$B$33 ->  | Z33: =Z29*$B$33 ->  | AA33: =AA29*$B$33 ->  | AC33: =AC29*$B$33 ->  | AD33: =AD29*$B$33 ->  | AF33: =AF29*$B$33 ->  | AG33: =AG29*$B$33 -> 
A34: ROE | E34: =E30*$B$34 ->  | F34: =F30*$B$34 ->  | H34: =H30*$B$34 ->  | I34: =I30*$B$34 ->  | K34: =K30*$B$34 ->  | L34: =L30*$B$34 ->  | N34: =N30*$B$34 ->  | O34: =O30*$B$34 ->  | Q34: =Q30*$B$34 ->  | R34: =R30*$B$34 ->  | T34: =T30*$B$34 ->  | U34: =U30*$B$34 ->  | W34: =W30*$B$34 ->  | X34: =X30*$B$34 ->  | Z34: =Z30*$B$34 ->  | AA34: =AA30*$B$34 ->  | AC34: =AC30*$B$34 ->  | AD34: =AD30*$B$34 ->  | AF34: =AF30*$B$34 ->  | AG34: =AG30*$B$34 -> 
A35: Cost of Capital Total | E35: =SUM(E32:E34) ->  | F35: =SUM(F32:F34) ->  | H35: =SUM(H32:H34) ->  | I35: =SUM(I32:I34) ->  | K35: =SUM(K32:K34) ->  | L35: =SUM(L32:L34) ->  | N35: =SUM(N32:N34) ->  | O35: =SUM(O32:O34) ->  | Q35: =SUM(Q32:Q34) ->  | R35: =SUM(R32:R34) ->  | T35: =SUM(T32:T34) ->  | U35: =SUM(U32:U34) ->  | W35: =SUM(W32:W34) ->  | X35: =SUM(X32:X34) ->  | Z35: =SUM(Z32:Z34) ->  | AA35: =SUM(AA32:AA34) ->  | AC35: =SUM(AC32:AC34) ->  | AD35: =SUM(AD32:AD34) ->  | AF35: =SUM(AF32:AF34) ->  | AG35: =SUM(AG32:AG34) -> 
A37: OM&A | E37: =E22+E23 -> 0 | F37: =F23 -> 0 | H37: =H22+H23 -> 0 | I37: =I23 -> 0 | K37: =K22+K23 -> 0 | L37: =L23 -> 0 | N37: =N22+N23 -> 0 | O37: =O23 -> 0 | Q37: =Q22+Q23 -> 0 | R37: =R23 -> 0 | T37: =T22+T23 -> 0 | U37: =U23 -> 0 | W37: =W22+W23 -> 0 | X37: =X23 -> 0 | Z37: =Z22+Z23 -> 0 | AA37: =AA23 -> 0 | AC37: =AC22+AC23 -> 0 | AD37: =AD23 -> 0 | AF37: =AF22+AF23 -> 0 | AG37: =AG23 -> 0
A38: Amortization | D38: =D78 -> 0 | E38: =D38*E$20 -> 0 | F38: =D38*F$20 -> 0 | G38: =G78 ->  | H38: =G38*H$20 ->  | I38: =G38*I$20 ->  | J38: =H78 ->  | K38: =J38*K$20 ->  | L38: =J38*L$20 ->  | M38: =I78 ->  | N38: =M38*N$20 ->  | O38: =M38*O$20 ->  | P38: =J78 ->  | Q38: =P38*Q$20 ->  | R38: =P38*R$20 ->  | S38: =K76+K77 ->  | T38: =S38*T$20 ->  | U38: =S38*U$20 ->  | V38: =L76+L77 ->  | W38: =V38*W$20 ->  | X38: =V38*X$20 ->  | Y38: =M76+M77 ->  | Z38: =Y38*Z$20 ->  | AA38: =Y38*AA$20 ->  | AB38: =N76+N77 ->  | AC38: =AB38*AC$20 ->  | AD38: =AB38*AD$20 ->  | AE38: =O76+O77 ->  | AF38: =AE38*AF$20 ->  | AG38: =AE38*AG$20 -> 
A39: Grossed-up PILs | E39: =E66 ->  | F39: =F66 ->  | H39: =H66 ->  | I39: =I66 ->  | K39: =K66 ->  | L39: =L66 ->  | N39: =N66 ->  | O39: =O66 ->  | Q39: =Q66 ->  | R39: =R66 ->  | T39: =T66 ->  | U39: =U66 ->  | W39: =W66 ->  | X39: =X66 ->  | Z39: =Z66 ->  | AA39: =AA66 ->  | AC39: =AC66 ->  | AD39: =AD66 ->  | AF39: =AF66 ->  | AG39: =AG66 -> 
A41: Revenue Requirement | E41: =SUM(E35:E39) ->  | F41: =SUM(F35:F39) ->  | H41: =SUM(H35:H39) ->  | I41: =SUM(I35:I39) ->  | K41: =SUM(K35:K39) ->  | L41: =SUM(L35:L39) ->  | N41: =SUM(N35:N39) ->  | O41: =SUM(O35:O39) ->  | Q41: =SUM(Q35:Q39) ->  | R41: =SUM(R35:R39) ->  | T41: =SUM(T35:T39) ->  | U41: =SUM(U35:U39) ->  | W41: =SUM(W35:W39) ->  | X41: =SUM(X35:X39) ->  | Z41: =SUM(Z35:Z39) ->  | AA41: =SUM(AA35:AA39) ->  | AC41: =SUM(AC35:AC39) ->  | AD41: =SUM(AD35:AD39) ->  | AF41: =SUM(AF35:AF39) ->  | AG41: =SUM(AG35:AG39) -> 
A44: Provincial Rate Protection | F44: =F41 ->  | I44: =I41 ->  | L44: =L41 ->  | O44: =O41 ->  | R44: =R41 ->  | U44: =U41 ->  | X44: =X41 ->  | AA44: =AA41 ->  | AD44: =AD41 ->  | AG44: =AG41 -> 
A46: Monthly Amount Paid by IESO | F46: =F44/12 ->  | I46: =I44/12 ->  | L46: =L44/12 ->  | O46: =O44/12 ->  | R46: =R44/12 ->  | U46: =U44/12 ->  | X46: =X44/12 ->  | AA46: =AA44/12 ->  | AD46: =AD44/12 ->  | AG46: =AG44/12 -> 
A48: Note 1: The distributor should follow the regulatory accounting set out in the Accounting Procedure Handbook Guidance FAQs issued in March 2015. Q10 of the APH FAQs states that: “For approved eligible investments as defined under O.Reg. 330/09 under the OEB Act, a variance account will continue to be used for the purpose of recording variances between the revenue requirement based on actual costs of approved eligible investments and the revenue received from the IESO.” The answer for Q10 provides the accounting guidance for this variance account: “Distributors that have included eligible investments to connect qualifying facilities in their DS plans are to establish the variance Account 1533 Renewable Generation Connection Funding Adder Deferral Account, Sub-account Provincial Rate Protection Payment Variances following OEB approval for investments forecast to enter service beyond the test year for purposes of implementing rate protection pursuant to O.Reg. 330/09. The purpose of this variance account is to track the variance between the distributor’s revenue requirement associated with the portion of the actual capital and/or operating costs that are eligible for rate protection, as incurred by the distributor for eligible renewable enabling and expansion investments, and the rate protection payments collected from the IESO.” The answer further provides the journal entries to record the variances. Distributors should follow the instructions in the answer for recording the journal entries in the variance account 1533.
A50: Note 2: For the Test Year, Costs and Revenues of the Direct Benefit are to be included in the test year applicant Rate Base and Revenues.
A52: PILs Calculation
E53: =D18 -> 2015 | H53: =G18 -> 2016 | K53: =J18 -> 2017 | N53: =M18 -> 2018 | Q53: =P18 -> 2019 | T53: =S18 -> 2020 Test Year | W53: =V18 -> 2021 | Z53: =Y18 -> 2022 | AC53: =AB18 -> 2023 | AF53: =AE18 -> 2024
A54: Income Tax | E54: Direct Benefit | F54: Provincial | H54: Direct Benefit | I54: Provincial | K54: Direct Benefit | L54: Provincial | N54: Direct Benefit | O54: Provincial | Q54: Direct Benefit | R54: Provincial | T54: Direct Benefit | U54: Provincial | W54: Direct Benefit | X54: Provincial | Z54: Direct Benefit | AA54: Provincial | AC54: Direct Benefit | AD54: Provincial | AF54: Direct Benefit | AG54: Provincial
Y55: Total | AB55: Total | AE55: Total
A56: Net Income - ROE on Rate Base | E56: =E34 ->  | F56: =F34 ->  | H56: =H34 ->  | I56: =I34 ->  | K56: =K34 ->  | L56: =L34 ->  | N56: =N34 ->  | O56: =O34 ->  | Q56: =Q34 ->  | R56: =R34 ->  | T56: =T34 ->  | U56: =U34 ->  | W56: =W34 ->  | X56: =X34 ->  | Z56: =Z34 ->  | AA56: =AA34 ->  | AC56: =AC34 ->  | AD56: =AD34 ->  | AF56: =AF34 ->  | AG56: =AG34 -> 
A57: Amortization (17% DB and 83% P) | E57: =E38 -> 0 | F57: =F38 -> 0 | H57: =H38 ->  | I57: =I38 ->  | K57: =K38 ->  | L57: =L38 ->  | N57: =N38 ->  | O57: =O38 ->  | Q57: =Q38 ->  | R57: =R38 ->  | T57: =T38 ->  | U57: =U38 ->  | W57: =W38 ->  | X57: =X38 ->  | Z57: =Z38 ->  | AA57: =AA38 ->  | AC57: =AC38 ->  | AD57: =AD38 ->  | AF57: =AF38 ->  | AG57: =AG38 -> 
A58: CCA (17% DB and 83% P) | E58: =-D94*E$20 -> 0 | F58: =-D94*F$20 -> 0 | H58: =-G94*H$20 -> 0 | I58: =-G94*I$20 -> 0 | K58: =-H94*K$20 -> 0 | L58: =-H94*L$20 -> 0 | N58: =-I94*N$20 -> 0 | O58: =-I94*O$20 -> 0 | Q58: =-J94*Q$20 -> 0 | R58: =-J94*R$20 -> 0 | T58: =-K94*T$20 -> 0 | U58: =-K94*U$20 -> 0 | W58: =-L94*W$20 -> 0 | X58: =-L94*X$20 -> 0 | Z58: =-M94*Z$20 -> 0 | AA58: =-M94*AA$20 -> 0 | AC58: =-N94*AC$20 -> 0 | AD58: =-N94*AD$20 -> 0 | AF58: =-O94*AF$20 -> 0 | AG58: =-O94*AG$20 -> 0
A59: Taxable income | E59: =SUM(E56:E58) ->  | F59: =SUM(F56:F58) ->  | H59: =SUM(H56:H58) ->  | I59: =SUM(I56:I58) ->  | K59: =SUM(K56:K58) ->  | L59: =SUM(L56:L58) ->  | N59: =SUM(N56:N58) ->  | O59: =SUM(O56:O58) ->  | Q59: =SUM(Q56:Q58) ->  | R59: =SUM(R56:R58) ->  | T59: =SUM(T56:T58) ->  | U59: =SUM(U56:U58) ->  | W59: =SUM(W56:W58) ->  | X59: =SUM(X56:X58) ->  | Z59: =SUM(Z56:Z58) ->  | AA59: =SUM(AA56:AA58) ->  | AC59: =SUM(AC56:AC58) ->  | AD59: =SUM(AD56:AD58) ->  | AF59: =SUM(AF56:AF58) ->  | AG59: =SUM(AG56:AG58) -> 
A61: Tax Rate (to be entered)
A63: Income Taxes Payable | E63: =E59*E61 ->  | F63: =F59*F61 ->  | H63: =H59*H61 ->  | I63: =I59*I61 ->  | K63: =K59*K61 ->  | L63: =L59*L61 ->  | N63: =N59*N61 ->  | O63: =O59*O61 ->  | Q63: =Q59*Q61 ->  | R63: =R59*R61 ->  | T63: =T59*T61 ->  | U63: =U59*U61 ->  | W63: =W59*W61 ->  | X63: =X59*X61 ->  | Z63: =Z59*Z61 ->  | AA63: =AA59*AA61 ->  | AC63: =AC59*AC61 ->  | AD63: =AD59*AD61 ->  | AF63: =AF59*AF61 ->  | AG63: =AG59*AG61 -> 
A64: Gross Up
A65: Income Taxes Payable | E65: =E63/(1-E61) ->  | F65: =F63/(1-F61) ->  | H65: =H63/(1-H61) ->  | I65: =I63/(1-I61) ->  | K65: =K63/(1-K61) ->  | L65: =L63/(1-L61) ->  | N65: =N63/(1-N61) ->  | O65: =O63/(1-O61) ->  | Q65: =Q63/(1-Q61) ->  | R65: =R63/(1-R61) ->  | T65: =T63/(1-T61) ->  | U65: =U63/(1-U61) ->  | W65: =W63/(1-W61) ->  | X65: =X63/(1-X61) ->  | Z65: =Z63/(1-Z61) ->  | AA65: =AA63/(1-AA61) ->  | AC65: =AC63/(1-AC61) ->  | AD65: =AD63/(1-AD61) ->  | AF65: =AF63/(1-AF61) ->  | AG65: =AG63/(1-AG61) -> 
A66: Grossed Up PILs | E66: =SUM(E65:E65) ->  | F66: =SUM(F65:F65) ->  | H66: =SUM(H65:H65) ->  | I66: =SUM(I65:I65) ->  | K66: =SUM(K65:K65) ->  | L66: =SUM(L65:L65) ->  | N66: =SUM(N65:N65) ->  | O66: =SUM(O65:O65) ->  | Q66: =SUM(Q65:Q65) ->  | R66: =SUM(R65:R65) ->  | T66: =SUM(T65:T65) ->  | U66: =SUM(U65:U65) ->  | W66: =SUM(W65:W65) ->  | X66: =SUM(X65:X65) ->  | Z66: =SUM(Z65:Z65) ->  | AA66: =SUM(AA65:AA65) ->  | AC66: =SUM(AC65:AC65) ->  | AD66: =SUM(AD65:AD65) ->  | AF66: =SUM(AF65:AF65) ->  | AG66: =SUM(AG65:AG65) -> 
A69: Net Fixed Assets | F69: =E53 -> 2015 | G69: =H53 -> 2016 | H69: =K53 -> 2017 | I69: =N53 -> 2018 | J69: =Q53 -> 2019 | K69: =T53 -> 2020 Test Year | L69: =W53 -> 2021 | M69: =Z53 -> 2022 | N69: =AC53 -> 2023 | O69: =AF53 -> 2024
A70: Enter applicable amortization in years:
A71: Opening Gross Fixed Assets | G71: =F73 -> 0 | H71: =G73 -> 0 | I71: =H73 -> 0 | J71: =I73 -> 0 | K71: 0 | L71: 0 | M71: =L73 -> 0 | N71: 0 | O71: 0
A72: Gross Capital Additions | F72: ='App.2-FA Proposed REG Invest.'!C99 -> 0 | G72: ='App.2-FA Proposed REG Invest.'!D99 -> 0 | H72: ='App.2-FA Proposed REG Invest.'!E99 -> 0 | I72: ='App.2-FA Proposed REG Invest.'!F99 -> 0 | J72: ='App.2-FA Proposed REG Invest.'!G99 -> 0 | K72: ='App.2-FA Proposed REG Invest.'!H99 -> 0 | L72: ='App.2-FA Proposed REG Invest.'!I99 -> 0 | M72: ='App.2-FA Proposed REG Invest.'!J99 -> 0 | N72: ='App.2-FA Proposed REG Invest.'!K99 -> 0 | O72: ='App.2-FA Proposed REG Invest.'!L99 -> 0
A73: Closing Gross Fixed Assets | F73: =SUM(F71:F72) -> 0 | G73: =SUM(G71:G72) -> 0 | H73: 0 | I73: 0 | J73: 0 | K73: 0 | L73: 0 | M73: 0 | N73: 0 | O73: 0
A75: Opening Accumulated Amortization | G75: =+F78 ->  | H75: =+G78 ->  | I75: =H78 ->  | J75: =I78 -> 
A76: Current Year Amortization (before additions) | F76: =IF(ISERROR(F71/$B$70), 0, F71/$B$70) -> 0 | G76: =IF(ISERROR(G71/$B$70), 0, G71/$B$70) -> 0 | H76: =IF(ISERROR(H71/$B$70), 0, H71/$B$70) -> 0 | I76: =IF(ISERROR(I71/$B$70), 0, I71/$B$70) -> 0 | J76: =IF(ISERROR(J71/$B$70), 0, J71/$B$70) -> 0 | K76: =K71/$B$70 ->  | L76: =L71/$B$70 ->  | M76: =M71/$B$70 ->  | N76: =N71/$B$70 ->  | O76: =O71/$B$70 -> 
A77: Additions (half year) | F77: =F72/B70/2 ->  | G77: =G72/B70/2 ->  | H77: =H72/B70/2 ->  | I77: =I72/B70/2 ->  | J77: =J72/B70/2 ->  | K77: =K72/B70/2 ->  | L77: =L72/B70/2 ->  | M77: =M72/B70/2 ->  | N77: =N72/B70/2 ->  | O77: =O72/B70/2 -> 
A78: Closing Accumulated Amortization | F78: =SUM(F75+F77) ->  | G78: =SUM(G75+G77) ->  | H78: =SUM(H75:H77) -> 
A80: Opening Net Fixed Assets | F80: =F71-F75 -> 0 | G80: =G71-G75 ->  | H80: =H71-H75 ->  | I80: =I71-I75 ->  | J80: =J71-J75 ->  | K80: =J81 ->  | L80: =K81 ->  | M80: =L81 ->  | N80: =M81 ->  | O80: =N81 -> 
A81: Closing Net Fixed Assets | F81: =F73-F78 ->  | G81: =G73-G78 -> 
A82: Average Net Fixed Assets | F82: =SUM(F80:F81)/2 ->  | G82: =SUM(G80:G81)/2 -> 
A84: UCC for PILs Calculation
F85: =F69 -> 2015 | G85: =G69 -> 2016 | H85: 2017 | I85: 2018 | J85: 2019 | K85: 2020 Test Year | L85: 2021 | M85: 2022 | N85: 2023 | O85: 2024
A87: Opening UCC | G87: =F95 -> 0 | H87: 0 | I87: 0 | J87: =I95 -> 0 | K87: 0 | L87: 0 | M87: 0 | N87: 0 | O87: 0
A88: Capital Additions (from Appendix 2-FA) | F88: =F72 -> 0 | G88: =G72 -> 0 | H88: =H72 -> 0 | I88: 0 | J88: 0 | K88: 0 | L88: 0 | M88: 0 | N88: 0 | O88: 0
A89: UCC Before Half Year Rule | F89: =SUM(F87:F88) -> 0 | G89: =SUM(G87:G88) -> 0 | H89: =SUM(H87:H88) -> 0 | I89: 0 | J89: 0 | K89: 0 | L89: 0 | M89: 0 | N89: 0 | O89: 0
A90: Half Year Rule (1/2 Additions - Disposals) | F90: =F88/2 -> 0 | G90: =G88/2 -> 0 | H90: 0 | I90: 0 | J90: 0 | K90: 0 | L90: 0 | M90: 0 | N90: 0 | O90: 0
A91: Reduced UCC | F91: =F89-F90 -> 0 | G91: =G89-G90 -> 0 | H91: 0 | I91: 0 | J91: 0 | K91: 0 | L91: 0 | M91: 0 | N91: 0 | O91: 0
A92: CCA Rate Class (to be entered) | F92: =$B$92 -> 0 | G92: 0 | H92: 0 | I92: 0 | J92: 0 | K92: 0 | L92: 0 | M92: 0 | N92: 0 | O92: 0
A93: CCA Rate (to be entered) | F93: =$B$93 -> 0 | G93: 0 | H93: 0 | I93: 0 | J93: 0 | K93: 0 | L93: 0 | M93: 0 | N93: 0 | O93: 0
A94: CCA | F94: =F91*F$93 -> 0 | G94: =G91*G$93 -> 0 | H94: 0 | I94: 0 | J94: 0 | K94: 0 | L94: 0 | M94: 0 | N94: 0 | O94: 0
A95: Closing UCC | F95: =F89-F94 -> 0 | G95: =G89-G94 -> 0 | H95: =H89-H94 -> 0 | I95: 0 | J95: 0 | K95: 0 | L95: 0 | M95: 0 | N95: 0 | O95: 0

Sheet Hidden_REG Expansion (hidden)
A1: Utility Name | B1: EB Number | C1: Test Year | D1: Bridge Year | E1: Last Rebasing Year | F1: Calculation of Renewable Generation Connection Direct Benefits/Provincial Amount Renewable Expansion Investments | G1: Year | H1: Amount
A2: ='LDC Info'!$E$14 -> Hydro 2000 Inc. | B2: =EBNUMBER -> EB-2019-0041 | C2: =TestYear -> 2020 | D2: =BridgeYear -> 2019 | E2: =RebaseYear -> 2012 | F2: Provincial Rate Protection | G2: ='App.2-FC Calc of REG Expansion'!D18 -> 2015 | H2: ='App.2-FC Calc of REG Expansion'!F44 -> 
A3: ='LDC Info'!$E$14 -> Hydro 2000 Inc. | B3: EB-2019-0041 | C3: 2020 | D3: 2019 | E3: 2012 | F3: Provincial Rate Protection | G3: ='App.2-FC Calc of REG Expansion'!G18 -> 2016 | H3: ='App.2-FC Calc of REG Expansion'!I44 -> 
A4: ='LDC Info'!$E$14 -> Hydro 2000 Inc. | B4: EB-2019-0041 | C4: 2020 | D4: 2019 | E4: 2012 | F4: Provincial Rate Protection | G4: ='App.2-FC Calc of REG Expansion'!J18 -> 2017 | H4: ='App.2-FC Calc of REG Expansion'!L44 -> 
A5: ='LDC Info'!$E$14 -> Hydro 2000 Inc. | B5: EB-2019-0041 | C5: 2020 | D5: 2019 | E5: 2012 | F5: Provincial Rate Protection | G5: ='App.2-FC Calc of REG Expansion'!M18 -> 2018 | H5: ='App.2-FC Calc of REG Expansion'!O44 -> 
A6: ='LDC Info'!$E$14 -> Hydro 2000 Inc. | B6: EB-2019-0041 | C6: 2020 | D6: 2019 | E6: 2012 | F6: Provincial Rate Protection | G6: ='App.2-FC Calc of REG Expansion'!P18 -> 2019 | H6: ='App.2-FC Calc of REG Expansion'!R44 -> 
A7: ='LDC Info'!$E$14 -> Hydro 2000 Inc. | B7: EB-2019-0041 | C7: 2020 | D7: 2019 | E7: 2012 | F7: Provincial Rate Protection | G7: =LEFT('App.2-FC Calc of REG Expansion'!S18,4) -> 2020 | H7: ='App.2-FC Calc of REG Expansion'!U44 -> 
A8: ='LDC Info'!$E$14 -> Hydro 2000 Inc. | B8: EB-2019-0041 | C8: 2020 | D8: 2019 | E8: 2012 | F8: Provincial Rate Protection | G8: ='App.2-FC Calc of REG Expansion'!V18 -> 2021 | H8: ='App.2-FC Calc of REG Expansion'!X44 -> 
A9: ='LDC Info'!$E$14 -> Hydro 2000 Inc. | B9: EB-2019-0041 | C9: 2020 | D9: 2019 | E9: 2012 | F9: Provincial Rate Protection | G9: ='App.2-FC Calc of REG Expansion'!Y18 -> 2022 | H9: ='App.2-FC Calc of REG Expansion'!AA44 -> 
A10: ='LDC Info'!$E$14 -> Hydro 2000 Inc. | B10: EB-2019-0041 | C10: 2020 | D10: 2019 | E10: 2012 | F10: Provincial Rate Protection | G10: ='App.2-FC Calc of REG Expansion'!AB18 -> 2023 | H10: ='App.2-FC Calc of REG Expansion'!AD44 -> 
A11: ='LDC Info'!$E$14 -> Hydro 2000 Inc. | B11: EB-2019-0041 | C11: 2020 | D11: 2019 | E11: 2012 | F11: Provincial Rate Protection | G11: ='App.2-FC Calc of REG Expansion'!AE18 -> 2024 | H11: ='App.2-FC Calc of REG Expansion'!AG44 -> 

Sheet App.2-G SQI
M1: File Number: | O1: =EBNUMBER -> EB-2019-0041
M2: Exhibit:
M3: Tab:
M4: Schedule:
M5: Page:
M7: Date:
A9: Appendix 2-G
A10: Service Reliability and Quality Indicators
A13: Service Reliability
A15: Index | B15: Including outages caused by loss of supply | G15: Excluding outages caused by loss of supply | L15: Excluding Major Event Days
B16: =TestYear-6 -> 2014 | C16: =TestYear-5 -> 2015 | D16: =TestYear-4 -> 2016 | E16: =TestYear-3 -> 2017 | F16: =TestYear-2 -> 2018 | G16: =B16 -> 2014 | H16: 2015 | I16: 2016 | J16: 2017 | K16: 2018 | L16: 2014 | M16: 2015 | N16: 2016 | O16: 2017 | P16: 2018
A17: SAIDI
A18: SAIFI
A20: 5 Year Historical Average
A21: SAIDI | F21: =IF(ISERROR(AVERAGE(B17:F17)), "", AVERAGE(B17:F17)) ->  | K21: =IF(ISERROR(AVERAGE(G17:K17)), "", AVERAGE(G17:K17)) ->  | P21: =IF(ISERROR(AVERAGE(L17:P17)), "", AVERAGE(L17:P17)) -> 
A22: SAIFI | F22: =IF(ISERROR(AVERAGE(B18:F18)), "", AVERAGE(B18:F18)) ->  | K22: =IF(ISERROR(AVERAGE(G18:K18)), "", AVERAGE(G18:K18)) ->  | P22: =IF(ISERROR(AVERAGE(L18:P18)), "", AVERAGE(L18:P18)) -> 
A24: SAIDI = System Average Interruption Duration Index
A25: SAIFI = System Average Interruption Frequency Index
A27: Service Quality
A29: Indicator | E29: OEB Minimum Standard | G29: =B16 -> 2014 | H29: =C16 -> 2015 | I29: =D16 -> 2016 | J29: =E16 -> 2017 | K29: =F16 -> 2018
A30: Low Voltage Connections | E30: 0.9 | G30: 0 | H30: 1 | I30: 1 | J30: 1 | K30: 1
A31: High Voltage Connections | E31: 0.9 | G31: 0 | H31: 0 | I31: 1 | J31: 0 | K31: 0
A32: Appointment Scheduling | E32: 0.65 | G32: 1 | H32: 1 | I32: 1 | J32: 1 | K32: 1
A33: Appointments Met | E33: 0.9 | G33: 1 | H33: 1 | I33: 0.988 | J33: 1 | K33: 1
A34: Telephone Accessibility | E34: 0.8 | G34: 0.994 | H34: 0.996 | I34: 0.997 | J34: 1 | K34: 0.9995
A35: Rescheduling a Missed Appointment | E35: 0.8 | G35: 0 | H35: 0 | I35: 0.012 | J35: 0 | K35: 0
A36: Telephone Call Abandon Rate | E36: 0.1 | G36: 0.006 | H36: 0.004 | I36: 0.003 | J36: 0 | K36: 0.0005
A37: Written Response to Enquires | E37: 0.8 | G37: 1 | H37: 1 | I37: 1 | J37: 1 | K37: 1
A38: Emergency Urban Response | E38: 0.9 | G38: 1 | H38: 1 | I38: 1 | J38: 0 | K38: 1
A39: Emergency Rural Response | E39: 1 | G39: 0 | H39: 0 | I39: 0 | J39: 0 | K39: 0
A40: Reconnection Performance Standard | E40: 0.85 | G40: 1 | H40: 1 | I40: 0 | J40: 1 | K40: 1
A41: Micro-embedded generation facilities | E41: 0.9 | G41: 0 | H41: 0 | I41: 0 | J41: 0 | K41: 0

Sheet App.2-H_Other_Oper_Rev
J1: File Number: | K1: =EBNUMBER -> EB-2019-0041
J2: Exhibit:
J3: Tab:
A4: TO BE UPDATED AT THE DRAFT RATE ORDER STAGE | J4: Schedule:
J5: Page:
J7: Date:
A9: Appendix 2-H
A10: Other Operating Revenue
A12: USoA # | B12: USoA Description | C12: =D13 - 1 &" Actual"&CHAR(178) -> 2012 Actual² | D12: 2013 Actual² | E12: 2014 Actual² | F12: =G13 - 1 &" Actual"&CHAR(178) -> 2015 Actual² | G12: =H13 - 1 &" Actual"&CHAR(178) -> 2016 Actual² | H12: =H13 & " Actual" & CHAR(178) -> 2017 Actual² | I12: =I13& " Actual" -> 2018 Actual | J12: Bridge Year | K12: Test Year
C13: =D13-1 -> 2012 | D13: =E13-1 -> 2013 | E13: =F13-1 -> 2014 | F13: =G13-1 -> 2015 | G13: =H13-1 -> 2016 | H13: =I13-1 -> 2017 | I13: 2018 | J13: =BridgeYear -> 2019 | K13: =TestYear -> 2020
B14: Reporting Basis
A15: 4235 | B15: 4235-Miscellaneous Service Revenues | C15: -8518.29 | D15: -8114.71 | E15: -8202.4 | F15: 0 | G15: -15136.86 | H15: -7243.1 | I15: -19683.22 | J15: -5306.66 | K15: -7596
A16: 4225 | B16: 4225-Late Payment Charges | C16: -5973.28 | D16: -6789 | E16: -8541.83 | F16: -9103.16 | G16: -10384.85 | H16: -10604.1 | I16: -7952.79 | J16: -5452.84 | K16: -6337
A17: 4082 | B17: 4082-Retail Services Revenues | C17: -2029.3 | D17: -2141.3 | E17: -2183.8 | F17: -2140.8 | G17: -2080 | H17: -5761 | I17: -5758.06 | J17: -3563.2 | K17: -3181.38
A18: 4084 | B18: 4084-Service Transaction Requests (STR) Revenues | C18: -1.25 | D18: -2 | E18: -2 | F18: -2.75 | G18: -1.5 | H18: 0 | I18: 0 | J18: -1 | K18: -1
A19: 4086 | B19: 4086-SSS Administration Revenue | C19: 0 | D19: -3563.46 | E19: -3607.13 | F19: -3761.8 | G19: -3631.16 | H19: 0 | I19: 0 | J19: -3680.96 | K19: -3766
A20: 4205 | B20: 4205-Interdepartmental Rents | C20: 0 | D20: 0 | E20: 0 | F20: 0 | G20: 0 | H20: 0 | I20: 0 | J20: 0 | K20: 0
A21: 4210 | B21: 4210-Rent from Electric Property | C21: -2152.32 | D21: -6574.26 | E21: -7604.55 | F21: -6374.12 | G21: -9584 | H21: -9922 | I21: -9145 | J21: -9699.9 | K21: -15856.92
A22: 4215 | B22: 4215-Other Utility Operating Income | C22: 0 | D22: 0 | E22: 0 | F22: 0 | G22: 0 | H22: 0 | I22: 0 | J22: 0 | K22: 0
A23: 4220 | B23: 4220-Other Electric Revenues | C23: 0 | D23: 0 | E23: 0 | F23: 0 | G23: 0 | H23: 0 | I23: 0 | J23: -19365 | K23: 0
A24: 4240 | B24: 4240-Provision for Rate Refunds | C24: 0 | D24: 0 | E24: 0 | F24: 0 | G24: 0 | H24: 0 | I24: 0 | J24: 0 | K24: 0
A25: 4245 | B25: 4245-Government Assistance Directly Credited to Income | C25: 0 | D25: 0 | E25: 0 | F25: 0 | G25: 0 | H25: 0 | I25: 0 | J25: 0 | K25: 0
A26: 4305 | B26: 4305-Regulatory Debits | C26: 0 | D26: 19154 | E26: 3130 | F26: 0 | G26: 0 | H26: 0 | I26: 0 | J26: 0 | K26: 0
A27: 4310 | B27: 4310-Regulatory Credits | C27: 0 | D27: 0 | E27: 0 | F27: 0 | G27: 0 | H27: 0 | I27: 0 | J27: 0 | K27: 0
A28: 4315 | B28: 4315-Revenues from Electric Plant Leased to Others | C28: 0 | D28: 0 | E28: 0 | F28: 0 | G28: 0 | H28: 0 | I28: 0 | J28: 0 | K28: 0
A29: 4320 | B29: 4320-Expenses of Electric Plant Leased to Others | C29: 0 | D29: 0 | E29: 0 | F29: 0 | G29: 0 | H29: 0 | I29: 0 | J29: 0 | K29: 0
A30: 4324 | B30: 4324-Special Purpose Charge Recovery | C30: 0 | D30: 0 | E30: 0 | F30: 0 | G30: 0 | H30: 0 | I30: 0 | J30: 0 | K30: 0
A31: 4325 | B31: 4325-Revenues from Merchandise Jobbing, Etc. | C31: 0 | D31: 0 | E31: 0 | F31: -8283 | G31: -2400 | H31: 0 | I31: 0 | J31: 0 | K31: 0
A32: 4330 | B32: 4330-Costs and Expenses of Merchandising Jobbing, Etc. | C32: 0 | D32: 0 | E32: 0 | F32: 0 | G32: 2750 | H32: 0 | I32: 0 | J32: 0 | K32: 0
A33: 4335 | B33: 4335-Profits and Losses from Financial Instrument Hedges | C33: 0 | D33: 0 | E33: 0 | F33: 0 | G33: 0 | H33: 0 | I33: 0 | J33: 0 | K33: 0
A34: 4340 | B34: 4340-Profits and Losses from Financial Instrument Investments | C34: 0 | D34: 0 | E34: 0 | F34: 0 | G34: 0 | H34: 0 | I34: 0 | J34: 0 | K34: 0
A35: 4345 | B35: 4345-Gains from Disposition of Future Use Utility Plant | C35: 0 | D35: 0 | E35: 0 | F35: 0 | G35: 0 | H35: 0 | I35: 0 | J35: 0 | K35: 0
A36: 4350 | B36: 4350-Losses from Disposition of Future Use Utility Plant | C36: 0 | D36: 0 | E36: 0 | F36: 0 | G36: 0 | H36: 0 | I36: 0 | J36: 0 | K36: 0
A37: 4355 | B37: 4355-Gain on Disposition of Utility and Other Property | C37: -3575.36 | D37: 0 | E37: 0 | F37: 0 | G37: 0 | H37: 0 | I37: 0 | J37: 0 | K37: 0
A38: 4360 | B38: 4360-Loss on Disposition of Utility and Other Property | C38: 0 | D38: 0 | E38: 0 | F38: 4675.53 | G38: 6441.51 | H38: 1778.7 | I38: 5517 | J38: 5000 | K38: 0
A39: 4365 | B39: 4365-Gains from Disposition of Allowances for Emission | C39: 0 | D39: 0 | E39: 0 | F39: 0 | G39: 0 | H39: 0 | I39: 0 | J39: 0 | K39: 0
A40: 4370 | B40: 4370-Losses from Disposition of Allowances for Emission | C40: 0 | D40: 0 | E40: 0 | F40: 0 | G40: 0 | H40: 0 | I40: 0 | J40: 0 | K40: 0
A41: 4375 | B41: 4375-Revenues from Non-Utility Operations | C41: 0 | D41: 0 | E41: 0 | F41: -79953.88 | G41: -41393.62 | H41: -19744.88 | I41: -29687.49 | J41: -28135.61 | K41: -19090
A42: 4380 | B42: 4380-Expenses of Non-Utility Operations | C42: 0 | D42: 7553.88 | E42: 0 | F42: 81849.21 | G42: 31456.01 | H42: 18531.87 | I42: 29844.93 | J42: 28135.61 | K42: 19090
A43: 4385 | B43: 4385-Non-Utility Rental Income | C43: -78875.11 | D43: 584.37 | E43: -23667.72 | F43: 0 | G43: -6538.5 | H43: -5874.02 | I43: 1460.98 | J43: 0 | K43: 0
A44: 4390 | B44: 4390-Miscellaneous Non-Operating Income | C44: -960.41 | D44: -991.78 | E44: -256.71 | F44: -1267.66 | G44: -2135.42 | H44: 0 | I44: -597.5 | J44: -1856.66 | K44: -243
A45: 4395 | B45: 4395-Rate-Payer Benefit Including Interest | C45: 0 | D45: 0 | E45: 0 | F45: 0 | G45: 0 | H45: 0 | I45: 0 | J45: 0 | K45: 0
A46: 4398 | B46: 4398-Foreign Exchange Gains and Losses, Including Amortization | C46: 0 | D46: 0 | E46: 0 | F46: 0 | G46: 0 | H46: 0 | I46: 0 | J46: 0 | K46: 0
A47: 4405 | B47: 4405-Interest and Dividend Income | C47: -6923.81 | D47: -20617.61 | E47: -7765.39 | F47: -7035.8 | G47: -6584.16 | H47: -7993.42 | I47: -13059.33 | J47: -566.71 | K47: -592
A48: 4415 | B48: 4415-Equity in Earnings of Subsidiary Companies | C48: 0 | D48: 0 | E48: 0 | F48: 0 | G48: 0 | H48: 0 | I48: 0 | J48: 0 | K48: 0
A49: othe | B49: other | C49: 0 | D49: 0 | E49: 0 | F49: 0 | H49: 0 | I49: 0 | J49: 0 | K49: 0
A50: othe | B50: other | C50: 0 | D50: 0 | E50: 0 | F50: 0 | H50: 0 | I50: 0 | J50: 0 | K50: 0
A52: Specific Service Charges | C52: =C15 -> -8518.29 | D52: -8114.71 | E52: -8202.4 | F52: 0 | G52: -15136.86 | H52: -7243.1 | I52: -19683.22 | J52: -5306.66 | K52: -7596
A53: Late Payment Charges | C53: =C16 -> -5973.28 | D53: -6789 | E53: -8541.83 | F53: -9103.16 | G53: -10384.85 | H53: -10604.1 | I53: -7952.79 | J53: -5452.84 | K53: -6337
A54: Other Operating Revenues | C54: -4182.87 | D54: -12281.02 | E54: -13397.48 | F54: -12279.47 | G54: -15296.66 | H54: -15683 | I54: -14903.06 | J54: -42467.13 | K54: -22805.3
A55: Other Income or Deductions | C55: -90334.69 | D55: 5682.86 | E55: -28559.82 | F55: -10015.6 | G55: -18404.18 | H55: -13301.75 | I55: -6521.41 | J55: -12883.01 | K55: -835
A56: Total | C56: =SUM(C52:C55) -> -109009.13 | D56: =SUM(D52:D55) -> -21501.87 | E56: =SUM(E52:E55) -> -58701.53 | F56: =SUM(F52:F55) -> -31398.23 | G56: -59222.55 | H56: -46831.95 | I56: -49060.48 | J56: -66109.64 | K56: -37573.3
A58: Description Account(s)
A59: Specific Service Charges: 4235
A60: Late Payment Charges: 4225
A61: Other Distribution Revenues: 4082, 4084, 4090, 4205, 4210, 4215, 4220, 4230, 4240, 4245
A62: Other Income and Expenses: 4305, 4310, 4315, 4320, 4325, 4330, 4335, 4340, 4345, 4350, 4355, 4357, 4360, 4362, 4365, 4370, 4375, 4380, 4385, 4390, 4395, 4398, 4405, 4410, 4415, 4420
A65: Note: Add all applicable accounts listed above to the table and include all relevant information.
A67: Account Breakdown Details
A69: For each "Other Operating Revenue" and "Other Income or Deductions" Account, a detailed breakdown of the account components is required. See the example below for Account 4405, Interest and Dividend Income. Tables for the detailed breakdowns will be generated after cell B89 is filled in.
A72: Example: Account 4405 - Interest and Dividend Income
C73: =C12 -> 2012 Actual² | D73: 2013 Actual² | E73: 2014 Actual² | F73: 2015 Actual² | G73: 2016 Actual² | H73: 2017 Actual² | I73: 2018 Actual | J73: Bridge Year | K73: Test Year
C74: =C13 -> 2012 | D74: 2013 | E74: 2014 | F74: 2015 | G74: 2016 | H74: 2017 | I74: 2018 | J74: 2019 | K74: 2020
A75: Reporting Basis | C75: =IF(C14=0, "", C14) -> 
A76: Short-term Investment Interest
A77: Bank Deposit Interest
A78: Miscellaneous Interest Revenue
A79: etc.1
A82: Total | C82: =SUM(C76:C81) -> 0 | D82: 0 | E82: 0 | F82: 0 | G82: 0 | H82: 0 | I82: 0 | J82: 0 | K82: 0
A85: Notes:
A86: 1 | B86: List and specify any other interest revenue.
A87: 2 | B87: In the transition year to IFRS, the applicant is to present information in both MIFRS and CGAAP. In column N, present CGAAP transition year information. For the typical applicant that adopted IFRS on January 1, 2015, 2014 must be presented in both a CGAAP and MIFRS basis.
C93: =C$12 -> 2012 Actual² | D93: 2013 Actual² | E93: 2014 Actual² | F93: 2015 Actual² | G93: 2016 Actual² | H93: 2017 Actual² | I93: 2018 Actual | J93: Bridge Year | K93: Test Year
C94: =C$13 -> 2012 | D94: 2013 | E94: 2014 | F94: 2015 | G94: 2016 | H94: 2017 | I94: 2018 | J94: 2019 | K94: 2020
A95: Reporting Basis | C95: =IF(C42=0, "", C42) ->  | D95: 7553.88 | F95: 81849.21 | G95: 31456.01 | H95: 18531.87 | I95: 29844.93 | J95: 28135.61 | K95: 19090
A104: Total | C104: =SUM(C96:C103) -> 0 | D104: 0 | E104: 0 | F104: 0 | G104: 0 | H104: 0 | I104: 0 | J104: 0 | K104: 0
C107: =C$12 -> 2012 Actual² | D107: 2013 Actual² | E107: 2014 Actual² | F107: 2015 Actual² | G107: 2016 Actual² | H107: 2017 Actual² | I107: 2018 Actual | J107: Bridge Year | K107: Test Year
C108: =C$13 -> 2012 | D108: 2013 | E108: 2014 | F108: 2015 | G108: 2016 | H108: 2017 | I108: 2018 | J108: 2019 | K108: 2020
A109: Reporting Basis | C109: =IF(#REF!=0, "",#REF!) ->  | D109: =IF(#REF!=0, "",#REF!) ->  | E109: =IF(#REF!=0, "",#REF!) ->  | F109: =IF(#REF!=0, "",#REF!) ->  | G109: =IF(#REF!=0, "",#REF!) ->  | H109: =IF(#REF!=0, "",#REF!) ->  | I109: =IF(#REF!=0, "",#REF!) ->  | J109: =IF(#REF!=0, "",#REF!) ->  | K109: =IF(#REF!=0, "",#REF!) -> 
A118: Total | C118: =SUM(C110:C117) -> 0 | D118: =SUM(D110:D117) -> 0 | E118: =SUM(E110:E117) -> 0 | F118: =SUM(F110:F117) -> 0 | G118: =SUM(G110:G117) -> 0 | H118: =SUM(H110:H117) -> 0 | I118: =SUM(I110:I117) -> 0 | J118: =SUM(J110:J117) -> 0 | K118: =SUM(K110:K117) -> 0
C121: =C$12 -> 2012 Actual² | D121: 2013 Actual² | E121: 2014 Actual² | F121: 2015 Actual² | G121: 2016 Actual² | H121: 2017 Actual² | I121: 2018 Actual | J121: Bridge Year | K121: Test Year
C122: =C$13 -> 2012 | D122: 2013 | E122: 2014 | F122: 2015 | G122: 2016 | H122: 2017 | I122: 2018 | J122: 2019 | K122: 2020
A123: Reporting Basis | C123: =IF(C61=0, "", C61) -> 
A132: Total | C132: =SUM(C124:C131) -> 0 | D132: =SUM(D124:D131) -> 0 | E132: =SUM(E124:E131) -> 0 | F132: =SUM(F124:F131) -> 0 | G132: =SUM(G124:G131) -> 0 | H132: =SUM(H124:H131) -> 0 | I132: =SUM(I124:I131) -> 0 | J132: =SUM(J124:J131) -> 0 | K132: =SUM(K124:K131) -> 0
C135: =C$12 -> 2012 Actual² | D135: 2013 Actual² | E135: 2014 Actual² | F135: 2015 Actual² | G135: 2016 Actual² | H135: 2017 Actual² | I135: 2018 Actual | J135: Bridge Year | K135: Test Year
C136: =C$13 -> 2012 | D136: 2013 | E136: 2014 | F136: 2015 | G136: 2016 | H136: 2017 | I136: 2018 | J136: 2019 | K136: 2020
A137: Reporting Basis | C137: =IF(C75=0, "", C75) -> 
A146: Total | C146: =SUM(C138:C145) -> 0 | D146: =SUM(D138:D145) -> 0 | E146: =SUM(E138:E145) -> 0 | F146: =SUM(F138:F145) -> 0 | G146: =SUM(G138:G145) -> 0 | H146: =SUM(H138:H145) -> 0 | I146: =SUM(I138:I145) -> 0 | J146: =SUM(J138:J145) -> 0 | K146: =SUM(K138:K145) -> 0
C149: =C$12 -> 2012 Actual² | D149: 2013 Actual² | E149: 2014 Actual² | F149: 2015 Actual² | G149: 2016 Actual² | H149: 2017 Actual² | I149: 2018 Actual | J149: Bridge Year | K149: Test Year
C150: =C$13 -> 2012 | D150: 2013 | E150: 2014 | F150: 2015 | G150: 2016 | H150: 2017 | I150: 2018 | J150: 2019 | K150: 2020
A151: Reporting Basis | C151: =IF(C89=0, "", C89) -> 
A160: Total | C160: =SUM(C152:C159) -> 0 | D160: =SUM(D152:D159) -> 0 | E160: =SUM(E152:E159) -> 0 | F160: =SUM(F152:F159) -> 0 | G160: =SUM(G152:G159) -> 0 | H160: =SUM(H152:H159) -> 0 | I160: =SUM(I152:I159) -> 0 | J160: =SUM(J152:J159) -> 0 | K160: =SUM(K152:K159) -> 0
C163: =C$12 -> 2012 Actual² | D163: 2013 Actual² | E163: 2014 Actual² | F163: 2015 Actual² | G163: 2016 Actual² | H163: 2017 Actual² | I163: 2018 Actual | J163: Bridge Year | K163: Test Year
C164: =C$13 -> 2012 | D164: 2013 | E164: 2014 | F164: 2015 | G164: 2016 | H164: 2017 | I164: 2018 | J164: 2019 | K164: 2020
A165: Reporting Basis | C165: =IF(C103=0, "", C103) -> 
A174: Total | C174: =SUM(C166:C173) -> 0 | D174: =SUM(D166:D173) -> 0 | E174: =SUM(E166:E173) -> 0 | F174: =SUM(F166:F173) -> 0 | G174: =SUM(G166:G173) -> 0 | H174: =SUM(H166:H173) -> 0 | I174: =SUM(I166:I173) -> 0 | J174: =SUM(J166:J173) -> 0 | K174: =SUM(K166:K173) -> 0
C177: =C$12 -> 2012 Actual² | D177: 2013 Actual² | E177: 2014 Actual² | F177: 2015 Actual² | G177: 2016 Actual² | H177: 2017 Actual² | I177: 2018 Actual | J177: Bridge Year | K177: Test Year
C178: =C$13 -> 2012 | D178: 2013 | E178: 2014 | F178: 2015 | G178: 2016 | H178: 2017 | I178: 2018 | J178: 2019 | K178: 2020
A179: Reporting Basis | C179: =IF(C117=0, "", C117) -> 
A188: Total | C188: =SUM(C180:C187) -> 0 | D188: =SUM(D180:D187) -> 0 | E188: =SUM(E180:E187) -> 0 | F188: =SUM(F180:F187) -> 0 | G188: =SUM(G180:G187) -> 0 | H188: =SUM(H180:H187) -> 0 | I188: =SUM(I180:I187) -> 0 | J188: =SUM(J180:J187) -> 0 | K188: =SUM(K180:K187) -> 0
C191: =C$12 -> 2012 Actual² | D191: 2013 Actual² | E191: 2014 Actual² | F191: 2015 Actual² | G191: 2016 Actual² | H191: 2017 Actual² | I191: 2018 Actual | J191: Bridge Year | K191: Test Year
C192: =C$13 -> 2012 | D192: 2013 | E192: 2014 | F192: 2015 | G192: 2016 | H192: 2017 | I192: 2018 | J192: 2019 | K192: 2020
A193: Reporting Basis | C193: =IF(C131=0, "", C131) -> 
A202: Total | C202: =SUM(C194:C201) -> 0 | D202: =SUM(D194:D201) -> 0 | E202: =SUM(E194:E201) -> 0 | F202: =SUM(F194:F201) -> 0 | G202: =SUM(G194:G201) -> 0 | H202: =SUM(H194:H201) -> 0 | I202: =SUM(I194:I201) -> 0 | J202: =SUM(J194:J201) -> 0 | K202: =SUM(K194:K201) -> 0
C205: =C$12 -> 2012 Actual² | D205: 2013 Actual² | E205: 2014 Actual² | F205: 2015 Actual² | G205: 2016 Actual² | H205: 2017 Actual² | I205: 2018 Actual | J205: Bridge Year | K205: Test Year
C206: =C$13 -> 2012 | D206: 2013 | E206: 2014 | F206: 2015 | G206: 2016 | H206: 2017 | I206: 2018 | J206: 2019 | K206: 2020
A207: Reporting Basis | C207: =IF(C145=0, "", C145) -> 
A216: Total | C216: =SUM(C208:C215) -> 0 | D216: =SUM(D208:D215) -> 0 | E216: =SUM(E208:E215) -> 0 | F216: =SUM(F208:F215) -> 0 | G216: =SUM(G208:G215) -> 0 | H216: =SUM(H208:H215) -> 0 | I216: =SUM(I208:I215) -> 0 | J216: =SUM(J208:J215) -> 0 | K216: =SUM(K208:K215) -> 0
C219: =C$12 -> 2012 Actual² | D219: 2013 Actual² | E219: 2014 Actual² | F219: 2015 Actual² | G219: 2016 Actual² | H219: 2017 Actual² | I219: 2018 Actual | J219: Bridge Year | K219: Test Year
C220: =C$13 -> 2012 | D220: 2013 | E220: 2014 | F220: 2015 | G220: 2016 | H220: 2017 | I220: 2018 | J220: 2019 | K220: 2020
A221: Reporting Basis | C221: =IF(C159=0, "", C159) -> 
A230: Total | C230: =SUM(C222:C229) -> 0 | D230: =SUM(D222:D229) -> 0 | E230: =SUM(E222:E229) -> 0 | F230: =SUM(F222:F229) -> 0 | G230: =SUM(G222:G229) -> 0 | H230: =SUM(H222:H229) -> 0 | I230: =SUM(I222:I229) -> 0 | J230: =SUM(J222:J229) -> 0 | K230: =SUM(K222:K229) -> 0
C233: =C$12 -> 2012 Actual² | D233: 2013 Actual² | E233: 2014 Actual² | F233: 2015 Actual² | G233: 2016 Actual² | H233: 2017 Actual² | I233: 2018 Actual | J233: Bridge Year | K233: Test Year
C234: =C$13 -> 2012 | D234: 2013 | E234: 2014 | F234: 2015 | G234: 2016 | H234: 2017 | I234: 2018 | J234: 2019 | K234: 2020
A235: Reporting Basis | C235: =IF(C173=0, "", C173) -> 
A244: Total | C244: =SUM(C236:C243) -> 0 | D244: =SUM(D236:D243) -> 0 | E244: =SUM(E236:E243) -> 0 | F244: =SUM(F236:F243) -> 0 | G244: =SUM(G236:G243) -> 0 | H244: =SUM(H236:H243) -> 0 | I244: =SUM(I236:I243) -> 0 | J244: =SUM(J236:J243) -> 0 | K244: =SUM(K236:K243) -> 0
C247: =C$12 -> 2012 Actual² | D247: 2013 Actual² | E247: 2014 Actual² | F247: 2015 Actual² | G247: 2016 Actual² | H247: 2017 Actual² | I247: 2018 Actual | J247: Bridge Year | K247: Test Year
C248: =C$13 -> 2012 | D248: 2013 | E248: 2014 | F248: 2015 | G248: 2016 | H248: 2017 | I248: 2018 | J248: 2019 | K248: 2020
A249: Reporting Basis | C249: =IF(C187=0, "", C187) -> 
A258: Total | C258: =SUM(C250:C257) -> 0 | D258: =SUM(D250:D257) -> 0 | E258: =SUM(E250:E257) -> 0 | F258: =SUM(F250:F257) -> 0 | G258: =SUM(G250:G257) -> 0 | H258: =SUM(H250:H257) -> 0 | I258: =SUM(I250:I257) -> 0 | J258: =SUM(J250:J257) -> 0 | K258: =SUM(K250:K257) -> 0
C261: =C$12 -> 2012 Actual² | D261: 2013 Actual² | E261: 2014 Actual² | F261: 2015 Actual² | G261: 2016 Actual² | H261: 2017 Actual² | I261: 2018 Actual | J261: Bridge Year | K261: Test Year
C262: =C$13 -> 2012 | D262: 2013 | E262: 2014 | F262: 2015 | G262: 2016 | H262: 2017 | I262: 2018 | J262: 2019 | K262: 2020
A263: Reporting Basis | C263: =IF(C201=0, "", C201) -> 
A272: Total | C272: =SUM(C264:C271) -> 0 | D272: =SUM(D264:D271) -> 0 | E272: =SUM(E264:E271) -> 0 | F272: =SUM(F264:F271) -> 0 | G272: =SUM(G264:G271) -> 0 | H272: =SUM(H264:H271) -> 0 | I272: =SUM(I264:I271) -> 0 | J272: =SUM(J264:J271) -> 0 | K272: =SUM(K264:K271) -> 0
C275: =C$12 -> 2012 Actual² | D275: 2013 Actual² | E275: 2014 Actual² | F275: 2015 Actual² | G275: 2016 Actual² | H275: 2017 Actual² | I275: 2018 Actual | J275: Bridge Year | K275: Test Year
C276: =C$13 -> 2012 | D276: 2013 | E276: 2014 | F276: 2015 | G276: 2016 | H276: 2017 | I276: 2018 | J276: 2019 | K276: 2020
A277: Reporting Basis | C277: =IF(C215=0, "", C215) -> 
A286: Total | C286: =SUM(C278:C285) -> 0 | D286: =SUM(D278:D285) -> 0 | E286: =SUM(E278:E285) -> 0 | F286: =SUM(F278:F285) -> 0 | G286: =SUM(G278:G285) -> 0 | H286: =SUM(H278:H285) -> 0 | I286: =SUM(I278:I285) -> 0 | J286: =SUM(J278:J285) -> 0 | K286: =SUM(K278:K285) -> 0
C289: =C$12 -> 2012 Actual² | D289: 2013 Actual² | E289: 2014 Actual² | F289: 2015 Actual² | G289: 2016 Actual² | H289: 2017 Actual² | I289: 2018 Actual | J289: Bridge Year | K289: Test Year
C290: =C$13 -> 2012 | D290: 2013 | E290: 2014 | F290: 2015 | G290: 2016 | H290: 2017 | I290: 2018 | J290: 2019 | K290: 2020
A291: Reporting Basis | C291: =IF(C229=0, "", C229) -> 
A300: Total | C300: =SUM(C292:C299) -> 0 | D300: =SUM(D292:D299) -> 0 | E300: =SUM(E292:E299) -> 0 | F300: =SUM(F292:F299) -> 0 | G300: =SUM(G292:G299) -> 0 | H300: =SUM(H292:H299) -> 0 | I300: =SUM(I292:I299) -> 0 | J300: =SUM(J292:J299) -> 0 | K300: =SUM(K292:K299) -> 0
C303: =C$12 -> 2012 Actual² | D303: 2013 Actual² | E303: 2014 Actual² | F303: 2015 Actual² | G303: 2016 Actual² | H303: 2017 Actual² | I303: 2018 Actual | J303: Bridge Year | K303: Test Year
C304: =C$13 -> 2012 | D304: 2013 | E304: 2014 | F304: 2015 | G304: 2016 | H304: 2017 | I304: 2018 | J304: 2019 | K304: 2020
A305: Reporting Basis | C305: =IF(C243=0, "", C243) -> 
A314: Total | C314: =SUM(C306:C313) -> 0 | D314: =SUM(D306:D313) -> 0 | E314: =SUM(E306:E313) -> 0 | F314: =SUM(F306:F313) -> 0 | G314: =SUM(G306:G313) -> 0 | H314: =SUM(H306:H313) -> 0 | I314: =SUM(I306:I313) -> 0 | J314: =SUM(J306:J313) -> 0 | K314: =SUM(K306:K313) -> 0
C317: =C$12 -> 2012 Actual² | D317: 2013 Actual² | E317: 2014 Actual² | F317: 2015 Actual² | G317: 2016 Actual² | H317: 2017 Actual² | I317: 2018 Actual | J317: Bridge Year | K317: Test Year
C318: =C$13 -> 2012 | D318: 2013 | E318: 2014 | F318: 2015 | G318: 2016 | H318: 2017 | I318: 2018 | J318: 2019 | K318: 2020
A319: Reporting Basis | C319: =IF(C257=0, "", C257) -> 
A328: Total | C328: =SUM(C320:C327) -> 0 | D328: =SUM(D320:D327) -> 0 | E328: =SUM(E320:E327) -> 0 | F328: =SUM(F320:F327) -> 0 | G328: =SUM(G320:G327) -> 0 | H328: =SUM(H320:H327) -> 0 | I328: =SUM(I320:I327) -> 0 | J328: =SUM(J320:J327) -> 0 | K328: =SUM(K320:K327) -> 0
C331: =C$12 -> 2012 Actual² | D331: 2013 Actual² | E331: 2014 Actual² | F331: 2015 Actual² | G331: 2016 Actual² | H331: 2017 Actual² | I331: 2018 Actual | J331: Bridge Year | K331: Test Year
C332: =C$13 -> 2012 | D332: 2013 | E332: 2014 | F332: 2015 | G332: 2016 | H332: 2017 | I332: 2018 | J332: 2019 | K332: 2020
A333: Reporting Basis | C333: =IF(C271=0, "", C271) -> 
A342: Total | C342: =SUM(C334:C341) -> 0 | D342: =SUM(D334:D341) -> 0 | E342: =SUM(E334:E341) -> 0 | F342: =SUM(F334:F341) -> 0 | G342: =SUM(G334:G341) -> 0 | H342: =SUM(H334:H341) -> 0 | I342: =SUM(I334:I341) -> 0 | J342: =SUM(J334:J341) -> 0 | K342: =SUM(K334:K341) -> 0
C345: =C$12 -> 2012 Actual² | D345: 2013 Actual² | E345: 2014 Actual² | F345: 2015 Actual² | G345: 2016 Actual² | H345: 2017 Actual² | I345: 2018 Actual | J345: Bridge Year | K345: Test Year
C346: =C$13 -> 2012 | D346: 2013 | E346: 2014 | F346: 2015 | G346: 2016 | H346: 2017 | I346: 2018 | J346: 2019 | K346: 2020
A347: Reporting Basis | C347: =IF(C285=0, "", C285) -> 
A356: Total | C356: =SUM(C348:C355) -> 0 | D356: =SUM(D348:D355) -> 0 | E356: =SUM(E348:E355) -> 0 | F356: =SUM(F348:F355) -> 0 | G356: =SUM(G348:G355) -> 0 | H356: =SUM(H348:H355) -> 0 | I356: =SUM(I348:I355) -> 0 | J356: =SUM(J348:J355) -> 0 | K356: =SUM(K348:K355) -> 0
C359: =C$12 -> 2012 Actual² | D359: 2013 Actual² | E359: 2014 Actual² | F359: 2015 Actual² | G359: 2016 Actual² | H359: 2017 Actual² | I359: 2018 Actual | J359: Bridge Year | K359: Test Year
C360: =C$13 -> 2012 | D360: 2013 | E360: 2014 | F360: 2015 | G360: 2016 | H360: 2017 | I360: 2018 | J360: 2019 | K360: 2020
A361: Reporting Basis | C361: =IF(C299=0, "", C299) -> 
A370: Total | C370: =SUM(C362:C369) -> 0 | D370: =SUM(D362:D369) -> 0 | E370: =SUM(E362:E369) -> 0 | F370: =SUM(F362:F369) -> 0 | G370: =SUM(G362:G369) -> 0 | H370: =SUM(H362:H369) -> 0 | I370: =SUM(I362:I369) -> 0 | J370: =SUM(J362:J369) -> 0 | K370: =SUM(K362:K369) -> 0
C373: =C$12 -> 2012 Actual² | D373: 2013 Actual² | E373: 2014 Actual² | F373: 2015 Actual² | G373: 2016 Actual² | H373: 2017 Actual² | I373: 2018 Actual | J373: Bridge Year | K373: Test Year
C374: =C$13 -> 2012 | D374: 2013 | E374: 2014 | F374: 2015 | G374: 2016 | H374: 2017 | I374: 2018 | J374: 2019 | K374: 2020
A375: Reporting Basis | C375: =IF(C313=0, "", C313) -> 
A384: Total | C384: =SUM(C376:C383) -> 0 | D384: =SUM(D376:D383) -> 0 | E384: =SUM(E376:E383) -> 0 | F384: =SUM(F376:F383) -> 0 | G384: =SUM(G376:G383) -> 0 | H384: =SUM(H376:H383) -> 0 | I384: =SUM(I376:I383) -> 0 | J384: =SUM(J376:J383) -> 0 | K384: =SUM(K376:K383) -> 0
C387: =C$12 -> 2012 Actual² | D387: 2013 Actual² | E387: 2014 Actual² | F387: 2015 Actual² | G387: 2016 Actual² | H387: 2017 Actual² | I387: 2018 Actual | J387: Bridge Year | K387: Test Year
C388: =C$13 -> 2012 | D388: 2013 | E388: 2014 | F388: 2015 | G388: 2016 | H388: 2017 | I388: 2018 | J388: 2019 | K388: 2020
A389: Reporting Basis | C389: =IF(C327=0, "", C327) -> 
A398: Total | C398: =SUM(C390:C397) -> 0 | D398: =SUM(D390:D397) -> 0 | E398: =SUM(E390:E397) -> 0 | F398: =SUM(F390:F397) -> 0 | G398: =SUM(G390:G397) -> 0 | H398: =SUM(H390:H397) -> 0 | I398: =SUM(I390:I397) -> 0 | J398: =SUM(J390:J397) -> 0 | K398: =SUM(K390:K397) -> 0
C401: =C$12 -> 2012 Actual² | D401: 2013 Actual² | E401: 2014 Actual² | F401: 2015 Actual² | G401: 2016 Actual² | H401: 2017 Actual² | I401: 2018 Actual | J401: Bridge Year | K401: Test Year
C402: =C$13 -> 2012 | D402: 2013 | E402: 2014 | F402: 2015 | G402: 2016 | H402: 2017 | I402: 2018 | J402: 2019 | K402: 2020
A403: Reporting Basis | C403: =IF(C341=0, "", C341) -> 
A412: Total | C412: =SUM(C404:C411) -> 0 | D412: =SUM(D404:D411) -> 0 | E412: =SUM(E404:E411) -> 0 | F412: =SUM(F404:F411) -> 0 | G412: =SUM(G404:G411) -> 0 | H412: =SUM(H404:H411) -> 0 | I412: =SUM(I404:I411) -> 0 | J412: =SUM(J404:J411) -> 0 | K412: =SUM(K404:K411) -> 0
C415: =C$12 -> 2012 Actual² | D415: 2013 Actual² | E415: 2014 Actual² | F415: 2015 Actual² | G415: 2016 Actual² | H415: 2017 Actual² | I415: 2018 Actual | J415: Bridge Year | K415: Test Year
C416: =C$13 -> 2012 | D416: 2013 | E416: 2014 | F416: 2015 | G416: 2016 | H416: 2017 | I416: 2018 | J416: 2019 | K416: 2020
A417: Reporting Basis | C417: =IF(C355=0, "", C355) -> 
A426: Total | C426: =SUM(C418:C425) -> 0 | D426: =SUM(D418:D425) -> 0 | E426: =SUM(E418:E425) -> 0 | F426: =SUM(F418:F425) -> 0 | G426: =SUM(G418:G425) -> 0 | H426: =SUM(H418:H425) -> 0 | I426: =SUM(I418:I425) -> 0 | J426: =SUM(J418:J425) -> 0 | K426: =SUM(K418:K425) -> 0
C429: =C$12 -> 2012 Actual² | D429: 2013 Actual² | E429: 2014 Actual² | F429: 2015 Actual² | G429: 2016 Actual² | H429: 2017 Actual² | I429: 2018 Actual | J429: Bridge Year | K429: Test Year
C430: =C$13 -> 2012 | D430: 2013 | E430: 2014 | F430: 2015 | G430: 2016 | H430: 2017 | I430: 2018 | J430: 2019 | K430: 2020
A431: Reporting Basis | C431: =IF(C369=0, "", C369) -> 
A440: Total | C440: =SUM(C432:C439) -> 0 | D440: =SUM(D432:D439) -> 0 | E440: =SUM(E432:E439) -> 0 | F440: =SUM(F432:F439) -> 0 | G440: =SUM(G432:G439) -> 0 | H440: =SUM(H432:H439) -> 0 | I440: =SUM(I432:I439) -> 0 | J440: =SUM(J432:J439) -> 0 | K440: =SUM(K432:K439) -> 0
C443: =C$12 -> 2012 Actual² | D443: 2013 Actual² | E443: 2014 Actual² | F443: 2015 Actual² | G443: 2016 Actual² | H443: 2017 Actual² | I443: 2018 Actual | J443: Bridge Year | K443: Test Year
C444: =C$13 -> 2012 | D444: 2013 | E444: 2014 | F444: 2015 | G444: 2016 | H444: 2017 | I444: 2018 | J444: 2019 | K444: 2020
A445: Reporting Basis | C445: =IF(C383=0, "", C383) -> 
A454: Total | C454: =SUM(C446:C453) -> 0 | D454: =SUM(D446:D453) -> 0 | E454: =SUM(E446:E453) -> 0 | F454: =SUM(F446:F453) -> 0 | G454: =SUM(G446:G453) -> 0 | H454: =SUM(H446:H453) -> 0 | I454: =SUM(I446:I453) -> 0 | J454: =SUM(J446:J453) -> 0 | K454: =SUM(K446:K453) -> 0
C457: =C$12 -> 2012 Actual² | D457: 2013 Actual² | E457: 2014 Actual² | F457: 2015 Actual² | G457: 2016 Actual² | H457: 2017 Actual² | I457: 2018 Actual | J457: Bridge Year | K457: Test Year
C458: =C$13 -> 2012 | D458: 2013 | E458: 2014 | F458: 2015 | G458: 2016 | H458: 2017 | I458: 2018 | J458: 2019 | K458: 2020
A459: Reporting Basis | C459: =IF(C397=0, "", C397) -> 
A468: Total | C468: =SUM(C460:C467) -> 0 | D468: =SUM(D460:D467) -> 0 | E468: =SUM(E460:E467) -> 0 | F468: =SUM(F460:F467) -> 0 | G468: =SUM(G460:G467) -> 0 | H468: =SUM(H460:H467) -> 0 | I468: =SUM(I460:I467) -> 0 | J468: =SUM(J460:J467) -> 0 | K468: =SUM(K460:K467) -> 0
C471: =C$12 -> 2012 Actual² | D471: 2013 Actual² | E471: 2014 Actual² | F471: 2015 Actual² | G471: 2016 Actual² | H471: 2017 Actual² | I471: 2018 Actual | J471: Bridge Year | K471: Test Year
C472: =C$13 -> 2012 | D472: 2013 | E472: 2014 | F472: 2015 | G472: 2016 | H472: 2017 | I472: 2018 | J472: 2019 | K472: 2020
A473: Reporting Basis | C473: =IF(C411=0, "", C411) -> 
A482: Total | C482: =SUM(C474:C481) -> 0 | D482: =SUM(D474:D481) -> 0 | E482: =SUM(E474:E481) -> 0 | F482: =SUM(F474:F481) -> 0 | G482: =SUM(G474:G481) -> 0 | H482: =SUM(H474:H481) -> 0 | I482: =SUM(I474:I481) -> 0 | J482: =SUM(J474:J481) -> 0 | K482: =SUM(K474:K481) -> 0
C485: =C$12 -> 2012 Actual² | D485: 2013 Actual² | E485: 2014 Actual² | F485: 2015 Actual² | G485: 2016 Actual² | H485: 2017 Actual² | I485: 2018 Actual | J485: Bridge Year | K485: Test Year
C486: =C$13 -> 2012 | D486: 2013 | E486: 2014 | F486: 2015 | G486: 2016 | H486: 2017 | I486: 2018 | J486: 2019 | K486: 2020
A487: Reporting Basis | C487: =IF(C425=0, "", C425) -> 
A496: Total | C496: =SUM(C488:C495) -> 0 | D496: =SUM(D488:D495) -> 0 | E496: =SUM(E488:E495) -> 0 | F496: =SUM(F488:F495) -> 0 | G496: =SUM(G488:G495) -> 0 | H496: =SUM(H488:H495) -> 0 | I496: =SUM(I488:I495) -> 0 | J496: =SUM(J488:J495) -> 0 | K496: =SUM(K488:K495) -> 0
C499: =C$12 -> 2012 Actual² | D499: 2013 Actual² | E499: 2014 Actual² | F499: 2015 Actual² | G499: 2016 Actual² | H499: 2017 Actual² | I499: 2018 Actual | J499: Bridge Year | K499: Test Year
C500: =C$13 -> 2012 | D500: 2013 | E500: 2014 | F500: 2015 | G500: 2016 | H500: 2017 | I500: 2018 | J500: 2019 | K500: 2020
A501: Reporting Basis | C501: =IF(C439=0, "", C439) -> 
A510: Total | C510: =SUM(C502:C509) -> 0 | D510: =SUM(D502:D509) -> 0 | E510: =SUM(E502:E509) -> 0 | F510: =SUM(F502:F509) -> 0 | G510: =SUM(G502:G509) -> 0 | H510: =SUM(H502:H509) -> 0 | I510: =SUM(I502:I509) -> 0 | J510: =SUM(J502:J509) -> 0 | K510: =SUM(K502:K509) -> 0
C513: =C$12 -> 2012 Actual² | D513: 2013 Actual² | E513: 2014 Actual² | F513: 2015 Actual² | G513: 2016 Actual² | H513: 2017 Actual² | I513: 2018 Actual | J513: Bridge Year | K513: Test Year
C514: =C$13 -> 2012 | D514: 2013 | E514: 2014 | F514: 2015 | G514: 2016 | H514: 2017 | I514: 2018 | J514: 2019 | K514: 2020
A515: Reporting Basis | C515: =IF(C453=0, "", C453) -> 
A524: Total | C524: =SUM(C516:C523) -> 0 | D524: =SUM(D516:D523) -> 0 | E524: =SUM(E516:E523) -> 0 | F524: =SUM(F516:F523) -> 0 | G524: =SUM(G516:G523) -> 0 | H524: =SUM(H516:H523) -> 0 | I524: =SUM(I516:I523) -> 0 | J524: =SUM(J516:J523) -> 0 | K524: =SUM(K516:K523) -> 0
C527: =C$12 -> 2012 Actual² | D527: 2013 Actual² | E527: 2014 Actual² | F527: 2015 Actual² | G527: 2016 Actual² | H527: 2017 Actual² | I527: 2018 Actual | J527: Bridge Year | K527: Test Year
C528: =C$13 -> 2012 | D528: 2013 | E528: 2014 | F528: 2015 | G528: 2016 | H528: 2017 | I528: 2018 | J528: 2019 | K528: 2020
A529: Reporting Basis | C529: =IF(C467=0, "", C467) -> 
A538: Total | C538: =SUM(C530:C537) -> 0 | D538: =SUM(D530:D537) -> 0 | E538: =SUM(E530:E537) -> 0 | F538: =SUM(F530:F537) -> 0 | G538: =SUM(G530:G537) -> 0 | H538: =SUM(H530:H537) -> 0 | I538: =SUM(I530:I537) -> 0 | J538: =SUM(J530:J537) -> 0 | K538: =SUM(K530:K537) -> 0
... 8 more rows

Sheet Hidden_Other Revenue (hidden)
A1: Utility Name | B1: EB Number | C1: Test Year | D1: Bridge Year | E1: Last Rebasing Year | F1: Heading | G1: Year | H1: Amount
A2: ='LDC Info'!$E$14 -> Hydro 2000 Inc. | B2: =EBNUMBER -> EB-2019-0041 | C2: =TestYear -> 2020 | D2: =BridgeYear -> 2019 | E2: =RebaseYear -> 2012 | F2: Specific Service Charges | G2: ='App.2-H_Other_Oper_Rev'!#REF! ->  | H2: ='App.2-H_Other_Oper_Rev'!#REF! -> 
A3: ='LDC Info'!$E$14 -> Hydro 2000 Inc. | B3: EB-2019-0041 | C3: 2020 | D3: 2019 | E3: 2012 | F3: Late Payment Charges | G3: ='App.2-H_Other_Oper_Rev'!#REF! ->  | H3: ='App.2-H_Other_Oper_Rev'!#REF! -> 
A4: ='LDC Info'!$E$14 -> Hydro 2000 Inc. | B4: EB-2019-0041 | C4: 2020 | D4: 2019 | E4: 2012 | F4: Other Operating Revenues | G4: ='App.2-H_Other_Oper_Rev'!#REF! ->  | H4: ='App.2-H_Other_Oper_Rev'!#REF! -> 
A5: ='LDC Info'!$E$14 -> Hydro 2000 Inc. | B5: EB-2019-0041 | C5: 2020 | D5: 2019 | E5: 2012 | F5: Other Income or Deductions | G5: ='App.2-H_Other_Oper_Rev'!#REF! ->  | H5: ='App.2-H_Other_Oper_Rev'!#REF! -> 
A6: ='LDC Info'!$E$14 -> Hydro 2000 Inc. | B6: EB-2019-0041 | C6: 2020 | D6: 2019 | E6: 2012 | F6: Specific Service Charges | G6: ='App.2-H_Other_Oper_Rev'!C13 -> 2012 | H6: ='App.2-H_Other_Oper_Rev'!C52 -> -8518.29
A7: ='LDC Info'!$E$14 -> Hydro 2000 Inc. | B7: EB-2019-0041 | C7: 2020 | D7: 2019 | E7: 2012 | F7: Late Payment Charges | G7: ='App.2-H_Other_Oper_Rev'!C13 -> 2012 | H7: ='App.2-H_Other_Oper_Rev'!C53 -> -5973.28
A8: ='LDC Info'!$E$14 -> Hydro 2000 Inc. | B8: EB-2019-0041 | C8: 2020 | D8: 2019 | E8: 2012 | F8: Other Operating Revenues | G8: ='App.2-H_Other_Oper_Rev'!C13 -> 2012 | H8: ='App.2-H_Other_Oper_Rev'!C54 -> -4182.87
A9: ='LDC Info'!$E$14 -> Hydro 2000 Inc. | B9: EB-2019-0041 | C9: 2020 | D9: 2019 | E9: 2012 | F9: Other Income or Deductions | G9: ='App.2-H_Other_Oper_Rev'!C13 -> 2012 | H9: ='App.2-H_Other_Oper_Rev'!C55 -> -90334.69
A10: ='LDC Info'!$E$14 -> Hydro 2000 Inc. | B10: EB-2019-0041 | C10: 2020 | D10: 2019 | E10: 2012 | F10: Specific Service Charges | G10: ='App.2-H_Other_Oper_Rev'!D13 -> 2013 | H10: ='App.2-H_Other_Oper_Rev'!D52 -> -8114.71
A11: ='LDC Info'!$E$14 -> Hydro 2000 Inc. | B11: EB-2019-0041 | C11: 2020 | D11: 2019 | E11: 2012 | F11: Late Payment Charges | G11: ='App.2-H_Other_Oper_Rev'!D13 -> 2013 | H11: ='App.2-H_Other_Oper_Rev'!D53 -> -6789
A12: ='LDC Info'!$E$14 -> Hydro 2000 Inc. | B12: EB-2019-0041 | C12: 2020 | D12: 2019 | E12: 2012 | F12: Other Operating Revenues | G12: ='App.2-H_Other_Oper_Rev'!D13 -> 2013 | H12: ='App.2-H_Other_Oper_Rev'!D54 -> -12281.02
A13: ='LDC Info'!$E$14 -> Hydro 2000 Inc. | B13: EB-2019-0041 | C13: 2020 | D13: 2019 | E13: 2012 | F13: Other Income or Deductions | G13: ='App.2-H_Other_Oper_Rev'!D13 -> 2013 | H13: ='App.2-H_Other_Oper_Rev'!D55 -> 5682.86
A14: ='LDC Info'!$E$14 -> Hydro 2000 Inc. | B14: EB-2019-0041 | C14: 2020 | D14: 2019 | E14: 2012 | F14: Specific Service Charges | G14: ='App.2-H_Other_Oper_Rev'!E13 -> 2014 | H14: ='App.2-H_Other_Oper_Rev'!E52 -> -8202.4
A15: ='LDC Info'!$E$14 -> Hydro 2000 Inc. | B15: EB-2019-0041 | C15: 2020 | D15: 2019 | E15: 2012 | F15: Late Payment Charges | G15: ='App.2-H_Other_Oper_Rev'!E13 -> 2014 | H15: ='App.2-H_Other_Oper_Rev'!E53 -> -8541.83
A16: ='LDC Info'!$E$14 -> Hydro 2000 Inc. | B16: EB-2019-0041 | C16: 2020 | D16: 2019 | E16: 2012 | F16: Other Operating Revenues | G16: ='App.2-H_Other_Oper_Rev'!E13 -> 2014 | H16: ='App.2-H_Other_Oper_Rev'!E54 -> -13397.48
A17: ='LDC Info'!$E$14 -> Hydro 2000 Inc. | B17: EB-2019-0041 | C17: 2020 | D17: 2019 | E17: 2012 | F17: Other Income or Deductions | G17: ='App.2-H_Other_Oper_Rev'!E13 -> 2014 | H17: ='App.2-H_Other_Oper_Rev'!E55 -> -28559.82
A18: ='LDC Info'!$E$14 -> Hydro 2000 Inc. | B18: EB-2019-0041 | C18: 2020 | D18: 2019 | E18: 2012 | F18: Specific Service Charges | G18: ='App.2-H_Other_Oper_Rev'!F13 -> 2015 | H18: ='App.2-H_Other_Oper_Rev'!F52 -> 0
A19: ='LDC Info'!$E$14 -> Hydro 2000 Inc. | B19: EB-2019-0041 | C19: 2020 | D19: 2019 | E19: 2012 | F19: Late Payment Charges | G19: ='App.2-H_Other_Oper_Rev'!F13 -> 2015 | H19: ='App.2-H_Other_Oper_Rev'!F53 -> -9103.16
A20: ='LDC Info'!$E$14 -> Hydro 2000 Inc. | B20: EB-2019-0041 | C20: 2020 | D20: 2019 | E20: 2012 | F20: Other Operating Revenues | G20: ='App.2-H_Other_Oper_Rev'!F13 -> 2015 | H20: ='App.2-H_Other_Oper_Rev'!F54 -> -12279.47
A21: ='LDC Info'!$E$14 -> Hydro 2000 Inc. | B21: EB-2019-0041 | C21: 2020 | D21: 2019 | E21: 2012 | F21: Other Income or Deductions | G21: ='App.2-H_Other_Oper_Rev'!F13 -> 2015 | H21: ='App.2-H_Other_Oper_Rev'!F55 -> -10015.6
A22: ='LDC Info'!$E$14 -> Hydro 2000 Inc. | B22: EB-2019-0041 | C22: 2020 | D22: 2019 | E22: 2012 | F22: Specific Service Charges | G22: ='App.2-H_Other_Oper_Rev'!G13 -> 2016 | H22: ='App.2-H_Other_Oper_Rev'!G52 -> -15136.86
A23: ='LDC Info'!$E$14 -> Hydro 2000 Inc. | B23: EB-2019-0041 | C23: 2020 | D23: 2019 | E23: 2012 | F23: Late Payment Charges | G23: ='App.2-H_Other_Oper_Rev'!G13 -> 2016 | H23: ='App.2-H_Other_Oper_Rev'!G53 -> -10384.85
A24: ='LDC Info'!$E$14 -> Hydro 2000 Inc. | B24: EB-2019-0041 | C24: 2020 | D24: 2019 | E24: 2012 | F24: Other Operating Revenues | G24: ='App.2-H_Other_Oper_Rev'!G13 -> 2016 | H24: ='App.2-H_Other_Oper_Rev'!G54 -> -15296.66
A25: ='LDC Info'!$E$14 -> Hydro 2000 Inc. | B25: EB-2019-0041 | C25: 2020 | D25: 2019 | E25: 2012 | F25: Other Income or Deductions | G25: ='App.2-H_Other_Oper_Rev'!G13 -> 2016 | H25: ='App.2-H_Other_Oper_Rev'!G55 -> -18404.18
A26: ='LDC Info'!$E$14 -> Hydro 2000 Inc. | B26: EB-2019-0041 | C26: 2020 | D26: 2019 | E26: 2012 | F26: Specific Service Charges | G26: ='App.2-H_Other_Oper_Rev'!H13 -> 2017 | H26: ='App.2-H_Other_Oper_Rev'!H52 -> -7243.1
A27: ='LDC Info'!$E$14 -> Hydro 2000 Inc. | B27: EB-2019-0041 | C27: 2020 | D27: 2019 | E27: 2012 | F27: Late Payment Charges | G27: ='App.2-H_Other_Oper_Rev'!H13 -> 2017 | H27: ='App.2-H_Other_Oper_Rev'!H53 -> -10604.1
A28: ='LDC Info'!$E$14 -> Hydro 2000 Inc. | B28: EB-2019-0041 | C28: 2020 | D28: 2019 | E28: 2012 | F28: Other Operating Revenues | G28: ='App.2-H_Other_Oper_Rev'!H13 -> 2017 | H28: ='App.2-H_Other_Oper_Rev'!H54 -> -15683
A29: ='LDC Info'!$E$14 -> Hydro 2000 Inc. | B29: EB-2019-0041 | C29: 2020 | D29: 2019 | E29: 2012 | F29: Other Income or Deductions | G29: ='App.2-H_Other_Oper_Rev'!H13 -> 2017 | H29: ='App.2-H_Other_Oper_Rev'!H55 -> -13301.75
A30: ='LDC Info'!$E$14 -> Hydro 2000 Inc. | B30: EB-2019-0041 | C30: 2020 | D30: 2019 | E30: 2012 | F30: Specific Service Charges | G30: ='App.2-H_Other_Oper_Rev'!I13 -> 2018 | H30: ='App.2-H_Other_Oper_Rev'!I52 -> -19683.22
A31: ='LDC Info'!$E$14 -> Hydro 2000 Inc. | B31: EB-2019-0041 | C31: 2020 | D31: 2019 | E31: 2012 | F31: Late Payment Charges | G31: ='App.2-H_Other_Oper_Rev'!I13 -> 2018 | H31: ='App.2-H_Other_Oper_Rev'!I53 -> -7952.79
